{"text_format":"1","workbook":"xlsx","n_sheets":89,"sheets":["MASTER","ADAMS","ALLEN","ASHLAND","ASHTABULA","ATHENS","AUGLAIZE","BELMONT","BROWN","BUTLER","CARROL","CHAMPAIGN","CLARK","CLERMONT","CLINTON","COLUMBIANA","COSHOCTON","CRAWFORD","CUYAHOGA","DARKE","DEFIANCE","DELAWARE","ERIE","FAIRFIELD","FAYETTE","FRANKLIN","FULTON","GALLIA","GEAUGA","GREEN","GUERNSEY","HAMILTON","HANCOCK","HARDIN","HARRISON","HENRY","HIGHLAND","HOCKING","HOLMES","HURON","JACKSON","JEFFERSON","KNOX","LAKE","LAWRENCE","LICKING","LOGAN","LORAIN","LUCAS","MADISON","MAHONING","MARION","MEDINA","MEIGS","MERCER","MIAMI","MONROE","MONTGOMERY","MORGAN","MORROW","MUSKINGUM","NOBLE","OTTAWA","PAULDING","PERRY","PICKAWAY","PIKE","PORTAGE","PREBLE","PUTNAM","RICHLAND","ROSS","SANDUSKY","SCIOTO","SENECA","SHELBY","STARK","SUMMIT","TRUMBULL","TUSCARAWAS","UNION","VAN WERT","VINTON","WARREN","WASHINGTON","WAYNE","WILLIAMS","WOOD","WYANDOT"],"not_rendered":{"charts":0,"images":0,"macros":1,"external_links":0,"defined_names":0,"comments":0,"pivot_tables":0},"unopened":[],"bounds":{"document_bytes":16777216,"sheet_cells":100000,"rows_first":2000,"rows_last":500,"rows_between":2000,"halvings":0,"cell_chars":16384,"cell_head_chars":4096},"cells_cut":0,"cells_raw":0,"read":"whole","date_system":"1900"}

{"sheet":"MASTER","index":0,"n_rows":235,"n_cols":92,"rows_kept":235,"cut":false,"hidden":false,"merged":[]}
["Lichen Taxa","count form","Adams","Allen","Ashland","Ashtabula","Athens","Auglaize","Belmont","Brown","Butler","Carroll","Champaign","Clark","Clermont","Clinton","Columbiana","Coshocton","Crawford","Cuyahoga","Darke","Defiance","Delaware","Erie","Fairfield","Fayette","Franklin","Fulton","Gallia","Geauga","Greene","Guernsey","Hamilton","Hancock","Hardin","Harrison","Henry","Highland","Hocking","Holmes","Huron","Jackson","Jefferson","Knox","Lake","Lawrence","Licking","Logan","Lorain","Lucas","Madison","Mahoning","Marion","Medina","Meigs","Mercer","Miami","Monroe","Montgomery","Morgan","Morrow","Muskingum","Noble","Ottawa","Paulding","Perry","Pickaway","Pike","Portage","Preble","Putnam","Richland","Ross","Sandusky","Scioto","Seneca","Shelby","Stark","Summit","Trumbull","Tuscarawas","Union","Van Wert","Vinton","Warren","Washington","Wayne","Williams","Wood","Wyandot","count form","Total Counties Recorded"]
["Physcia millegrana Degel.",88,1,2,2,1,1,2,2,1,1,2,1,2,1,2,2,1,1,2,2,1,1,1,1,1,1,2,1,2,1,2,1,1,1,1,1,1,1,1,1,1,1,2,2,1,2,2,2,1,2,1,2,2,1,2,2,1,2,1,1,1,1,2,2,2,2,1,2,1,2,1,1,2,1,1,2,1,2,1,2,2,1,1,2,1,1,2,2,2,{"$f":"COUNTA(C2:CL2)","v":88},88]
["Punctelia rudecta (Ach.) Krog",86,1,2,2,1,1,2,2,1,1,2,1,2,1,2,2,2,1,2,2,1,1,1,2,1,1,2,1,2,1,2,1,1,1,2,1,2,1,1,1,1,2,2,null,1,2,2,2,2,2,null,2,2,1,2,2,1,2,1,1,1,2,2,2,2,2,1,2,1,2,1,1,2,1,1,2,2,1,1,2,2,1,1,2,1,1,2,2,2,{"$f":"COUNTA(C3:CL3)","v":86},86]
["Flavoparmelia caperata (L.) Hale",85,1,2,1,1,1,2,2,1,1,2,1,2,1,2,null,1,1,2,2,1,1,1,1,1,1,2,1,2,1,2,1,1,1,2,1,1,1,1,2,1,1,2,null,1,2,2,2,2,2,1,2,2,1,2,2,1,2,1,1,1,1,null,2,2,2,1,2,1,2,1,1,2,1,1,2,1,2,1,2,2,1,1,2,1,1,2,2,2,{"$f":"COUNTA(C4:CL4)","v":85},85]
["Parmelia sulcata Taylor",82,1,null,1,1,1,2,2,1,1,2,1,2,1,2,2,2,1,2,1,1,1,1,1,1,1,2,1,2,1,2,null,1,1,2,1,1,1,1,1,1,1,2,2,1,2,2,2,2,null,1,2,2,1,2,null,1,2,1,1,1,1,2,2,2,2,1,2,1,1,1,1,null,1,1,2,1,2,1,1,1,1,1,null,1,1,2,2,2,{"$f":"COUNTA(C5:CL5)","v":82},80]
["Candelaria concolor (Dickson) Stein",78,1,2,1,2,1,2,2,1,1,null,1,2,1,2,null,null,1,2,2,1,2,2,2,1,2,2,1,2,1,2,2,1,1,2,1,2,2,1,1,1,1,2,2,1,2,2,1,2,2,1,null,null,1,2,2,1,2,1,1,1,2,2,2,2,2,2,null,2,null,null,2,2,2,1,2,1,1,1,null,null,1,1,2,1,1,2,2,2,{"$f":"COUNTA(C6:CL6)","v":78},77]
["Physcia stellaris (L.) Nyl.",74,1,2,null,1,1,2,2,1,1,null,1,2,1,null,null,null,1,2,2,1,1,1,1,1,1,2,1,2,1,null,1,1,1,2,1,2,1,1,2,1,null,2,2,1,2,2,2,2,2,2,2,null,1,2,2,1,2,1,1,1,1,2,2,2,2,2,null,1,null,2,2,1,1,1,2,1,null,null,null,2,1,1,1,1,2,2,2,null,{"$f":"COUNTA(C7:CL7)","v":74},74]
["Myelochroa aurulenta (Tuck.) Elix & Hale",73,1,null,1,null,1,2,2,1,1,null,1,2,1,2,2,2,1,null,1,1,1,1,1,1,2,2,1,2,1,2,1,1,2,2,1,2,1,1,null,1,1,null,null,1,2,1,2,2,2,1,null,2,1,2,null,1,2,1,1,1,1,null,null,null,2,2,2,1,2,1,2,null,1,2,2,1,null,null,2,2,1,1,2,1,1,2,2,2,{"$f":"COUNTA(C8:CL8)","v":73},70]
["Phaeophyscia rubropulchra (Degel.) Essl.",70,1,null,1,null,1,1,1,1,1,1,1,null,null,1,null,1,1,null,1,1,1,1,1,1,1,1,1,null,1,1,1,1,1,1,1,1,1,1,1,1,1,null,null,1,1,null,null,1,1,1,null,null,1,null,1,1,1,1,1,1,1,1,1,1,1,1,1,1,null,1,1,null,1,1,1,1,1,1,null,1,1,1,1,1,1,null,1,1,{"$f":"COUNTA(C9:CL9)","v":70},68]
["Physcia aipolia (Ehrh. ex Humb.) Furnr.",65,1,2,2,2,2,2,null,2,2,1,1,1,1,null,null,null,null,2,2,2,2,2,null,2,2,null,1,null,2,null,2,2,2,2,2,2,1,1,2,1,null,2,2,1,2,2,2,1,null,1,1,2,1,2,2,1,null,null,1,null,null,2,2,1,2,null,2,2,2,null,1,1,2,2,null,null,null,null,null,2,1,1,2,1,1,null,2,2,{"$f":"COUNTA(C10:CL10)","v":65},65]
["Cladonia cristatella Tuck.",63,1,null,null,2,1,null,null,2,2,2,2,null,2,2,2,2,null,2,null,1,null,null,1,2,2,2,1,2,2,2,2,1,null,2,2,2,1,1,2,2,1,2,null,1,2,2,2,2,2,1,2,2,1,null,null,2,1,1,null,1,1,null,null,2,null,2,null,1,null,2,2,null,2,1,null,1,2,1,2,null,null,1,2,1,1,null,null,2,{"$f":"COUNTA(C11:CL11)","v":63},63]
["Cladonia coniocraea (Florke) Sprengel",62,1,null,null,2,1,2,1,2,2,2,1,null,2,2,2,2,null,1,null,1,null,2,1,null,2,2,1,2,1,2,2,2,2,2,2,2,1,1,null,1,1,2,2,1,2,null,2,2,null,null,2,2,1,null,null,1,null,1,null,1,1,null,2,null,null,2,2,null,null,2,2,null,null,1,null,1,2,1,2,null,null,1,2,1,1,2,null,2,{"$f":"COUNTA(C12:CL12)","v":62},61]
["Physcia adscendens (Fr.) H. Oliver",62,1,null,2,1,1,1,null,null,2,null,1,null,null,2,null,1,1,null,1,1,null,1,1,1,1,null,1,null,null,null,2,1,2,null,1,2,null,1,1,null,1,1,2,null,1,1,2,1,null,1,1,null,1,2,null,1,1,1,1,1,null,2,2,1,null,null,2,2,2,2,1,2,null,1,2,1,null,1,1,2,1,1,2,1,1,null,2,2,{"$f":"COUNTA(C13:CL13)","v":62},61]
["Xanthomendoza fallax (Hepp ex Arnold) Sochting, Karnfelt & S. Kondr.",60,1,2,2,null,1,2,null,1,2,null,1,2,1,2,null,null,1,null,1,1,1,2,1,2,1,null,1,null,1,null,1,2,1,null,2,2,1,2,2,1,null,2,2,null,2,2,null,1,2,null,2,null,1,2,2,2,1,null,1,null,null,2,2,1,2,null,null,1,2,null,2,1,null,2,2,null,null,null,null,2,1,1,2,1,1,null,2,null,{"$f":"COUNTA(C14:CL14)","v":60},59]
["Cladonia furcata (Hudson) Schrader",58,1,null,2,2,1,null,1,2,1,2,2,null,2,2,null,2,null,2,1,1,2,2,1,null,2,null,1,2,1,2,2,null,null,2,1,2,1,1,null,2,2,2,2,1,2,null,2,null,null,null,null,2,1,null,2,1,1,1,null,1,1,null,null,null,null,2,null,1,null,2,2,null,2,null,2,1,2,1,2,null,null,1,2,1,1,null,null,null,{"$f":"COUNTA(C15:CL15)","v":58},57]
["Cladonia peziziformis (With.) J. R. Laundon",58,2,null,null,2,1,2,null,2,1,null,1,2,2,2,2,2,2,2,null,2,2,1,2,2,2,2,1,null,2,null,2,null,2,null,2,2,1,1,2,2,null,2,2,2,2,2,2,2,null,null,null,2,1,null,2,1,2,1,null,1,2,null,null,null,2,1,null,2,null,2,2,null,2,null,null,1,2,1,null,null,null,1,null,1,1,null,null,null,{"$f":"COUNTA(C16:CL16)","v":58},58]
["Cladonia polycarpoides Nyl.",58,1,null,2,2,null,2,null,2,2,2,2,null,2,2,2,2,2,null,null,1,2,2,2,null,2,2,1,2,null,2,2,null,null,null,2,2,1,1,null,null,2,2,2,1,2,2,2,2,2,null,null,2,1,null,null,2,2,2,1,1,2,null,null,2,null,2,null,null,null,2,2,null,2,null,null,1,2,1,2,null,null,1,2,1,1,2,null,null,{"$f":"COUNTA(C17:CL17)","v":58},57]
["Cladonia cervicornis (Hoffm.) Ahti",54,1,null,null,2,1,null,null,2,2,null,2,null,2,2,2,2,2,2,null,2,2,null,2,null,null,2,1,2,2,2,2,null,null,2,2,2,1,1,null,null,2,2,null,1,2,2,2,2,null,2,null,2,1,null,null,2,1,1,null,2,1,null,null,null,null,2,1,1,null,2,2,null,2,null,null,2,2,2,null,null,null,1,2,1,1,null,null,null,{"$f":"COUNTA(C18:CL18)","v":54},54]
["Phaeophyscia ciliata (Hoffm.) Moberg",54,2,null,2,2,null,2,null,2,2,null,2,2,null,2,null,null,2,2,null,null,2,null,2,1,2,null,1,2,2,null,2,2,1,null,2,2,null,2,1,2,null,1,2,null,1,2,null,null,2,null,2,2,1,null,2,1,null,1,1,1,null,2,2,1,null,null,null,2,null,2,1,1,2,2,null,null,null,1,null,1,null,1,2,1,null,null,null,2,{"$f":"COUNTA(C19:CL19)","v":54},54]
["Physcia americana G. Merr.",53,1,null,null,2,1,2,null,1,1,null,1,null,1,2,null,2,null,2,null,1,2,2,1,1,2,null,1,null,1,null,1,null,2,2,1,2,1,2,null,1,null,2,null,1,1,2,null,null,null,null,null,null,1,2,2,2,null,1,null,1,1,null,2,null,null,2,null,1,2,null,2,2,1,null,2,null,null,null,null,2,null,1,2,1,1,null,2,2,{"$f":"COUNTA(C20:CL20)","v":53},52]
["Physconia detersa (Nyl.) Poelt",53,1,null,null,2,null,1,null,2,2,null,2,2,1,2,null,2,1,null,2,1,null,2,null,1,2,2,1,null,null,null,null,2,2,null,1,2,1,2,2,2,null,2,null,2,2,2,null,1,2,null,1,null,1,2,2,1,null,null,1,1,null,2,2,2,2,1,null,2,null,2,null,null,null,2,1,null,null,null,null,2,null,null,2,null,null,2,2,2,{"$f":"COUNTA(C21:CL21)","v":53},50]
["Punctelia bolliana (Mull. Arg.) Krog",53,1,null,null,null,1,null,2,1,1,null,2,2,1,2,null,null,1,2,null,1,2,null,null,1,2,null,null,null,1,null,2,2,2,null,2,2,null,null,2,null,2,1,null,null,null,2,null,null,2,null,2,null,1,2,2,2,2,2,1,1,2,2,2,null,2,null,null,1,2,1,1,null,null,1,null,null,null,null,2,2,1,null,1,2,1,2,2,2,{"$f":"COUNTA(C22:CL22)","v":53},51]
["Peltigera canina (L.) Willd.",50,1,null,null,2,1,null,null,2,2,null,null,2,2,2,null,2,2,2,null,1,1,null,2,null,2,null,1,null,1,2,1,2,null,null,1,null,1,1,null,2,2,2,null,2,2,null,2,null,null,null,null,2,1,null,2,2,2,1,1,1,2,null,null,null,null,null,null,2,null,2,null,2,2,2,null,null,2,null,2,null,null,1,2,2,null,2,2,null,{"$f":"COUNTA(C23:CL23)","v":50},49]
["Myelochroa galbina (Ach.) Elix & Hale",47,1,null,null,2,1,null,null,null,2,null,1,2,2,null,null,2,null,2,null,null,2,null,2,null,2,null,1,2,1,2,2,1,2,null,2,2,1,null,null,1,null,null,null,1,2,null,null,2,2,null,2,2,1,null,null,2,null,1,null,1,1,null,null,2,null,1,2,1,null,1,2,null,1,1,2,null,null,null,null,null,null,1,null,1,1,null,null,2,{"$f":"COUNTA(C24:CL24)","v":47},46]
["Punctelia subrudecta (Nyl.) Krog",47,null,null,2,null,2,2,2,null,1,null,null,2,2,null,2,1,1,null,2,1,2,null,null,1,null,null,2,null,2,null,1,2,null,null,1,1,1,null,null,null,2,2,null,1,2,1,null,null,2,null,2,null,1,2,null,1,1,1,1,1,2,null,2,2,null,1,null,null,2,null,2,null,2,null,2,null,1,null,null,2,null,1,null,null,null,2,null,null,{"$f":"COUNTA(C25:CL25)","v":47},42]
["Pyxine sorediata (Ach.) Mont",47,1,2,null,null,1,2,2,1,1,null,2,2,1,null,null,2,null,null,null,null,2,null,2,null,2,2,1,null,1,2,1,1,1,null,2,2,1,1,null,1,null,null,null,1,2,null,null,null,null,null,null,null,1,null,null,1,1,1,1,1,null,null,null,2,null,1,null,1,null,2,1,null,1,1,2,null,null,null,null,null,null,1,2,1,1,null,null,1,{"$f":"COUNTA(C26:CL26)","v":47},47]
["Cladonia macilenta Hoffm.",46,1,null,null,null,1,null,null,2,2,2,1,2,null,null,2,2,1,2,null,null,null,1,2,null,2,null,1,2,2,2,2,null,2,2,1,2,2,1,null,null,2,null,null,1,1,null,2,null,null,2,null,2,1,null,1,1,1,null,null,1,2,null,null,null,null,1,null,null,null,2,null,null,2,null,null,null,2,1,2,null,null,1,null,1,1,null,null,null,{"$f":"COUNTA(C27:CL27)","v":46},43]
["Parmotrema hypotropum (Nyl.) Hale",46,1,null,null,null,1,2,1,1,2,null,1,null,1,null,null,null,1,null,1,1,null,1,1,1,2,null,1,null,1,null,2,null,null,null,null,1,1,1,null,1,null,null,2,1,1,null,null,null,2,null,null,null,1,null,1,1,1,1,1,1,1,null,null,2,2,1,null,null,null,null,1,null,1,null,null,1,1,1,null,null,null,1,1,2,1,null,null,null,{"$f":"COUNTA(C28:CL28)","v":46},41]
["Heterodermia speciosa (Wulfen) Trevisan",43,1,null,2,null,1,null,null,null,1,null,2,2,null,null,null,1,null,2,null,null,null,null,1,2,2,null,1,2,1,2,2,null,null,2,null,2,1,1,null,1,2,null,null,1,2,null,null,null,2,null,null,null,1,null,2,1,null,1,2,2,2,null,null,null,null,1,null,2,null,2,2,2,1,null,null,null,null,null,1,2,null,1,null,1,null,2,null,null,{"$f":"COUNTA(C29:CL29)","v":43},43]
["Cladonia grayi G. Merr. ex Sandst.",42,1,null,null,2,2,null,null,2,2,2,2,null,2,null,2,2,null,2,null,null,null,null,2,null,null,null,1,2,null,2,2,null,null,2,null,2,2,1,2,null,2,null,null,1,null,null,2,2,null,2,null,2,null,null,null,2,1,null,null,2,null,null,null,2,null,2,null,2,null,2,2,null,2,null,null,1,2,2,null,null,null,null,2,2,1,null,null,null,{"$f":"COUNTA(C30:CL30)","v":42},42]
["Flavopunctelia flaventior (Stirton) Hale",42,1,null,2,null,1,2,null,null,1,null,1,null,null,null,null,1,1,null,1,2,null,null,null,null,1,null,null,null,1,null,null,1,2,null,null,2,1,1,1,1,1,2,null,null,1,null,2,1,null,null,2,2,1,null,2,1,2,null,1,null,1,null,null,2,2,null,null,null,null,1,null,null,1,1,null,null,null,null,null,null,1,1,null,null,1,2,null,2,{"$f":"COUNTA(C31:CL31)","v":42},41]
["Phaeophyscia adiastola (Essl.) Essl.",42,1,null,1,null,null,null,null,1,1,1,1,null,null,null,null,1,1,null,null,1,null,1,null,null,null,null,1,null,null,null,1,null,null,null,1,1,1,1,null,1,1,null,null,1,null,1,1,1,null,1,null,1,null,null,1,1,1,1,null,1,null,1,null,null,null,1,1,null,null,1,null,1,1,1,null,1,1,1,null,null,null,null,null,1,1,1,null,null,{"$f":"COUNTA(C32:CL32)","v":42},38]
["Canoparmelia crozalsiana (de Lesd. ex Harm.) Elix & Hale",40,1,null,null,null,1,2,null,1,1,null,null,2,1,2,null,null,1,null,null,null,null,1,1,1,null,null,1,null,1,null,1,null,1,null,null,1,1,null,null,1,null,null,null,1,null,null,2,null,null,null,null,null,1,null,null,1,2,1,1,1,null,null,2,1,null,1,null,1,null,null,2,null,1,1,2,null,null,null,null,null,1,1,1,1,1,null,null,null,{"$f":"COUNTA(C33:CL33)","v":40},35]
["Cladonia squamosa Hoffm.",40,1,null,null,2,1,null,2,null,null,2,null,2,2,2,2,2,null,2,null,null,null,null,1,null,null,null,1,null,2,null,null,null,null,null,null,1,1,1,null,1,2,null,2,2,2,null,null,null,null,2,null,null,1,null,2,2,1,1,null,1,null,null,null,null,null,2,2,null,null,null,2,2,2,null,2,null,2,1,null,null,null,1,null,1,1,null,null,null,{"$f":"COUNTA(C34:CL34)","v":40},40]
["Cladonia cryptochlorophaea Asah.",39,2,null,null,2,null,null,null,null,2,2,2,2,2,2,2,null,2,2,null,null,null,2,2,null,2,null,null,null,2,2,2,null,null,2,2,null,null,1,null,null,2,null,2,2,2,null,2,null,null,null,null,2,null,null,null,2,null,null,null,2,2,null,null,null,null,2,null,null,null,null,2,null,2,null,null,null,2,2,2,null,null,2,null,2,1,2,null,null,{"$f":"COUNTA(C35:CL35)","v":39},39]
["Cladonia subtenuis (Abbayes) Mattick",39,1,null,null,null,1,null,1,2,null,null,null,null,2,null,null,2,null,null,null,null,2,null,1,null,2,null,1,null,2,2,2,null,null,null,null,2,1,1,null,1,2,2,2,2,2,2,null,null,2,2,null,null,1,null,null,1,1,1,null,1,1,null,null,2,null,2,null,null,null,null,2,null,2,null,null,null,null,null,null,null,null,1,2,1,1,null,null,null,{"$f":"COUNTA(C36:CL36)","v":39},39]
["Cladonia cylindrica (A. Evans) A. Evans",38,1,null,null,null,2,null,null,2,2,null,2,null,2,2,null,2,null,null,null,null,null,1,null,null,null,null,1,null,null,null,2,1,null,2,1,2,1,1,null,null,2,null,null,null,1,null,null,null,null,null,2,2,1,null,null,1,null,1,1,2,2,null,null,1,null,null,null,null,null,2,2,null,1,1,null,1,2,null,2,null,null,1,2,null,1,null,null,null,{"$f":"COUNTA(C37:CL37)","v":38},37]
["Flavopunctelia soredica (Nyl.) Hale",38,1,null,null,1,null,null,null,1,null,null,2,null,1,null,null,null,1,null,1,null,1,null,1,1,null,null,null,null,null,null,null,1,1,null,null,1,1,1,2,null,null,2,null,null,null,1,null,1,null,1,null,null,1,null,null,null,1,1,1,null,null,null,null,2,null,1,null,1,null,1,1,null,1,1,null,null,null,null,null,null,1,1,null,1,1,2,2,2,{"$f":"COUNTA(C38:CL38)","v":38},36]
["Punctelia borreri (Sm.) Krog",38,1,null,null,null,null,2,2,2,1,2,2,2,2,null,2,null,2,null,null,null,2,null,2,1,2,null,1,null,2,null,2,null,2,null,2,2,2,null,2,null,null,2,null,null,null,2,null,null,null,null,2,null,2,2,2,null,null,2,null,null,null,null,null,null,2,null,null,2,1,null,2,null,null,null,2,null,null,null,null,null,null,null,null,null,1,null,2,2,{"$f":"COUNTA(C39:CL39)","v":38},37]
["Xanthomendoza ulophyllodes (Rasanen) Sochting, Karnefelt & S. Kondr. ",37,1,null,null,null,null,2,2,null,2,null,2,2,2,2,null,null,2,null,1,1,2,1,1,1,null,null,null,null,2,null,2,null,2,null,1,2,2,null,2,null,null,null,2,null,null,2,null,1,2,null,2,null,null,2,2,2,2,null,null,null,null,2,null,null,2,null,null,null,null,null,null,null,null,2,null,null,null,null,null,2,null,null,2,null,null,null,2,null,{"$f":"COUNTA(C40:CL40)","v":37},34]
["Melanelixia subaurifera (Nyl.) O. Blanco et al.",36,1,null,null,2,1,null,2,null,null,2,1,null,null,null,null,null,null,2,null,null,null,null,1,null,null,null,1,null,1,2,2,1,null,null,null,null,1,1,null,1,null,null,2,1,1,null,null,1,2,null,null,2,1,null,null,1,1,1,null,1,2,null,null,null,null,2,2,null,null,2,null,null,2,2,null,null,null,null,null,null,null,1,null,2,1,null,null,null,{"$f":"COUNTA(C41:CL41)","v":36},35]
["Punctelia missouriensis G. Wilh. & Ladd",36,1,null,null,null,null,2,null,2,null,2,1,null,1,2,null,null,1,null,1,1,null,null,2,1,null,null,1,null,1,null,null,2,2,null,2,1,1,null,null,null,null,null,null,1,2,2,null,null,2,null,null,null,1,2,2,null,2,2,1,null,null,null,null,2,null,2,null,2,null,null,null,null,1,null,null,null,null,null,null,null,null,1,2,1,null,null,null,null,{"$f":"COUNTA(C42:CL42)","v":36},32]
["Cladonia caespiticia (Pers.) Florke",35,1,null,null,null,null,null,2,null,2,null,null,null,2,2,2,null,null,2,null,null,null,2,2,null,2,null,1,null,null,null,2,null,null,2,null,null,2,1,null,null,null,2,2,2,1,null,2,null,null,null,null,2,1,null,null,2,null,null,null,null,null,null,null,null,null,2,2,2,null,2,2,null,2,null,null,2,2,1,null,null,null,null,2,null,1,null,null,1,{"$f":"COUNTA(C43:CL43)","v":35},35]
["Cladonia pyxidata (L.) Hoffm.",35,1,null,2,null,null,2,null,null,2,null,null,null,2,null,2,null,null,2,null,null,null,null,2,null,2,null,1,null,1,2,null,null,null,null,null,2,1,1,null,null,2,2,2,2,2,2,null,2,null,null,null,2,1,null,2,null,1,null,null,null,2,null,null,null,null,null,null,2,null,null,2,null,2,null,null,null,2,null,2,null,null,1,null,2,1,null,null,null,{"$f":"COUNTA(C44:CL44)","v":35},35]
["Cladonia humilis (With.) J. R. Laundon",33,2,null,null,null,null,null,null,null,2,2,null,null,null,2,null,2,null,2,null,2,null,2,2,null,null,null,1,2,2,2,null,2,null,2,2,null,2,1,null,null,2,null,2,null,2,null,null,null,null,null,null,2,1,null,2,2,null,null,null,null,2,null,null,null,null,2,null,2,null,2,null,null,2,null,null,null,null,null,2,null,null,null,null,2,1,null,null,null,{"$f":"COUNTA(C45:CL45)","v":33},33]
["Phaeophyscia pusilloides (Zahlbr.) Essl.",33,1,null,1,null,null,null,null,null,1,null,null,null,1,null,null,null,1,null,null,1,null,1,1,1,null,null,1,null,null,null,1,1,null,null,1,1,1,1,null,1,1,null,null,1,1,null,null,1,null,null,null,1,null,null,1,1,1,1,null,1,null,null,null,null,null,1,null,null,null,1,1,null,1,null,1,null,1,null,null,null,null,null,null,null,null,null,null,null,{"$f":"COUNTA(C46:CL46)","v":33},26]
["Anaptychia palmulata (Michaux) Vainio",31,1,null,null,2,1,null,2,null,2,null,null,2,2,null,null,2,null,2,null,null,null,null,2,null,2,null,1,null,null,null,2,null,null,2,null,null,1,1,null,null,2,null,2,null,2,null,null,null,null,null,null,null,1,null,null,2,null,1,1,2,2,null,null,null,null,2,2,null,null,2,null,null,1,null,null,null,null,null,null,null,null,1,null,null,null,null,null,1,{"$f":"COUNTA(C47:CL47)","v":31},30]
["Cladonia sobolescens Nyl. ex Vainio",31,1,null,null,2,1,null,2,2,2,null,null,null,2,null,null,null,null,null,null,null,null,null,null,1,null,null,1,null,null,2,2,null,null,null,null,null,1,1,null,null,2,null,null,2,2,null,null,null,null,2,null,2,1,null,null,2,null,1,null,1,1,null,null,2,null,2,null,null,null,null,null,null,2,null,null,null,null,1,2,null,null,1,null,1,1,null,null,null,{"$f":"COUNTA(C48:CL48)","v":31},31]
["Parmelia squarrosa Hale",31,1,null,null,null,2,null,null,1,null,null,2,2,1,null,2,null,null,2,null,null,null,null,1,null,null,null,1,2,1,2,null,null,2,null,null,1,1,1,null,1,null,null,null,1,null,null,null,null,null,null,null,2,1,null,null,1,null,1,null,null,2,null,null,null,null,2,null,null,null,null,2,null,1,null,null,null,null,null,2,null,null,1,null,1,1,null,null,null,{"$f":"COUNTA(C49:CL49)","v":31},31]
["Cladonia rei Schaerer",30,1,null,null,2,null,2,null,2,null,2,2,null,null,null,null,null,2,2,null,1,null,null,null,null,null,2,1,null,null,null,null,2,null,2,2,null,null,1,2,null,2,null,2,null,null,2,null,2,null,null,null,2,1,null,null,null,1,null,null,1,2,null,null,null,null,null,null,null,null,null,null,null,1,null,null,2,null,null,2,null,null,1,null,null,1,null,null,null,{"$f":"COUNTA(C50:CL50)","v":30},29]
["Heterodermia obscurata (Nyl.) Trevisan",30,1,null,null,null,1,null,2,1,2,null,null,null,1,null,null,null,null,2,null,1,null,null,1,null,null,null,1,null,null,2,2,null,null,null,null,2,1,null,null,2,null,null,null,1,1,null,null,null,2,null,null,null,1,null,null,2,null,null,null,1,2,null,null,null,null,2,null,1,null,null,2,null,1,null,null,null,null,null,null,null,null,1,null,1,2,null,null,1,{"$f":"COUNTA(C51:CL51)","v":30},29]
["Hypotrachyna livida (Taylor) Hale",30,1,null,null,null,1,null,null,1,1,null,null,null,1,null,null,2,null,2,null,null,null,null,1,null,null,null,1,null,1,null,2,null,1,null,2,1,1,null,null,1,null,null,null,1,null,null,null,null,null,null,null,null,1,null,null,2,null,1,null,1,1,null,null,2,2,2,null,null,null,null,1,null,1,null,null,null,null,null,null,null,null,1,null,1,1,null,null,null,{"$f":"COUNTA(C52:CL52)","v":30},30]
["Parmotrema stuppeum (Taylor) Hale",30,1,null,null,null,null,null,1,1,1,null,1,null,1,2,null,null,1,null,null,null,null,null,1,1,null,null,null,1,1,null,2,null,null,null,null,1,1,null,null,1,null,null,null,1,null,null,null,null,null,null,null,2,1,null,null,null,1,null,1,1,null,null,null,null,null,2,null,1,null,null,1,null,1,null,null,null,1,null,null,null,null,1,null,1,1,null,null,null,{"$f":"COUNTA(C53:CL53)","v":30},28]
["Cladonia apodocarpa Robb.",29,1,null,null,null,2,null,null,2,2,2,null,null,null,null,null,null,null,null,null,2,null,null,null,null,2,null,1,null,null,2,null,null,null,null,null,null,1,1,null,1,2,null,null,1,2,null,null,null,null,null,null,null,1,null,null,null,1,1,null,1,2,null,null,null,null,2,null,null,null,null,2,null,2,null,null,null,2,1,null,null,null,1,null,1,1,null,2,null,{"$f":"COUNTA(C54:CL54)","v":29},29]
["Leptogium cyanescens (Rabenh.) Korber",29,1,null,2,null,null,null,null,2,2,null,null,null,null,null,null,null,1,2,null,null,2,null,2,null,2,null,1,null,2,null,2,null,null,null,null,2,1,1,null,1,null,null,null,2,null,2,null,null,null,null,null,null,1,null,null,null,null,1,null,null,null,null,null,null,null,1,null,2,null,null,null,null,2,null,2,null,null,2,2,null,null,1,null,1,1,null,null,null,{"$f":"COUNTA(C55:CL55)","v":29},27]
["Pyxine subcinerea Stirton",29,1,null,null,null,1,2,null,1,1,null,null,null,1,null,null,null,null,null,null,null,null,null,1,1,null,null,1,null,1,null,1,null,null,null,null,2,1,1,null,1,null,null,null,1,null,null,null,null,null,null,null,null,1,null,null,1,1,1,null,null,null,null,null,1,null,1,null,1,null,null,1,null,1,null,null,null,null,null,null,null,null,1,2,2,1,null,null,null,{"$f":"COUNTA(C56:CL56)","v":29},28]
["Cladonia parasitica (Hoffm.) Hoffm.",28,1,null,null,2,null,null,2,null,2,null,null,2,null,null,2,null,null,2,null,2,null,null,2,null,2,null,null,null,null,null,2,null,null,2,null,null,2,1,null,null,2,null,null,null,2,null,2,null,null,null,null,2,null,null,null,2,null,null,null,2,2,null,null,null,null,2,null,2,null,2,2,null,null,null,null,2,null,null,null,null,null,null,2,null,1,null,null,null,{"$f":"COUNTA(C57:CL57)","v":28},28]
["Phaeophyscia hirsuta (Mereschk.) Essl.",28,1,null,null,null,null,null,null,1,1,null,null,null,null,1,null,null,null,null,1,null,null,null,null,1,null,null,1,null,null,null,null,null,1,null,null,1,null,null,1,null,1,1,null,null,1,1,null,1,null,null,null,null,null,1,null,1,1,null,null,1,null,1,null,1,null,null,null,null,null,null,null,1,1,1,null,null,null,null,null,1,1,null,1,null,1,null,null,null,{"$f":"COUNTA(C58:CL58)","v":28},26]
["Cladonia chlorophaea (Florke ex Sommerf.) Sprengel",27,2,null,null,2,2,null,null,null,null,2,null,null,null,null,null,2,null,null,null,2,null,null,null,null,2,null,null,2,null,null,null,null,null,2,2,2,2,1,null,null,2,null,2,null,null,null,null,2,null,null,null,2,null,null,null,2,null,null,null,2,2,null,null,null,null,null,null,1,null,null,null,null,null,null,null,1,null,2,2,null,null,2,2,null,1,null,null,null,{"$f":"COUNTA(C59:CL59)","v":27},27]
["Cladonia fimbriata (L.) Fr.",27,1,null,null,2,null,2,null,null,2,null,2,null,null,2,null,null,2,2,null,null,null,1,2,null,2,2,null,null,null,null,null,null,null,2,null,null,null,1,null,null,null,null,2,null,2,null,null,2,null,null,null,2,null,null,2,2,1,null,null,2,null,null,null,null,null,null,null,null,null,2,null,null,null,null,2,null,2,null,2,null,null,null,null,null,null,null,null,1,{"$f":"COUNTA(C60:CL60)","v":27},27]
["Cladonia piedmontensis G. Merr.",26,1,null,null,null,null,null,null,2,null,null,null,2,2,null,null,null,null,null,null,null,null,null,null,null,null,null,1,null,null,2,2,null,null,2,null,null,1,1,null,2,2,null,null,null,null,null,null,null,null,null,null,null,1,null,null,null,null,1,null,2,2,null,null,2,null,1,null,2,null,null,null,null,2,null,null,null,null,1,2,null,null,1,2,1,1,null,null,null,{"$f":"COUNTA(C61:CL61)","v":26},25]
["Usnea strigosa (Ach.) Eaton",25,1,null,null,2,1,null,null,null,2,null,null,2,null,null,null,null,null,null,null,null,null,null,2,null,2,null,1,null,2,null,2,null,null,1,null,null,1,1,null,1,null,null,null,1,2,null,null,null,null,null,null,null,1,null,null,1,null,2,null,1,null,null,null,null,null,1,2,null,null,null,null,null,1,null,null,null,null,null,null,null,null,1,null,1,null,null,null,null,{"$f":"COUNTA(C62:CL62)","v":25},23]
["Cladonia pleurota (Florke) Schaerer",24,1,null,null,null,null,null,null,null,null,null,null,null,null,null,2,2,null,null,null,null,null,null,2,null,null,null,1,null,null,2,2,null,null,null,null,null,2,1,null,null,2,null,2,null,1,null,null,null,null,2,null,2,1,null,null,null,null,null,null,null,null,null,null,2,null,2,null,2,null,null,2,null,null,null,null,null,null,2,2,null,null,1,null,2,1,null,null,null,{"$f":"COUNTA(C63:CL63)","v":24},24]
["Heterodermia granulifera (Ach.) Culb.",24,1,null,null,null,2,null,null,2,null,2,null,2,null,null,null,null,null,2,null,null,null,null,1,null,null,null,1,null,1,2,1,null,2,null,null,null,null,null,null,1,null,null,null,null,2,null,null,null,2,null,null,null,1,null,null,null,null,1,null,null,2,null,null,2,null,null,null,null,null,null,2,null,null,null,null,null,null,null,2,2,null,1,null,1,null,null,null,null,{"$f":"COUNTA(C64:CL64)","v":24},23]
["Leptogium lichenoides (L.) Zahlbr.",24,1,null,null,null,null,null,null,null,2,null,null,2,null,2,null,2,null,2,null,null,null,null,null,null,2,null,null,null,2,null,2,null,null,null,null,2,2,null,null,null,1,null,null,null,null,2,null,null,null,null,2,null,1,null,2,null,null,1,null,2,null,2,null,null,null,null,null,2,null,null,null,2,null,null,null,null,null,null,null,null,null,1,2,1,null,null,null,null,{"$f":"COUNTA(C65:CL65)","v":24},24]
["Collema subflaccidum Degel.",23,2,null,null,2,null,null,null,null,null,null,null,null,null,2,null,null,null,2,null,null,null,2,2,null,2,null,1,null,1,null,2,null,null,null,null,1,1,null,null,null,null,null,null,2,2,2,2,null,null,null,null,null,1,null,null,null,null,1,null,null,null,null,null,null,null,1,null,2,null,null,null,null,2,null,null,null,null,null,null,null,null,1,null,1,null,null,null,null,{"$f":"COUNTA(C66:CL66)","v":23},22]
["Hyperphyscia syncolla (Tuck. ex Nyl.) Kalb",23,1,null,null,null,1,null,null,1,2,null,null,2,null,null,null,null,1,2,null,null,null,2,2,null,2,null,1,null,null,null,2,null,2,null,null,null,null,null,null,null,null,2,2,null,2,null,null,null,null,null,2,null,null,null,null,null,null,null,null,null,null,2,null,null,null,null,null,null,null,2,null,null,null,null,null,null,null,null,null,null,1,1,null,null,null,null,2,2,{"$f":"COUNTA(C67:CL67)","v":23},23]
["Parmelinopsis minarum (Vainio) Elix & Hale",23,1,null,null,null,1,null,1,1,null,null,2,null,null,null,null,null,null,null,null,null,null,null,1,null,null,null,1,null,null,null,null,null,null,null,null,null,1,1,null,1,null,null,null,1,1,null,null,null,null,null,2,null,1,null,null,1,null,1,null,1,2,null,null,null,null,1,null,null,null,null,2,null,1,null,null,null,null,null,null,null,null,1,null,2,null,null,null,null,{"$f":"COUNTA(C68:CL68)","v":23},22]
["Parmotrema reticulatum (Taylor) M. Choisy",23,1,null,null,null,null,null,null,1,2,null,2,null,2,null,null,null,1,null,null,null,null,null,null,null,2,null,1,null,null,null,2,null,null,null,1,null,2,1,null,1,null,null,2,1,null,null,null,1,null,null,null,2,1,null,null,2,1,2,null,null,null,2,null,null,null,null,null,null,null,null,null,null,null,null,null,null,null,null,null,null,null,null,null,null,1,null,null,null,{"$f":"COUNTA(C69:CL69)","v":23},21]
["Xanthomendoza weberi (S. Kondr. & Karnefelt) L. Lindblom",22,1,null,null,1,null,null,null,null,1,null,null,null,null,null,null,null,1,null,1,1,null,1,null,1,null,null,null,null,2,null,1,2,null,null,1,2,null,null,1,1,null,2,null,null,null,null,null,null,null,null,null,null,null,null,null,1,1,null,1,null,null,null,null,null,null,null,null,2,null,null,null,null,1,null,null,null,null,null,null,null,null,null,1,null,null,null,null,null,{"$f":"COUNTA(C70:CL70)","v":22},15]
["Cladonia rangiferina (L.) F. H. Wigg. ",21,1,null,null,null,null,null,1,2,null,null,null,2,null,null,null,2,null,2,null,null,null,null,1,null,2,null,1,null,null,null,2,null,null,null,null,null,1,null,null,1,null,null,null,null,null,null,null,null,null,null,null,null,1,null,null,null,null,null,null,1,1,null,null,null,null,2,null,null,null,null,2,null,null,null,null,null,null,null,null,null,null,1,2,1,1,null,null,null,{"$f":"COUNTA(C71:CL71)","v":21},21]
["Cladonia strepsilis (Ach.) Grognot ",21,1,null,null,null,2,null,null,2,null,1,null,null,null,null,null,null,null,null,null,null,null,null,2,null,null,null,1,null,null,2,null,null,null,null,null,1,2,null,null,null,null,null,null,null,null,null,null,null,null,2,null,null,1,null,null,null,null,null,null,null,1,null,null,2,null,2,null,null,null,2,2,null,2,null,null,null,null,null,2,null,null,1,null,2,2,null,null,null,{"$f":"COUNTA(C72:CL72)","v":21},21]
["Hyperphyscia adglutinata (Florke) H. Mayrh. & Poelt",21,2,null,null,null,null,null,null,null,2,null,null,2,null,null,null,null,1,2,1,null,null,null,2,null,2,null,null,null,null,null,null,null,2,null,1,1,null,2,null,null,null,null,null,null,2,null,null,1,2,null,null,null,null,null,null,null,null,null,1,null,null,null,null,null,null,null,null,null,null,null,null,null,null,null,null,2,null,null,null,2,null,null,2,null,1,null,null,2,{"$f":"COUNTA(C73:CL73)","v":21},17]
["Lobaria quercizans Michaux",21,2,2,null,null,null,2,null,null,2,null,null,2,null,null,null,null,null,2,null,null,2,null,2,null,2,1,null,null,null,null,2,null,null,null,null,null,1,null,null,1,null,null,2,null,2,null,1,null,null,null,null,null,null,null,null,null,null,2,null,null,null,null,null,null,null,null,null,2,null,null,null,null,2,null,null,null,null,null,null,null,null,null,null,2,null,2,null,null,{"$f":"COUNTA(C74:CL74)","v":21},21]
["Phaeophyscia squarrosa Kashiwadani",21,1,null,2,null,null,null,null,null,2,null,null,null,null,null,null,null,null,null,null,null,null,null,1,null,2,null,1,null,2,null,1,null,null,null,null,null,1,null,null,null,null,1,null,null,2,2,null,null,null,null,1,null,1,null,null,null,null,1,null,null,null,null,null,null,null,1,2,null,null,null,null,2,null,null,null,null,null,null,null,null,null,null,2,1,null,2,null,null,{"$f":"COUNTA(C75:CL75)","v":21},20]
["Physciella chloantha (Ach.) Essl.",21,1,null,null,null,null,null,null,1,null,null,null,null,null,1,null,null,1,null,1,1,null,null,1,1,null,null,null,null,null,null,1,null,null,null,1,1,null,null,null,1,null,null,null,null,null,1,null,1,null,1,null,null,null,null,null,1,1,null,null,1,null,null,null,null,null,null,null,null,1,null,null,null,1,null,null,null,null,null,null,null,null,1,null,null,null,null,null,null,{"$f":"COUNTA(C76:CL76)","v":21},15]
["Xanthoparmelia plittii (Gyelnik) Hale",21,1,null,2,null,null,null,null,null,null,2,null,null,null,null,null,2,null,2,null,null,null,1,1,null,null,null,1,null,null,null,null,null,null,null,null,null,1,1,null,1,2,null,null,2,null,null,null,null,null,2,null,null,1,null,null,1,null,null,null,null,1,null,null,null,null,1,null,null,null,null,null,null,1,null,null,null,null,null,null,null,null,1,null,1,null,null,null,null,{"$f":"COUNTA(C77:CL77)","v":21},20]
["Ramalina americana Hale",20,1,null,null,null,null,null,null,2,null,null,null,2,2,null,null,null,null,2,null,null,null,null,null,null,2,null,1,null,null,null,2,null,null,1,null,2,null,null,null,1,null,null,null,1,2,null,null,null,2,null,null,2,null,null,null,null,null,null,null,2,null,null,null,null,null,2,2,null,null,null,null,null,2,null,null,null,null,null,null,null,null,1,null,null,null,null,null,null,{"$f":"COUNTA(C78:CL78)","v":20},19]
["Dermatocarpon luridum (With.) J. R. Laundon",19,1,null,null,null,2,null,null,null,null,null,null,null,1,null,null,null,null,null,null,null,null,null,null,null,null,null,1,null,null,null,null,null,null,null,null,2,1,null,null,2,2,null,null,2,2,null,null,null,null,null,null,null,1,null,null,1,null,1,null,1,null,2,null,null,null,null,null,null,null,null,null,null,2,null,null,null,2,null,null,null,null,1,null,1,null,null,null,null,{"$f":"COUNTA(C79:CL79)","v":19},18]
["Dermatocarpon miniatum (L.) W. Mann",19,1,null,null,null,null,null,null,null,null,null,null,2,null,null,null,null,null,2,null,null,2,null,2,null,2,null,null,null,1,null,2,null,null,null,null,2,2,null,null,null,null,null,null,null,null,2,null,null,null,null,null,null,null,null,2,null,2,1,null,null,null,2,null,null,null,1,null,null,null,null,null,null,null,2,null,null,2,null,null,null,null,null,null,1,null,null,null,null,{"$f":"COUNTA(C80:CL80)","v":19},18]
["Heterodermia hypoleuca (Ach.) Trevisan",19,1,null,null,null,null,null,null,null,null,null,null,2,1,null,null,null,null,2,null,2,null,null,1,null,null,null,1,null,1,null,null,null,null,null,null,1,2,null,null,null,null,null,null,null,1,null,null,null,2,null,null,null,1,null,null,2,null,null,null,null,null,null,null,2,null,null,null,null,null,null,2,null,1,null,null,null,null,null,null,null,null,1,null,null,null,null,null,1,{"$f":"COUNTA(C81:CL81)","v":19},19]
["Hypogymnia physodes (Nyl.) Nyl.",19,1,null,null,2,1,null,1,null,null,null,null,null,null,null,null,null,null,2,null,null,null,null,null,null,null,null,null,2,null,null,null,null,null,null,null,null,1,1,null,null,1,null,null,1,null,null,null,null,null,null,null,2,1,null,null,null,null,1,null,1,null,null,null,null,null,null,null,null,null,1,null,null,1,null,null,null,null,1,null,null,null,1,null,null,1,null,null,null,{"$f":"COUNTA(C82:CL82)","v":19},19]
["Peltigera praetextata (Florke ex Sommerf.) Zopf",18,1,null,null,null,null,null,null,2,2,null,null,2,2,2,null,null,null,null,null,null,null,null,null,null,null,null,null,null,null,null,null,null,null,null,null,null,2,null,null,null,2,null,null,null,2,null,null,null,null,null,null,null,1,null,2,null,null,1,null,2,null,null,null,null,null,null,null,null,null,2,2,null,2,null,null,null,null,null,2,null,null,null,null,2,null,null,null,null,{"$f":"COUNTA(C83:CL83)","v":18},18]
["Phaeophyscia hirtella Essl.",18,null,null,null,null,null,1,null,1,1,null,1,1,null,null,null,null,1,null,null,1,null,null,null,1,1,null,null,null,1,null,null,null,null,null,1,1,null,null,null,null,null,null,null,null,null,null,null,null,null,null,null,null,1,null,1,1,null,null,1,null,null,null,null,null,null,null,null,1,null,null,1,null,null,null,null,null,null,null,null,null,null,null,null,null,null,null,null,null,{"$f":"COUNTA(C84:CL84)","v":18},13]
["Physconia leucoleiptes (Tuck.) Essl.",17,1,null,null,null,null,null,null,null,1,null,null,null,null,2,null,null,null,null,null,null,null,null,null,1,null,null,null,null,2,null,null,null,null,null,null,null,null,null,null,null,null,null,null,1,null,null,null,null,null,null,null,2,null,null,null,1,1,null,null,null,null,2,null,null,2,null,null,2,2,null,null,null,null,2,null,null,null,null,1,null,null,null,2,null,1,null,null,null,{"$f":"COUNTA(C85:CL85)","v":17},16]
["Flavoparmelia baltimorensis (Gyelnik & Foriss) Hale",16,1,null,null,null,1,null,1,null,null,null,null,null,null,null,null,null,null,null,null,null,null,null,1,null,null,null,1,null,null,null,null,null,null,null,null,null,1,null,null,1,null,null,null,1,null,null,null,null,null,null,null,null,1,null,null,1,null,1,null,1,null,null,null,null,null,1,null,null,null,null,null,null,1,null,null,null,null,null,null,null,null,1,null,1,null,null,null,null,{"$f":"COUNTA(C86:CL86)","v":16},14]
["Imshaugia aleurites (Ach.) S. F. Meyer",16,1,null,null,null,1,null,null,null,null,null,null,null,null,null,2,null,null,2,null,null,null,null,1,null,null,null,1,null,null,null,null,null,null,null,null,null,1,1,null,1,null,null,2,null,null,null,null,null,null,null,null,null,1,null,null,null,null,null,null,null,1,null,null,null,null,1,null,null,null,null,null,null,2,null,null,null,null,null,null,null,null,1,null,1,null,null,null,null,{"$f":"COUNTA(C87:CL87)","v":16},15]
["Peltigera polydactylon (Necker) Hoffm.",16,null,null,null,null,null,null,null,2,2,null,2,2,null,null,null,null,null,2,null,null,null,null,null,2,null,null,null,null,null,null,2,null,null,null,null,null,2,null,null,2,2,null,null,1,null,null,null,null,null,null,null,null,null,null,2,null,null,null,null,null,1,null,null,null,null,null,null,null,null,null,null,null,null,2,null,null,2,null,null,null,null,null,2,null,null,null,null,null,{"$f":"COUNTA(C88:CL88)","v":16},16]
["Dibaeis baeomyces (L. f.) Rambold & Hertel",15,1,null,null,null,1,null,null,null,null,null,null,null,null,null,null,null,null,2,null,null,null,null,null,null,null,null,1,2,null,null,null,null,null,null,null,2,1,null,null,1,null,null,null,null,1,null,null,null,null,null,null,null,1,null,null,null,null,1,null,null,null,null,null,null,null,2,null,null,null,null,2,null,null,null,null,null,null,null,null,null,null,1,null,2,null,null,null,null,{"$f":"COUNTA(C89:CL89)","v":15},15]
["Candelaria fibrosa (Fr.) Mull. Arg.",14,2,null,null,2,null,null,null,null,2,null,null,2,null,null,null,null,null,2,null,null,null,2,2,null,2,null,1,null,null,null,null,null,null,null,1,2,null,null,null,null,null,2,2,null,null,null,null,null,null,null,null,null,null,null,null,null,null,null,null,null,null,2,null,null,null,null,null,null,null,null,null,null,null,null,null,null,null,null,null,null,null,null,null,null,null,null,null,null,{"$f":"COUNTA(C90:CL90)","v":14},14]
["Evernia mesomorpha Nyl.",14,null,null,null,null,null,null,1,null,null,null,null,null,null,null,null,null,null,2,null,null,null,null,null,null,null,null,null,null,1,1,null,null,null,1,null,null,1,1,null,1,null,null,null,1,null,null,null,1,null,null,null,null,null,null,null,1,1,null,null,1,null,null,null,null,null,null,null,null,null,null,null,null,null,null,null,null,null,null,null,null,null,1,null,null,null,null,null,null,{"$f":"COUNTA(C91:CL91)","v":14},11]
["Leptogium juniperinum Tuck.",14,1,null,null,null,null,null,null,2,null,null,null,null,null,null,null,null,null,2,null,null,null,null,null,null,null,null,null,null,null,null,2,null,null,null,null,null,1,null,null,null,null,null,null,1,null,null,null,null,null,null,null,null,1,null,null,1,null,2,null,2,null,null,null,2,null,null,null,null,null,null,null,null,null,null,null,null,null,null,2,null,null,1,null,1,null,null,null,null,{"$f":"COUNTA(C92:CL92)","v":14},12]
["Lobaria pulmonaria (L.) Hoffm.",14,null,null,2,null,null,null,null,null,2,null,2,2,null,null,null,null,2,2,null,null,2,null,2,null,2,null,null,null,null,null,null,null,null,null,null,null,null,null,null,null,null,null,null,null,null,null,2,null,null,null,2,null,null,null,null,null,null,2,null,null,null,null,null,null,null,null,null,null,null,null,null,null,null,null,null,null,null,2,null,null,null,null,null,null,null,null,2,null,{"$f":"COUNTA(C93:CL93)","v":14},14]
["Xanthoparmelia conspersa (Ehrh. ex Ach.) Hale",14,2,null,null,null,null,null,null,null,null,null,null,2,null,null,null,null,null,null,null,null,null,null,1,null,null,null,null,null,null,null,null,null,null,null,null,null,1,null,null,1,2,null,null,2,1,null,null,null,null,null,null,null,null,null,null,null,null,null,null,null,null,null,null,null,null,1,2,null,null,null,null,null,2,null,null,null,null,null,null,null,null,1,null,1,1,null,null,null,{"$f":"COUNTA(C94:CL94)","v":14},14]
["Cladonia uncialis (L.) F. H. Wigg.",13,2,null,null,null,null,null,null,null,null,null,null,null,2,null,2,null,null,null,null,null,null,null,1,null,null,null,1,null,null,null,null,null,null,null,null,null,1,null,null,1,null,null,null,null,null,null,null,null,null,null,null,null,1,null,null,null,1,null,null,null,null,null,null,null,null,1,null,null,null,null,2,null,null,null,null,null,null,null,null,null,null,1,null,1,null,null,null,null,{"$f":"COUNTA(C95:CL95)","v":13},13]
["Lasallia papulosa (Ach.) Llano",13,2,null,null,null,null,null,null,null,null,null,null,null,null,null,null,null,null,null,null,null,null,null,1,null,null,null,1,null,null,null,2,null,null,null,null,null,1,null,null,1,null,null,null,2,2,null,null,null,null,null,null,null,1,null,null,null,null,null,null,null,null,null,null,null,null,1,null,null,null,null,2,null,null,null,null,null,null,null,null,null,null,1,null,1,null,null,null,null,{"$f":"COUNTA(C96:CL96)","v":13},13]
["Leptogium corticola (Taylor) Tuck.",13,2,null,null,null,null,null,null,null,2,null,2,2,null,null,null,null,null,2,null,null,null,null,2,null,2,null,null,null,null,null,2,null,null,null,null,2,null,null,null,null,null,null,null,null,null,null,null,null,null,null,null,2,null,null,null,null,null,null,null,null,2,null,null,null,null,null,null,null,null,null,null,null,null,null,null,null,null,null,null,null,null,null,2,2,null,null,null,null,{"$f":"COUNTA(C97:CL97)","v":13},13]
["Parmotrema perforatum (Jacq.) A. Massal.",13,1,null,null,null,null,null,null,null,2,null,2,2,2,null,null,null,null,null,null,null,null,null,2,null,2,null,null,null,null,null,2,null,null,null,null,2,null,null,null,null,null,null,null,null,1,null,null,null,null,null,null,null,null,null,null,null,null,null,null,2,null,null,null,null,null,2,null,null,null,null,null,null,null,null,null,null,null,null,null,null,null,1,null,null,null,null,null,null,{"$f":"COUNTA(C98:CL98)","v":13},13]
["Peltigera evansiana Gyelnik",13,1,null,null,null,null,null,null,null,null,null,null,null,null,null,null,null,null,null,null,null,null,null,null,null,null,null,null,null,null,null,null,null,null,null,null,2,2,1,null,null,null,null,null,null,null,null,null,null,null,null,null,2,1,null,null,2,null,1,null,1,2,null,null,null,null,2,null,null,null,null,null,null,2,null,null,null,null,null,null,null,null,null,null,1,null,null,null,null,{"$f":"COUNTA(C99:CL99)","v":13},12]
["Phaeophyscia decolor (Kashiw.) Essl.",13,1,null,null,null,null,null,null,null,null,null,null,null,null,null,null,null,null,null,null,null,null,null,null,1,null,null,1,null,null,null,null,null,1,null,null,null,null,null,null,null,null,null,null,null,null,null,null,null,null,null,1,null,1,null,null,2,null,1,1,null,null,null,2,null,null,null,null,null,2,null,null,null,null,2,null,null,null,null,null,null,null,null,null,1,null,null,null,null,{"$f":"COUNTA(C100:CL100)","v":13},13]
["Tuckermannopsis ciliaris (ach.) Gyelnik",13,1,null,null,2,null,null,null,null,null,null,null,2,2,null,null,null,null,2,null,null,null,null,2,null,null,null,1,2,null,null,null,null,null,null,null,null,1,null,null,1,null,null,null,null,null,null,null,null,null,null,null,null,1,null,null,null,null,null,null,null,null,null,null,null,null,null,null,null,null,null,null,null,null,null,null,null,null,null,null,null,null,1,null,1,null,null,null,null,{"$f":"COUNTA(C101:CL101)","v":13},13]
["Cladonia caroliniana Tuck.",12,1,null,null,null,null,null,null,null,null,null,2,null,null,null,null,null,null,null,null,null,null,null,1,null,null,null,1,null,null,null,2,null,null,null,null,null,1,null,null,null,null,null,null,2,null,null,null,null,null,null,null,null,1,null,null,null,null,1,null,null,null,null,null,null,null,null,null,null,null,null,2,null,null,null,null,null,null,null,null,null,null,1,null,1,null,null,null,null,{"$f":"COUNTA(C102:CL102)","v":12},12]
["Hypotrachyna showmanii Hale",12,1,null,null,null,null,null,null,null,null,null,null,null,null,null,null,null,null,null,null,null,null,null,1,null,null,null,1,null,null,null,null,null,null,null,null,null,1,null,null,1,null,null,null,1,null,null,null,null,null,null,null,null,1,null,null,null,null,null,null,1,null,null,null,null,null,1,null,null,null,null,1,null,1,null,null,null,null,null,null,null,null,1,null,null,null,null,null,null,{"$f":"COUNTA(C103:CL103)","v":12},11]
["Peltigera didactyla (With.) J. R. Laundon",12,null,null,null,null,null,null,null,2,2,2,null,null,2,null,null,null,null,2,null,null,null,null,null,null,null,2,null,null,null,null,null,null,null,null,2,null,null,null,null,null,null,null,null,null,null,null,null,2,null,null,null,null,null,null,null,null,null,null,null,null,2,null,null,null,null,null,null,null,null,null,null,null,null,null,null,null,null,null,2,null,null,null,2,null,null,2,null,null,{"$f":"COUNTA(C104:CL104)","v":12},12]
["Collema tenax (Sw.) Ach.",11,2,null,null,null,null,null,null,null,null,null,null,2,null,2,null,null,null,null,null,null,null,null,null,2,2,null,null,null,null,null,null,null,null,null,null,2,null,null,null,null,null,null,null,null,null,null,null,null,null,null,null,null,null,null,null,null,null,1,null,2,null,null,null,2,null,null,null,2,null,null,null,null,null,null,null,null,2,null,null,null,null,null,null,null,null,null,null,null,{"$f":"COUNTA(C105:CL105)","v":11},11]
["Platismatia tuckermanii (Rav. ex Mont.) Breuss",11,1,null,null,null,null,null,null,null,null,null,null,null,null,null,null,null,null,2,null,null,null,null,null,null,null,null,null,null,null,null,null,null,null,null,null,2,1,null,null,1,null,null,null,null,null,null,null,null,null,null,null,null,1,null,null,null,null,null,null,null,null,null,null,null,null,1,null,null,null,null,null,null,1,null,null,null,2,null,null,null,null,1,null,1,null,null,null,null,{"$f":"COUNTA(C106:CL106)","v":11},11]
["Usnea pensylvanica Motyka",11,1,null,null,2,null,null,null,null,null,null,2,2,null,null,null,null,null,null,null,null,null,null,2,null,2,null,1,null,null,null,null,null,null,null,null,null,null,null,null,1,null,null,2,1,null,null,null,null,2,null,null,null,null,null,null,null,null,null,null,null,null,null,null,null,null,null,null,null,null,null,null,null,null,null,null,null,null,null,null,null,null,null,null,null,null,null,null,null,{"$f":"COUNTA(C107:CL107)","v":11},11]
["Cladonia arbuscula (Wallr.) Flotow",10,null,null,null,null,null,null,1,null,1,null,null,null,1,null,null,null,null,2,null,null,null,null,null,null,null,null,null,null,null,null,null,null,null,null,null,1,1,1,null,null,null,null,null,null,null,null,null,null,null,null,null,null,1,null,null,null,null,null,null,null,null,null,null,null,null,null,null,1,null,null,null,null,null,null,null,null,null,null,null,null,null,null,null,2,null,null,null,null,{"$f":"COUNTA(C108:CL108)","v":10},10]
["Physcia subtilis Degel.",10,null,null,null,null,null,null,null,null,null,null,null,null,null,null,null,null,null,null,null,null,null,null,null,null,null,null,1,null,null,null,null,null,null,null,null,null,2,null,null,1,null,null,null,null,null,null,null,null,null,null,null,null,1,null,null,null,null,1,null,null,1,null,null,null,null,2,null,2,null,null,null,null,1,null,null,null,null,null,null,null,null,null,null,1,null,null,null,null,{"$f":"COUNTA(C109:CL109)","v":10},10]
["Physconia subpallida Essl.",10,null,null,null,2,null,null,null,null,2,null,null,2,null,null,null,null,null,null,null,2,null,null,null,null,2,null,null,null,2,null,2,null,null,null,2,null,null,null,null,null,null,null,null,null,null,null,null,null,null,null,null,null,null,null,2,null,null,null,null,null,null,null,null,null,null,null,null,2,null,null,null,null,null,null,null,null,null,null,null,null,null,null,null,null,null,null,null,null,{"$f":"COUNTA(C110:CL110)","v":10},10]
["Placidium aboretum (Schwein. ex Michener) Lendemer",10,1,null,null,null,1,null,null,null,2,null,null,null,null,null,null,null,null,null,null,null,null,null,null,null,2,null,1,null,null,null,null,null,null,null,null,1,1,null,null,null,null,null,null,null,null,null,null,null,null,null,null,null,null,null,null,null,null,null,null,null,null,null,null,null,null,null,null,null,null,null,null,null,1,null,null,null,null,null,null,null,null,1,2,null,null,null,null,null,{"$f":"COUNTA(C111:CL111)","v":10},10]
["Pycnothelia papillaria Durfour",10,2,null,null,null,null,null,null,2,null,null,null,null,null,null,null,null,null,null,null,null,null,null,2,null,null,null,null,null,null,null,null,null,null,null,null,2,1,null,null,1,null,null,null,null,null,null,null,null,null,null,null,null,1,null,null,null,null,null,null,1,null,null,null,null,null,null,null,null,null,null,2,null,null,null,null,null,null,null,null,null,null,1,null,null,null,null,null,null,{"$f":"COUNTA(C112:CL112)","v":10},10]
["Ramalina farinacea (L.) Ach.",10,2,null,null,null,1,null,null,null,2,null,null,2,null,null,null,null,null,2,null,null,null,2,2,null,2,null,null,null,null,null,null,null,null,null,null,2,null,null,null,null,null,null,null,1,null,null,null,null,null,null,null,null,null,null,null,null,null,null,null,null,null,null,null,null,null,null,null,null,null,null,null,null,null,null,null,null,null,null,null,null,null,null,null,null,null,null,null,null,{"$f":"COUNTA(C113:CL113)","v":10},10]
["Usnea mutabilis Stirton",10,1,null,null,null,null,null,null,null,2,null,null,null,2,null,null,null,null,null,null,null,null,null,null,null,null,null,null,null,null,null,null,null,null,null,null,null,null,null,null,2,null,null,null,1,2,null,null,null,null,null,null,null,null,null,null,1,1,null,null,null,null,null,null,null,null,null,null,null,null,null,null,null,1,null,null,null,null,null,null,null,null,1,null,null,null,null,null,null,{"$f":"COUNTA(C114:CL114)","v":10},9]
["Bryoria furcellata (Fr.) Brodo & Hawksw.",9,null,null,null,2,null,null,null,null,null,null,null,null,null,null,null,null,null,2,null,null,null,null,null,null,null,null,null,null,null,null,null,null,null,null,null,null,2,1,null,2,null,null,null,null,null,null,null,1,null,null,null,null,1,null,null,null,null,null,null,null,null,null,null,null,null,null,2,null,null,null,null,null,null,null,null,null,null,null,null,null,null,1,null,null,null,null,null,null,{"$f":"COUNTA(C115:CL115)","v":9},9]
["Cladonia ramulosa (With.) J. R. Laundon",9,2,null,null,null,null,null,null,2,null,null,null,null,null,null,null,null,null,null,null,null,null,null,null,null,null,null,1,null,null,null,2,null,null,null,null,null,null,1,null,null,null,null,null,1,null,null,null,null,null,null,null,null,null,null,null,null,null,null,null,null,null,null,null,null,null,1,null,null,null,null,null,null,1,null,null,null,null,null,null,null,null,null,null,null,1,null,null,null,{"$f":"COUNTA(C116:CL116)","v":9},9]
["Collema nigrescens (Hudson) DC.",9,2,null,null,null,null,null,null,null,null,null,null,2,null,2,null,null,null,null,null,null,null,null,null,2,null,null,null,null,null,null,null,null,null,null,null,2,null,null,null,null,null,null,null,null,null,null,null,null,null,null,null,null,null,null,null,null,null,null,null,2,null,null,null,null,null,null,null,2,null,null,null,null,null,null,null,null,null,null,null,null,null,null,2,2,null,null,null,null,{"$f":"COUNTA(C117:CL117)","v":9},9]
["Heterodermia echinata (Taylor) Culb.",9,2,null,null,null,null,null,null,null,null,null,2,2,null,null,null,null,null,null,null,null,null,null,null,null,2,null,null,null,null,null,2,null,null,null,null,null,null,null,null,null,null,null,null,null,null,null,null,2,null,null,null,null,null,null,null,2,null,null,null,null,null,2,null,null,null,null,null,null,null,null,null,null,null,null,null,null,null,null,null,null,null,null,2,null,null,null,null,null,{"$f":"COUNTA(C118:CL118)","v":9},9]
["Peltigera horizontalis (Hudson) Baumg.",9,2,null,null,null,null,null,null,null,2,null,null,null,null,null,null,null,null,2,null,null,null,null,2,2,null,null,1,null,2,null,null,null,null,null,null,null,2,null,null,null,null,null,2,null,null,null,null,null,null,null,null,null,null,null,null,null,null,null,null,null,null,null,null,null,null,null,null,null,null,null,null,null,null,null,null,null,null,null,null,null,null,null,null,null,null,null,null,null,{"$f":"COUNTA(C119:CL119)","v":9},9]
["Umbilicaria mammulata (Ach.) Tuck.",9,null,null,null,null,null,null,1,null,null,null,null,null,null,null,null,null,null,null,null,null,null,null,1,null,null,null,1,null,null,null,null,null,null,null,null,null,1,null,null,1,null,null,null,2,null,null,null,null,null,null,null,null,1,null,null,null,null,null,null,null,null,null,null,null,null,null,null,null,null,null,null,null,null,null,null,null,null,null,null,null,null,1,null,2,null,null,null,null,{"$f":"COUNTA(C120:CL120)","v":9},9]
["Cladonia mateocyatha Robbins",8,1,null,null,null,null,null,null,null,null,null,null,null,null,null,null,null,null,null,null,null,null,null,2,null,null,null,1,null,null,null,null,null,null,null,null,null,2,1,null,null,null,null,null,null,1,null,null,null,null,null,null,null,null,null,null,null,null,null,null,null,null,null,null,null,null,null,null,null,null,null,2,null,null,null,null,null,null,null,null,null,null,null,null,null,1,null,null,null,{"$f":"COUNTA(C121:CL121)","v":8},8]
["Heterodermia leucomela (L.) Poelt",8,null,null,null,null,null,null,null,null,null,null,2,2,2,null,null,null,null,null,null,null,null,null,null,null,null,null,null,null,null,null,2,null,null,null,null,null,1,null,null,null,null,null,null,null,null,null,null,null,null,null,null,null,null,null,null,null,null,null,null,null,null,null,null,null,null,1,null,null,null,null,null,null,null,null,null,null,null,null,null,null,null,null,2,null,2,null,null,null,{"$f":"COUNTA(C122:CL122)","v":8},8]
["Leptogium dactylinum Tuck.",8,1,null,null,null,null,null,null,2,null,null,null,null,null,null,null,null,null,2,null,null,null,null,null,null,null,null,1,null,null,null,2,null,null,null,null,2,null,null,null,null,null,null,null,null,null,null,null,null,null,null,null,null,null,null,null,null,null,null,null,null,null,null,null,null,null,null,null,null,null,null,null,null,null,null,null,null,2,null,null,null,null,null,null,null,2,null,null,null,{"$f":"COUNTA(C123:CL123)","v":8},8]
["Ramalina celastri (Sprengel) Krog & Swinscow",8,null,null,null,null,null,null,null,null,2,null,null,null,null,2,null,null,null,null,null,null,null,null,2,null,null,null,null,null,null,null,null,null,null,null,null,2,null,null,null,null,null,null,null,null,2,null,null,null,2,null,2,null,null,null,null,null,null,null,null,null,null,null,null,null,null,2,null,null,null,null,null,null,null,null,null,null,null,null,null,null,null,null,null,null,null,null,null,null,{"$f":"COUNTA(C124:CL124)","v":8},8]
["Ramalina complanata (Sw.) Ach.",8,null,null,null,null,null,null,null,null,null,null,null,null,null,null,null,null,null,2,1,null,null,null,null,null,2,null,null,null,null,null,2,null,null,null,null,null,null,null,null,null,null,null,null,1,null,null,null,null,null,null,null,2,null,null,null,null,null,null,null,null,null,null,null,null,null,null,null,null,null,null,null,null,null,null,null,null,null,null,null,null,null,1,null,null,1,null,null,null,{"$f":"COUNTA(C125:CL125)","v":8},5]
["Ramalina intermedia (Delise ex Nyl.) Nyl.",8,null,null,null,null,null,null,1,null,null,null,null,null,null,null,null,null,null,2,null,null,null,null,null,null,null,null,1,null,null,null,null,null,null,null,null,null,1,null,null,1,null,null,null,null,null,null,null,1,null,null,null,null,1,null,null,null,null,null,null,null,null,null,null,null,null,null,null,null,null,null,null,null,null,null,null,null,null,null,null,null,null,1,null,null,null,null,null,null,{"$f":"COUNTA(C126:CL126)","v":8},8]
["Usnea amblyoclada (Mull. Arg.) Zahlbr.",8,2,null,null,null,null,null,null,null,null,null,null,null,null,null,null,null,null,null,null,null,null,null,null,null,null,null,1,null,null,null,null,null,null,null,null,null,1,null,null,1,null,null,null,null,null,null,null,null,null,null,null,null,1,null,null,null,null,null,null,null,null,2,null,null,null,null,null,null,null,null,null,null,null,null,null,null,null,null,null,null,null,1,null,1,null,null,null,null,{"$f":"COUNTA(C127:CL127)","v":8},8]
["Allocetraria oakesiana (Tuck.) Randlane & Thell",7,null,null,null,null,null,null,1,null,null,null,null,null,null,null,null,null,null,null,null,null,null,null,1,null,null,null,1,null,null,null,null,null,null,null,null,null,1,null,null,null,null,null,null,null,null,null,null,null,null,null,null,null,1,null,null,null,null,null,null,null,null,null,null,null,null,null,null,null,null,null,null,null,1,null,null,null,null,null,null,null,null,1,null,null,null,null,null,null,{"$f":"COUNTA(C128:CL128)","v":7},7]
["Canoparmelia texana (Tuck.) Elix & Hale",7,1,null,null,null,null,null,null,null,null,null,null,null,null,null,null,null,null,null,null,null,null,null,1,null,null,null,1,null,null,null,null,null,null,null,null,null,1,null,null,1,null,null,null,null,null,null,null,null,null,null,null,null,null,null,null,null,null,null,null,null,null,null,null,null,null,1,null,null,null,null,null,null,1,null,null,null,null,null,null,null,null,null,null,null,null,null,null,null,{"$f":"COUNTA(C129:CL129)","v":7},7]
["Cladonia ochrochlora Florke",7,1,null,null,null,null,null,null,null,null,null,null,null,null,null,null,null,null,null,null,null,null,null,null,null,null,null,null,null,null,null,null,null,null,null,null,null,null,null,null,null,null,null,null,null,null,null,null,null,null,null,null,null,null,null,1,null,1,null,null,1,null,null,null,null,null,null,null,null,null,null,null,null,1,null,null,null,null,1,null,null,null,null,1,null,null,null,null,null,{"$f":"COUNTA(C130:CL130)","v":7},6]
["Coccocarpia palmicola (Sprengel) Arv. & D. J. Galloway",7,null,null,null,null,1,null,null,null,null,null,null,null,null,null,null,null,null,null,null,null,null,null,null,null,null,null,1,null,null,null,null,null,null,null,null,null,2,null,null,null,null,null,null,2,null,null,null,null,null,null,null,null,1,null,null,null,null,null,null,null,1,null,null,null,null,null,null,null,null,null,null,null,2,null,null,null,null,null,null,null,null,null,null,null,null,null,null,null,{"$f":"COUNTA(C131:CL131)","v":7},7]
["Collema conglomeratum Hoffm.",7,1,null,null,null,null,null,null,null,null,null,2,2,null,null,null,null,null,null,null,null,null,null,2,null,2,null,null,null,null,null,2,null,null,null,null,null,2,null,null,null,null,null,null,null,null,null,null,null,null,null,null,null,null,null,null,null,null,null,null,null,null,null,null,null,null,null,null,null,null,null,null,null,null,null,null,null,null,null,null,null,null,null,null,null,null,null,null,null,{"$f":"COUNTA(C132:CL132)","v":7},7]
["Dirinaria frostii (Tuck.) Hale & Culb.",7,null,null,null,null,null,null,null,null,null,null,null,null,null,null,null,null,null,null,null,null,null,null,null,null,null,null,1,null,null,null,null,null,null,null,null,null,1,null,null,1,null,null,null,null,null,null,null,null,null,null,null,null,1,null,null,null,null,null,null,null,null,null,null,null,null,null,null,null,null,null,null,null,1,null,null,null,null,null,null,null,null,1,null,1,null,null,null,null,{"$f":"COUNTA(C133:CL133)","v":7},7]
["Imshaugia placorodia (Ach.) S. F. Meyer",7,1,null,null,null,null,null,null,null,null,null,null,null,null,null,null,null,null,null,null,null,null,null,null,null,null,null,1,null,null,null,null,null,null,null,null,null,1,null,null,null,null,null,null,null,null,null,null,null,null,null,null,null,1,null,null,null,null,null,null,null,null,null,null,null,null,null,null,null,null,null,null,null,1,null,null,null,null,null,null,null,null,1,null,1,null,null,null,null,{"$f":"COUNTA(C134:CL134)","v":7},7]
["Leptogium aburnetiae C. W. Dodge",7,1,null,null,null,null,null,null,null,null,null,2,null,null,null,null,null,null,2,null,null,null,null,null,null,2,null,null,null,null,null,null,null,null,null,null,null,null,null,null,null,null,null,null,null,null,2,null,null,null,null,null,null,null,null,null,null,null,null,null,null,null,null,null,null,null,null,null,null,null,null,null,null,null,null,null,null,null,null,null,null,null,null,2,2,null,null,null,null,{"$f":"COUNTA(C135:CL135)","v":7},7]
["Myelochroa metarevoluta (Asah.) Elix & Hale",7,1,null,null,null,null,null,null,null,null,null,null,null,null,null,null,null,null,null,null,null,null,null,null,null,null,null,null,null,null,null,null,null,null,null,null,1,1,null,null,null,null,null,null,null,null,null,null,null,null,null,null,null,null,null,null,1,null,null,null,1,null,null,null,null,null,1,null,null,null,null,null,null,1,null,null,null,null,null,null,null,null,null,null,null,null,null,null,null,{"$f":"COUNTA(C136:CL136)","v":7},5]
["Parmotrema cetratum (Ach.) Hale",7,null,null,null,null,null,null,null,null,null,null,2,2,1,null,null,null,null,null,null,null,null,null,null,null,2,null,null,null,null,null,null,null,null,null,null,null,null,null,null,null,null,null,null,1,null,null,null,null,null,null,null,2,null,null,null,null,null,null,null,null,null,null,null,null,null,null,null,null,null,null,null,null,1,null,null,null,null,null,null,null,null,null,null,null,null,null,null,null,{"$f":"COUNTA(C137:CL137)","v":7},7]
["Parmotrema chinense (Osbeck) Hale & Ahti",7,1,null,null,null,null,null,null,null,null,null,null,null,null,null,null,null,null,2,null,null,null,null,null,null,null,null,null,null,null,null,null,null,null,null,null,null,null,null,null,1,null,null,null,2,null,null,null,null,null,null,null,null,null,null,null,1,null,null,null,1,null,null,null,null,null,null,null,null,null,null,null,null,2,null,null,null,null,null,null,null,null,null,null,null,null,null,null,null,{"$f":"COUNTA(C138:CL138)","v":7},5]
["Parmotrema crinitum (Ach.) Choisy",7,1,null,null,null,null,null,null,2,2,null,null,2,null,null,null,null,null,null,null,null,null,null,null,null,2,null,null,null,null,null,null,null,null,null,null,null,2,null,null,null,null,null,null,null,null,null,null,null,null,null,null,null,null,null,null,null,null,null,null,null,null,null,null,null,null,null,null,null,null,null,null,null,null,null,null,null,null,null,null,null,null,1,null,null,null,null,null,null,{"$f":"COUNTA(C139:CL139)","v":7},7]
["Parmotrema margaritatum (Hue) Hale",7,1,null,null,null,null,null,null,null,2,null,null,null,null,null,null,null,null,2,null,null,null,2,null,null,null,null,null,null,null,null,null,null,null,null,null,null,null,null,null,null,null,null,2,null,null,null,null,null,null,null,null,null,null,null,null,null,null,null,null,1,null,2,null,null,null,null,null,null,null,null,null,null,null,null,null,null,null,null,null,null,null,null,null,null,null,null,null,null,{"$f":"COUNTA(C140:CL140)","v":7},6]
["Parmotrema submarginale (Michaux.) DePriest & B. Hale",7,null,null,null,null,null,null,null,1,null,null,null,null,1,null,null,null,null,null,null,null,null,null,null,null,null,null,null,null,null,null,1,null,null,null,null,null,null,null,null,null,null,null,null,null,null,null,null,null,null,null,null,null,null,null,null,null,null,null,null,null,null,null,null,null,null,2,null,null,null,null,2,null,1,null,null,null,null,null,null,null,null,1,null,null,null,null,null,null,{"$f":"COUNTA(C141:CL141)","v":7},7]
["Ramalina pollinaria (Westr.) Ach.",7,null,null,null,null,null,null,null,null,null,null,null,null,null,null,null,null,null,2,null,null,null,null,null,null,null,null,1,null,null,null,null,null,null,null,null,null,1,null,null,1,null,null,null,null,null,null,null,null,null,null,null,null,1,null,null,null,null,null,null,null,null,null,null,null,null,null,null,null,null,null,null,null,null,null,null,null,null,null,null,null,null,1,null,1,null,null,null,null,{"$f":"COUNTA(C142:CL142)","v":7},6]
["Tuckermanella fendleri (Nyl.) Essl.",7,1,null,null,null,null,null,null,null,null,null,null,null,null,null,null,null,null,null,null,null,null,null,null,null,null,null,1,null,null,null,null,null,null,null,null,null,1,null,null,null,null,null,null,null,null,null,null,null,null,null,null,null,1,null,null,null,null,null,null,null,null,null,null,null,null,null,null,null,null,null,null,null,1,null,null,null,null,null,null,null,null,1,null,1,null,null,null,null,{"$f":"COUNTA(C143:CL143)","v":7},7]
["Ahtiana aurescens (Tuck.) Thell & Randlane",6,1,null,null,null,null,null,null,null,null,null,null,null,null,null,null,null,null,2,null,null,null,null,2,null,null,null,null,null,null,null,null,null,null,null,null,null,1,null,null,1,null,null,null,null,null,null,null,null,null,null,null,null,null,null,null,null,null,null,null,null,null,null,null,null,null,null,null,null,null,null,null,null,null,null,null,null,2,null,null,null,null,null,null,null,null,null,null,null,{"$f":"COUNTA(C144:CL144)","v":6},6]
["Dibaeis absoluta (Tuck.) Kalb & Gierl",6,2,null,null,null,1,null,null,null,null,null,null,null,null,null,null,null,null,null,null,null,null,null,2,null,null,null,null,null,null,null,null,null,null,null,null,null,1,null,null,null,null,null,null,1,null,null,null,null,null,null,null,null,null,null,null,null,null,null,null,null,null,null,null,null,null,null,null,null,null,null,null,null,null,null,null,null,null,null,null,null,null,1,null,null,null,null,null,null,{"$f":"COUNTA(C145:CL145)","v":6},6]
["Melanohalia exasperata (De Not.) O. Blanco et al.",6,null,null,null,2,1,null,null,null,null,null,null,null,null,null,null,null,null,null,null,null,null,2,null,null,null,null,null,null,null,null,2,null,null,null,null,2,null,null,null,null,null,null,null,null,null,null,null,null,null,null,null,null,null,null,null,null,null,null,null,null,null,null,null,null,null,null,null,null,null,null,2,null,null,null,null,null,null,null,null,null,null,null,null,null,null,null,null,null,{"$f":"COUNTA(C146:CL146)","v":6},6]
["Placidium squamulosum (Ach.) Breuss",6,1,null,null,null,null,null,null,null,1,null,null,2,null,null,null,null,null,null,null,null,null,null,null,null,null,null,null,null,null,null,null,null,null,null,null,null,2,null,null,null,null,null,null,null,null,null,null,null,null,null,1,null,null,null,null,null,null,null,null,null,null,null,null,null,null,1,null,null,null,null,null,null,null,null,null,null,null,null,null,null,null,null,null,null,null,null,null,null,{"$f":"COUNTA(C147:CL147)","v":6},4]
["Sticta beauvoisii Delise",6,null,null,null,null,null,null,null,null,null,null,null,null,null,null,null,null,null,null,null,null,null,null,2,null,null,null,1,null,null,null,2,null,null,null,null,2,2,null,null,null,null,null,null,null,null,null,null,null,null,null,null,null,null,null,null,null,null,null,null,null,null,null,null,null,null,null,null,null,null,null,2,null,null,null,null,null,null,null,null,null,null,null,null,null,null,null,null,null,{"$f":"COUNTA(C148:CL148)","v":6},6]
["Xanthomendoza hasseana (Rasanen) Sochting, Karnefelt & S. Kondr.",6,null,null,null,2,null,null,null,null,null,null,null,2,null,null,null,null,null,null,null,null,null,null,null,null,2,null,null,null,null,null,null,null,null,null,null,null,null,null,null,null,null,null,2,null,null,null,null,null,null,null,2,null,null,null,null,null,null,null,null,null,null,null,null,null,null,null,null,null,null,null,null,null,null,null,null,null,null,null,null,null,null,null,null,null,1,null,null,null,{"$f":"COUNTA(C149:CL149)","v":6},6]
["Xanthoparmelia stenophylla (Ach.) Ahti & D. Hawksw.",6,null,null,null,null,null,null,null,null,null,null,null,null,null,null,null,null,null,null,null,null,null,null,null,null,null,null,null,null,null,null,null,null,null,null,null,null,1,null,null,null,null,null,2,null,null,null,null,null,null,null,null,null,1,null,null,null,null,1,null,null,null,null,null,null,null,null,null,null,null,null,null,2,null,null,null,null,null,null,null,null,null,1,null,null,null,null,null,null,{"$f":"COUNTA(C150:CL150)","v":6},6]
["Anzia colpodes (Ach.) Stizenb.",5,null,null,null,2,null,null,null,null,null,null,null,2,null,null,null,null,null,null,null,null,null,null,null,null,null,null,null,null,null,null,2,null,null,null,null,null,null,null,null,null,null,null,null,null,null,null,null,null,null,null,null,null,null,null,null,null,null,2,null,null,null,null,null,null,null,null,null,null,null,null,null,null,null,null,null,null,null,null,null,null,null,null,2,null,null,null,null,null,{"$f":"COUNTA(C151:CL151)","v":5},5]
["Canomaculina subtinctoria (Zahlbr.) Elix",5,1,null,null,null,null,null,null,2,null,null,null,null,null,null,null,null,null,2,null,null,null,null,null,null,null,null,null,null,null,null,null,null,null,null,null,null,null,null,null,null,null,null,2,null,null,null,null,null,null,null,null,null,null,null,null,null,null,null,null,null,null,2,null,null,null,null,null,null,null,null,null,null,null,null,null,null,null,null,null,null,null,null,null,null,null,null,null,null,{"$f":"COUNTA(C152:CL152)","v":5},5]
["Leptogium austroamericanum (Malme) C. W. Dodge",5,1,null,null,null,null,null,null,null,null,null,2,null,null,null,null,null,null,null,null,null,null,null,null,null,null,null,null,null,null,null,2,null,null,null,null,null,1,1,null,null,null,null,null,null,null,null,null,null,null,null,null,null,null,null,null,null,null,null,null,null,null,null,null,null,null,null,null,null,null,null,null,null,null,null,null,null,null,null,null,null,null,null,null,null,null,null,null,null,{"$f":"COUNTA(C153:CL153)","v":5},5]
["Leptogium milligranum Sierk",5,1,null,null,null,null,null,null,null,null,null,null,2,null,null,null,null,null,null,null,null,null,null,null,null,null,null,null,null,null,null,2,null,null,null,null,null,1,null,null,null,null,null,null,2,null,null,null,null,null,null,null,null,null,null,null,null,null,null,null,null,null,null,null,null,null,null,null,null,null,null,null,null,null,null,null,null,null,null,null,null,null,null,null,null,null,null,null,null,{"$f":"COUNTA(C154:CL154)","v":5},5]
["Myelochroa obsessa (Ach.0 Elix & Hale",5,null,null,null,null,null,null,null,null,null,null,null,null,null,null,null,null,null,null,null,null,null,null,null,null,null,null,null,null,null,null,null,null,null,null,null,null,null,null,null,null,1,null,null,null,null,null,null,null,null,null,null,null,1,null,null,null,null,null,null,null,1,null,null,null,null,2,null,null,null,null,null,null,2,null,null,null,null,null,null,null,null,null,null,null,null,null,null,null,{"$f":"COUNTA(C155:CL155)","v":5},4]
["Parmotrema xanthinum (Mull. Arg.) Hale",5,null,null,null,null,null,null,null,null,null,null,null,null,null,null,null,null,null,null,null,null,null,null,null,null,null,null,1,null,null,null,null,null,null,null,null,null,1,null,null,1,null,null,null,null,null,null,null,null,null,null,null,null,1,null,null,null,null,null,null,null,null,null,null,null,null,null,null,null,null,null,null,null,null,null,null,null,null,null,null,null,null,null,null,1,null,null,null,null,{"$f":"COUNTA(C156:CL156)","v":5},5]
["Ramalina petrina Bowler & Rundel",5,null,null,null,null,null,null,null,null,null,null,null,null,null,null,null,null,null,null,null,null,null,null,1,null,null,null,null,null,null,null,null,null,null,null,null,null,1,null,null,1,null,null,null,null,null,null,null,null,null,null,null,null,1,null,null,null,null,null,null,null,null,null,null,null,null,null,null,null,null,null,null,null,null,null,null,null,null,null,null,null,null,null,null,1,null,null,null,null,{"$f":"COUNTA(C157:CL157)","v":5},5]
["Tuckermannopsis americana (Sprengel) Hale",5,1,null,null,null,null,null,null,null,null,null,null,null,null,null,null,null,null,null,null,null,null,null,null,null,null,null,1,null,null,null,null,null,null,null,null,null,1,null,null,null,null,null,null,null,null,null,null,null,null,null,null,null,1,null,null,null,null,null,null,null,null,null,null,null,null,null,null,null,null,null,null,null,1,null,null,null,null,null,null,null,null,null,null,null,null,null,null,null,{"$f":"COUNTA(C158:CL158)","v":5},5]
["Xanthoparmelia subramigera (Gyelnik) Hale",5,null,null,null,null,null,null,null,null,null,2,null,null,null,null,null,2,null,null,null,null,null,1,null,null,null,null,1,null,null,null,null,null,null,null,null,null,null,null,null,null,null,null,null,null,null,null,null,null,null,null,null,null,null,null,null,null,null,null,null,null,null,null,null,null,null,null,null,null,null,null,null,null,null,null,null,null,null,null,null,null,null,null,null,1,null,null,null,null,{"$f":"COUNTA(C159:CL159)","v":5},5]
["Cladonia incrassata Florke",4,1,null,null,null,null,null,null,null,null,null,null,null,null,null,null,null,null,null,null,null,null,null,2,null,null,null,null,null,null,null,null,null,null,null,null,null,2,null,null,null,null,null,null,null,null,null,null,null,null,null,null,null,null,null,null,null,null,null,null,null,null,null,null,null,null,null,null,null,null,null,null,null,null,null,null,null,null,null,null,null,null,null,null,null,1,null,null,null,{"$f":"COUNTA(C160:CL160)","v":4},4]
["Cladonia robbinsii A. Evans",4,2,null,null,2,null,null,null,null,null,null,null,null,null,null,null,null,null,null,null,null,null,null,null,null,null,null,null,null,2,null,null,null,null,null,null,null,null,null,null,null,null,null,null,null,null,null,null,null,null,null,null,null,null,null,null,null,null,null,null,null,null,null,null,null,null,null,null,null,null,null,null,null,null,null,null,1,null,null,null,null,null,null,null,null,null,null,null,null,{"$f":"COUNTA(C161:CL161)","v":4},4]
["Collema bachmanianum (Fink) Degel.",4,1,null,null,null,null,null,null,null,null,null,null,2,null,null,null,null,null,null,null,null,null,null,null,null,null,null,null,null,null,null,null,null,null,null,null,2,null,null,null,null,null,null,null,null,null,null,null,null,null,null,null,null,null,null,null,null,null,null,null,null,null,null,null,null,null,1,null,null,null,null,null,null,null,null,null,null,null,null,null,null,null,null,null,null,null,null,null,null,{"$f":"COUNTA(C162:CL162)","v":4},2]
["Leptogium tenuissimum (Dichson) Korber",4,1,null,null,null,null,null,null,null,2,null,null,null,null,2,null,null,null,null,null,null,null,null,null,null,null,null,null,null,null,null,null,null,null,null,null,null,1,null,null,null,null,null,null,null,null,null,null,null,null,null,null,null,null,null,null,null,null,null,null,null,null,null,null,null,null,null,null,null,null,null,null,null,null,null,null,null,null,null,null,null,null,null,null,null,null,null,null,null,{"$f":"COUNTA(C163:CL163)","v":4},4]
["Pannaria lurida (Mont.) Nyl.",4,2,null,null,null,null,null,null,null,null,null,2,null,null,null,null,null,null,null,null,null,null,null,null,null,null,null,null,null,null,null,2,null,null,null,null,null,null,null,null,null,null,null,null,null,null,null,null,null,null,null,null,null,null,null,null,null,null,null,null,null,null,null,null,null,null,null,null,null,null,null,null,null,null,2,null,null,null,null,null,null,null,null,null,null,null,null,null,null,{"$f":"COUNTA(C164:CL164)","v":4},4]
["Parmotrema austrosinense (Zahlbr.) Hale",4,null,null,null,null,null,null,null,null,null,null,null,null,1,null,null,null,null,2,null,null,null,null,null,null,null,null,null,null,null,null,1,null,null,null,null,null,null,null,null,null,null,null,null,null,null,null,null,null,null,null,null,null,null,null,null,null,null,null,null,null,null,null,null,null,null,1,null,null,null,null,null,null,null,null,null,null,null,null,null,null,null,null,null,null,null,null,null,null,{"$f":"COUNTA(C165:CL165)","v":4},4]
["Physcia pumilior R. C. Harris",4,1,null,null,null,null,null,null,null,null,null,null,null,null,null,null,null,null,null,null,null,null,null,null,null,null,null,null,null,null,null,null,null,null,null,null,null,null,null,null,null,null,null,null,null,null,null,null,null,null,null,null,null,null,null,null,null,null,null,null,1,null,null,null,null,null,null,null,null,null,null,null,null,1,null,null,null,null,null,null,null,null,1,null,null,null,null,null,null,{"$f":"COUNTA(C166:CL166)","v":4},2]
["Physciella melanchra (Hue) Essl.",4,null,null,null,null,null,null,null,null,null,null,null,null,null,null,null,null,1,null,1,1,null,null,null,null,null,null,null,null,null,null,null,null,null,null,1,null,null,null,null,null,null,null,null,null,null,null,null,null,null,null,null,null,null,null,null,null,null,null,null,null,null,null,null,null,null,null,null,null,null,null,null,null,null,null,null,null,null,null,null,null,null,null,null,null,null,null,null,null,{"$f":"COUNTA(C167:CL167)","v":4}]
["Physconia enteroxantha (Nyl.) Poelt",4,1,null,null,null,null,null,null,null,null,null,null,null,null,null,null,null,1,null,null,null,null,null,null,null,null,null,null,null,null,null,null,null,null,null,null,null,null,null,1,null,null,null,null,null,null,null,null,null,null,null,null,null,null,null,null,null,null,null,1,null,null,null,null,null,null,null,null,null,null,null,null,null,null,null,null,null,null,null,null,null,null,null,null,null,null,null,null,null,{"$f":"COUNTA(C168:CL168)","v":4},2]
["Usnea ceratina Ach.",4,2,null,null,null,null,null,null,2,null,null,2,null,null,null,null,null,null,null,null,null,null,null,null,null,null,null,null,null,null,null,null,null,null,null,null,null,null,null,null,2,null,null,null,null,null,null,null,null,null,null,null,null,null,null,null,null,null,null,null,null,null,null,null,null,null,null,null,null,null,null,null,null,null,null,null,null,null,null,null,null,null,null,null,null,null,null,null,null,{"$f":"COUNTA(C169:CL169)","v":4},4]
["Usnea subscabrosa Mott.",4,null,null,null,null,null,null,null,null,null,null,null,null,null,null,null,null,null,null,null,null,null,null,null,null,null,null,1,null,null,null,null,null,null,null,null,null,null,null,null,1,null,null,null,null,null,null,null,null,null,null,null,null,null,null,null,null,null,null,null,null,null,null,null,null,null,null,null,null,null,null,null,null,null,null,null,null,null,null,null,null,null,1,null,1,null,null,null,null,{"$f":"COUNTA(C170:CL170)","v":4},3]
["Xanthoparmelia cumberlandia (Gyelnik) Hale",4,1,null,null,null,null,null,null,null,null,null,null,null,null,null,null,null,null,null,null,null,null,null,null,null,null,null,null,null,null,null,null,null,null,null,null,null,null,1,null,null,null,null,null,null,null,null,null,null,null,null,null,null,null,null,null,1,1,null,null,null,null,null,null,null,null,null,null,null,null,null,null,null,null,null,null,null,null,null,null,null,null,null,null,null,null,null,null,null,{"$f":"COUNTA(C171:CL171)","v":4},4]
["Cetrelia chicitae (Culb.) Culb. & C. Culb.",3,null,null,null,null,null,null,null,null,null,null,null,null,null,null,null,null,null,null,null,null,null,null,1,null,null,null,null,null,null,null,null,null,null,null,null,null,1,1,null,null,null,null,null,null,null,null,null,null,null,null,null,null,null,null,null,null,null,null,null,null,null,null,null,null,null,null,null,null,null,null,null,null,null,null,null,null,null,null,null,null,null,null,null,null,null,null,null,null,{"$f":"COUNTA(C172:CL172)","v":3},3]
["Cetrelia olivetorum (Nyl.) Culb. & C. Culb.",3,1,null,null,null,null,null,null,null,null,null,2,2,null,null,null,null,null,null,null,null,null,null,null,null,null,null,null,null,null,null,null,null,null,null,null,null,null,null,null,null,null,null,null,null,null,null,null,null,null,null,null,null,null,null,null,null,null,null,null,null,null,null,null,null,null,null,null,null,null,null,null,null,null,null,null,null,null,null,null,null,null,null,null,null,null,null,null,null,{"$f":"COUNTA(C173:CL173)","v":3},3]
["Cladonia petrophila R. C. Harris",3,null,null,null,null,null,null,null,null,null,null,null,null,null,null,null,null,null,null,null,null,null,null,null,null,null,null,1,null,null,null,null,null,null,null,null,null,null,null,null,null,null,null,null,null,null,null,null,null,null,null,null,null,null,null,null,null,null,null,null,null,null,null,null,null,null,null,null,null,null,null,null,null,1,null,null,null,null,null,1,null,null,null,null,null,null,null,null,null,{"$f":"COUNTA(C174:CL174)","v":3},3]
["Heterodermia casarettiana (A. Massal.) Trevisan",3,1,null,null,null,null,null,null,null,null,null,null,null,null,null,null,null,null,null,null,null,null,1,null,null,null,null,1,null,null,null,null,null,null,null,null,null,null,null,null,null,null,null,null,null,null,null,null,null,null,null,null,null,null,null,null,null,null,null,null,null,null,null,null,null,null,null,null,null,null,null,null,null,null,null,null,null,null,null,null,null,null,null,null,null,null,null,null,null,{"$f":"COUNTA(C175:CL175)","v":3},3]
["Nephroma helveticum Ach.",3,null,null,null,null,null,null,null,null,2,null,2,null,null,null,null,null,null,null,null,null,null,null,null,null,null,null,null,null,2,null,null,null,null,null,null,null,null,null,null,null,null,null,null,null,null,null,null,null,null,null,null,null,null,null,null,null,null,null,null,null,null,null,null,null,null,null,null,null,null,null,null,null,null,null,null,null,null,null,null,null,null,null,null,null,null,null,null,null,{"$f":"COUNTA(C176:CL176)","v":3},3]
["Parmotrema arnoldii (Du Rietz) Hale",3,1,null,null,null,null,null,null,null,null,null,null,null,null,null,null,null,null,null,null,null,null,null,null,null,null,null,null,null,null,null,null,null,null,null,null,null,1,null,null,null,null,null,null,null,null,null,null,null,null,null,null,null,null,null,null,1,null,null,null,null,null,null,null,null,null,null,null,null,null,null,null,null,null,null,null,null,null,null,null,null,null,null,null,null,null,null,null,null,{"$f":"COUNTA(C177:CL177)","v":3},2]
["Parmotrema despectum Kurok.",3,1,null,null,null,null,null,null,null,null,null,null,2,null,null,null,null,null,null,null,null,null,null,null,null,null,null,null,null,null,null,null,null,null,null,null,null,null,null,null,null,null,null,null,null,null,null,null,null,null,null,null,null,null,null,null,null,null,null,null,null,null,null,null,null,null,null,null,null,null,null,null,null,1,null,null,null,null,null,null,null,null,null,null,null,null,null,null,null,{"$f":"COUNTA(C178:CL178)","v":3},3]
["Parmotrema gardneri (C. W. Dodge) Serus ",3,1,null,null,null,null,null,null,null,null,null,null,null,null,null,null,null,null,null,null,null,null,null,null,null,null,null,1,null,null,null,null,null,null,null,null,null,null,null,null,null,null,null,null,null,null,null,null,null,null,null,null,null,null,null,null,null,null,null,null,null,null,null,null,null,null,null,null,null,null,null,null,null,null,null,null,null,null,null,null,null,null,1,null,null,null,null,null,null,{"$f":"COUNTA(C179:CL179)","v":3},1]
["Peltigera aphthosa (L.) Willd.",3,null,null,null,null,null,null,2,null,null,null,null,2,null,null,null,null,null,null,null,null,null,null,null,null,null,null,null,null,null,null,null,null,null,null,null,null,null,null,null,null,null,null,2,null,null,null,null,null,null,null,null,null,null,null,null,null,null,null,null,null,null,null,null,null,null,null,null,null,null,null,null,null,null,null,null,null,null,null,null,null,null,null,null,null,null,null,null,null,{"$f":"COUNTA(C180:CL180)","v":3},3]
["Physcia phaea (Tuck.) J. W. Thomson",3,null,null,null,null,null,null,null,null,null,null,null,null,null,null,null,1,1,null,null,null,null,null,null,null,null,null,null,null,null,null,null,null,null,null,null,null,null,null,null,null,null,null,null,null,null,null,null,null,null,null,null,null,null,null,null,null,null,1,null,null,null,null,null,null,null,null,null,null,null,null,null,null,null,null,null,null,null,null,null,null,null,null,null,null,null,null,null,null,{"$f":"COUNTA(C181:CL181)","v":3},1]
["Pseudevernia consocians (Vainio) Hale & Culb.",3,1,null,null,null,null,null,null,null,null,null,null,null,null,null,null,null,null,null,null,null,null,null,null,null,null,null,null,null,null,null,null,null,null,null,null,null,null,null,null,null,null,null,null,null,null,null,null,null,null,null,null,null,1,null,null,null,null,null,null,null,null,null,null,null,null,null,null,null,null,null,null,null,1,null,null,null,null,null,null,null,null,null,null,null,null,null,null,null,{"$f":"COUNTA(C182:CL182)","v":3},3]
["Punctelia perreticulata (Rasanen) Wilhelm & Ladd",3,1,null,null,null,null,null,null,null,null,null,null,null,null,null,null,null,null,null,null,null,null,null,null,null,null,null,null,null,null,null,null,null,null,null,null,null,null,null,null,1,null,null,null,null,null,null,null,null,null,null,null,null,null,null,null,null,null,null,null,null,null,null,null,null,null,null,null,null,null,null,null,null,1,null,null,null,null,null,null,null,null,null,null,null,null,null,null,null,{"$f":"COUNTA(C183:CL183)","v":3},3]
["Stereocaulon saxatile H. Magn.",3,null,null,null,2,null,null,null,null,null,null,null,null,null,null,null,null,null,2,null,null,null,null,null,null,null,null,null,null,null,null,null,null,null,null,null,null,null,null,null,null,null,null,2,null,null,null,null,null,null,null,null,null,null,null,null,null,null,null,null,null,null,null,null,null,null,null,null,null,null,null,null,null,null,null,null,null,null,null,null,null,null,null,null,null,null,null,null,null,{"$f":"COUNTA(C184:CL184)","v":3},3]
["Canoparmelia caroliniana (Nyl.) Elix & Hale",2,1,null,null,null,null,null,null,null,null,null,null,null,null,null,null,null,null,null,null,null,null,null,null,null,null,null,1,null,null,null,null,null,null,null,null,null,null,null,null,null,null,null,null,null,null,null,null,null,null,null,null,null,null,null,null,null,null,null,null,null,null,null,null,null,null,null,null,null,null,null,null,null,null,null,null,null,null,null,null,null,null,null,null,null,null,null,null,null,{"$f":"COUNTA(C185:CL185)","v":2},2]
["Cetraria arenaria Karnefelt",2,null,null,null,null,null,null,null,null,null,null,null,null,null,null,null,null,null,2,null,null,null,null,null,null,null,null,null,null,null,null,null,null,null,null,null,null,null,null,null,null,null,null,null,null,null,null,2,null,null,null,null,null,null,null,null,null,null,null,null,null,null,null,null,null,null,null,null,null,null,null,null,null,null,null,null,null,null,null,null,null,null,null,null,null,null,null,null,null,{"$f":"COUNTA(C186:CL186)","v":2},2]
["Collema coccophorum Tuck.",2,1,null,null,null,null,null,null,null,null,null,null,null,null,null,null,null,null,null,null,null,null,null,null,null,null,null,null,null,null,null,null,null,null,null,null,null,null,null,null,null,null,null,null,null,null,null,null,null,null,null,null,null,null,null,null,null,null,null,null,null,null,null,null,null,null,1,null,null,null,null,null,null,null,null,null,null,null,null,null,null,null,null,null,null,null,null,null,null,{"$f":"COUNTA(C187:CL187)","v":2},1]
["Collema crispum (Hudson) F. H. Wigg.",2,null,null,null,null,null,null,null,null,null,null,null,null,null,null,null,null,null,null,null,null,null,null,null,null,null,null,1,null,null,null,null,null,null,null,null,null,null,null,null,null,null,null,null,null,null,null,null,null,null,null,null,null,null,null,null,null,null,null,null,null,null,null,null,null,null,null,null,null,null,null,null,null,null,2,null,null,null,null,null,null,null,null,null,null,null,null,null,null,{"$f":"COUNTA(C188:CL188)","v":2},2]
["Collema fuscovirens (With.) J. R. Laundon",2,1,null,null,null,null,null,null,null,null,null,null,null,null,null,null,null,null,null,null,null,null,null,null,null,null,null,null,null,null,null,null,null,null,null,null,null,null,null,null,null,null,null,null,null,null,null,null,null,null,null,null,null,null,null,null,null,null,null,null,null,null,null,null,null,null,1,null,null,null,null,null,null,null,null,null,null,null,null,null,null,null,null,null,null,null,null,null,null,{"$f":"COUNTA(C189:CL189)","v":2},1]
["Fuscopannaria leucophaea (Vahl) P. M. Jorg.",2,null,null,null,null,null,null,null,null,null,null,null,null,null,null,null,null,null,null,null,null,null,null,null,null,null,null,null,null,null,null,null,null,null,null,null,null,null,null,null,null,null,null,null,null,null,null,null,null,null,null,null,null,null,null,null,null,null,1,null,null,null,null,null,null,null,null,null,null,null,null,null,null,null,null,null,null,null,null,null,null,null,null,null,1,null,null,null,null,{"$f":"COUNTA(C190:CL190)","v":2},2]
["Heterodermia albicans (Pers.) Swinscow & Krog",2,1,null,null,null,null,null,null,null,null,null,null,null,null,null,null,null,null,null,null,null,null,null,null,null,null,null,null,null,null,null,null,null,null,null,null,null,null,null,null,null,null,null,null,null,null,null,null,null,null,null,null,null,null,null,null,null,null,null,null,null,null,null,null,null,null,null,null,null,null,null,null,null,null,null,null,null,null,null,null,null,null,null,null,null,null,null,null,1,{"$f":"COUNTA(C191:CL191)","v":2},2]
["Hyperphyscia confusa Essl., C. A. Morse, & S. Leavitt",2,null,null,null,null,null,null,null,null,null,null,null,null,null,null,null,null,null,null,null,1,null,null,null,1,null,null,null,null,null,null,null,null,null,null,null,null,null,null,null,null,null,null,null,null,null,null,null,null,null,null,null,null,null,null,null,null,null,null,null,null,null,null,null,null,null,null,null,null,null,null,null,null,null,null,null,null,null,null,null,null,null,null,null,null,null,null,null,null,{"$f":"COUNTA(C192:CL192)","v":2}]
["Leptogium subtile (Schrader) Torss.",2,2,null,null,null,null,null,null,null,null,null,null,null,null,null,null,null,null,null,null,null,null,null,null,null,null,null,null,null,null,null,null,null,null,null,null,null,null,null,null,null,null,2,null,null,null,null,null,null,null,null,null,null,null,null,null,null,null,null,null,null,null,null,null,null,null,null,null,null,null,null,null,null,null,null,null,null,null,null,null,null,null,null,null,null,null,null,null,null,{"$f":"COUNTA(C193:CL193)","v":2},2]
["Parmelinopsis horrescens (Taylor) Elix & Hale",2,1,null,null,null,null,null,null,null,null,null,null,null,null,null,null,null,null,null,null,null,null,null,null,null,null,null,null,null,null,null,null,null,null,null,null,null,null,null,null,null,null,null,null,null,null,null,null,null,null,null,null,null,null,null,null,null,null,null,null,null,null,null,null,null,null,2,null,null,null,null,null,null,null,null,null,null,null,null,null,null,null,null,null,null,null,null,null,null,{"$f":"COUNTA(C194:CL194)","v":2},2]
["Parmotrema madagascariaceum (Hue) Hale",2,null,null,null,null,null,null,null,null,null,null,null,null,null,null,null,null,null,null,null,null,null,null,null,null,null,null,null,null,null,null,null,null,null,null,null,null,null,null,null,2,null,null,null,null,null,null,null,null,null,null,null,null,null,null,null,null,null,null,null,null,null,null,null,null,null,null,null,null,null,null,null,null,null,null,null,null,null,null,null,null,null,1,null,null,null,null,null,null,{"$f":"COUNTA(C195:CL195)","v":2},2]
["Phaeophyscia leana (Tuck.) Essl.",2,1,null,null,null,null,null,null,null,null,null,null,null,null,null,null,null,null,null,null,null,null,null,null,null,null,null,null,null,null,null,2,null,null,null,null,null,null,null,null,null,null,null,null,null,null,null,null,null,null,null,null,null,null,null,null,null,null,null,null,null,null,null,null,null,null,null,null,null,null,null,null,null,null,null,null,null,null,null,null,null,null,null,null,null,null,null,null,null,{"$f":"COUNTA(C196:CL196)","v":2},2]
["Teloschistes chrysophthalmus (L.) Th. Fr.",2,null,null,null,null,null,null,null,null,null,null,null,null,null,null,null,null,null,null,null,null,null,null,null,null,null,null,null,null,null,null,2,null,null,null,null,null,null,null,null,null,null,null,null,null,null,null,null,null,null,null,null,null,null,null,null,null,null,null,null,null,null,null,null,null,null,null,null,null,null,null,null,null,null,null,null,null,null,null,null,1,null,null,null,null,null,null,null,null,{"$f":"COUNTA(C197:CL197)","v":2},1]
["Thyrea confusa Henssen",2,1,null,null,null,null,null,null,null,null,null,null,null,null,null,null,null,null,null,null,null,null,2,null,null,null,null,null,null,null,null,null,null,null,null,null,null,null,null,null,null,null,null,null,null,null,null,null,null,null,null,null,null,null,null,null,null,null,null,null,null,null,null,null,null,null,null,null,null,null,null,null,null,null,null,null,null,null,null,null,null,null,null,null,null,null,null,null,null,{"$f":"COUNTA(C198:CL198)","v":2},2]
["Xanthoparmelia tasmanica (Hook. F. & Taylor) Hale",2,null,null,null,null,null,null,null,null,null,null,null,null,null,null,null,null,null,null,null,null,null,null,null,null,null,null,null,null,null,null,null,null,null,null,null,null,null,null,null,null,null,null,null,null,null,null,null,null,null,null,null,null,1,null,null,null,null,null,null,1,null,null,null,null,null,null,null,null,null,null,null,null,null,null,null,null,null,null,null,null,null,null,null,null,null,null,null,null,{"$f":"COUNTA(C199:CL199)","v":2},1]
["Xanthoria elegans (Link) Th. Fr.",2,null,null,null,null,null,null,null,null,null,null,null,null,null,null,null,null,null,null,null,null,null,null,null,null,null,null,null,null,null,null,null,null,null,null,null,null,null,null,null,null,null,null,null,null,null,null,null,null,null,null,null,null,null,null,null,null,null,null,null,null,null,2,null,null,null,null,null,null,null,null,null,null,null,null,null,null,null,null,null,null,null,null,null,null,null,null,2,null,{"$f":"COUNTA(C200:CL200)","v":2},2]
["Xanthoria polycarpa (Hoffm.) Rieber",2,null,null,null,null,null,null,null,null,null,null,null,null,null,null,null,null,null,null,null,null,null,null,null,null,2,null,null,null,null,null,null,null,null,null,null,null,null,null,null,null,null,null,2,null,null,null,null,null,null,null,null,null,null,null,null,null,null,null,null,null,null,null,null,null,null,null,null,null,null,null,null,null,null,null,null,null,null,null,null,null,null,null,null,null,null,null,null,null,{"$f":"COUNTA(C201:CL201)","v":2},2]
["Canoparmelia amabilis Heiman & Elix",1,null,null,null,null,null,null,null,null,null,null,null,null,null,null,null,null,null,null,null,null,null,null,null,null,null,null,null,null,null,null,null,null,null,null,null,null,null,null,null,null,null,null,null,null,null,null,null,null,null,null,null,null,null,null,null,null,null,null,null,null,null,null,null,null,null,null,null,null,null,null,null,null,null,null,null,null,null,null,null,null,null,null,null,1,null,null,null,null,{"$f":"COUNTA(C202:CL202)","v":1},1]
["Cladonia didyma (Fee) Vainio",1,1,null,null,null,null,null,null,null,null,null,null,null,null,null,null,null,null,null,null,null,null,null,null,null,null,null,null,null,null,null,null,null,null,null,null,null,null,null,null,null,null,null,null,null,null,null,null,null,null,null,null,null,null,null,null,null,null,null,null,null,null,null,null,null,null,null,null,null,null,null,null,null,null,null,null,null,null,null,null,null,null,null,null,null,null,null,null,null,{"$f":"COUNTA(C203:CL203)","v":1},1]
["Cladonia floridana Vainio",1,null,null,null,null,null,null,null,null,null,null,null,null,null,null,null,null,null,null,null,null,null,null,null,null,null,null,null,null,null,null,null,null,null,null,null,null,null,null,null,null,null,null,null,null,null,null,null,null,null,null,null,null,null,null,null,null,null,null,null,null,null,null,null,null,null,null,null,null,null,null,null,null,null,null,null,null,null,null,2,null,null,null,null,null,null,null,null,null,{"$f":"COUNTA(C204:CL204)","v":1},1]
["Collema fragrans (Sm.) Ach.",1,2,null,null,null,null,null,null,null,null,null,null,null,null,null,null,null,null,null,null,null,null,null,null,null,null,null,null,null,null,null,null,null,null,null,null,null,null,null,null,null,null,null,null,null,null,null,null,null,null,null,null,null,null,null,null,null,null,null,null,null,null,null,null,null,null,null,null,null,null,null,null,null,null,null,null,null,null,null,null,null,null,null,null,null,null,null,null,null,{"$f":"COUNTA(C205:CL205)","v":1},1]
["Collema polycarpon Hoffm.",1,2,null,null,null,null,null,null,null,null,null,null,null,null,null,null,null,null,null,null,null,null,null,null,null,null,null,null,null,null,null,null,null,null,null,null,null,null,null,null,null,null,null,null,null,null,null,null,null,null,null,null,null,null,null,null,null,null,null,null,null,null,null,null,null,null,null,null,null,null,null,null,null,null,null,null,null,null,null,null,null,null,null,null,null,null,null,null,null,{"$f":"COUNTA(C206:CL206)","v":1},1]
["Ephebe lanata (L.) Vainio",1,null,null,null,null,null,null,null,null,null,null,null,null,null,null,null,null,null,null,null,null,null,null,null,null,null,null,null,null,null,null,null,null,null,null,null,null,null,null,null,null,null,null,null,null,null,null,null,null,null,null,null,null,null,null,null,null,null,null,null,null,null,null,null,null,null,null,null,2,null,null,null,null,null,null,null,null,null,null,null,null,null,null,null,null,null,null,null,null,{"$f":"COUNTA(C207:CL207)","v":1},1]
["Fuscopannaria leucosticta (Tuck.) P. M. Jorg.",1,null,null,null,null,null,null,null,null,null,null,null,null,null,null,null,null,null,null,null,null,null,null,2,null,null,null,null,null,null,null,null,null,null,null,null,null,null,null,null,null,null,null,null,null,null,null,null,null,null,null,null,null,null,null,null,null,null,null,null,null,null,null,null,null,null,null,null,null,null,null,null,null,null,null,null,null,null,null,null,null,null,null,null,null,null,null,null,null,{"$f":"COUNTA(C208:CL208)","v":1},1]
["Heterodermia pseudospeciosa (Lurok.) Culb.",1,null,null,null,null,null,null,null,null,null,null,null,null,null,null,null,null,null,null,null,null,null,null,null,null,null,null,1,null,null,null,null,null,null,null,null,null,null,null,null,null,null,null,null,null,null,null,null,null,null,null,null,null,null,null,null,null,null,null,null,null,null,null,null,null,null,null,null,null,null,null,null,null,null,null,null,null,null,null,null,null,null,null,null,null,null,null,null,null,{"$f":"COUNTA(C209:CL209)","v":1},1]
["Heterodermia squamulosa (Degel.) Culb.",1,1,null,null,null,null,null,null,null,null,null,null,null,null,null,null,null,null,null,null,null,null,null,null,null,null,null,null,null,null,null,null,null,null,null,null,null,null,null,null,null,null,null,null,null,null,null,null,null,null,null,null,null,null,null,null,null,null,null,null,null,null,null,null,null,null,null,null,null,null,null,null,null,null,null,null,null,null,null,null,null,null,null,null,null,null,null,null,null,{"$f":"COUNTA(C210:CL210)","v":1},1]
["Hypotrachyna osseoalba (Vainio) Park & Hale",1,null,null,null,null,null,null,null,null,null,null,null,null,null,null,null,null,null,null,null,null,null,null,null,null,null,null,null,null,null,null,null,null,null,null,null,null,null,null,null,null,null,null,null,null,null,null,null,null,null,null,null,null,null,null,null,null,null,null,null,null,null,null,null,null,null,null,null,null,null,null,null,null,1,null,null,null,null,null,null,null,null,null,null,null,null,null,null,null,{"$f":"COUNTA(C211:CL211)","v":1},1]
["Menegazzia terebrata (Hoffm.) A. Massal.",1,null,null,null,null,null,null,null,null,null,null,null,2,null,null,null,null,null,null,null,null,null,null,null,null,null,null,null,null,null,null,null,null,null,null,null,null,null,null,null,null,null,null,null,null,null,null,null,null,null,null,null,null,null,null,null,null,null,null,null,null,null,null,null,null,null,null,null,null,null,null,null,null,null,null,null,null,null,null,null,null,null,null,null,null,null,null,null,null,{"$f":"COUNTA(C212:CL212)","v":1},1]
["Pannaria rubignosa (Ach.) Bory",1,null,null,null,null,null,null,null,null,null,null,null,null,null,null,null,null,null,null,null,null,null,null,null,null,null,null,null,null,null,null,2,null,null,null,null,null,null,null,null,null,null,null,null,null,null,null,null,null,null,null,null,null,null,null,null,null,null,null,null,null,null,null,null,null,null,null,null,null,null,null,null,null,null,null,null,null,null,null,null,null,null,null,null,null,null,null,null,null,{"$f":"COUNTA(C213:CL213)","v":1},1]
["Parmotrema subisidiosum (Mull. Arg.) Hale",1,1,null,null,null,null,null,null,null,null,null,null,null,null,null,null,null,null,null,null,null,null,null,null,null,null,null,null,null,null,null,null,null,null,null,null,null,null,null,null,null,null,null,null,null,null,null,null,null,null,null,null,null,null,null,null,null,null,null,null,null,null,null,null,null,null,null,null,null,null,null,null,null,null,null,null,null,null,null,null,null,null,null,null,null,null,null,null,null,{"$f":"COUNTA(C214:CL214)","v":1},1]
["Parmotrema ultralucens (Krog) Hale",1,null,null,null,null,null,null,null,null,null,null,null,null,null,null,null,null,null,null,null,null,null,null,null,null,null,null,null,null,null,null,null,null,null,null,null,null,1,null,null,null,null,null,null,null,null,null,null,null,null,null,null,null,null,null,null,null,null,null,null,null,null,null,null,null,null,null,null,null,null,null,null,null,null,null,null,null,null,null,null,null,null,null,null,null,null,null,null,null,{"$f":"COUNTA(C215:CL215)","v":1},1]
["Peltigera elisabethae Gyelnik",1,1,null,null,null,null,null,null,null,null,null,null,null,null,null,null,null,null,null,null,null,null,null,null,null,null,null,null,null,null,null,null,null,null,null,null,null,null,null,null,null,null,null,null,null,null,null,null,null,null,null,null,null,null,null,null,null,null,null,null,null,null,null,null,null,null,null,null,null,null,null,null,null,null,null,null,null,null,null,null,null,null,null,null,null,null,null,null,null,{"$f":"COUNTA(C216:CL216)","v":1},1]
["Phaeophyscia hispidula (Ach.) Essl.",1,null,null,null,null,null,null,null,null,null,null,null,null,null,null,null,null,null,null,null,null,null,null,null,null,null,null,null,null,null,null,null,null,null,null,null,null,null,null,null,null,null,null,null,null,1,null,null,null,null,null,null,null,null,null,null,null,null,null,null,null,null,null,null,null,null,null,null,null,null,null,null,null,null,null,null,null,null,null,null,null,null,null,null,null,null,null,null,null,{"$f":"COUNTA(C217:CL217)","v":1},1]
["Phaeophyscia orbicularis (Necker) Moberg",1,1,null,null,null,null,null,null,null,null,null,null,null,null,null,null,null,null,null,null,null,null,null,null,null,null,null,null,null,null,null,null,null,null,null,null,null,null,null,null,null,null,null,null,null,null,null,null,null,null,null,null,null,null,null,null,null,null,null,null,null,null,null,null,null,null,null,null,null,null,null,null,null,null,null,null,null,null,null,null,null,null,null,null,null,null,null,null,null,{"$f":"COUNTA(C218:CL218)","v":1},1]
["Physcia caesia (Hofm.) Furnr.",1,null,null,null,null,null,null,null,null,null,null,null,null,null,null,null,null,null,null,null,null,null,null,null,null,null,null,null,null,null,null,null,null,1,null,null,null,null,null,null,null,null,null,null,null,null,null,null,null,null,null,null,null,null,null,null,null,null,null,null,null,null,null,null,null,null,null,null,null,null,null,null,null,null,null,null,null,null,null,null,null,null,null,null,null,null,null,null,null,{"$f":"COUNTA(C219:CL219)","v":1},1]
["Physcia halei J. W. Thomson",1,null,null,null,null,null,null,null,null,null,null,null,null,null,null,null,null,null,null,null,null,null,null,null,null,null,null,null,null,null,null,null,null,null,null,null,null,null,null,null,null,null,null,null,null,null,null,null,null,null,null,null,null,null,null,null,null,null,null,null,null,null,null,null,null,null,null,null,2,null,null,null,null,null,null,null,null,null,null,null,null,null,null,null,null,null,null,null,null,{"$f":"COUNTA(C220:CL220)","v":1},1]
["Pseudocyphellaria aurata (Ach.) Vainio",1,null,null,null,null,null,null,null,null,null,null,null,null,null,null,null,null,null,null,null,null,null,null,null,null,null,null,null,null,null,null,2,null,null,null,null,null,null,null,null,null,null,null,null,null,null,null,null,null,null,null,null,null,null,null,null,null,null,null,null,null,null,null,null,null,null,null,null,null,null,null,null,null,null,null,null,null,null,null,null,null,null,null,null,null,null,null,null,null,{"$f":"COUNTA(C221:CL221)","v":1},1]
["Ramalina roesleri (Hochst. ex Schaerer) Hue",1,null,null,null,null,null,null,null,null,null,null,null,null,null,null,null,null,null,null,null,null,null,null,null,null,null,null,null,null,null,null,null,null,null,null,null,null,2,null,null,null,null,null,null,null,null,null,null,null,null,null,null,null,null,null,null,null,null,null,null,null,null,null,null,null,null,null,null,null,null,null,null,null,null,null,null,null,null,null,null,null,null,null,null,null,null,null,null,null,{"$f":"COUNTA(C222:CL222)","v":1},1]
["Stereocaulon tomentosum Fr.",1,null,null,null,null,null,null,null,null,null,null,null,null,null,null,null,null,null,2,null,null,null,null,null,null,null,null,null,null,null,null,null,null,null,null,null,null,null,null,null,null,null,null,null,null,null,null,null,null,null,null,null,null,null,null,null,null,null,null,null,null,null,null,null,null,null,null,null,null,null,null,null,null,null,null,null,null,null,null,null,null,null,null,null,null,null,null,null,null,{"$f":"COUNTA(C223:CL223)","v":1},1]
["Umbilicaria vellea (L.) Hoffm.",1,null,null,null,null,null,null,null,null,null,null,null,null,null,null,null,null,null,null,null,null,null,null,2,null,null,null,null,null,null,null,null,null,null,null,null,null,null,null,null,null,null,null,null,null,null,null,null,null,null,null,null,null,null,null,null,null,null,null,null,null,null,null,null,null,null,null,null,null,null,null,null,null,null,null,null,null,null,null,null,null,null,null,null,null,null,null,null,null,{"$f":"COUNTA(C224:CL224)","v":1},1]
["Usnea angulata (Ach.)",1,null,null,null,null,null,null,null,null,null,null,2,null,null,null,null,null,null,null,null,null,null,null,null,null,null,null,null,null,null,null,null,null,null,null,null,null,null,null,null,null,null,null,null,null,null,null,null,null,null,null,null,null,null,null,null,null,null,null,null,null,null,null,null,null,null,null,null,null,null,null,null,null,null,null,null,null,null,null,null,null,null,null,null,null,null,null,null,null,{"$f":"COUNTA(C225:CL225)","v":1},1]
["Usnea cornuta Korber",1,null,null,null,null,null,null,null,null,null,null,null,null,null,null,null,null,null,null,null,null,null,null,null,null,null,null,null,null,null,null,null,null,null,null,null,null,null,null,null,null,null,null,null,null,null,null,null,null,null,null,null,null,null,null,null,null,null,null,null,null,null,null,null,null,null,null,null,null,null,null,null,null,null,null,null,null,null,null,null,null,null,1,null,null,null,null,null,null,{"$f":"COUNTA(C226:CL226)","v":1}]
["Usnea endochrysea Stirton",1,null,null,null,null,null,null,null,null,null,null,null,null,null,null,null,null,null,null,null,null,null,null,null,null,null,null,null,null,null,null,null,null,null,null,null,null,null,null,null,null,null,null,null,null,null,null,null,null,null,null,null,null,null,null,null,null,null,null,null,null,null,null,null,null,null,null,null,null,null,null,null,null,1,null,null,null,null,null,null,null,null,null,null,null,null,null,null,null,{"$f":"COUNTA(C227:CL227)","v":1},1]
["Usnea longissima Ach.",1,null,null,null,null,null,null,null,null,null,null,null,null,null,null,null,null,null,null,null,null,null,null,null,null,null,null,null,null,null,null,2,null,null,null,null,null,null,null,null,null,null,null,null,null,null,null,null,null,null,null,null,null,null,null,null,null,null,null,null,null,null,null,null,null,null,null,null,null,null,null,null,null,null,null,null,null,null,null,null,null,null,null,null,null,null,null,null,null,{"$f":"COUNTA(C228:CL228)","v":1},1]
["Usnea subfloridana Stirton",1,null,null,null,2,null,null,null,null,null,null,null,null,null,null,null,null,null,null,null,null,null,null,null,null,null,null,null,null,null,null,null,null,null,null,null,null,null,null,null,null,null,null,null,null,null,null,null,null,null,null,null,null,null,null,null,null,null,null,null,null,null,null,null,null,null,null,null,null,null,null,null,null,null,null,null,null,null,null,null,null,null,null,null,null,null,null,null,null,{"$f":"COUNTA(C229:CL229)","v":1},1]
["Usnea substerilis Motyka",1,null,null,null,null,null,null,null,null,null,null,null,null,null,null,null,null,null,null,null,null,null,null,null,null,null,null,null,null,null,null,null,null,null,null,null,null,null,null,null,null,null,null,null,1,null,null,null,null,null,null,null,null,null,null,null,null,null,null,null,null,null,null,null,null,null,null,null,null,null,null,null,null,null,null,null,null,null,null,null,null,null,null,null,null,null,null,null,null,{"$f":"COUNTA(C230:CL230)","v":1},1]
["Vulpicida viridis (Schwein.) J._E. Mattsson & M. J. Lai",1,null,null,null,null,null,null,null,null,null,null,null,null,null,null,null,null,null,null,null,null,null,null,null,null,null,null,null,null,null,null,null,null,null,null,null,null,null,null,null,null,null,null,null,null,null,null,null,null,null,null,null,null,null,null,null,null,null,null,null,null,null,null,null,null,null,null,null,null,null,null,null,null,1,null,null,null,null,null,null,null,null,null,null,null,null,null,null,null,{"$f":"COUNTA(C231:CL231)","v":1},1]
["Xanthoparmelia angustiphylla (Gyelnik) Hale",1,null,null,null,null,null,null,null,null,null,null,null,null,null,null,null,null,null,null,null,null,null,null,null,null,null,null,null,null,null,null,null,null,null,null,null,null,null,null,null,null,null,null,null,null,null,null,null,null,null,null,null,null,null,null,null,null,1,null,null,null,null,null,null,null,null,null,null,null,null,null,null,null,null,null,null,null,null,null,null,null,null,null,null,null,null,null,null,null,{"$f":"COUNTA(C232:CL232)","v":1},1]
["Xanthoparmelia hypomelaena (Hale) Hale",1,1,null,null,null,null,null,null,null,null,null,null,null,null,null,null,null,null,null,null,null,null,null,null,null,null,null,null,null,null,null,null,null,null,null,null,null,null,null,null,null,null,null,null,null,null,null,null,null,null,null,null,null,null,null,null,null,null,null,null,null,null,null,null,null,null,null,null,null,null,null,null,null,null,null,null,null,null,null,null,null,null,null,null,null,null,null,null,null,{"$f":"COUNTA(C233:CL233)","v":1},1]
["Lasallia pensylvanica (Hofm.) Llano",0,null,null,null,null,null,null,null,null,null,null,null,null,null,null,null,null,null,null,null,null,null,null,null,null,null,null,null,null,null,null,null,null,null,null,null,null,null,null,null,null,null,null,null,null,null,null,null,null,null,null,null,null,null,null,null,null,null,null,null,null,null,null,null,null,null,null,null,null,null,null,null,null,null,null,null,null,null,null,null,null,null,null,null,null,null,null,null,null,{"$f":"COUNTA(C234:CL234)","v":0},0]
["Umbilicaria muehlenbergii (Ach.) Tuck.",0,null,null,null,null,null,null,null,null,null,null,null,null,null,null,null,null,null,null,null,null,null,null,null,null,null,null,null,null,null,null,null,null,null,null,null,null,null,null,null,null,null,null,null,null,null,null,null,null,null,null,null,null,null,null,null,null,null,null,null,null,null,null,null,null,null,null,null,null,null,null,null,null,null,null,null,null,null,null,null,null,null,null,null,null,null,null,null,null,{"$f":"COUNTA(C235:CL235)","v":0},0]

{"sheet":"ADAMS","index":1,"n_rows":161,"n_cols":2,"rows_kept":161,"cut":false,"hidden":false,"merged":[]}
["Lichen Taxa - ADAMS","Adams"]
["Ahtiana aurescens (Tuck.) Thell & Randlane",1]
["Anaptychia palmulata (Michaux) Vainio",1]
["Candelaria concolor (Dickson) Stein",1]
["Candelaria fibrosa (Fr.) Mull. Arg.*",2]
["Canomaculina subtinctoria (Zahlbr.) Elix",1]
["Canoparmelia caroliniana (Nyl.) Elix & Hale",1]
["Canoparmelia crozalsiana (de Lesd. ex Harm.) Elix & Hale",1]
["Canoparmelia texana (Tuck.) Elix & Hale",1]
["Cetrelia olivetorum (Nyl.) Culb. & C. Culb.",1]
["Cladonia apodocarpa Robb.",1]
["Cladonia caespiticia (Pers.) Florke",1]
["Cladonia caroliniana Tuck.",1]
["Cladonia cervicornis (Hoffm.) Ahti",1]
["Cladonia chlorophaea (Florke ex Sommerf.) Sprengel*",2]
["Cladonia coniocraea (Florke) Sprengel",1]
["Cladonia cristatella Tuck.",1]
["Cladonia cryptochlorophaea Asah.*",2]
["Cladonia cylindrica (A. Evans) A. Evans",1]
["Cladonia didyma (Fee) Vainio",1]
["Cladonia fimbriata (L.) Fr.",1]
["Cladonia furcata (Hudson) Schrader",1]
["Cladonia grayi G. Merr. ex Sandst.",1]
["Cladonia humilis (With.) J. R. Laundon*",2]
["Cladonia incrassata Florke",1]
["Cladonia macilenta Hoffm.",1]
["Cladonia mateocyatha Robbins",1]
["Cladonia ochrochlora Florke",1]
["Cladonia parasitica (Hoffm.) Hoffm.",1]
["Cladonia peziziformis (With.) J. R. Laundon*",2]
["Cladonia piedmontensis G. Merr.",1]
["Cladonia pleurota (Florke) Schaerer",1]
["Cladonia polycarpoides Nyl.",1]
["Cladonia pyxidata (L.) Hoffm.",1]
["Cladonia ramulosa (With.) J. R. Laundon*",2]
["Cladonia rangiferina (L.) F. H. Wigg. ",1]
["Cladonia rei Schaerer",1]
["Cladonia robbinsii A. Evans*",2]
["Cladonia sobolescens Nyl. ex Vainio",1]
["Cladonia squamosa Hoffm.",1]
["Cladonia strepsilis (Ach.) Grognot ",1]
["Cladonia subtenuis (Abbayes) Mattick",1]
["Cladonia uncialis (L.) F. H. Wigg.*",2]
["Collema bachmanianum (Fink) Degel.",1]
["Collema coccophorum Tuck.",1]
["Collema conglomeratum Hoffm.",1]
["Collema fragrans (Sm.) Ach.*",2]
["Collema fuscovirens (With.) J. R. Laundon",1]
["Collema nigrescens (Hudson) DC.*",2]
["Collema polycarpon Hoffm.*",2]
["Collema subflaccidum Degel.*",2]
["Collema tenax (Sw.) Ach.*",2]
["Dermatocarpon luridum (With.) J. R. Laundon",1]
["Dermatocarpon miniatum (L.) W. Mann",1]
["Dibaeis absoluta (Tuck.) Kalb & Gierl*",2]
["Dibaeis baeomyces (L. f.) Rambold & Hertel",1]
["Flavoparmelia baltimorensis (Gyelnik & Foriss) Hale",1]
["Flavoparmelia caperata (L.) Hale",1]
["Flavopunctelia flaventior (Stirton) Hale",1]
["Flavopunctelia soredica (Nyl.) Hale",1]
["Heterodermia albicans (Pers.) Swinscow & Krog",1]
["Heterodermia casarettiana (A. Massal.) Trevisan",1]
["Heterodermia echinata (Taylor) Culb.*",2]
["Heterodermia granulifera (Ach.) Culb.",1]
["Heterodermia hypoleuca (Ach.) Trevisan",1]
["Heterodermia obscurata (Nyl.) Trevisan",1]
["Heterodermia speciosa (Wulfen) Trevisan",1]
["Heterodermia squamulosa (Degel.) Culb.",1]
["Hyperphyscia adglutinata (Florke) H. Mayrh. & Poelt*",2]
["Hyperphyscia syncolla (Tuck. ex Nyl.) Kalb",1]
["Hypogymnia physodes (Nyl.) Nyl.",1]
["Hypotrachyna livida (Taylor) Hale",1]
["Hypotrachyna showmanii Hale",1]
["Imshaugia aleurites (Ach.) S. F. Meyer",1]
["Imshaugia placorodia (Ach.) S. F. Meyer",1]
["Lasallia papulosa (Ach.) Llano*",2]
["Leptogium aburnetiae C. W. Dodge",1]
["Leptogium austroamericanum (Malme) C. W. Dodge",1]
["Leptogium corticola (Taylor) Tuck.*",2]
["Leptogium cyanescens (Rabenh.) Korber",1]
["Leptogium dactylinum Tuck.",1]
["Leptogium juniperinum Tuck.",1]
["Leptogium lichenoides (L.) Zahlbr.",1]
["Leptogium milligranum Sierk",1]
["Leptogium subtile (Schrader) Torss.*",2]
["Leptogium tenuissimum (Dichson) Korber",1]
["Lobaria quercizans Michaux*",2]
["Melanelixia subaurifera (Nyl.) O. Blanco et al.",1]
["Myelochroa aurulenta (Tuck.) Elix & Hale",1]
["Myelochroa galbina (Ach.) Elix & Hale",1]
["Myelochroa metarevoluta (Asah.) Elix & Hale",1]
["Pannaria lurida (Mont.) Nyl.*",2]
["Parmelia squarrosa Hale",1]
["Parmelia sulcata Taylor",1]
["Parmelinopsis horrescens (Taylor) Elix & Hale",1]
["Parmelinopsis minarum (Vainio) Elix & Hale",1]
["Parmotrema arnoldii (Du Rietz) Hale",1]
["Parmotrema chinense (Osbeck) Hale & Ahti",1]
["Parmotrema crinitum (Ach.) Choisy",1]
["Parmotrema despectum Kurok.",1]
["Parmotrema gardneri (C. W. Dodge) Serus ",1]
["Parmotrema hypotropum (Nyl.) Hale",1]
["Parmotrema margaritatum (Hue) Hale",1]
["Parmotrema perforatum (Jacq.) A. Massal.",1]
["Parmotrema reticulatum (Taylor) M. Choisy",1]
["Parmotrema stuppeum (Taylor) Hale",1]
["Parmotrema subisidiosum (Mull. Arg.) Hale",1]
["Peltigera canina (L.) Willd.",1]
["Peltigera elisabethae Gyelnik",1]
["Peltigera evansiana Gyelnik",1]
["Peltigera horizontalis (Hudson) Baumg.*",2]
["Peltigera praetextata (Florke ex Sommerf.) Zopf",1]
["Phaeophyscia adiastola (Essl.) Essl.",1]
["Phaeophyscia ciliata (Hoffm.) Moberg*",2]
["Phaeophyscia decolor (Kashiw.) Essl.",1]
["Phaeophyscia hirsuta (Mereschk.) Essl.",1]
["Phaeophyscia leana (Tuck.) Essl.",1]
["Phaeophyscia orbicularis (Necker) Moberg",1]
["Phaeophyscia pusilloides (Zahlbr.) Essl.",1]
["Phaeophyscia rubropulchra (Degel.) Essl.",1]
["Phaeophyscia squarrosa Kashiwadani",1]
["Physcia adscendens (Fr.) H. Oliver",1]
["Physcia aipolia (Ehrh. ex Humb.) Furnr.",1]
["Physcia americana G. Merr.",1]
["Physcia millegrana Degel.",1]
["Physcia pumilior R. C. Harris",1]
["Physcia stellaris (L.) Nyl.",1]
["Physciella chloantha (Ach.) Essl.",1]
["Physconia detersa (Nyl.) Poelt",1]
["Physconia enteroxantha (Nyl.) Poelt",1]
["Physconia leucoleiptes (Tuck.) Essl.",1]
["Placidium aboretum (Schwein. ex Michener) Lendemer",1]
["Placidium squamulosum (Ach.) Breuss",1]
["Platismatia tuckermanii (Rav. ex Mont.) Breuss",1]
["Pseudevernia consocians (Vainio) Hale & Culb.",1]
["Punctelia bolliana (Mull. Arg.) Krog",1]
["Punctelia borreri (Sm.) Krog",1]
["Punctelia missouriensis G. Wilh. & Ladd",1]
["Punctelia perreticulata (Rasanen) Wilhelm & Ladd",1]
["Punctelia rudecta (Ach.) Krog",1]
["Pycnothelia papillaria Durfour*",2]
["Pyxine sorediata (Ach.) Mont",1]
["Pyxine subcinerea Stirton",1]
["Ramalina americana Hale",1]
["Ramalina farinacea (L.) Ach.*",2]
["Thyrea confusa Henssen",1]
["Tuckermanella fendleri (Nyl.) Essl.",1]
["Tuckermannopsis americana (Sprengel) Hale",1]
["Tuckermannopsis ciliaris (ach.) Gyelnik",1]
["Usnea amblyoclada (Mull. Arg.) Zahlbr.*",2]
["Usnea ceratina Ach.*",2]
["Usnea mutabilis Stirton",1]
["Usnea pensylvanica Motyka",1]
["Usnea strigosa (Ach.) Eaton",1]
["Xanthomendoza fallax (Hepp ex Arnold) Sochting, Karnfelt & S. Kondr.",1]
["Xanthomendoza ulophyllodes (Rasanen) Sochting, Karnefelt & S. Kondr. ",1]
["Xanthomendoza weberi (S. Kondr. & Karnefelt) L. Lindblom",1]
["Xanthoparmelia conspersa (Ehrh. ex Ach.) Hale*",2]
["Xanthoparmelia cumberlandia (Gyelnik) Hale",1]
["Xanthoparmelia hypomelaena (Hale) Hale",1]
["Xanthoparmelia plittii (Gyelnik) Hale",1]

{"sheet":"ALLEN","index":2,"n_rows":10,"n_cols":2,"rows_kept":10,"cut":false,"hidden":false,"merged":[]}
["Lichen Taxa --ALLEN","Allen"]
["Candelaria concolor (Dickson) Stein*",2]
["Flavoparmelia caperata (L.) Hale*",2]
["Lobaria quercizans Michaux*",2]
["Physcia aipolia (Ehrh. ex Humb.) Furnr.*",2]
["Physcia millegrana Degel.*",2]
["Physcia stellaris (L.) Nyl.*",2]
["Punctelia rudecta (Ach.) Krog*",2]
["Pyxine sorediata (Ach.) Mont*",2]
["Xanthomendoza fallax (Hepp ex Arnold) Sochting, Karnfelt & S. Kondr.*",2]

{"sheet":"ASHLAND","index":3,"n_rows":24,"n_cols":2,"rows_kept":24,"cut":false,"hidden":false,"merged":[]}
["Lichen Taxa -ASHLAND","Ashland"]
["Candelaria concolor (Dickson) Stein",1]
["Cladonia furcata (Hudson) Schrader*",2]
["Cladonia polycarpoides Nyl.*",2]
["Cladonia pyxidata (L.) Hoffm.*",2]
["Flavoparmelia caperata (L.) Hale",1]
["Flavopunctelia flaventior (Stirton) Hale*",2]
["Heterodermia speciosa (Wulfen) Trevisan*",2]
["Leptogium cyanescens (Rabenh.) Korber*",2]
["Lobaria pulmonaria (L.) Hoffm.*",2]
["Myelochroa aurulenta (Tuck.) Elix & Hale",1]
["Parmelia sulcata Taylor",1]
["Phaeophyscia adiastola (Essl.) Essl.",1]
["Phaeophyscia ciliata (Hoffm.) Moberg*",2]
["Phaeophyscia pusilloides (Zahlbr.) Essl.",1]
["Phaeophyscia rubropulchra (Degel.) Essl.",1]
["Phaeophyscia squarrosa Kashiwadani*",2]
["Physcia adscendens (Fr.) H. Oliver*",2]
["Physcia aipolia (Ehrh. ex Humb.) Furnr.*",2]
["Physcia millegrana Degel.*",2]
["Punctelia rudecta (Ach.) Krog*",2]
["Punctelia subrudecta (Nyl.) Krog*",2]
["Xanthomendoza fallax (Hepp ex Arnold) Sochting, Karnfelt & S. Kondr.*",2]
["Xanthoparmelia plittii (Gyelnik) Hale*",2]

{"sheet":"ASHTABULA","index":4,"n_rows":46,"n_cols":2,"rows_kept":46,"cut":false,"hidden":false,"merged":[]}
["Lichen Taxa -ASHTABULA","Ashtabula"]
["Anaptychia palmulata (Michaux) Vainio*",2]
["Anzia colpodes (Ach.) Stizenb.*",2]
["Bryoria furcellata (Fr.) Brodo & Hawksw.*",2]
["Candelaria concolor (Dickson) Stein*",2]
["Candelaria fibrosa (Fr.) Mull. Arg.*",2]
["Cladonia cervicornis (Hoffm.) Ahti*",2]
["Cladonia chlorophaea (Florke ex Sommerf.) Sprengel*",2]
["Cladonia coniocraea (Florke) Sprengel*",2]
["Cladonia cristatella Tuck.*",2]
["Cladonia cryptochlorophaea Asah.*",2]
["Cladonia fimbriata (L.) Fr.*",2]
["Cladonia furcata (Hudson) Schrader*",2]
["Cladonia grayi G. Merr. ex Sandst.*",2]
["Cladonia parasitica (Hoffm.) Hoffm.*",2]
["Cladonia peziziformis (With.) J. R. Laundon*",2]
["Cladonia polycarpoides Nyl.*",2]
["Cladonia rei Schaerer*",2]
["Cladonia robbinsii A. Evans*",2]
["Cladonia sobolescens Nyl. ex Vainio*",2]
["Cladonia squamosa Hoffm.*",2]
["Collema subflaccidum Degel.*",2]
["Flavoparmelia caperata (L.) Hale",1]
["Flavopunctelia soredica (Nyl.) Hale",1]
["Hypogymnia physodes (Nyl.) Nyl.*",2]
["Melanelixia subaurifera (Nyl.) O. Blanco et al.*",2]
["Melanohalia exasperata (De Not.) O. Blanco et al.*",2]
["Myelochroa galbina (Ach.) Elix & Hale*",2]
["Parmelia sulcata Taylor",1]
["Peltigera canina (L.) Willd.*",2]
["Phaeophyscia ciliata (Hoffm.) Moberg*",2]
["Physcia adscendens (Fr.) H. Oliver",1]
["Physcia aipolia (Ehrh. ex Humb.) Furnr.*",2]
["Physcia americana G. Merr.*",2]
["Physcia millegrana Degel.",1]
["Physcia stellaris (L.) Nyl.",1]
["Physconia detersa (Nyl.) Poelt*",2]
["Physconia subpallida Essl.*",2]
["Punctelia rudecta (Ach.) Krog",1]
["Stereocaulon saxatile H. Magn.*",2]
["Tuckermannopsis ciliaris (ach.) Gyelnik*",2]
["Usnea pensylvanica Motyka*",2]
["Usnea strigosa (Ach.) Eaton*",2]
["Usnea subfloridana Stirton*",2]
["Xanthomendoza hasseana (Rasanen) Sochting, Karnefelt & S. Kondr.*",2]
["Xanthomendoza weberi (S. Kondr. & Karnefelt) L. Lindblom",1]

{"sheet":"ATHENS","index":5,"n_rows":56,"n_cols":2,"rows_kept":56,"cut":false,"hidden":false,"merged":[]}
["Lichen Taxa --ATHENS","Athens"]
["Anaptychia palmulata (Michaux) Vainio",1]
["Candelaria concolor (Dickson) Stein",1]
["Canoparmelia crozalsiana (de Lesd. ex Harm.) Elix & Hale",1]
["Cladonia apodocarpa Robb.*",2]
["Cladonia cervicornis (Hoffm.) Ahti",1]
["Cladonia chlorophaea (Florke ex Sommerf.) Sprengel*",2]
["Cladonia coniocraea (Florke) Sprengel",1]
["Cladonia cristatella Tuck.",1]
["Cladonia cylindrica (A. Evans) A. Evans*",2]
["Cladonia furcata (Hudson) Schrader",1]
["Cladonia grayi G. Merr. ex Sandst.*",2]
["Cladonia macilenta Hoffm.",1]
["Cladonia peziziformis (With.) J. R. Laundon",1]
["Cladonia sobolescens Nyl. ex Vainio",1]
["Cladonia squamosa Hoffm.",1]
["Cladonia strepsilis (Ach.) Grognot*",2]
["Cladonia subtenuis (Abbayes) Mattick",1]
["Coccocarpia palmicola (Sprengel) Arv. & D. J. Galloway",1]
["Dermatocarpon luridum (With.) J. R. Laundon*",2]
["Dibaeis absoluta (Tuck.) Kalb & Gierl",1]
["Dibaeis baeomyces (L. f.) Rambold & Hertel",1]
["Flavoparmelia baltimorensis (Gyelnik & Foriss) Hale",1]
["Flavoparmelia caperata (L.) Hale",1]
["Flavopunctelia flaventior (Stirton) Hale",1]
["Heterodermia granulifera (Ach.) Culb.*",2]
["Heterodermia obscurata (Nyl.) Trevisan",1]
["Heterodermia speciosa (Wulfen) Trevisan",1]
["Hyperphyscia syncolla (Tuck. ex Nyl.) Kalb",1]
["Hypogymnia physodes (Nyl.) Nyl.",1]
["Hypotrachyna livida (Taylor) Hale",1]
["Imshaugia aleurites (Ach.) S. F. Meyer",1]
["Melanelixia subaurifera (Nyl.) O. Blanco et al.",1]
["Melanohalia exasperata (De Not.) O. Blanco et al.",1]
["Myelochroa aurulenta (Tuck.) Elix & Hale",1]
["Myelochroa galbina (Ach.) Elix & Hale",1]
["Parmelia squarrosa Hale*",2]
["Parmelia sulcata Taylor",1]
["Parmelinopsis minarum (Vainio) Elix & Hale",1]
["Parmotrema hypotropum (Nyl.) Hale",1]
["Peltigera canina (L.) Willd.",1]
["Phaeophyscia rubropulchra (Degel.) Essl.",1]
["Physcia adscendens (Fr.) H. Oliver",1]
["Physcia aipolia (Ehrh. ex Humb.) Furnr.*",2]
["Physcia americana G. Merr.",1]
["Physcia millegrana Degel.",1]
["Physcia stellaris (L.) Nyl.",1]
["Placidium aboretum (Schwein. ex Michener) Lendemer",1]
["Punctelia bolliana (Mull. Arg.) Krog",1]
["Punctelia rudecta (Ach.) Krog",1]
["Punctelia subrudecta (Nyl.) Krog*",2]
["Pyxine sorediata (Ach.) Mont",1]
["Pyxine subcinerea Stirton",1]
["Ramalina farinacea (L.) Ach.",1]
["Usnea strigosa (Ach.) Eaton",1]
["Xanthomendoza fallax (Hepp ex Arnold) Sochting, Karnfelt & S. Kondr.",1]

{"sheet":"AUGLAIZE","index":6,"n_rows":32,"n_cols":2,"rows_kept":32,"cut":false,"hidden":false,"merged":[]}
["Lichen Taxa --AUGLAIZE","Auglaize"]
["Candelaria concolor (Dickson) Stein*",2]
["Canoparmelia crozalsiana (de Lesd. ex Harm.) Elix & Hale*",2]
["Cladonia coniocraea (Florke) Sprengel*",2]
["Cladonia fimbriata (L.) Fr.*",2]
["Cladonia peziziformis (With.) J. R. Laundon*",2]
["Cladonia polycarpoides Nyl.*",2]
["Cladonia pyxidata (L.) Hoffm.*",2]
["Cladonia rei Schaerer*",2]
["Flavoparmelia caperata (L.) Hale*",2]
["Flavopunctelia flaventior (Stirton) Hale*",2]
["Lobaria quercizans Michaux*",2]
["Myelochroa aurulenta (Tuck.) Elix & Hale*",2]
["Parmelia sulcata Taylor*",2]
["Parmotrema hypotropum (Nyl.) Hale*",2]
["Phaeophyscia ciliata (Hoffm.) Moberg*",2]
["Phaeophyscia hirtella Essl.",1]
["Phaeophyscia rubropulchra (Degel.) Essl.",1]
["Physcia adscendens (Fr.) H. Oliver",1]
["Physcia aipolia (Ehrh. ex Humb.) Furnr.*",2]
["Physcia americana G. Merr.*",2]
["Physcia millegrana Degel.*",2]
["Physcia stellaris (L.) Nyl.*",2]
["Physconia detersa (Nyl.) Poelt",1]
["Punctelia borreri (Sm.) Krog*",2]
["Punctelia missouriensis G. Wilh. & Ladd*",2]
["Punctelia rudecta (Ach.) Krog*",2]
["Punctelia subrudecta (Nyl.) Krog*",2]
["Pyxine sorediata (Ach.) Mont*",2]
["Pyxine subcinerea Stirton*",2]
["Xanthomendoza fallax (Hepp ex Arnold) Sochting, Karnfelt & S. Kondr.*",2]
["Xanthomendoza ulophyllodes (Rasanen) Sochting, Karnefelt & S. Kondr.*",2]

{"sheet":"BELMONT","index":7,"n_rows":36,"n_cols":2,"rows_kept":36,"cut":false,"hidden":false,"merged":[]}
["Lichen Taxa --BELMONT","Belmont"]
["Allocetraria oakesiana (Tuck.) Randlane & Thell",1]
["Anaptychia palmulata (Michaux) Vainio*",2]
["Candelaria concolor (Dickson) Stein*",2]
["Cladonia arbuscula (Wallr.) Flotow",1]
["Cladonia caespiticia (Pers.) Florke*",2]
["Cladonia coniocraea (Florke) Sprengel",1]
["Cladonia furcata (Hudson) Schrader",1]
["Cladonia parasitica (Hoffm.) Hoffm.*",2]
["Cladonia rangiferina (L.) F. H. Wigg. ",1]
["Cladonia sobolescens Nyl. ex Vainio*",2]
["Cladonia squamosa Hoffm.*",2]
["Cladonia subtenuis (Abbayes) Mattick",1]
["Evernia mesomorpha Nyl.",1]
["Flavoparmelia baltimorensis (Gyelnik & Foriss) Hale",1]
["Flavoparmelia caperata (L.) Hale*",2]
["Heterodermia obscurata (Nyl.) Trevisan*",2]
["Hypogymnia physodes (Nyl.) Nyl.",1]
["Melanelixia subaurifera (Nyl.) O. Blanco et al.*",2]
["Myelochroa aurulenta (Tuck.) Elix & Hale*",2]
["Parmelia sulcata Taylor*",2]
["Parmelinopsis minarum (Vainio) Elix & Hale",1]
["Parmotrema hypotropum (Nyl.) Hale",1]
["Parmotrema stuppeum (Taylor) Hale",1]
["Peltigera aphthosa (L.) Willd.*",2]
["Phaeophyscia rubropulchra (Degel.) Essl.",1]
["Physcia millegrana Degel.*",2]
["Physcia stellaris (L.) Nyl.*",2]
["Punctelia bolliana (Mull. Arg.) Krog*",2]
["Punctelia borreri (Sm.) Krog*",2]
["Punctelia rudecta (Ach.) Krog*",2]
["Punctelia subrudecta (Nyl.) Krog*",2]
["Pyxine sorediata (Ach.) Mont*",2]
["Ramalina intermedia (Delise ex Nyl.) Nyl.",1]
["Umbilicaria mammulata (Ach.) Tuck.",1]
["Xanthomendoza ulophyllodes (Rasanen) Sochting, Karnefelt & S. Kondr.*",2]

{"sheet":"BROWN","index":8,"n_rows":64,"n_cols":2,"rows_kept":64,"cut":false,"hidden":false,"merged":[]}
["Lichen Taxa --BROWN","Brown"]
["Candelaria concolor (Dickson) Stein",1]
["Canomaculina subtinctoria (Zahlbr.) Elix*",2]
["Canoparmelia crozalsiana (de Lesd. ex Harm.) Elix & Hale",1]
["Cladonia apodocarpa Robb.*",2]
["Cladonia cervicornis (Hoffm.) Ahti*",2]
["Cladonia coniocraea (Florke) Sprengel*",2]
["Cladonia cristatella Tuck.*",2]
["Cladonia cylindrica (A. Evans) A. Evans*",2]
["Cladonia furcata (Hudson) Schrader*",2]
["Cladonia grayi G. Merr. ex Sandst.*",2]
["Cladonia macilenta Hoffm.*",2]
["Cladonia peziziformis (With.) J. R. Laundon*",2]
["Cladonia piedmontensis G. Merr.*",2]
["Cladonia polycarpoides Nyl.*",2]
["Cladonia ramulosa (With.) J. R. Laundon*",2]
["Cladonia rangiferina (L.) F. H. Wigg.*",2]
["Cladonia rei Schaerer*",2]
["Cladonia sobolescens Nyl. ex Vainio*",2]
["Cladonia strepsilis (Ach.) Grognot*",2]
["Cladonia subtenuis (Abbayes) Mattick*",2]
["Flavoparmelia caperata (L.) Hale",1]
["Flavopunctelia soredica (Nyl.) Hale",1]
["Heterodermia granulifera (Ach.) Culb.*",2]
["Heterodermia obscurata (Nyl.) Trevisan",1]
["Hyperphyscia syncolla (Tuck. ex Nyl.) Kalb",1]
["Hypotrachyna livida (Taylor) Hale",1]
["Leptogium cyanescens (Rabenh.) Korber*",2]
["Leptogium dactylinum Tuck.*",2]
["Leptogium juniperinum Tuck.*",2]
["Myelochroa aurulenta (Tuck.) Elix & Hale",1]
["Parmelia squarrosa Hale",1]
["Parmelia sulcata Taylor",1]
["Parmelinopsis minarum (Vainio) Elix & Hale",1]
["Parmotrema crinitum (Ach.) Choisy*",2]
["Parmotrema hypotropum (Nyl.) Hale",1]
["Parmotrema reticulatum (Taylor) M. Choisy",1]
["Parmotrema stuppeum (Taylor) Hale",1]
["Parmotrema submarginale (Michaux.) DePriest & B. Hale",1]
["Peltigera canina (L.) Willd.*",2]
["Peltigera didactyla (With.) J. R. Laundon*",2]
["Peltigera polydactylon (Necker) Hoffm.*",2]
["Peltigera praetextata (Florke ex Sommerf.) Zopf*",2]
["Phaeophyscia adiastola (Essl.) Essl.",1]
["Phaeophyscia ciliata (Hoffm.) Moberg*",2]
["Phaeophyscia hirsuta (Mereschk.) Essl.",1]
["Phaeophyscia hirtella Essl.",1]
["Phaeophyscia rubropulchra (Degel.) Essl.",1]
["Physcia aipolia (Ehrh. ex Humb.) Furnr.*",2]
["Physcia americana G. Merr.",1]
["Physcia millegrana Degel.",1]
["Physcia stellaris (L.) Nyl.",1]
["Physciella chloantha (Ach.) Essl.",1]
["Physconia detersa (Nyl.) Poelt*",2]
["Punctelia bolliana (Mull. Arg.) Krog",1]
["Punctelia borreri (Sm.) Krog*",2]
["Punctelia missouriensis G. Wilh. & Ladd*",2]
["Punctelia rudecta (Ach.) Krog",1]
["Pycnothelia papillaria Durfour*",2]
["Pyxine sorediata (Ach.) Mont",1]
["Pyxine subcinerea Stirton",1]
["Ramalina americana Hale*",2]
["Usnea ceratina Ach.*",2]
["Xanthomendoza fallax (Hepp ex Arnold) Sochting, Karnfelt & S. Kondr.",1]

{"sheet":"BUTLER","index":9,"n_rows":81,"n_cols":2,"rows_kept":81,"cut":false,"hidden":false,"merged":[]}
["Lichen Taxa --BUTLER","Butler"]
["Anaptychia palmulata (Michaux) Vainio*",2]
["Candelaria concolor (Dickson) Stein",1]
["Candelaria fibrosa (Fr.) Mull. Arg.*",2]
["Canoparmelia crozalsiana (de Lesd. ex Harm.) Elix & Hale",1]
["Cladonia apodocarpa Robb.*",2]
["Cladonia arbuscula (Wallr.) Flotow",1]
["Cladonia caespiticia (Pers.) Florke*",2]
["Cladonia cervicornis (Hoffm.) Ahti*",2]
["Cladonia coniocraea (Florke) Sprengel*",2]
["Cladonia cristatella Tuck.*",2]
["Cladonia cryptochlorophaea Asah.*",2]
["Cladonia cylindrica (A. Evans) A. Evans*",2]
["Cladonia fimbriata (L.) Fr.*",2]
["Cladonia furcata (Hudson) Schrader",1]
["Cladonia grayi G. Merr. ex Sandst.*",2]
["Cladonia humilis (With.) J. R. Laundon*",2]
["Cladonia macilenta Hoffm.*",2]
["Cladonia parasitica (Hoffm.) Hoffm.*",2]
["Cladonia peziziformis (With.) J. R. Laundon",1]
["Cladonia polycarpoides Nyl.*",2]
["Cladonia pyxidata (L.) Hoffm.*",2]
["Cladonia sobolescens Nyl. ex Vainio*",2]
["Flavoparmelia caperata (L.) Hale",1]
["Flavopunctelia flaventior (Stirton) Hale",1]
["Heterodermia obscurata (Nyl.) Trevisan*",2]
["Heterodermia speciosa (Wulfen) Trevisan",1]
["Hyperphyscia adglutinata (Florke) H. Mayrh. & Poelt*",2]
["Hyperphyscia syncolla (Tuck. ex Nyl.) Kalb*",2]
["Hypotrachyna livida (Taylor) Hale",1]
["Leptogium corticola (Taylor) Tuck.*",2]
["Leptogium cyanescens (Rabenh.) Korber*",2]
["Leptogium lichenoides (L.) Zahlbr.*",2]
["Leptogium tenuissimum (Dichson) Korber*",2]
["Lobaria pulmonaria (L.) Hoffm.*",2]
["Lobaria quercizans Michaux*",2]
["Myelochroa aurulenta (Tuck.) Elix & Hale",1]
["Myelochroa galbina (Ach.) Elix & Hale*",2]
["Nephroma helveticum Ach.*",2]
["Parmelia sulcata Taylor",1]
["Parmotrema crinitum (Ach.) Choisy*",2]
["Parmotrema hypotropum (Nyl.) Hale*",2]
["Parmotrema margaritatum (Hue) Hale*",2]
["Parmotrema perforatum (Jacq.) A. Massal.*",2]
["Parmotrema reticulatum (Taylor) M. Choisy*",2]
["Parmotrema stuppeum (Taylor) Hale",1]
["Peltigera canina (L.) Willd.*",2]
["Peltigera didactyla (With.) J. R. Laundon*",2]
["Peltigera horizontalis (Hudson) Baumg.*",2]
["Peltigera polydactylon (Necker) Hoffm.*",2]
["Peltigera praetextata (Florke ex Sommerf.) Zopf*",2]
["Phaeophyscia adiastola (Essl.) Essl.",1]
["Phaeophyscia ciliata (Hoffm.) Moberg*",2]
["Phaeophyscia hirsuta (Mereschk.) Essl.",1]
["Phaeophyscia hirtella Essl.",1]
["Phaeophyscia pusilloides (Zahlbr.) Essl.",1]
["Phaeophyscia rubropulchra (Degel.) Essl.",1]
["Phaeophyscia squarrosa Kashiwadani*",2]
["Physcia adscendens (Fr.) H. Oliver*",2]
["Physcia aipolia (Ehrh. ex Humb.) Furnr.*",2]
["Physcia americana G. Merr.",1]
["Physcia millegrana Degel.",1]
["Physcia stellaris (L.) Nyl.",1]
["Physconia detersa (Nyl.) Poelt*",2]
["Physconia leucoleiptes (Tuck.) Essl.",1]
["Physconia subpallida Essl.*",2]
["Placidium aboretum (Schwein. ex Michener) Lendemer*",2]
["Placidium squamulosum (Ach.) Breuss",1]
["Punctelia bolliana (Mull. Arg.) Krog",1]
["Punctelia borreri (Sm.) Krog",1]
["Punctelia rudecta (Ach.) Krog",1]
["Punctelia subrudecta (Nyl.) Krog",1]
["Pyxine sorediata (Ach.) Mont",1]
["Pyxine subcinerea Stirton",1]
["Ramalina celastri (Sprengel) Krog & Swinscow*",2]
["Ramalina farinacea (L.) Ach.*",2]
["Usnea mutabilis Stirton*",2]
["Usnea strigosa (Ach.) Eaton*",2]
["Xanthomendoza fallax (Hepp ex Arnold) Sochting, Karnfelt & S. Kondr.*",2]
["Xanthomendoza ulophyllodes (Rasanen) Sochting, Karnefelt & S. Kondr.*",2]
["Xanthomendoza weberi (S. Kondr. & Karnefelt) L. Lindblom",1]

{"sheet":"CARROL","index":10,"n_rows":28,"n_cols":2,"rows_kept":28,"cut":false,"hidden":false,"merged":[]}
["Lichen Taxa --CARROL","Carroll"]
["Cladonia apodocarpa Robb.*",2]
["Cladonia chlorophaea (Florke ex Sommerf.) Sprengel*",2]
["Cladonia coniocraea (Florke) Sprengel*",2]
["Cladonia cristatella Tuck.*",2]
["Cladonia cryptochlorophaea Asah.*",2]
["Cladonia furcata (Hudson) Schrader*",2]
["Cladonia grayi G. Merr. ex Sandst.*",2]
["Cladonia humilis (With.) J. R. Laundon*",2]
["Cladonia macilenta Hoffm.*",2]
["Cladonia polycarpoides Nyl.*",2]
["Cladonia rei Schaerer*",2]
["Cladonia squamosa Hoffm.*",2]
["Cladonia strepsilis (Ach.) Grognot ",1]
["Flavoparmelia caperata (L.) Hale*",2]
["Heterodermia granulifera (Ach.) Culb.*",2]
["Melanelixia subaurifera (Nyl.) O. Blanco et al.*",2]
["Parmelia sulcata Taylor*",2]
["Peltigera didactyla (With.) J. R. Laundon*",2]
["Phaeophyscia adiastola (Essl.) Essl.",1]
["Phaeophyscia rubropulchra (Degel.) Essl.",1]
["Physcia aipolia (Ehrh. ex Humb.) Furnr.",1]
["Physcia millegrana Degel.*",2]
["Punctelia borreri (Sm.) Krog*",2]
["Punctelia missouriensis G. Wilh. & Ladd*",2]
["Punctelia rudecta (Ach.) Krog*",2]
["Xanthoparmelia plittii (Gyelnik) Hale*",2]
["Xanthoparmelia subramigera (Gyelnik) Hale*",2]

{"sheet":"CHAMPAIGN","index":11,"n_rows":61,"n_cols":2,"rows_kept":61,"cut":false,"hidden":false,"merged":[]}
["Lichen Taxa --CHAMPAIGN","Champaign"]
["Candelaria concolor (Dickson) Stein",1]
["Cladonia coniocraea (Florke) Sprengel",1]
["Cladonia macilenta Hoffm.",1]
["Cladonia peziziformis (With.) J. R. Laundon",1]
["Flavoparmelia caperata (L.) Hale",1]
["Flavopunctelia flaventior (Stirton) Hale",1]
["Melanelixia subaurifera (Nyl.) O. Blanco et al.",1]
["Myelochroa aurulenta (Tuck.) Elix & Hale",1]
["Myelochroa galbina (Ach.) Elix & Hale",1]
["Parmelia sulcata Taylor",1]
["Parmotrema hypotropum (Nyl.) Hale",1]
["Parmotrema stuppeum (Taylor) Hale",1]
["Phaeophyscia adiastola (Essl.) Essl.",1]
["Phaeophyscia hirtella Essl.",1]
["Phaeophyscia rubropulchra (Degel.) Essl.",1]
["Physcia adscendens (Fr.) H. Oliver",1]
["Physcia aipolia (Ehrh. ex Humb.) Furnr.",1]
["Physcia americana G. Merr.",1]
["Physcia millegrana Degel.",1]
["Physcia stellaris (L.) Nyl.",1]
["Punctelia missouriensis G. Wilh. & Ladd",1]
["Punctelia rudecta (Ach.) Krog",1]
["Xanthomendoza fallax (Hepp ex Arnold) Sochting, Karnfelt & S. Kondr.",1]
["Cetrelia olivetorum (Nyl.) Culb. & C. Culb.*",2]
["Cladonia caroliniana Tuck.*",2]
["Cladonia cervicornis (Hoffm.) Ahti*",2]
["Cladonia cristatella Tuck.*",2]
["Cladonia cryptochlorophaea Asah.*",2]
["Cladonia cylindrica (A. Evans) A. Evans*",2]
["Cladonia fimbriata (L.) Fr.*",2]
["Cladonia furcata (Hudson) Schrader*",2]
["Cladonia grayi G. Merr. ex Sandst.*",2]
["Cladonia polycarpoides Nyl.*",2]
["Cladonia rei Schaerer*",2]
["Collema conglomeratum Hoffm.*",2]
["Flavopunctelia soredica (Nyl.) Hale*",2]
["Heterodermia echinata (Taylor) Culb.*",2]
["Heterodermia leucomela (L.) Poelt*",2]
["Heterodermia speciosa (Wulfen) Trevisan*",2]
["Leptogium austroamericanum (Malme) C. W. Dodge*",2]
["Leptogium aburnetiae C. W. Dodge*",2]
["Leptogium corticola (Taylor) Tuck.*",2]
["Lobaria pulmonaria (L.) Hoffm.*",2]
["Nephroma helveticum Ach.*",2]
["Pannaria lurida (Mont.) Nyl.*",2]
["Parmelia squarrosa Hale*",2]
["Parmelinopsis minarum (Vainio) Elix & Hale*",2]
["Parmotrema cetratum (Ach.) Hale*",2]
["Parmotrema perforatum (Jacq.) A. Massal.*",2]
["Parmotrema reticulatum (Taylor) M. Choisy*",2]
["Peltigera polydactylon (Necker) Hoffm.*",2]
["Phaeophyscia ciliata (Hoffm.) Moberg*",2]
["Physconia detersa (Nyl.) Poelt*",2]
["Punctelia bolliana (Mull. Arg.) Krog*",2]
["Punctelia borreri (Sm.) Krog*",2]
["Pyxine sorediata (Ach.) Mont*",2]
["Usnea angulata (Ach.)*",2]
["Usnea ceratina Ach.*",2]
["Usnea pensylvanica Motyka*",2]
["Xanthomendoza ulophyllodes (Rasanen) Sochting, Karnefelt & S. Kondr.*",2]

{"sheet":"CLARK","index":12,"n_rows":67,"n_cols":2,"rows_kept":67,"cut":false,"hidden":false,"merged":[]}
["Lichen Taxa --CLARK","Clark"]
["Anaptychia palmulata (Michaux) Vainio*",2]
["Anzia colpodes (Ach.) Stizenb.*",2]
["Candelaria concolor (Dickson) Stein*",2]
["Candelaria fibrosa (Fr.) Mull. Arg.*",2]
["Canoparmelia crozalsiana (de Lesd. ex Harm.) Elix & Hale*",2]
["Cetrelia olivetorum (Nyl.) Culb. & C. Culb.*",2]
["Cladonia cryptochlorophaea Asah.*",2]
["Cladonia macilenta Hoffm.*",2]
["Cladonia parasitica (Hoffm.) Hoffm.*",2]
["Cladonia peziziformis (With.) J. R. Laundon*",2]
["Cladonia piedmontensis G. Merr.*",2]
["Cladonia rangiferina (L.) F. H. Wigg.*",2]
["Cladonia squamosa Hoffm.*",2]
["Collema bachmanianum (Fink) Degel.*",2]
["Collema conglomeratum Hoffm.*",2]
["Collema nigrescens (Hudson) DC.*",2]
["Collema tenax (Sw.) Ach.*",2]
["Dermatocarpon miniatum (L.) W. Mann*",2]
["Flavoparmelia caperata (L.) Hale*",2]
["Heterodermia echinata (Taylor) Culb.*",2]
["Heterodermia granulifera (Ach.) Culb.*",2]
["Heterodermia hypoleuca (Ach.) Trevisan*",2]
["Heterodermia leucomela (L.) Poelt*",2]
["Heterodermia speciosa (Wulfen) Trevisan*",2]
["Hyperphyscia adglutinata (Florke) H. Mayrh. & Poelt*",2]
["Hyperphyscia syncolla (Tuck. ex Nyl.) Kalb*",2]
["Leptogium corticola (Taylor) Tuck.*",2]
["Leptogium lichenoides (L.) Zahlbr.*",2]
["Leptogium milligranum Sierk*",2]
["Lobaria pulmonaria (L.) Hoffm.*",2]
["Lobaria quercizans Michaux*",2]
["Menegazzia terebrata (Hoffm.) A. Massal.*",2]
["Myelochroa aurulenta (Tuck.) Elix & Hale*",2]
["Myelochroa galbina (Ach.) Elix & Hale*",2]
["Parmelia squarrosa Hale*",2]
["Parmelia sulcata Taylor*",2]
["Parmotrema cetratum (Ach.) Hale*",2]
["Parmotrema crinitum (Ach.) Choisy*",2]
["Parmotrema despectum Kurok.*",2]
["Parmotrema perforatum (Jacq.) A. Massal.*",2]
["Peltigera aphthosa (L.) Willd.*",2]
["Peltigera canina (L.) Willd.*",2]
["Peltigera polydactylon (Necker) Hoffm.*",2]
["Peltigera praetextata (Florke ex Sommerf.) Zopf*",2]
["Phaeophyscia ciliata (Hoffm.) Moberg*",2]
["Phaeophyscia hirtella Essl.",1]
["Physcia aipolia (Ehrh. ex Humb.) Furnr.",1]
["Physcia millegrana Degel.*",2]
["Physcia stellaris (L.) Nyl.*",2]
["Physconia detersa (Nyl.) Poelt*",2]
["Physconia subpallida Essl.*",2]
["Placidium squamulosum (Ach.) Breuss*",2]
["Punctelia bolliana (Mull. Arg.) Krog*",2]
["Punctelia borreri (Sm.) Krog*",2]
["Punctelia rudecta (Ach.) Krog*",2]
["Punctelia subrudecta (Nyl.) Krog*",2]
["Pyxine sorediata (Ach.) Mont*",2]
["Ramalina americana Hale*",2]
["Ramalina farinacea (L.) Ach.*",2]
["Tuckermannopsis ciliaris (ach.) Gyelnik*",2]
["Usnea pensylvanica Motyka*",2]
["Usnea strigosa (Ach.) Eaton*",2]
["Xanthomendoza fallax (Hepp ex Arnold) Sochting, Karnfelt & S. Kondr.*",2]
["Xanthomendoza hasseana (Rasanen) Sochting, Karnefelt & S. Kondr.*",2]
["Xanthomendoza ulophyllodes (Rasanen) Sochting, Karnefelt & S. Kondr.*",2]
["Xanthoparmelia conspersa (Ehrh. ex Ach.) Hale*",2]

{"sheet":"CLERMONT","index":13,"n_rows":60,"n_cols":2,"rows_kept":60,"cut":false,"hidden":false,"merged":[]}
["Lichen Taxa --CLERMONT","Clermont"]
["Anaptychia palmulata (Michaux) Vainio*",2]
["Candelaria concolor (Dickson) Stein",1]
["Canoparmelia crozalsiana (de Lesd. ex Harm.) Elix & Hale",1]
["Cladonia arbuscula (Wallr.) Flotow",1]
["Cladonia caespiticia (Pers.) Florke*",2]
["Cladonia cervicornis (Hoffm.) Ahti*",2]
["Cladonia coniocraea (Florke) Sprengel*",2]
["Cladonia cristatella Tuck.*",2]
["Cladonia cryptochlorophaea Asah.*",2]
["Cladonia cylindrica (A. Evans) A. Evans*",2]
["Cladonia furcata (Hudson) Schrader*",2]
["Cladonia grayi G. Merr. ex Sandst.*",2]
["Cladonia peziziformis (With.) J. R. Laundon*",2]
["Cladonia piedmontensis G. Merr.*",2]
["Cladonia polycarpoides Nyl.*",2]
["Cladonia pyxidata (L.) Hoffm.*",2]
["Cladonia sobolescens Nyl. ex Vainio*",2]
["Cladonia squamosa Hoffm.*",2]
["Cladonia subtenuis (Abbayes) Mattick*",2]
["Cladonia uncialis (L.) F. H. Wigg.*",2]
["Dermatocarpon luridum (With.) J. R. Laundon",1]
["Flavoparmelia caperata (L.) Hale",1]
["Flavopunctelia soredica (Nyl.) Hale",1]
["Heterodermia hypoleuca (Ach.) Trevisan",1]
["Heterodermia leucomela (L.) Poelt*",2]
["Heterodermia obscurata (Nyl.) Trevisan",1]
["Hypotrachyna livida (Taylor) Hale",1]
["Myelochroa aurulenta (Tuck.) Elix & Hale",1]
["Myelochroa galbina (Ach.) Elix & Hale*",2]
["Parmelia squarrosa Hale",1]
["Parmelia sulcata Taylor",1]
["Parmotrema austrosinense (Zahlbr.) Hale",1]
["Parmotrema cetratum (Ach.) Hale",1]
["Parmotrema hypotropum (Nyl.) Hale",1]
["Parmotrema perforatum (Jacq.) A. Massal.*",2]
["Parmotrema reticulatum (Taylor) M. Choisy*",2]
["Parmotrema stuppeum (Taylor) Hale",1]
["Parmotrema submarginale (Michaux.) DePriest & B. Hale",1]
["Peltigera canina (L.) Willd.*",2]
["Peltigera didactyla (With.) J. R. Laundon*",2]
["Peltigera praetextata (Florke ex Sommerf.) Zopf*",2]
["Phaeophyscia pusilloides (Zahlbr.) Essl.",1]
["Physcia aipolia (Ehrh. ex Humb.) Furnr.",1]
["Physcia americana G. Merr.",1]
["Physcia millegrana Degel.",1]
["Physcia stellaris (L.) Nyl.",1]
["Physconia detersa (Nyl.) Poelt",1]
["Punctelia bolliana (Mull. Arg.) Krog",1]
["Punctelia borreri (Sm.) Krog*",2]
["Punctelia missouriensis G. Wilh. & Ladd",1]
["Punctelia rudecta (Ach.) Krog",1]
["Punctelia subrudecta (Nyl.) Krog*",2]
["Pyxine sorediata (Ach.) Mont",1]
["Pyxine subcinerea Stirton",1]
["Ramalina americana Hale*",2]
["Tuckermannopsis ciliaris (ach.) Gyelnik*",2]
["Usnea mutabilis Stirton*",2]
["Xanthomendoza fallax (Hepp ex Arnold) Sochting, Karnfelt & S. Kondr.",1]
["Xanthomendoza ulophyllodes (Rasanen) Sochting, Karnefelt & S. Kondr.*",2]

{"sheet":"CLINTON","index":14,"n_rows":41,"n_cols":2,"rows_kept":41,"cut":false,"hidden":false,"merged":[]}
["Lichen Taxa --CLINTON","Clinton"]
["Candelaria concolor (Dickson) Stein*",2]
["Canoparmelia crozalsiana (de Lesd. ex Harm.) Elix & Hale*",2]
["Cladonia caespiticia (Pers.) Florke*",2]
["Cladonia cervicornis (Hoffm.) Ahti*",2]
["Cladonia coniocraea (Florke) Sprengel*",2]
["Cladonia cristatella Tuck.*",2]
["Cladonia cryptochlorophaea Asah.*",2]
["Cladonia cylindrica (A. Evans) A. Evans*",2]
["Cladonia fimbriata (L.) Fr.*",2]
["Cladonia furcata (Hudson) Schrader*",2]
["Cladonia humilis (With.) J. R. Laundon*",2]
["Cladonia peziziformis (With.) J. R. Laundon*",2]
["Cladonia polycarpoides Nyl.*",2]
["Cladonia squamosa Hoffm.*",2]
["Collema nigrescens (Hudson) DC.*",2]
["Collema subflaccidum Degel.*",2]
["Collema tenax (Sw.) Ach.*",2]
["Flavoparmelia caperata (L.) Hale*",2]
["Leptogium lichenoides (L.) Zahlbr.*",2]
["Leptogium tenuissimum (Dichson) Korber*",2]
["Myelochroa aurulenta (Tuck.) Elix & Hale*",2]
["Parmelia sulcata Taylor*",2]
["Parmotrema stuppeum (Taylor) Hale*",2]
["Peltigera canina (L.) Willd.*",2]
["Peltigera praetextata (Florke ex Sommerf.) Zopf*",2]
["Phaeophyscia ciliata (Hoffm.) Moberg*",2]
["Phaeophyscia hirsuta (Mereschk.) Essl.",1]
["Phaeophyscia rubropulchra (Degel.) Essl.",1]
["Physcia adscendens (Fr.) H. Oliver*",2]
["Physcia americana G. Merr.*",2]
["Physcia millegrana Degel.*",2]
["Physciella chloantha (Ach.) Essl.",1]
["Physconia detersa (Nyl.) Poelt*",2]
["Physconia leucoleiptes (Tuck.) Essl.*",2]
["Punctelia bolliana (Mull. Arg.) Krog*",2]
["Punctelia missouriensis G. Wilh. & Ladd*",2]
["Punctelia rudecta (Ach.) Krog*",2]
["Ramalina celastri (Sprengel) Krog & Swinscow*",2]
["Xanthomendoza fallax (Hepp ex Arnold) Sochting, Karnfelt & S. Kondr.*",2]
["Xanthomendoza ulophyllodes (Rasanen) Sochting, Karnefelt & S. Kondr.*",2]

{"sheet":"COLUMBIANA","index":15,"n_rows":23,"n_cols":2,"rows_kept":23,"cut":false,"hidden":false,"merged":[]}
["Lichen Taxa --COLUMBIANA","Columbiana"]
["Cladonia caespiticia (Pers.) Florke*",2]
["Cladonia cervicornis (Hoffm.) Ahti*",2]
["Cladonia coniocraea (Florke) Sprengel*",2]
["Cladonia cristatella Tuck.*",2]
["Cladonia cryptochlorophaea Asah.*",2]
["Cladonia grayi G. Merr. ex Sandst.*",2]
["Cladonia macilenta Hoffm.*",2]
["Cladonia parasitica (Hoffm.) Hoffm.*",2]
["Cladonia peziziformis (With.) J. R. Laundon*",2]
["Cladonia pleurota (Florke) Schaerer*",2]
["Cladonia polycarpoides Nyl.*",2]
["Cladonia pyxidata (L.) Hoffm.*",2]
["Cladonia squamosa Hoffm.*",2]
["Cladonia uncialis (L.) F. H. Wigg.*",2]
["Imshaugia aleurites (Ach.) S. F. Meyer*",2]
["Myelochroa aurulenta (Tuck.) Elix & Hale*",2]
["Parmelia squarrosa Hale*",2]
["Parmelia sulcata Taylor*",2]
["Physcia millegrana Degel.*",2]
["Punctelia borreri (Sm.) Krog*",2]
["Punctelia rudecta (Ach.) Krog*",2]
["Punctelia subrudecta (Nyl.) Krog*",2]

{"sheet":"COSHOCTON","index":16,"n_rows":38,"n_cols":2,"rows_kept":38,"cut":false,"hidden":false,"merged":[]}
["Lichen Taxa --COSHOCTON","Coshocton"]
["Anaptychia palmulata (Michaux) Vainio*",2]
["Cladonia cervicornis (Hoffm.) Ahti*",2]
["Cladonia chlorophaea (Florke ex Sommerf.) Sprengel*",2]
["Cladonia coniocraea (Florke) Sprengel*",2]
["Cladonia cristatella Tuck.*",2]
["Cladonia cylindrica (A. Evans) A. Evans*",2]
["Cladonia furcata (Hudson) Schrader*",2]
["Cladonia grayi G. Merr. ex Sandst.*",2]
["Cladonia humilis (With.) J. R. Laundon*",2]
["Cladonia macilenta Hoffm.*",2]
["Cladonia peziziformis (With.) J. R. Laundon*",2]
["Cladonia pleurota (Florke) Schaerer*",2]
["Cladonia polycarpoides Nyl.*",2]
["Cladonia rangiferina (L.) F. H. Wigg.*",2]
["Cladonia squamosa Hoffm.*",2]
["Cladonia subtenuis (Abbayes) Mattick*",2]
["Flavoparmelia caperata (L.) Hale",1]
["Flavopunctelia flaventior (Stirton) Hale",1]
["Heterodermia speciosa (Wulfen) Trevisan",1]
["Hypotrachyna livida (Taylor) Hale*",2]
["Leptogium lichenoides (L.) Zahlbr.*",2]
["Myelochroa aurulenta (Tuck.) Elix & Hale*",2]
["Myelochroa galbina (Ach.) Elix & Hale*",2]
["Parmelia sulcata Taylor*",2]
["Peltigera canina (L.) Willd.*",2]
["Phaeophyscia adiastola (Essl.) Essl.",1]
["Phaeophyscia rubropulchra (Degel.) Essl.",1]
["Physcia adscendens (Fr.) H. Oliver",1]
["Physcia americana G. Merr.*",2]
["Physcia millegrana Degel.",1]
["Physcia phaea (Tuck.) J. W. Thomson",1]
["Physconia detersa (Nyl.) Poelt*",2]
["Punctelia rudecta (Ach.) Krog*",2]
["Punctelia subrudecta (Nyl.) Krog",1]
["Pyxine sorediata (Ach.) Mont*",2]
["Xanthoparmelia plittii (Gyelnik) Hale*",2]
["Xanthoparmelia subramigera (Gyelnik) Hale*",2]

{"sheet":"CRAWFORD","index":17,"n_rows":44,"n_cols":2,"rows_kept":44,"cut":false,"hidden":false,"merged":[]}
["Lichen Taxa --CRAWFORD","Crawford"]
["Candelaria concolor (Dickson) Stein",1]
["Canoparmelia crozalsiana (de Lesd. ex Harm.) Elix & Hale",1]
["Cladonia cervicornis (Hoffm.) Ahti*",2]
["Cladonia cryptochlorophaea Asah.*",2]
["Cladonia fimbriata (L.) Fr.*",2]
["Cladonia macilenta Hoffm.",1]
["Cladonia peziziformis (With.) J. R. Laundon*",2]
["Cladonia polycarpoides Nyl.*",2]
["Cladonia rei Schaerer*",2]
["Flavoparmelia caperata (L.) Hale",1]
["Flavopunctelia flaventior (Stirton) Hale",1]
["Flavopunctelia soredica (Nyl.) Hale",1]
["Hyperphyscia adglutinata (Florke) H. Mayrh. & Poelt",1]
["Hyperphyscia syncolla (Tuck. ex Nyl.) Kalb",1]
["Leptogium cyanescens (Rabenh.) Korber",1]
["Lobaria pulmonaria (L.) Hoffm.*",2]
["Myelochroa aurulenta (Tuck.) Elix & Hale",1]
["Parmelia sulcata Taylor",1]
["Parmotrema hypotropum (Nyl.) Hale",1]
["Parmotrema reticulatum (Taylor) M. Choisy",1]
["Parmotrema stuppeum (Taylor) Hale",1]
["Peltigera canina (L.) Willd.*",2]
["Phaeophyscia adiastola (Essl.) Essl.",1]
["Phaeophyscia ciliata (Hoffm.) Moberg*",2]
["Phaeophyscia hirtella Essl.",1]
["Phaeophyscia pusilloides (Zahlbr.) Essl.",1]
["Phaeophyscia rubropulchra (Degel.) Essl.",1]
["Physcia adscendens (Fr.) H. Oliver",1]
["Physcia millegrana Degel.",1]
["Physcia phaea (Tuck.) J. W. Thomson",1]
["Physcia stellaris (L.) Nyl.",1]
["Physciella chloantha (Ach.) Essl.",1]
["Physciella melanchra (Hue) Essl.",1]
["Physconia detersa (Nyl.) Poelt",1]
["Physconia enteroxantha (Nyl.) Poelt",1]
["Punctelia bolliana (Mull. Arg.) Krog",1]
["Punctelia borreri (Sm.) Krog*",2]
["Punctelia missouriensis G. Wilh. & Ladd",1]
["Punctelia rudecta (Ach.) Krog",1]
["Punctelia subrudecta (Nyl.) Krog",1]
["Xanthomendoza fallax (Hepp ex Arnold) Sochting, Karnfelt & S. Kondr.",1]
["Xanthomendoza ulophyllodes (Rasanen) Sochting, Karnefelt & S. Kondr.*",2]
["Xanthomendoza weberi (S. Kondr. & Karnefelt) L. Lindblom",1]

{"sheet":"CUYAHOGA","index":18,"n_rows":75,"n_cols":2,"rows_kept":75,"cut":false,"hidden":false,"merged":[]}
["Lichen Taxa --CUYAHOGA","Cuyahoga"]
["Ahtiana aurescens (Tuck.) Thell & Randlane*",2]
["Anaptychia palmulata (Michaux) Vainio*",2]
["Bryoria furcellata (Fr.) Brodo & Hawksw.*",2]
["Candelaria concolor (Dickson) Stein*",2]
["Candelaria fibrosa (Fr.) Mull. Arg.*",2]
["Canomaculina subtinctoria (Zahlbr.) Elix*",2]
["Cetraria arenaria Karnefelt*",2]
["Cladonia arbuscula (Wallr.) Flotow*",2]
["Cladonia caespiticia (Pers.) Florke*",2]
["Cladonia cervicornis (Hoffm.) Ahti*",2]
["Cladonia coniocraea (Florke) Sprengel",1]
["Cladonia cristatella Tuck.*",2]
["Cladonia cryptochlorophaea Asah.*",2]
["Cladonia fimbriata (L.) Fr.*",2]
["Cladonia furcata (Hudson) Schrader*",2]
["Cladonia grayi G. Merr. ex Sandst.*",2]
["Cladonia humilis (With.) J. R. Laundon*",2]
["Cladonia macilenta Hoffm.*",2]
["Cladonia parasitica (Hoffm.) Hoffm.*",2]
["Cladonia peziziformis (With.) J. R. Laundon*",2]
["Cladonia pyxidata (L.) Hoffm.*",2]
["Cladonia rangiferina (L.) F. H. Wigg.*",2]
["Cladonia rei Schaerer*",2]
["Cladonia squamosa Hoffm.*",2]
["Collema subflaccidum Degel.*",2]
["Dermatocarpon miniatum (L.) W. Mann*",2]
["Dibaeis baeomyces (L. f.) Rambold & Hertel*",2]
["Evernia mesomorpha Nyl.*",2]
["Flavoparmelia caperata (L.) Hale*",2]
["Heterodermia granulifera (Ach.) Culb.*",2]
["Heterodermia hypoleuca (Ach.) Trevisan*",2]
["Heterodermia obscurata (Nyl.) Trevisan*",2]
["Heterodermia speciosa (Wulfen) Trevisan*",2]
["Hyperphyscia adglutinata (Florke) H. Mayrh. & Poelt*",2]
["Hyperphyscia syncolla (Tuck. ex Nyl.) Kalb*",2]
["Hypogymnia physodes (Nyl.) Nyl.*",2]
["Hypotrachyna livida (Taylor) Hale*",2]
["Imshaugia aleurites (Ach.) S. F. Meyer*",2]
["Leptogium aburnetiae C. W. Dodge*",2]
["Leptogium corticola (Taylor) Tuck.*",2]
["Leptogium cyanescens (Rabenh.) Korber*",2]
["Leptogium dactylinum Tuck.*",2]
["Leptogium juniperinum Tuck.*",2]
["Leptogium lichenoides (L.) Zahlbr.*",2]
["Lobaria pulmonaria (L.) Hoffm.*",2]
["Lobaria quercizans Michaux*",2]
["Melanelixia subaurifera (Nyl.) O. Blanco et al.*",2]
["Myelochroa galbina (Ach.) Elix & Hale*",2]
["Parmelia squarrosa Hale*",2]
["Parmelia sulcata Taylor*",2]
["Parmotrema austrosinense (Zahlbr.) Hale*",2]
["Parmotrema chinense (Osbeck) Hale & Ahti*",2]
["Parmotrema margaritatum (Hue) Hale*",2]
["Peltigera canina (L.) Willd.*",2]
["Peltigera didactyla (With.) J. R. Laundon*",2]
["Peltigera horizontalis (Hudson) Baumg.*",2]
["Peltigera polydactylon (Necker) Hoffm.*",2]
["Phaeophyscia ciliata (Hoffm.) Moberg*",2]
["Physcia aipolia (Ehrh. ex Humb.) Furnr.*",2]
["Physcia americana G. Merr.*",2]
["Physcia millegrana Degel.*",2]
["Physcia stellaris (L.) Nyl.*",2]
["Platismatia tuckermanii (Rav. ex Mont.) Breuss*",2]
["Punctelia bolliana (Mull. Arg.) Krog*",2]
["Punctelia rudecta (Ach.) Krog*",2]
["Ramalina americana Hale*",2]
["Ramalina complanata (Sw.) Ach.*",2]
["Ramalina farinacea (L.) Ach.*",2]
["Ramalina intermedia (Delise ex Nyl.) Nyl.*",2]
["Ramalina pollinaria (Westr.) Ach.*",2]
["Stereocaulon saxatile H. Magn.*",2]
["Stereocaulon tomentosum Fr.*",2]
["Tuckermannopsis ciliaris (ach.) Gyelnik*",2]
["Xanthoparmelia plittii (Gyelnik) Hale*",2]

{"sheet":"DARKE","index":19,"n_rows":26,"n_cols":2,"rows_kept":26,"cut":false,"hidden":false,"merged":[]}
["Lichen Taxa --DARKE","Darke"]
["Candelaria concolor (Dickson) Stein*",2]
["Cladonia furcata (Hudson) Schrader",1]
["Flavoparmelia caperata (L.) Hale*",2]
["Flavopunctelia flaventior (Stirton) Hale",1]
["Flavopunctelia soredica (Nyl.) Hale",1]
["Hyperphyscia adglutinata (Florke) H. Mayrh. & Poelt",1]
["Myelochroa aurulenta (Tuck.) Elix & Hale",1]
["Parmelia sulcata Taylor",1]
["Parmotrema hypotropum (Nyl.) Hale",1]
["Phaeophyscia hirsuta (Mereschk.) Essl.",1]
["Phaeophyscia rubropulchra (Degel.) Essl.",1]
["Physcia adscendens (Fr.) H. Oliver",1]
["Physcia aipolia (Ehrh. ex Humb.) Furnr.*",2]
["Physcia millegrana Degel.*",2]
["Physcia stellaris (L.) Nyl.*",2]
["Physciella chloantha (Ach.) Essl.",1]
["Physciella melanchra (Hue) Essl.",1]
["Physconia detersa (Nyl.) Poelt*",2]
["Punctelia missouriensis G. Wilh. & Ladd",1]
["Punctelia rudecta (Ach.) Krog*",2]
["Punctelia subrudecta (Nyl.) Krog*",2]
["Ramalina complanata (Sw.) Ach.",1]
["Xanthomendoza fallax (Hepp ex Arnold) Sochting, Karnfelt & S. Kondr.",1]
["Xanthomendoza ulophyllodes (Rasanen) Sochting, Karnefelt & S. Kondr. ",1]
["Xanthomendoza weberi (S. Kondr. & Karnefelt) L. Lindblom",1]

{"sheet":"DEFIANCE","index":20,"n_rows":42,"n_cols":2,"rows_kept":42,"cut":false,"hidden":false,"merged":[]}
["Lichen Taxa --DEFIANCE","Defiance"]
["Candelaria concolor (Dickson) Stein",1]
["Cladonia apodocarpa Robb.*",2]
["Cladonia cervicornis (Hoffm.) Ahti*",2]
["Cladonia chlorophaea (Florke ex Sommerf.) Sprengel*",2]
["Cladonia coniocraea (Florke) Sprengel",1]
["Cladonia cristatella Tuck.",1]
["Cladonia furcata (Hudson) Schrader",1]
["Cladonia humilis (With.) J. R. Laundon*",2]
["Cladonia parasitica (Hoffm.) Hoffm.*",2]
["Cladonia peziziformis (With.) J. R. Laundon*",2]
["Cladonia polycarpoides Nyl.",1]
["Cladonia rei Schaerer",1]
["Flavoparmelia caperata (L.) Hale",1]
["Flavopunctelia flaventior (Stirton) Hale*",2]
["Heterodermia hypoleuca (Ach.) Trevisan*",2]
["Heterodermia obscurata (Nyl.) Trevisan",1]
["Hyperphyscia confusa Essl., C. A. Morse, & S. Leavitt",1]
["Myelochroa aurulenta (Tuck.) Elix & Hale",1]
["Parmelia sulcata Taylor",1]
["Parmotrema hypotropum (Nyl.) Hale",1]
["Peltigera canina (L.) Willd.",1]
["Phaeophyscia adiastola (Essl.) Essl.",1]
["Phaeophyscia hirtella Essl.",1]
["Phaeophyscia pusilloides (Zahlbr.) Essl.",1]
["Phaeophyscia rubropulchra (Degel.) Essl.",1]
["Physcia adscendens (Fr.) H. Oliver",1]
["Physcia aipolia (Ehrh. ex Humb.) Furnr.*",2]
["Physcia americana G. Merr.",1]
["Physcia millegrana Degel.",1]
["Physcia stellaris (L.) Nyl.",1]
["Physciella chloantha (Ach.) Essl.",1]
["Physciella melanchra (Hue) Essl.",1]
["Physconia detersa (Nyl.) Poelt",1]
["Physconia subpallida Essl.*",2]
["Punctelia bolliana (Mull. Arg.) Krog",1]
["Punctelia missouriensis G. Wilh. & Ladd",1]
["Punctelia rudecta (Ach.) Krog",1]
["Punctelia subrudecta (Nyl.) Krog",1]
["Xanthomendoza fallax (Hepp ex Arnold) Sochting, Karnfelt & S. Kondr.",1]
["Xanthomendoza ulophyllodes (Rasanen) Sochting, Karnefelt & S. Kondr. ",1]
["Xanthomendoza weberi (S. Kondr. & Karnefelt) L. Lindblom",1]

{"sheet":"DELAWARE","index":21,"n_rows":30,"n_cols":2,"rows_kept":30,"cut":false,"hidden":false,"merged":[]}
["Lichen Taxa --DELAWARE","Delaware"]
["Candelaria concolor (Dickson) Stein*",2]
["Cladonia cervicornis (Hoffm.) Ahti*",2]
["Cladonia furcata (Hudson) Schrader*",2]
["Cladonia peziziformis (With.) J. R. Laundon*",2]
["Cladonia polycarpoides Nyl.*",2]
["Cladonia subtenuis (Abbayes) Mattick*",2]
["Dermatocarpon miniatum (L.) W. Mann*",2]
["Flavoparmelia caperata (L.) Hale",1]
["Flavopunctelia soredica (Nyl.) Hale",1]
["Leptogium cyanescens (Rabenh.) Korber*",2]
["Lobaria pulmonaria (L.) Hoffm.*",2]
["Lobaria quercizans Michaux*",2]
["Myelochroa aurulenta (Tuck.) Elix & Hale",1]
["Myelochroa galbina (Ach.) Elix & Hale*",2]
["Parmelia sulcata Taylor",1]
["Peltigera canina (L.) Willd.",1]
["Phaeophyscia ciliata (Hoffm.) Moberg*",2]
["Phaeophyscia rubropulchra (Degel.) Essl.",1]
["Physcia aipolia (Ehrh. ex Humb.) Furnr.*",2]
["Physcia americana G. Merr.*",2]
["Physcia millegrana Degel.",1]
["Physcia stellaris (L.) Nyl.",1]
["Punctelia bolliana (Mull. Arg.) Krog*",2]
["Punctelia borreri (Sm.) Krog*",2]
["Punctelia rudecta (Ach.) Krog",1]
["Punctelia subrudecta (Nyl.) Krog*",2]
["Pyxine sorediata (Ach.) Mont*",2]
["Xanthomendoza fallax (Hepp ex Arnold) Sochting, Karnfelt & S. Kondr.",1]
["Xanthomendoza ulophyllodes (Rasanen) Sochting, Karnefelt & S. Kondr.*",2]

{"sheet":"ERIE","index":22,"n_rows":40,"n_cols":2,"rows_kept":40,"cut":false,"hidden":false,"merged":[]}
["Lichen Taxa --ERIE","Erie"]
["Candelaria concolor (Dickson) Stein*",2]
["Candelaria fibrosa (Fr.) Mull. Arg.*",2]
["Canoparmelia crozalsiana (de Lesd. ex Harm.) Elix & Hale",1]
["Cladonia caespiticia (Pers.) Florke*",2]
["Cladonia coniocraea (Florke) Sprengel*",2]
["Cladonia cryptochlorophaea Asah.*",2]
["Cladonia cylindrica (A. Evans) A. Evans",1]
["Cladonia fimbriata (L.) Fr.",1]
["Cladonia furcata (Hudson) Schrader*",2]
["Cladonia humilis (With.) J. R. Laundon*",2]
["Cladonia macilenta Hoffm.",1]
["Cladonia peziziformis (With.) J. R. Laundon",1]
["Cladonia polycarpoides Nyl.*",2]
["Collema subflaccidum Degel.*",2]
["Flavoparmelia caperata (L.) Hale",1]
["Heterodermia casarettiana (A. Massal.) Trevisan",1]
["Hyperphyscia syncolla (Tuck. ex Nyl.) Kalb*",2]
["Melanohalia exasperata (De Not.) O. Blanco et al.*",2]
["Myelochroa aurulenta (Tuck.) Elix & Hale",1]
["Parmelia sulcata Taylor",1]
["Parmotrema hypotropum (Nyl.) Hale",1]
["Parmotrema margaritatum (Hue) Hale*",2]
["Phaeophyscia adiastola (Essl.) Essl.",1]
["Phaeophyscia pusilloides (Zahlbr.) Essl.",1]
["Phaeophyscia rubropulchra (Degel.) Essl.",1]
["Physcia adscendens (Fr.) H. Oliver",1]
["Physcia aipolia (Ehrh. ex Humb.) Furnr.*",2]
["Physcia americana G. Merr.*",2]
["Physcia millegrana Degel.",1]
["Physcia stellaris (L.) Nyl.",1]
["Physconia detersa (Nyl.) Poelt*",2]
["Punctelia rudecta (Ach.) Krog",1]
["Ramalina farinacea (L.) Ach.*",2]
["Thyrea confusa Henssen*",2]
["Xanthomendoza fallax (Hepp ex Arnold) Sochting, Karnfelt & S. Kondr.*",2]
["Xanthomendoza ulophyllodes (Rasanen) Sochting, Karnefelt & S. Kondr. ",1]
["Xanthomendoza weberi (S. Kondr. & Karnefelt) L. Lindblom",1]
["Xanthoparmelia plittii (Gyelnik) Hale",1]
["Xanthoparmelia subramigera (Gyelnik) Hale",1]

{"sheet":"FAIRFIELD","index":23,"n_rows":93,"n_cols":2,"rows_kept":93,"cut":false,"hidden":false,"merged":[]}
["Lichen Taxa --FAIRFIELD","Fairfield"]
["Ahtiana aurescens (Tuck.) Thell & Randlane*",2]
["Allocetraria oakesiana (Tuck.) Randlane & Thell",1]
["Anaptychia palmulata (Michaux) Vainio*",2]
["Candelaria concolor (Dickson) Stein*",2]
["Candelaria fibrosa (Fr.) Mull. Arg.*",2]
["Canoparmelia crozalsiana (de Lesd. ex Harm.) Elix & Hale",1]
["Canoparmelia texana (Tuck.) Elix & Hale",1]
["Cetrelia chicitae (Culb.) Culb. & C. Culb.",1]
["Cladonia caespiticia (Pers.) Florke*",2]
["Cladonia caroliniana Tuck.",1]
["Cladonia cervicornis (Hoffm.) Ahti*",2]
["Cladonia coniocraea (Florke) Sprengel",1]
["Cladonia cristatella Tuck.",1]
["Cladonia cryptochlorophaea Asah.*",2]
["Cladonia fimbriata (L.) Fr.*",2]
["Cladonia furcata (Hudson) Schrader",1]
["Cladonia grayi G. Merr. ex Sandst.*",2]
["Cladonia humilis (With.) J. R. Laundon*",2]
["Cladonia incrassata Florke*",2]
["Cladonia macilenta Hoffm.*",2]
["Cladonia mateocyatha Robbins*",2]
["Cladonia parasitica (Hoffm.) Hoffm.*",2]
["Cladonia peziziformis (With.) J. R. Laundon*",2]
["Cladonia pleurota (Florke) Schaerer*",2]
["Cladonia polycarpoides Nyl.*",2]
["Cladonia pyxidata (L.) Hoffm.*",2]
["Cladonia rangiferina (L.) F. H. Wigg. ",1]
["Cladonia squamosa Hoffm.",1]
["Cladonia strepsilis (Ach.) Grognot*",2]
["Cladonia subtenuis (Abbayes) Mattick",1]
["Cladonia uncialis (L.) F. H. Wigg.",1]
["Collema conglomeratum Hoffm.*",2]
["Collema subflaccidum Degel.*",2]
["Dermatocarpon miniatum (L.) W. Mann*",2]
["Dibaeis absoluta (Tuck.) Kalb & Gierl*",2]
["Flavoparmelia baltimorensis (Gyelnik & Foriss) Hale",1]
["Flavoparmelia caperata (L.) Hale",1]
["Flavopunctelia soredica (Nyl.) Hale",1]
["Fuscopannaria leucosticta (Tuck.) P. M. Jorg.*",2]
["Heterodermia granulifera (Ach.) Culb.",1]
["Heterodermia hypoleuca (Ach.) Trevisan",1]
["Heterodermia obscurata (Nyl.) Trevisan",1]
["Heterodermia speciosa (Wulfen) Trevisan",1]
["Hyperphyscia adglutinata (Florke) H. Mayrh. & Poelt*",2]
["Hyperphyscia syncolla (Tuck. ex Nyl.) Kalb*",2]
["Hypotrachyna livida (Taylor) Hale",1]
["Hypotrachyna showmanii Hale",1]
["Imshaugia aleurites (Ach.) S. F. Meyer",1]
["Lasallia papulosa (Ach.) Llano",1]
["Leptogium corticola (Taylor) Tuck.*",2]
["Leptogium cyanescens (Rabenh.) Korber*",2]
["Lobaria pulmonaria (L.) Hoffm.*",2]
["Lobaria quercizans Michaux*",2]
["Melanelixia subaurifera (Nyl.) O. Blanco et al.",1]
["Myelochroa aurulenta (Tuck.) Elix & Hale",1]
["Myelochroa galbina (Ach.) Elix & Hale*",2]
["Parmelia squarrosa Hale",1]
["Parmelia sulcata Taylor",1]
["Parmelinopsis minarum (Vainio) Elix & Hale",1]
["Parmotrema hypotropum (Nyl.) Hale",1]
["Parmotrema perforatum (Jacq.) A. Massal.*",2]
["Parmotrema stuppeum (Taylor) Hale",1]
["Peltigera canina (L.) Willd.*",2]
["Peltigera horizontalis (Hudson) Baumg.*",2]
["Phaeophyscia ciliata (Hoffm.) Moberg*",2]
["Phaeophyscia pusilloides (Zahlbr.) Essl.",1]
["Phaeophyscia rubropulchra (Degel.) Essl.",1]
["Phaeophyscia squarrosa Kashiwadani",1]
["Physcia adscendens (Fr.) H. Oliver",1]
["Physcia americana G. Merr.",1]
["Physcia millegrana Degel.",1]
["Physcia stellaris (L.) Nyl.",1]
["Physciella chloantha (Ach.) Essl.",1]
["Punctelia borreri (Sm.) Krog*",2]
["Punctelia missouriensis G. Wilh. & Ladd*",2]
["Punctelia rudecta (Ach.) Krog*",2]
["Pycnothelia papillaria Durfour*",2]
["Pyxine sorediata (Ach.) Mont*",2]
["Pyxine subcinerea Stirton",1]
["Ramalina celastri (Sprengel) Krog & Swinscow*",2]
["Ramalina farinacea (L.) Ach.*",2]
["Ramalina petrina Bowler & Rundel",1]
["Sticta beauvoisii Delise*",2]
["Tuckermannopsis ciliaris (ach.) Gyelnik*",2]
["Umbilicaria mammulata (Ach.) Tuck.",1]
["Umbilicaria vellea (L.) Hoffm.*",2]
["Usnea pensylvanica Motyka*",2]
["Usnea strigosa (Ach.) Eaton*",2]
["Xanthomendoza fallax (Hepp ex Arnold) Sochting, Karnfelt & S. Kondr.",1]
["Xanthomendoza ulophyllodes (Rasanen) Sochting, Karnefelt & S. Kondr. ",1]
["Xanthoparmelia conspersa (Ehrh. ex Ach.) Hale",1]
["Xanthoparmelia plittii (Gyelnik) Hale",1]

{"sheet":"FAYETTE","index":24,"n_rows":41,"n_cols":2,"rows_kept":41,"cut":false,"hidden":false,"merged":[]}
["Lichen Taxa --FAYETTE","Fayette"]
["Candelaria concolor (Dickson) Stein",1]
["Canoparmelia crozalsiana (de Lesd. ex Harm.) Elix & Hale",1]
["Cladonia cristatella Tuck.*",2]
["Cladonia peziziformis (With.) J. R. Laundon*",2]
["Cladonia sobolescens Nyl. ex Vainio",1]
["Collema nigrescens (Hudson) DC.*",2]
["Collema tenax (Sw.) Ach.*",2]
["Flavoparmelia caperata (L.) Hale",1]
["Flavopunctelia soredica (Nyl.) Hale",1]
["Heterodermia speciosa (Wulfen) Trevisan*",2]
["Hyperphyscia confusa Essl., C. A. Morse, & S. Leavitt",1]
["Myelochroa aurulenta (Tuck.) Elix & Hale",1]
["Parmelia sulcata Taylor",1]
["Parmotrema hypotropum (Nyl.) Hale",1]
["Parmotrema stuppeum (Taylor) Hale",1]
["Peltigera horizontalis (Hudson) Baumg.*",2]
["Peltigera polydactylon (Necker) Hoffm.*",2]
["Phaeophyscia ciliata (Hoffm.) Moberg",1]
["Phaeophyscia decolor (Kashiw.) Essl.",1]
["Phaeophyscia hirsuta (Mereschk.) Essl.",1]
["Phaeophyscia hirtella Essl.",1]
["Phaeophyscia pusilloides (Zahlbr.) Essl.",1]
["Phaeophyscia rubropulchra (Degel.) Essl.",1]
["Physcia adscendens (Fr.) H. Oliver",1]
["Physcia aipolia (Ehrh. ex Humb.) Furnr.*",2]
["Physcia americana G. Merr.",1]
["Physcia millegrana Degel.",1]
["Physcia stellaris (L.) Nyl.",1]
["Physciella chloantha (Ach.) Essl.",1]
["Physconia detersa (Nyl.) Poelt",1]
["Physconia leucoleiptes (Tuck.) Essl.",1]
["Punctelia bolliana (Mull. Arg.) Krog",1]
["Punctelia borreri (Sm.) Krog",1]
["Punctelia missouriensis G. Wilh. & Ladd",1]
["Punctelia rudecta (Ach.) Krog",1]
["Punctelia subrudecta (Nyl.) Krog",1]
["Pyxine subcinerea Stirton",1]
["Xanthomendoza fallax (Hepp ex Arnold) Sochting, Karnfelt & S. Kondr.*",2]
["Xanthomendoza ulophyllodes (Rasanen) Sochting, Karnefelt & S. Kondr. ",1]
["Xanthomendoza weberi (S. Kondr. & Karnefelt) L. Lindblom",1]

{"sheet":"FRANKLIN","index":25,"n_rows":68,"n_cols":2,"rows_kept":68,"cut":false,"hidden":false,"merged":[]}
["Lichen Taxa --FRANKLIN","Franklin"]
["Flavoparmelia caperata (L.) Hale",1]
["Flavopunctelia flaventior (Stirton) Hale",1]
["Parmelia sulcata Taylor",1]
["Phaeophyscia hirtella Essl.",1]
["Phaeophyscia rubropulchra (Degel.) Essl.",1]
["Physcia adscendens (Fr.) H. Oliver",1]
["Physcia millegrana Degel.",1]
["Physcia stellaris (L.) Nyl.",1]
["Punctelia rudecta (Ach.) Krog",1]
["Xanthomendoza fallax (Hepp ex Arnold) Sochting, Karnfelt & S. Kondr.",1]
["Anaptychia palmulata (Michaux) Vainio*",2]
["Candelaria concolor (Dickson) Stein*",2]
["Candelaria fibrosa (Fr.) Mull. Arg.*",2]
["Cladonia apodocarpa Robb.*",2]
["Cladonia caespiticia (Pers.) Florke*",2]
["Cladonia chlorophaea (Florke ex Sommerf.) Sprengel*",2]
["Cladonia coniocraea (Florke) Sprengel*",2]
["Cladonia cristatella Tuck.*",2]
["Cladonia cryptochlorophaea Asah.*",2]
["Cladonia fimbriata (L.) Fr.*",2]
["Cladonia furcata (Hudson) Schrader*",2]
["Cladonia macilenta Hoffm.*",2]
["Cladonia parasitica (Hoffm.) Hoffm.*",2]
["Cladonia peziziformis (With.) J. R. Laundon*",2]
["Cladonia polycarpoides Nyl.*",2]
["Cladonia pyxidata (L.) Hoffm.*",2]
["Cladonia rangiferina (L.) F. H. Wigg.*",2]
["Cladonia subtenuis (Abbayes) Mattick*",2]
["Collema conglomeratum Hoffm.*",2]
["Collema subflaccidum Degel.*",2]
["Collema tenax (Sw.) Ach.*",2]
["Dermatocarpon miniatum (L.) W. Mann*",2]
["Heterodermia echinata (Taylor) Culb.*",2]
["Heterodermia speciosa (Wulfen) Trevisan*",2]
["Hyperphyscia adglutinata (Florke) H. Mayrh. & Poelt*",2]
["Hyperphyscia syncolla (Tuck. ex Nyl.) Kalb*",2]
["Leptogium aburnetiae C. W. Dodge*",2]
["Leptogium corticola (Taylor) Tuck.*",2]
["Leptogium cyanescens (Rabenh.) Korber*",2]
["Leptogium lichenoides (L.) Zahlbr.*",2]
["Lobaria pulmonaria (L.) Hoffm.*",2]
["Lobaria quercizans Michaux*",2]
["Myelochroa aurulenta (Tuck.) Elix & Hale*",2]
["Myelochroa galbina (Ach.) Elix & Hale*",2]
["Parmotrema cetratum (Ach.) Hale*",2]
["Parmotrema crinitum (Ach.) Choisy*",2]
["Parmotrema hypotropum (Nyl.) Hale*",2]
["Parmotrema perforatum (Jacq.) A. Massal.*",2]
["Parmotrema reticulatum (Taylor) M. Choisy*",2]
["Peltigera canina (L.) Willd.*",2]
["Phaeophyscia ciliata (Hoffm.) Moberg*",2]
["Phaeophyscia squarrosa Kashiwadani*",2]
["Physcia aipolia (Ehrh. ex Humb.) Furnr.*",2]
["Physcia americana G. Merr.*",2]
["Physconia detersa (Nyl.) Poelt*",2]
["Physconia subpallida Essl.*",2]
["Placidium aboretum (Schwein. ex Michener) Lendemer*",2]
["Punctelia bolliana (Mull. Arg.) Krog*",2]
["Punctelia borreri (Sm.) Krog*",2]
["Pyxine sorediata (Ach.) Mont*",2]
["Ramalina americana Hale*",2]
["Ramalina complanata (Sw.) Ach.*",2]
["Ramalina farinacea (L.) Ach.*",2]
["Usnea pensylvanica Motyka*",2]
["Usnea strigosa (Ach.) Eaton*",2]
["Xanthomendoza hasseana (Rasanen) Sochting, Karnefelt & S. Kondr.*",2]
["Xanthoria polycarpa (Hoffm.) Rieber*",2]

{"sheet":"FULTON","index":26,"n_rows":20,"n_cols":2,"rows_kept":20,"cut":false,"hidden":false,"merged":[]}
["Lichen Taxa --FULTON","Fulton"]
["Candelaria concolor (Dickson) Stein*",2]
["Cladonia cervicornis (Hoffm.) Ahti*",2]
["Cladonia coniocraea (Florke) Sprengel*",2]
["Cladonia cristatella Tuck.*",2]
["Cladonia fimbriata (L.) Fr.*",2]
["Cladonia peziziformis (With.) J. R. Laundon*",2]
["Cladonia polycarpoides Nyl.*",2]
["Cladonia rei Schaerer*",2]
["Flavoparmelia caperata (L.) Hale*",2]
["Lobaria quercizans Michaux",1]
["Myelochroa aurulenta (Tuck.) Elix & Hale*",2]
["Parmelia sulcata Taylor*",2]
["Peltigera didactyla (With.) J. R. Laundon*",2]
["Phaeophyscia rubropulchra (Degel.) Essl.",1]
["Physcia millegrana Degel.*",2]
["Physcia stellaris (L.) Nyl.*",2]
["Physconia detersa (Nyl.) Poelt*",2]
["Punctelia rudecta (Ach.) Krog*",2]
["Pyxine sorediata (Ach.) Mont*",2]

{"sheet":"GALLIA","index":27,"n_rows":104,"n_cols":2,"rows_kept":104,"cut":false,"hidden":false,"merged":[]}
["Lichen Taxa --GALLIA","Gallia"]
["Allocetraria oakesiana (Tuck.) Randlane & Thell",1]
["Anaptychia palmulata (Michaux) Vainio",1]
["Candelaria concolor (Dickson) Stein",1]
["Candelaria fibrosa (Fr.) Mull. Arg.",1]
["Canoparmelia caroliniana (Nyl.) Elix & Hale",1]
["Canoparmelia crozalsiana (de Lesd. ex Harm.) Elix & Hale",1]
["Canoparmelia texana (Tuck.) Elix & Hale",1]
["Cladonia apodocarpa Robb.",1]
["Cladonia caespiticia (Pers.) Florke",1]
["Cladonia caroliniana Tuck.",1]
["Cladonia cervicornis (Hoffm.) Ahti",1]
["Cladonia coniocraea (Florke) Sprengel",1]
["Cladonia cristatella Tuck.",1]
["Cladonia cylindrica (A. Evans) A. Evans",1]
["Cladonia furcata (Hudson) Schrader",1]
["Cladonia grayi G. Merr. ex Sandst.",1]
["Cladonia humilis (With.) J. R. Laundon",1]
["Cladonia macilenta Hoffm.",1]
["Cladonia mateocyatha Robbins",1]
["Cladonia petrophila R. C. Harris",1]
["Cladonia peziziformis (With.) J. R. Laundon",1]
["Cladonia piedmontensis G. Merr.",1]
["Cladonia pleurota (Florke) Schaerer",1]
["Cladonia polycarpoides Nyl.",1]
["Cladonia pyxidata (L.) Hoffm.",1]
["Cladonia ramulosa (With.) J. R. Laundon",1]
["Cladonia rangiferina (L.) F. H. Wigg. ",1]
["Cladonia rei Schaerer",1]
["Cladonia sobolescens Nyl. ex Vainio",1]
["Cladonia squamosa Hoffm.",1]
["Cladonia strepsilis (Ach.) Grognot ",1]
["Cladonia subtenuis (Abbayes) Mattick",1]
["Cladonia uncialis (L.) F. H. Wigg.",1]
["Coccocarpia palmicola (Sprengel) Arv. & D. J. Galloway",1]
["Collema crispum (Hudson) F. H. Wigg.",1]
["Collema subflaccidum Degel.",1]
["Dermatocarpon luridum (With.) J. R. Laundon",1]
["Dibaeis baeomyces (L. f.) Rambold & Hertel",1]
["Dirinaria frostii (Tuck.) Hale & Culb.",1]
["Flavoparmelia baltimorensis (Gyelnik & Foriss) Hale",1]
["Flavoparmelia caperata (L.) Hale",1]
["Heterodermia casarettiana (A. Massal.) Trevisan",1]
["Heterodermia granulifera (Ach.) Culb.",1]
["Heterodermia hypoleuca (Ach.) Trevisan",1]
["Heterodermia obscurata (Nyl.) Trevisan",1]
["Heterodermia pseudospeciosa (Lurok.) Culb.",1]
["Heterodermia speciosa (Wulfen) Trevisan",1]
["Hyperphyscia syncolla (Tuck. ex Nyl.) Kalb",1]
["Hypotrachyna livida (Taylor) Hale",1]
["Hypotrachyna showmanii Hale",1]
["Imshaugia aleurites (Ach.) S. F. Meyer",1]
["Imshaugia placorodia (Ach.) S. F. Meyer",1]
["Lasallia papulosa (Ach.) Llano",1]
["Leptogium cyanescens (Rabenh.) Korber",1]
["Leptogium dactylinum Tuck.",1]
["Melanelixia subaurifera (Nyl.) O. Blanco et al.",1]
["Myelochroa aurulenta (Tuck.) Elix & Hale",1]
["Myelochroa galbina (Ach.) Elix & Hale",1]
["Parmelia squarrosa Hale",1]
["Parmelia sulcata Taylor",1]
["Parmelinopsis minarum (Vainio) Elix & Hale",1]
["Parmotrema gardneri (C. W. Dodge) Serus ",1]
["Parmotrema hypotropum (Nyl.) Hale",1]
["Parmotrema reticulatum (Taylor) M. Choisy",1]
["Parmotrema xanthinum (Mull. Arg.) Hale",1]
["Peltigera canina (L.) Willd.",1]
["Peltigera horizontalis (Hudson) Baumg.",1]
["Phaeophyscia adiastola (Essl.) Essl.",1]
["Phaeophyscia ciliata (Hoffm.) Moberg",1]
["Phaeophyscia decolor (Kashiw.) Essl.",1]
["Phaeophyscia hirsuta (Mereschk.) Essl.",1]
["Phaeophyscia pusilloides (Zahlbr.) Essl.",1]
["Phaeophyscia rubropulchra (Degel.) Essl.",1]
["Phaeophyscia squarrosa Kashiwadani",1]
["Physcia adscendens (Fr.) H. Oliver",1]
["Physcia aipolia (Ehrh. ex Humb.) Furnr.",1]
["Physcia americana G. Merr.",1]
["Physcia millegrana Degel.",1]
["Physcia stellaris (L.) Nyl.",1]
["Physcia subtilis Degel.",1]
["Physconia detersa (Nyl.) Poelt",1]
["Placidium aboretum (Schwein. ex Michener) Lendemer",1]
["Punctelia borreri (Sm.) Krog",1]
["Punctelia missouriensis G. Wilh. & Ladd",1]
["Punctelia rudecta (Ach.) Krog",1]
["Punctelia subrudecta (Nyl.) Krog*",2]
["Pyxine sorediata (Ach.) Mont",1]
["Pyxine subcinerea Stirton",1]
["Ramalina americana Hale",1]
["Ramalina intermedia (Delise ex Nyl.) Nyl.",1]
["Ramalina pollinaria (Westr.) Ach.",1]
["Sticta beauvoisii Delise",1]
["Tuckermanella fendleri (Nyl.) Essl.",1]
["Tuckermannopsis americana (Sprengel) Hale",1]
["Tuckermannopsis ciliaris (ach.) Gyelnik",1]
["Umbilicaria mammulata (Ach.) Tuck.",1]
["Usnea amblyoclada (Mull. Arg.) Zahlbr.",1]
["Usnea pensylvanica Motyka",1]
["Usnea strigosa (Ach.) Eaton",1]
["Usnea subscabrosa Mott.",1]
["Xanthomendoza fallax (Hepp ex Arnold) Sochting, Karnfelt & S. Kondr.",1]
["Xanthoparmelia plittii (Gyelnik) Hale",1]
["Xanthoparmelia subramigera (Gyelnik) Hale",1]

{"sheet":"GEAUGA","index":28,"n_rows":25,"n_cols":2,"rows_kept":25,"cut":false,"hidden":false,"merged":[]}
["Lichen Taxa --GEAUGA","Geauga"]
["Candelaria concolor (Dickson) Stein*",2]
["Cladonia cervicornis (Hoffm.) Ahti*",2]
["Cladonia chlorophaea (Florke ex Sommerf.) Sprengel*",2]
["Cladonia coniocraea (Florke) Sprengel*",2]
["Cladonia cristatella Tuck.*",2]
["Cladonia furcata (Hudson) Schrader*",2]
["Cladonia grayi G. Merr. ex Sandst.*",2]
["Cladonia humilis (With.) J. R. Laundon*",2]
["Cladonia macilenta Hoffm.*",2]
["Cladonia polycarpoides Nyl.*",2]
["Dibaeis baeomyces (L. f.) Rambold & Hertel*",2]
["Flavoparmelia caperata (L.) Hale*",2]
["Heterodermia speciosa (Wulfen) Trevisan*",2]
["Hypogymnia physodes (Nyl.) Nyl.*",2]
["Myelochroa aurulenta (Tuck.) Elix & Hale*",2]
["Myelochroa galbina (Ach.) Elix & Hale*",2]
["Parmelia squarrosa Hale*",2]
["Parmelia sulcata Taylor*",2]
["Parmotrema stuppeum (Taylor) Hale",1]
["Phaeophyscia ciliata (Hoffm.) Moberg*",2]
["Physcia millegrana Degel.*",2]
["Physcia stellaris (L.) Nyl.*",2]
["Punctelia rudecta (Ach.) Krog*",2]
["Tuckermannopsis ciliaris (ach.) Gyelnik*",2]

{"sheet":"GREEN","index":29,"n_rows":57,"n_cols":2,"rows_kept":57,"cut":false,"hidden":false,"merged":[]}
["Lichen Taxa --GREEN","Greene"]
["Candelaria concolor (Dickson) Stein",1]
["Canoparmelia crozalsiana (de Lesd. ex Harm.) Elix & Hale",1]
["Cladonia cervicornis (Hoffm.) Ahti*",2]
["Cladonia coniocraea (Florke) Sprengel",1]
["Cladonia cristatella Tuck.*",2]
["Cladonia cryptochlorophaea Asah.*",2]
["Cladonia furcata (Hudson) Schrader",1]
["Cladonia humilis (With.) J. R. Laundon*",2]
["Cladonia macilenta Hoffm.*",2]
["Cladonia peziziformis (With.) J. R. Laundon*",2]
["Cladonia pyxidata (L.) Hoffm.",1]
["Cladonia robbinsii A. Evans*",2]
["Cladonia squamosa Hoffm.*",2]
["Cladonia subtenuis (Abbayes) Mattick*",2]
["Collema subflaccidum Degel.",1]
["Dermatocarpon miniatum (L.) W. Mann",1]
["Evernia mesomorpha Nyl.",1]
["Flavoparmelia caperata (L.) Hale",1]
["Flavopunctelia flaventior (Stirton) Hale",1]
["Heterodermia granulifera (Ach.) Culb.",1]
["Heterodermia hypoleuca (Ach.) Trevisan",1]
["Heterodermia speciosa (Wulfen) Trevisan",1]
["Hypotrachyna livida (Taylor) Hale",1]
["Leptogium cyanescens (Rabenh.) Korber*",2]
["Leptogium lichenoides (L.) Zahlbr.*",2]
["Melanelixia subaurifera (Nyl.) O. Blanco et al.",1]
["Myelochroa aurulenta (Tuck.) Elix & Hale",1]
["Myelochroa galbina (Ach.) Elix & Hale",1]
["Nephroma helveticum Ach.*",2]
["Parmelia squarrosa Hale",1]
["Parmelia sulcata Taylor",1]
["Parmotrema hypotropum (Nyl.) Hale",1]
["Parmotrema stuppeum (Taylor) Hale",1]
["Peltigera canina (L.) Willd.",1]
["Peltigera horizontalis (Hudson) Baumg.*",2]
["Phaeophyscia ciliata (Hoffm.) Moberg*",2]
["Phaeophyscia hirtella Essl.",1]
["Phaeophyscia rubropulchra (Degel.) Essl.",1]
["Phaeophyscia squarrosa Kashiwadani*",2]
["Physcia aipolia (Ehrh. ex Humb.) Furnr.*",2]
["Physcia americana G. Merr.",1]
["Physcia millegrana Degel.",1]
["Physcia stellaris (L.) Nyl.",1]
["Physconia leucoleiptes (Tuck.) Essl.*",2]
["Physconia subpallida Essl.*",2]
["Punctelia bolliana (Mull. Arg.) Krog",1]
["Punctelia borreri (Sm.) Krog*",2]
["Punctelia missouriensis G. Wilh. & Ladd",1]
["Punctelia rudecta (Ach.) Krog",1]
["Punctelia subrudecta (Nyl.) Krog*",2]
["Pyxine sorediata (Ach.) Mont",1]
["Pyxine subcinerea Stirton",1]
["Usnea strigosa (Ach.) Eaton*",2]
["Xanthomendoza fallax (Hepp ex Arnold) Sochting, Karnfelt & S. Kondr.",1]
["Xanthomendoza ulophyllodes (Rasanen) Sochting, Karnefelt & S. Kondr.*",2]
["Xanthomendoza weberi (S. Kondr. & Karnefelt) L. Lindblom*",2]

{"sheet":"GUERNSEY","index":30,"n_rows":33,"n_cols":2,"rows_kept":33,"cut":false,"hidden":false,"merged":[]}
["Lichen Taxa --GUERNSEY","Guernsey"]
["Candelaria concolor (Dickson) Stein*",2]
["Cladonia apodocarpa Robb.*",2]
["Cladonia cervicornis (Hoffm.) Ahti*",2]
["Cladonia coniocraea (Florke) Sprengel*",2]
["Cladonia cristatella Tuck.*",2]
["Cladonia cryptochlorophaea Asah.*",2]
["Cladonia furcata (Hudson) Schrader*",2]
["Cladonia grayi G. Merr. ex Sandst.*",2]
["Cladonia humilis (With.) J. R. Laundon*",2]
["Cladonia macilenta Hoffm.*",2]
["Cladonia piedmontensis G. Merr.*",2]
["Cladonia pleurota (Florke) Schaerer*",2]
["Cladonia polycarpoides Nyl.*",2]
["Cladonia pyxidata (L.) Hoffm.*",2]
["Cladonia sobolescens Nyl. ex Vainio*",2]
["Cladonia strepsilis (Ach.) Grognot*",2]
["Cladonia subtenuis (Abbayes) Mattick*",2]
["Evernia mesomorpha Nyl.",1]
["Flavoparmelia caperata (L.) Hale*",2]
["Heterodermia granulifera (Ach.) Culb.*",2]
["Heterodermia obscurata (Nyl.) Trevisan*",2]
["Heterodermia speciosa (Wulfen) Trevisan*",2]
["Melanelixia subaurifera (Nyl.) O. Blanco et al.*",2]
["Myelochroa aurulenta (Tuck.) Elix & Hale*",2]
["Myelochroa galbina (Ach.) Elix & Hale*",2]
["Parmelia squarrosa Hale*",2]
["Parmelia sulcata Taylor*",2]
["Peltigera canina (L.) Willd.*",2]
["Phaeophyscia rubropulchra (Degel.) Essl.*",1]
["Physcia millegrana Degel.*",2]
["Punctelia rudecta (Ach.) Krog*",2]
["Pyxine sorediata (Ach.) Mont*",2]

{"sheet":"HAMILTON","index":31,"n_rows":87,"n_cols":2,"rows_kept":87,"cut":false,"hidden":false,"merged":[]}
["Lichen Taxa --HAMILTON","Hamilton"]
["Anaptychia palmulata (Michaux) Vainio*",2]
["Anzia colpodes (Ach.) Stizenb.*",2]
["Candelaria concolor (Dickson) Stein*",2]
["Canoparmelia crozalsiana (de Lesd. ex Harm.) Elix & Hale",1]
["Cladonia caespiticia (Pers.) Florke*",2]
["Cladonia caroliniana Tuck.*",2]
["Cladonia cervicornis (Hoffm.) Ahti*",2]
["Cladonia coniocraea (Florke) Sprengel*",2]
["Cladonia cristatella Tuck.*",2]
["Cladonia cryptochlorophaea Asah.*",2]
["Cladonia cylindrica (A. Evans) A. Evans*",2]
["Cladonia furcata (Hudson) Schrader*",2]
["Cladonia grayi G. Merr. ex Sandst.*",2]
["Cladonia macilenta Hoffm.*",2]
["Cladonia parasitica (Hoffm.) Hoffm.*",2]
["Cladonia peziziformis (With.) J. R. Laundon*",2]
["Cladonia piedmontensis G. Merr.*",2]
["Cladonia pleurota (Florke) Schaerer*",2]
["Cladonia polycarpoides Nyl.*",2]
["Cladonia ramulosa (With.) J. R. Laundon*",2]
["Cladonia rangiferina (L.) F. H. Wigg.*",2]
["Cladonia sobolescens Nyl. ex Vainio*",2]
["Cladonia subtenuis (Abbayes) Mattick*",2]
["Collema conglomeratum Hoffm.*",2]
["Collema subflaccidum Degel.*",2]
["Dermatocarpon miniatum (L.) W. Mann*",2]
["Flavoparmelia caperata (L.) Hale",1]
["Heterodermia echinata (Taylor) Culb.*",2]
["Heterodermia granulifera (Ach.) Culb.",1]
["Heterodermia leucomela (L.) Poelt*",2]
["Heterodermia obscurata (Nyl.) Trevisan*",2]
["Heterodermia speciosa (Wulfen) Trevisan*",2]
["Hyperphyscia syncolla (Tuck. ex Nyl.) Kalb*",2]
["Hypotrachyna livida (Taylor) Hale*",2]
["Lasallia papulosa (Ach.) Llano*",2]
["Leptogium austroamericanum (Malme) C. W. Dodge*",2]
["Leptogium corticola (Taylor) Tuck.*",2]
["Leptogium cyanescens (Rabenh.) Korber*",2]
["Leptogium dactylinum Tuck.*",2]
["Leptogium juniperinum Tuck.*",2]
["Leptogium lichenoides (L.) Zahlbr.*",2]
["Leptogium milligranum Sierk*",2]
["Lobaria quercizans Michaux*",2]
["Melanelixia subaurifera (Nyl.) O. Blanco et al.*",2]
["Melanohalia exasperata (De Not.) O. Blanco et al.*",2]
["Myelochroa aurulenta (Tuck.) Elix & Hale",1]
["Myelochroa galbina (Ach.) Elix & Hale*",2]
["Pannaria lurida (Mont.) Nyl.*",2]
["Pannaria rubignosa (Ach.) Bory*",2]
["Parmotrema austrosinense (Zahlbr.) Hale",1]
["Parmotrema hypotropum (Nyl.) Hale*",2]
["Parmotrema perforatum (Jacq.) A. Massal.*",2]
["Parmotrema reticulatum (Taylor) M. Choisy*",2]
["Parmotrema stuppeum (Taylor) Hale*",2]
["Parmotrema submarginale (Michaux.) DePriest & B. Hale",1]
["Peltigera canina (L.) Willd.",1]
["Peltigera polydactylon (Necker) Hoffm.*",2]
["Phaeophyscia adiastola (Essl.) Essl.",1]
["Phaeophyscia ciliata (Hoffm.) Moberg*",2]
["Phaeophyscia leana (Tuck.) Essl.*",2]
["Phaeophyscia pusilloides (Zahlbr.) Essl.",1]
["Phaeophyscia rubropulchra (Degel.) Essl.",1]
["Phaeophyscia squarrosa Kashiwadani",1]
["Physcia adscendens (Fr.) H. Oliver*",2]
["Physcia aipolia (Ehrh. ex Humb.) Furnr.*",2]
["Physcia americana G. Merr.",1]
["Physcia millegrana Degel.",1]
["Physcia stellaris (L.) Nyl.",1]
["Physciella chloantha (Ach.) Essl.",1]
["Physconia subpallida Essl.*",2]
["Pseudocyphellaria aurata (Ach.) Vainio*",2]
["Punctelia bolliana (Mull. Arg.) Krog*",2]
["Punctelia borreri (Sm.) Krog*",2]
["Punctelia rudecta (Ach.) Krog",1]
["Punctelia subrudecta (Nyl.) Krog",1]
["Pyxine sorediata (Ach.) Mont",1]
["Pyxine subcinerea Stirton",1]
["Ramalina americana Hale*",2]
["Ramalina complanata (Sw.) Ach.*",2]
["Sticta beauvoisii Delise*",2]
["Teloschistes chrysophthalmus (L.) Th. Fr.*",2]
["Usnea longissima Ach.*",2]
["Usnea strigosa (Ach.) Eaton*",2]
["Xanthomendoza fallax (Hepp ex Arnold) Sochting, Karnfelt & S. Kondr.",1]
["Xanthomendoza ulophyllodes (Rasanen) Sochting, Karnefelt & S. Kondr.*",2]
["Xanthomendoza weberi (S. Kondr. & Karnefelt) L. Lindblom",1]

{"sheet":"HANCOCK","index":32,"n_rows":30,"n_cols":2,"rows_kept":30,"cut":false,"hidden":false,"merged":[]}
["Lichen Taxa --HANCOCK","Hancock"]
["Candelaria concolor (Dickson) Stein",1]
["Cladonia coniocraea (Florke) Sprengel*",2]
["Cladonia cristatella Tuck.",1]
["Cladonia cylindrica (A. Evans) A. Evans",1]
["Cladonia humilis (With.) J. R. Laundon*",2]
["Cladonia rei Schaerer*",2]
["Flavoparmelia caperata (L.) Hale",1]
["Flavopunctelia flaventior (Stirton) Hale",1]
["Flavopunctelia soredica (Nyl.) Hale",1]
["Melanelixia subaurifera (Nyl.) O. Blanco et al.",1]
["Myelochroa aurulenta (Tuck.) Elix & Hale",1]
["Myelochroa galbina (Ach.) Elix & Hale",1]
["Parmelia sulcata Taylor",1]
["Peltigera canina (L.) Willd.*",2]
["Phaeophyscia ciliata (Hoffm.) Moberg*",2]
["Phaeophyscia pusilloides (Zahlbr.) Essl.",1]
["Phaeophyscia rubropulchra (Degel.) Essl.",1]
["Physcia adscendens (Fr.) H. Oliver",1]
["Physcia aipolia (Ehrh. ex Humb.) Furnr.*",2]
["Physcia millegrana Degel.",1]
["Physcia stellaris (L.) Nyl.",1]
["Physconia detersa (Nyl.) Poelt*",2]
["Punctelia bolliana (Mull. Arg.) Krog*",2]
["Punctelia missouriensis G. Wilh. & Ladd*",2]
["Punctelia rudecta (Ach.) Krog",1]
["Punctelia subrudecta (Nyl.) Krog*",2]
["Pyxine sorediata (Ach.) Mont",1]
["Xanthomendoza fallax (Hepp ex Arnold) Sochting, Karnfelt & S. Kondr.*",2]
["Xanthomendoza weberi (S. Kondr. & Karnefelt) L. Lindblom*",2]

{"sheet":"HARDIN","index":33,"n_rows":35,"n_cols":2,"rows_kept":35,"cut":false,"hidden":false,"merged":[]}
["Lichen Taxa --HARDIN","Hardin"]
["Candelaria concolor (Dickson) Stein",1]
["Canoparmelia crozalsiana (de Lesd. ex Harm.) Elix & Hale",1]
["Cladonia coniocraea (Florke) Sprengel*",2]
["Cladonia macilenta Hoffm.*",2]
["Cladonia peziziformis (With.) J. R. Laundon*",2]
["Flavoparmelia caperata (L.) Hale",1]
["Flavopunctelia flaventior (Stirton) Hale*",2]
["Flavopunctelia soredica (Nyl.) Hale",1]
["Heterodermia granulifera (Ach.) Culb.*",2]
["Hyperphyscia adglutinata (Florke) H. Mayrh. & Poelt*",2]
["Hyperphyscia syncolla (Tuck. ex Nyl.) Kalb*",2]
["Hypotrachyna livida (Taylor) Hale",1]
["Myelochroa aurulenta (Tuck.) Elix & Hale*",2]
["Myelochroa galbina (Ach.) Elix & Hale*",2]
["Parmelia squarrosa Hale*",2]
["Parmelia sulcata Taylor",1]
["Phaeophyscia ciliata (Hoffm.) Moberg",1]
["Phaeophyscia decolor (Kashiw.) Essl.",1]
["Phaeophyscia hirsuta (Mereschk.) Essl.",1]
["Phaeophyscia rubropulchra (Degel.) Essl.",1]
["Physcia adscendens (Fr.) H. Oliver*",2]
["Physcia aipolia (Ehrh. ex Humb.) Furnr.*",2]
["Physcia americana G. Merr.*",2]
["Physcia caesia (Hofm.) Furnr.",1]
["Physcia millegrana Degel.",1]
["Physcia stellaris (L.) Nyl.",1]
["Physconia detersa (Nyl.) Poelt*",2]
["Punctelia bolliana (Mull. Arg.) Krog*",2]
["Punctelia borreri (Sm.) Krog*",2]
["Punctelia missouriensis G. Wilh. & Ladd*",2]
["Punctelia rudecta (Ach.) Krog",1]
["Pyxine sorediata (Ach.) Mont",1]
["Xanthomendoza fallax (Hepp ex Arnold) Sochting, Karnfelt & S. Kondr.",1]
["Xanthomendoza ulophyllodes (Rasanen) Sochting, Karnefelt & S. Kondr.*",2]

{"sheet":"HARRISON","index":34,"n_rows":31,"n_cols":2,"rows_kept":31,"cut":false,"hidden":false,"merged":[]}
["Lichen Taxa --HARRISON","Harrison"]
["Anaptychia palmulata (Michaux) Vainio*",2]
["Candelaria concolor (Dickson) Stein*",2]
["Cladonia caespiticia (Pers.) Florke*",2]
["Cladonia cervicornis (Hoffm.) Ahti*",2]
["Cladonia chlorophaea (Florke ex Sommerf.) Sprengel*",2]
["Cladonia coniocraea (Florke) Sprengel*",2]
["Cladonia cristatella Tuck.*",2]
["Cladonia cryptochlorophaea Asah.*",2]
["Cladonia cylindrica (A. Evans) A. Evans*",2]
["Cladonia fimbriata (L.) Fr.*",2]
["Cladonia furcata (Hudson) Schrader*",2]
["Cladonia grayi G. Merr. ex Sandst.*",2]
["Cladonia humilis (With.) J. R. Laundon*",2]
["Cladonia macilenta Hoffm.*",2]
["Cladonia parasitica (Hoffm.) Hoffm.*",2]
["Cladonia piedmontensis G. Merr.*",2]
["Cladonia rei Schaerer*",2]
["Evernia mesomorpha Nyl.",1]
["Flavoparmelia caperata (L.) Hale*",2]
["Heterodermia speciosa (Wulfen) Trevisan*",2]
["Myelochroa aurulenta (Tuck.) Elix & Hale*",2]
["Parmelia sulcata Taylor*",2]
["Phaeophyscia rubropulchra (Degel.) Essl.",1]
["Physcia aipolia (Ehrh. ex Humb.) Furnr.*",2]
["Physcia americana G. Merr.*",2]
["Physcia millegrana Degel.",1]
["Physcia stellaris (L.) Nyl.*",2]
["Punctelia rudecta (Ach.) Krog*",2]
["Ramalina americana Hale",1]
["Usnea strigosa (Ach.) Eaton",1]

{"sheet":"HENRY","index":35,"n_rows":47,"n_cols":2,"rows_kept":47,"cut":false,"hidden":false,"merged":[]}
["Lichen Taxa --HENRY","Henry"]
["Candelaria concolor (Dickson) Stein",1]
["Candelaria fibrosa (Fr.) Mull. Arg.",1]
["Cladonia cervicornis (Hoffm.) Ahti*",2]
["Cladonia chlorophaea (Florke ex Sommerf.) Sprengel*",2]
["Cladonia coniocraea (Florke) Sprengel*",2]
["Cladonia cristatella Tuck.*",2]
["Cladonia cryptochlorophaea Asah.*",2]
["Cladonia cylindrica (A. Evans) A. Evans",1]
["Cladonia furcata (Hudson) Schrader",1]
["Cladonia humilis (With.) J. R. Laundon*",2]
["Cladonia macilenta Hoffm.",1]
["Cladonia peziziformis (With.) J. R. Laundon*",2]
["Cladonia polycarpoides Nyl.*",2]
["Cladonia rei Schaerer*",2]
["Flavoparmelia caperata (L.) Hale",1]
["Hyperphyscia adglutinata (Florke) H. Mayrh. & Poelt",1]
["Hypotrachyna livida (Taylor) Hale*",2]
["Myelochroa aurulenta (Tuck.) Elix & Hale",1]
["Myelochroa galbina (Ach.) Elix & Hale*",2]
["Parmelia sulcata Taylor",1]
["Parmotrema reticulatum (Taylor) M. Choisy",1]
["Peltigera canina (L.) Willd.",1]
["Peltigera didactyla (With.) J. R. Laundon*",2]
["Phaeophyscia adiastola (Essl.) Essl.",1]
["Phaeophyscia ciliata (Hoffm.) Moberg*",2]
["Phaeophyscia hirtella Essl.",1]
["Phaeophyscia pusilloides (Zahlbr.) Essl.",1]
["Phaeophyscia rubropulchra (Degel.) Essl.",1]
["Physcia adscendens (Fr.) H. Oliver",1]
["Physcia aipolia (Ehrh. ex Humb.) Furnr.*",2]
["Physcia americana G. Merr.",1]
["Physcia millegrana Degel.",1]
["Physcia stellaris (L.) Nyl.",1]
["Physciella chloantha (Ach.) Essl.",1]
["Physciella melanchra (Hue) Essl.",1]
["Physconia detersa (Nyl.) Poelt",1]
["Physconia subpallida Essl.*",2]
["Punctelia bolliana (Mull. Arg.) Krog*",2]
["Punctelia borreri (Sm.) Krog*",2]
["Punctelia missouriensis G. Wilh. & Ladd*",2]
["Punctelia rudecta (Ach.) Krog",1]
["Punctelia subrudecta (Nyl.) Krog",1]
["Pyxine sorediata (Ach.) Mont*",2]
["Xanthomendoza fallax (Hepp ex Arnold) Sochting, Karnfelt & S. Kondr.*",2]
["Xanthomendoza ulophyllodes (Rasanen) Sochting, Karnefelt & S. Kondr. ",1]
["Xanthomendoza weberi (S. Kondr. & Karnefelt) L. Lindblom",1]

{"sheet":"HIGHLAND","index":36,"n_rows":78,"n_cols":2,"rows_kept":78,"cut":false,"hidden":false,"merged":[]}
["Lichen Taxa --HIGHLAND","Highland"]
["Candelaria concolor (Dickson) Stein*",2]
["Candelaria fibrosa (Fr.) Mull. Arg.*",2]
["Canoparmelia crozalsiana (de Lesd. ex Harm.) Elix & Hale",1]
["Cladonia arbuscula (Wallr.) Flotow",1]
["Cladonia cervicornis (Hoffm.) Ahti*",2]
["Cladonia chlorophaea (Florke ex Sommerf.) Sprengel*",2]
["Cladonia coniocraea (Florke) Sprengel*",2]
["Cladonia cristatella Tuck.*",2]
["Cladonia cylindrica (A. Evans) A. Evans*",2]
["Cladonia furcata (Hudson) Schrader*",2]
["Cladonia grayi G. Merr. ex Sandst.*",2]
["Cladonia macilenta Hoffm.*",2]
["Cladonia peziziformis (With.) J. R. Laundon*",2]
["Cladonia polycarpoides Nyl.*",2]
["Cladonia pyxidata (L.) Hoffm.*",2]
["Cladonia squamosa Hoffm.",1]
["Cladonia strepsilis (Ach.) Grognot ",1]
["Cladonia subtenuis (Abbayes) Mattick*",2]
["Collema bachmanianum (Fink) Degel.*",2]
["Collema nigrescens (Hudson) DC.*",2]
["Collema subflaccidum Degel.",1]
["Collema tenax (Sw.) Ach.*",2]
["Dermatocarpon luridum (With.) J. R. Laundon*",2]
["Dermatocarpon miniatum (L.) W. Mann*",2]
["Dibaeis baeomyces (L. f.) Rambold & Hertel*",2]
["Flavoparmelia caperata (L.) Hale",1]
["Flavopunctelia flaventior (Stirton) Hale*",2]
["Flavopunctelia soredica (Nyl.) Hale",1]
["Heterodermia hypoleuca (Ach.) Trevisan",1]
["Heterodermia obscurata (Nyl.) Trevisan*",2]
["Heterodermia speciosa (Wulfen) Trevisan*",2]
["Hyperphyscia adglutinata (Florke) H. Mayrh. & Poelt",1]
["Hypotrachyna livida (Taylor) Hale",1]
["Leptogium corticola (Taylor) Tuck.*",2]
["Leptogium cyanescens (Rabenh.) Korber*",2]
["Leptogium dactylinum Tuck.*",2]
["Leptogium lichenoides (L.) Zahlbr.*",2]
["Melanohalia exasperata (De Not.) O. Blanco et al.*",2]
["Myelochroa aurulenta (Tuck.) Elix & Hale*",2]
["Myelochroa galbina (Ach.) Elix & Hale*",2]
["Myelochroa metarevoluta (Asah.) Elix & Hale",1]
["Parmelia squarrosa Hale",1]
["Parmelia sulcata Taylor",1]
["Parmotrema hypotropum (Nyl.) Hale",1]
["Parmotrema perforatum (Jacq.) A. Massal.*",2]
["Parmotrema stuppeum (Taylor) Hale",1]
["Peltigera evansiana Gyelnik*",2]
["Phaeophyscia adiastola (Essl.) Essl.",1]
["Phaeophyscia ciliata (Hoffm.) Moberg*",2]
["Phaeophyscia hirsuta (Mereschk.) Essl.",1]
["Phaeophyscia hirtella Essl.",1]
["Phaeophyscia pusilloides (Zahlbr.) Essl.",1]
["Phaeophyscia rubropulchra (Degel.) Essl.",1]
["Physcia adscendens (Fr.) H. Oliver*",2]
["Physcia aipolia (Ehrh. ex Humb.) Furnr.*",2]
["Physcia americana G. Merr.*",2]
["Physcia millegrana Degel.",1]
["Physcia stellaris (L.) Nyl.*",2]
["Physciella chloantha (Ach.) Essl.",1]
["Physconia detersa (Nyl.) Poelt*",2]
["Placidium aboretum (Schwein. ex Michener) Lendemer",1]
["Platismatia tuckermanii (Rav. ex Mont.) Breuss*",2]
["Punctelia bolliana (Mull. Arg.) Krog*",2]
["Punctelia borreri (Sm.) Krog*",2]
["Punctelia missouriensis G. Wilh. & Ladd",1]
["Punctelia rudecta (Ach.) Krog*",2]
["Punctelia subrudecta (Nyl.) Krog",1]
["Pycnothelia papillaria Durfour*",2]
["Pyxine sorediata (Ach.) Mont*",2]
["Pyxine subcinerea Stirton*",2]
["Ramalina americana Hale*",2]
["Ramalina celastri (Sprengel) Krog & Swinscow*",2]
["Ramalina farinacea (L.) Ach.*",2]
["Sticta beauvoisii Delise*",2]
["Xanthomendoza fallax (Hepp ex Arnold) Sochting, Karnfelt & S. Kondr.*",2]
["Xanthomendoza ulophyllodes (Rasanen) Sochting, Karnefelt & S. Kondr.*",2]
["Xanthomendoza weberi (S. Kondr. & Karnefelt) L. Lindblom*",2]

{"sheet":"HOCKING","index":37,"n_rows":121,"n_cols":2,"rows_kept":121,"cut":false,"hidden":false,"merged":[]}
["Lichen Taxa --HOCKING","Hocking"]
["Ahtiana aurescens (Tuck.) Thell & Randlane",1]
["Allocetraria oakesiana (Tuck.) Randlane & Thell",1]
["Anaptychia palmulata (Michaux) Vainio",1]
["Bryoria furcellata (Fr.) Brodo & Hawksw.*",2]
["Candelaria concolor (Dickson) Stein*",2]
["Canoparmelia crozalsiana (de Lesd. ex Harm.) Elix & Hale",1]
["Canoparmelia texana (Tuck.) Elix & Hale",1]
["Cetrelia chicitae (Culb.) Culb. & C. Culb.",1]
["Cladonia apodocarpa Robb.",1]
["Cladonia arbuscula (Wallr.) Flotow",1]
["Cladonia caespiticia (Pers.) Florke*",2]
["Cladonia caroliniana Tuck.",1]
["Cladonia cervicornis (Hoffm.) Ahti",1]
["Cladonia chlorophaea (Florke ex Sommerf.) Sprengel*",2]
["Cladonia coniocraea (Florke) Sprengel",1]
["Cladonia cristatella Tuck.",1]
["Cladonia cylindrica (A. Evans) A. Evans",1]
["Cladonia furcata (Hudson) Schrader",1]
["Cladonia grayi G. Merr. ex Sandst.*",2]
["Cladonia humilis (With.) J. R. Laundon*",2]
["Cladonia incrassata Florke*",2]
["Cladonia macilenta Hoffm.*",2]
["Cladonia mateocyatha Robbins*",2]
["Cladonia parasitica (Hoffm.) Hoffm.*",2]
["Cladonia peziziformis (With.) J. R. Laundon",1]
["Cladonia piedmontensis G. Merr.",1]
["Cladonia pleurota (Florke) Schaerer*",2]
["Cladonia polycarpoides Nyl.",1]
["Cladonia pyxidata (L.) Hoffm.",1]
["Cladonia rangiferina (L.) F. H. Wigg. ",1]
["Cladonia sobolescens Nyl. ex Vainio",1]
["Cladonia squamosa Hoffm.",1]
["Cladonia strepsilis (Ach.) Grognot*",2]
["Cladonia subtenuis (Abbayes) Mattick",1]
["Cladonia uncialis (L.) F. H. Wigg.",1]
["Coccocarpia palmicola (Sprengel) Arv. & D. J. Galloway*",2]
["Collema conglomeratum Hoffm.*",2]
["Collema subflaccidum Degel.",1]
["Dermatocarpon luridum (With.) J. R. Laundon",1]
["Dermatocarpon miniatum (L.) W. Mann*",2]
["Dibaeis absoluta (Tuck.) Kalb & Gierl",1]
["Dibaeis baeomyces (L. f.) Rambold & Hertel",1]
["Dirinaria frostii (Tuck.) Hale & Culb.",1]
["Evernia mesomorpha Nyl.",1]
["Flavoparmelia baltimorensis (Gyelnik & Foriss) Hale",1]
["Flavoparmelia caperata (L.) Hale",1]
["Flavopunctelia flaventior (Stirton) Hale",1]
["Flavopunctelia soredica (Nyl.) Hale",1]
["Heterodermia hypoleuca (Ach.) Trevisan*",2]
["Heterodermia leucomela (L.) Poelt",1]
["Heterodermia obscurata (Nyl.) Trevisan",1]
["Heterodermia speciosa (Wulfen) Trevisan",1]
["Hypogymnia physodes (Nyl.) Nyl.",1]
["Hypotrachyna livida (Taylor) Hale",1]
["Hypotrachyna showmanii Hale",1]
["Imshaugia aleurites (Ach.) S. F. Meyer",1]
["Imshaugia placorodia (Ach.) S. F. Meyer",1]
["Lasallia papulosa (Ach.) Llano",1]
["Leptogium austroamericanum (Malme) C. W. Dodge",1]
["Leptogium cyanescens (Rabenh.) Korber",1]
["Leptogium juniperinum Tuck.",1]
["Leptogium lichenoides (L.) Zahlbr.*",2]
["Leptogium milligranum Sierk",1]
["Leptogium tenuissimum (Dichson) Korber",1]
["Lobaria quercizans Michaux",1]
["Melanelixia subaurifera (Nyl.) O. Blanco et al.",1]
["Myelochroa aurulenta (Tuck.) Elix & Hale",1]
["Myelochroa galbina (Ach.) Elix & Hale",1]
["Myelochroa metarevoluta (Asah.) Elix & Hale",1]
["Parmelia squarrosa Hale",1]
["Parmelia sulcata Taylor",1]
["Parmelinopsis minarum (Vainio) Elix & Hale",1]
["Parmotrema arnoldii (Du Rietz) Hale",1]
["Parmotrema crinitum (Ach.) Choisy*",2]
["Parmotrema hypotropum (Nyl.) Hale",1]
["Parmotrema reticulatum (Taylor) M. Choisy*",2]
["Parmotrema stuppeum (Taylor) Hale",1]
["Parmotrema ultralucens (Krog) Hale",1]
["Parmotrema xanthinum (Mull. Arg.) Hale",1]
["Peltigera canina (L.) Willd.",1]
["Peltigera evansiana Gyelnik*",2]
["Peltigera horizontalis (Hudson) Baumg.*",2]
["Peltigera polydactylon (Necker) Hoffm.*",2]
["Peltigera praetextata (Florke ex Sommerf.) Zopf*",2]
["Phaeophyscia adiastola (Essl.) Essl.",1]
["Phaeophyscia pusilloides (Zahlbr.) Essl.",1]
["Phaeophyscia rubropulchra (Degel.) Essl.",1]
["Phaeophyscia squarrosa Kashiwadani",1]
["Physcia aipolia (Ehrh. ex Humb.) Furnr.",1]
["Physcia americana G. Merr.",1]
["Physcia millegrana Degel.",1]
["Physcia stellaris (L.) Nyl.",1]
["Physcia subtilis Degel.*",2]
["Physconia detersa (Nyl.) Poelt",1]
["Placidium aboretum (Schwein. ex Michener) Lendemer",1]
["Placidium squamulosum (Ach.) Breuss*",2]
["Platismatia tuckermanii (Rav. ex Mont.) Breuss",1]
["Punctelia borreri (Sm.) Krog*",2]
["Punctelia missouriensis G. Wilh. & Ladd",1]
["Punctelia rudecta (Ach.) Krog",1]
["Punctelia subrudecta (Nyl.) Krog",1]
["Pycnothelia papillaria Durfour",1]
["Pyxine sorediata (Ach.) Mont",1]
["Pyxine subcinerea Stirton",1]
["Ramalina intermedia (Delise ex Nyl.) Nyl.",1]
["Ramalina petrina Bowler & Rundel",1]
["Ramalina pollinaria (Westr.) Ach.",1]
["Ramalina roesleri (Hochst. ex Schaerer) Hue*",2]
["Sticta beauvoisii Delise*",2]
["Tuckermanella fendleri (Nyl.) Essl.",1]
["Tuckermannopsis americana (Sprengel) Hale",1]
["Tuckermannopsis ciliaris (ach.) Gyelnik",1]
["Umbilicaria mammulata (Ach.) Tuck.",1]
["Usnea amblyoclada (Mull. Arg.) Zahlbr.",1]
["Usnea strigosa (Ach.) Eaton",1]
["Xanthomendoza fallax (Hepp ex Arnold) Sochting, Karnfelt & S. Kondr.",1]
["Xanthomendoza ulophyllodes (Rasanen) Sochting, Karnefelt & S. Kondr.*",2]
["Xanthoparmelia conspersa (Ehrh. ex Ach.) Hale",1]
["Xanthoparmelia plittii (Gyelnik) Hale",1]
["Xanthoparmelia stenophylla (Ach.) Ahti & D. Hawksw.",1]

{"sheet":"HOLMES","index":38,"n_rows":67,"n_cols":2,"rows_kept":67,"cut":false,"hidden":false,"merged":[]}
["Lichen Taxa --HOLMES","Holmes"]
["Anaptychia palmulata (Michaux) Vainio",1]
["Bryoria furcellata (Fr.) Brodo & Hawksw.",1]
["Candelaria concolor (Dickson) Stein",1]
["Cetrelia chicitae (Culb.) Culb. & C. Culb.",1]
["Cladonia apodocarpa Robb.",1]
["Cladonia arbuscula (Wallr.) Flotow",1]
["Cladonia caespiticia (Pers.) Florke",1]
["Cladonia cervicornis (Hoffm.) Ahti",1]
["Cladonia chlorophaea (Florke ex Sommerf.) Sprengel",1]
["Cladonia coniocraea (Florke) Sprengel",1]
["Cladonia cristatella Tuck.",1]
["Cladonia cryptochlorophaea Asah.",1]
["Cladonia cylindrica (A. Evans) A. Evans",1]
["Cladonia fimbriata (L.) Fr.",1]
["Cladonia furcata (Hudson) Schrader",1]
["Cladonia grayi G. Merr. ex Sandst.",1]
["Cladonia humilis (With.) J. R. Laundon",1]
["Cladonia macilenta Hoffm.",1]
["Cladonia mateocyatha Robbins",1]
["Cladonia parasitica (Hoffm.) Hoffm.",1]
["Cladonia peziziformis (With.) J. R. Laundon",1]
["Cladonia piedmontensis G. Merr.",1]
["Cladonia pleurota (Florke) Schaerer",1]
["Cladonia polycarpoides Nyl.",1]
["Cladonia pyxidata (L.) Hoffm.",1]
["Cladonia ramulosa (With.) J. R. Laundon",1]
["Cladonia rei Schaerer",1]
["Cladonia sobolescens Nyl. ex Vainio",1]
["Cladonia squamosa Hoffm.",1]
["Cladonia subtenuis (Abbayes) Mattick",1]
["Evernia mesomorpha Nyl.",1]
["Flavoparmelia caperata (L.) Hale",1]
["Flavopunctelia flaventior (Stirton) Hale",1]
["Flavopunctelia soredica (Nyl.) Hale",1]
["Heterodermia speciosa (Wulfen) Trevisan",1]
["Hyperphyscia adglutinata (Florke) H. Mayrh. & Poelt*",2]
["Hypogymnia physodes (Nyl.) Nyl.",1]
["Imshaugia aleurites (Ach.) S. F. Meyer",1]
["Leptogium austroamericanum (Malme) C. W. Dodge",1]
["Leptogium cyanescens (Rabenh.) Korber",1]
["Melanelixia subaurifera (Nyl.) O. Blanco et al.",1]
["Myelochroa aurulenta (Tuck.) Elix & Hale",1]
["Parmelia squarrosa Hale",1]
["Parmelia sulcata Taylor",1]
["Parmelinopsis minarum (Vainio) Elix & Hale",1]
["Parmotrema hypotropum (Nyl.) Hale",1]
["Parmotrema reticulatum (Taylor) M. Choisy",1]
["Peltigera canina (L.) Willd.",1]
["Peltigera evansiana Gyelnik",1]
["Phaeophyscia adiastola (Essl.) Essl.",1]
["Phaeophyscia ciliata (Hoffm.) Moberg*",2]
["Phaeophyscia pusilloides (Zahlbr.) Essl.",1]
["Phaeophyscia rubropulchra (Degel.) Essl.",1]
["Physcia adscendens (Fr.) H. Oliver",1]
["Physcia aipolia (Ehrh. ex Humb.) Furnr.",1]
["Physcia americana G. Merr.*",2]
["Physcia millegrana Degel.",1]
["Physcia stellaris (L.) Nyl.",1]
["Physconia detersa (Nyl.) Poelt*",2]
["Punctelia rudecta (Ach.) Krog",1]
["Pyxine sorediata (Ach.) Mont",1]
["Pyxine subcinerea Stirton",1]
["Usnea strigosa (Ach.) Eaton",1]
["Xanthomendoza fallax (Hepp ex Arnold) Sochting, Karnfelt & S. Kondr.*",2]
["Xanthoparmelia cumberlandia (Gyelnik) Hale",1]
["Xanthoparmelia plittii (Gyelnik) Hale",1]

{"sheet":"HURON","index":39,"n_rows":25,"n_cols":2,"rows_kept":25,"cut":false,"hidden":false,"merged":[]}
["Lichen Taxa --HURON","Huron"]
["Candelaria concolor (Dickson) Stein",1]
["Cladonia cristatella Tuck.*",2]
["Cladonia grayi G. Merr. ex Sandst.*",2]
["Cladonia peziziformis (With.) J. R. Laundon*",2]
["Cladonia rei Schaerer*",2]
["Flavoparmelia caperata (L.) Hale*",2]
["Flavopunctelia flaventior (Stirton) Hale",1]
["Flavopunctelia soredica (Nyl.) Hale*",2]
["Parmelia sulcata Taylor",1]
["Phaeophyscia ciliata (Hoffm.) Moberg",1]
["Phaeophyscia hirsuta (Mereschk.) Essl.",1]
["Phaeophyscia rubropulchra (Degel.) Essl.",1]
["Physcia adscendens (Fr.) H. Oliver",1]
["Physcia aipolia (Ehrh. ex Humb.) Furnr.*",2]
["Physcia millegrana Degel.",1]
["Physcia stellaris (L.) Nyl.*",2]
["Physconia detersa (Nyl.) Poelt*",2]
["Physconia enteroxantha (Nyl.) Poelt",1]
["Punctelia bolliana (Mull. Arg.) Krog*",2]
["Punctelia borreri (Sm.) Krog*",2]
["Punctelia rudecta (Ach.) Krog",1]
["Xanthomendoza fallax (Hepp ex Arnold) Sochting, Karnfelt & S. Kondr.*",2]
["Xanthomendoza ulophyllodes (Rasanen) Sochting, Karnefelt & S. Kondr.*",2]
["Xanthomendoza weberi (S. Kondr. & Karnefelt) L. Lindblom",1]

{"sheet":"JACKSON","index":40,"n_rows":79,"n_cols":2,"rows_kept":79,"cut":false,"hidden":false,"merged":[]}
["Lichen Taxa --JACKSON","Jackson"]
["Ahtiana aurescens (Tuck.) Thell & Randlane",1]
["Bryoria furcellata (Fr.) Brodo & Hawksw.*",2]
["Candelaria concolor (Dickson) Stein",1]
["Canoparmelia crozalsiana (de Lesd. ex Harm.) Elix & Hale",1]
["Canoparmelia texana (Tuck.) Elix & Hale",1]
["Cladonia apodocarpa Robb.",1]
["Cladonia coniocraea (Florke) Sprengel",1]
["Cladonia cristatella Tuck.*",2]
["Cladonia furcata (Hudson) Schrader*",2]
["Cladonia peziziformis (With.) J. R. Laundon*",2]
["Cladonia piedmontensis G. Merr.*",2]
["Cladonia rangiferina (L.) F. H. Wigg. ",1]
["Cladonia squamosa Hoffm.",1]
["Cladonia subtenuis (Abbayes) Mattick",1]
["Cladonia uncialis (L.) F. H. Wigg.",1]
["Dermatocarpon luridum (With.) J. R. Laundon*",2]
["Dibaeis baeomyces (L. f.) Rambold & Hertel",1]
["Dirinaria frostii (Tuck.) Hale & Culb.",1]
["Evernia mesomorpha Nyl.",1]
["Flavoparmelia baltimorensis (Gyelnik & Foriss) Hale",1]
["Flavoparmelia caperata (L.) Hale",1]
["Flavopunctelia flaventior (Stirton) Hale",1]
["Heterodermia granulifera (Ach.) Culb.",1]
["Heterodermia obscurata (Nyl.) Trevisan*",2]
["Heterodermia speciosa (Wulfen) Trevisan",1]
["Hypotrachyna livida (Taylor) Hale",1]
["Hypotrachyna showmanii Hale",1]
["Imshaugia aleurites (Ach.) S. F. Meyer",1]
["Lasallia papulosa (Ach.) Llano",1]
["Leptogium cyanescens (Rabenh.) Korber",1]
["Lobaria quercizans Michaux",1]
["Melanelixia subaurifera (Nyl.) O. Blanco et al.",1]
["Myelochroa aurulenta (Tuck.) Elix & Hale",1]
["Myelochroa galbina (Ach.) Elix & Hale",1]
["Parmelia squarrosa Hale",1]
["Parmelia sulcata Taylor",1]
["Parmelinopsis minarum (Vainio) Elix & Hale",1]
["Parmotrema chinense (Osbeck) Hale & Ahti",1]
["Parmotrema hypotropum (Nyl.) Hale",1]
["Parmotrema madagascariaceum (Hue) Hale*",2]
["Parmotrema reticulatum (Taylor) M. Choisy",1]
["Parmotrema stuppeum (Taylor) Hale",1]
["Parmotrema xanthinum (Mull. Arg.) Hale",1]
["Peltigera canina (L.) Willd.*",2]
["Peltigera polydactylon (Necker) Hoffm.*",2]
["Phaeophyscia adiastola (Essl.) Essl.",1]
["Phaeophyscia ciliata (Hoffm.) Moberg*",2]
["Phaeophyscia pusilloides (Zahlbr.) Essl.",1]
["Phaeophyscia rubropulchra (Degel.) Essl.",1]
["Physcia aipolia (Ehrh. ex Humb.) Furnr.",1]
["Physcia americana G. Merr.",1]
["Physcia millegrana Degel.",1]
["Physcia stellaris (L.) Nyl.",1]
["Physcia subtilis Degel.",1]
["Physciella chloantha (Ach.) Essl.",1]
["Physconia detersa (Nyl.) Poelt*",2]
["Platismatia tuckermanii (Rav. ex Mont.) Breuss",1]
["Punctelia perreticulata (Rasanen) Wilhelm & Ladd",1]
["Punctelia rudecta (Ach.) Krog",1]
["Pycnothelia papillaria Durfour",1]
["Pyxine sorediata (Ach.) Mont",1]
["Pyxine subcinerea Stirton",1]
["Ramalina americana Hale",1]
["Ramalina intermedia (Delise ex Nyl.) Nyl.",1]
["Ramalina petrina Bowler & Rundel",1]
["Ramalina pollinaria (Westr.) Ach.",1]
["Tuckermannopsis ciliaris (ach.) Gyelnik",1]
["Umbilicaria mammulata (Ach.) Tuck.",1]
["Usnea amblyoclada (Mull. Arg.) Zahlbr.",1]
["Usnea ceratina Ach.*",2]
["Usnea mutabilis Stirton*",2]
["Usnea pensylvanica Motyka",1]
["Usnea strigosa (Ach.) Eaton",1]
["Usnea subscabrosa Mott.",1]
["Xanthomendoza fallax (Hepp ex Arnold) Sochting, Karnfelt & S. Kondr.",1]
["Xanthomendoza weberi (S. Kondr. & Karnefelt) L. Lindblom",1]
["Xanthoparmelia conspersa (Ehrh. ex Ach.) Hale",1]
["Xanthoparmelia plittii (Gyelnik) Hale",1]

{"sheet":"JEFFERSON","index":41,"n_rows":46,"n_cols":2,"rows_kept":46,"cut":false,"hidden":false,"merged":[]}
["Lichen Taxa --JEFFERSON","Jefferson"]
["Anaptychia palmulata (Michaux) Vainio*",2]
["Candelaria concolor (Dickson) Stein",1]
["Cladonia apodocarpa Robb.*",2]
["Cladonia cervicornis (Hoffm.) Ahti*",2]
["Cladonia chlorophaea (Florke ex Sommerf.) Sprengel*",2]
["Cladonia coniocraea (Florke) Sprengel",1]
["Cladonia cristatella Tuck.",1]
["Cladonia cryptochlorophaea Asah.*",2]
["Cladonia cylindrica (A. Evans) A. Evans*",2]
["Cladonia furcata (Hudson) Schrader*",2]
["Cladonia grayi G. Merr. ex Sandst.*",2]
["Cladonia humilis (With.) J. R. Laundon*",2]
["Cladonia macilenta Hoffm.*",2]
["Cladonia parasitica (Hoffm.) Hoffm.*",2]
["Cladonia piedmontensis G. Merr.*",2]
["Cladonia pleurota (Florke) Schaerer*",2]
["Cladonia polycarpoides Nyl.*",2]
["Cladonia pyxidata (L.) Hoffm.*",2]
["Cladonia rei Schaerer*",2]
["Cladonia sobolescens Nyl. ex Vainio*",2]
["Cladonia squamosa Hoffm.*",2]
["Cladonia subtenuis (Abbayes) Mattick*",2]
["Dermatocarpon luridum (With.) J. R. Laundon*",2]
["Flavoparmelia caperata (L.) Hale",1]
["Flavopunctelia flaventior (Stirton) Hale",1]
["Heterodermia speciosa (Wulfen) Trevisan*",2]
["Hypogymnia physodes (Nyl.) Nyl.",1]
["Leptogium lichenoides (L.) Zahlbr.",1]
["Myelochroa aurulenta (Tuck.) Elix & Hale",1]
["Myelochroa obsessa (Ach.0 Elix & Hale",1]
["Parmelia sulcata Taylor",1]
["Peltigera canina (L.) Willd.*",2]
["Peltigera polydactylon (Necker) Hoffm.*",2]
["Peltigera praetextata (Florke ex Sommerf.) Zopf*",2]
["Phaeophyscia adiastola (Essl.) Essl.",1]
["Phaeophyscia hirsuta (Mereschk.) Essl.",1]
["Phaeophyscia pusilloides (Zahlbr.) Essl.",1]
["Phaeophyscia rubropulchra (Degel.) Essl.",1]
["Physcia adscendens (Fr.) H. Oliver",1]
["Physcia millegrana Degel.",1]
["Punctelia bolliana (Mull. Arg.) Krog*",2]
["Punctelia rudecta (Ach.) Krog*",2]
["Punctelia subrudecta (Nyl.) Krog*",2]
["Xanthoparmelia conspersa (Ehrh. ex Ach.) Hale*",2]
["Xanthoparmelia plittii (Gyelnik) Hale*",2]

{"sheet":"KNOX","index":42,"n_rows":34,"n_cols":2,"rows_kept":34,"cut":false,"hidden":false,"merged":[]}
["Lichen Taxa --KNOX","Knox"]
["Candelaria concolor (Dickson) Stein*",2]
["Candelaria fibrosa (Fr.) Mull. Arg.*",2]
["Cladonia caespiticia (Pers.) Florke*",2]
["Cladonia cervicornis (Hoffm.) Ahti*",2]
["Cladonia coniocraea (Florke) Sprengel*",2]
["Cladonia cristatella Tuck.*",2]
["Cladonia furcata (Hudson) Schrader*",2]
["Cladonia peziziformis (With.) J. R. Laundon*",2]
["Cladonia polycarpoides Nyl.*",2]
["Cladonia pyxidata (L.) Hoffm.*",2]
["Cladonia subtenuis (Abbayes) Mattick*",2]
["Flavoparmelia caperata (L.) Hale*",2]
["Flavopunctelia flaventior (Stirton) Hale*",2]
["Flavopunctelia soredica (Nyl.) Hale*",2]
["Hyperphyscia syncolla (Tuck. ex Nyl.) Kalb*",2]
["Leptogium subtile (Schrader) Torss.*",2]
["Parmelia sulcata Taylor*",2]
["Peltigera canina (L.) Willd.*",2]
["Phaeophyscia ciliata (Hoffm.) Moberg",1]
["Phaeophyscia hirsuta (Mereschk.) Essl.",1]
["Phaeophyscia squarrosa Kashiwadani",1]
["Physcia adscendens (Fr.) H. Oliver",1]
["Physcia aipolia (Ehrh. ex Humb.) Furnr.*",2]
["Physcia americana G. Merr.*",2]
["Physcia millegrana Degel.*",2]
["Physcia stellaris (L.) Nyl.*",2]
["Physconia detersa (Nyl.) Poelt*",2]
["Punctelia bolliana (Mull. Arg.) Krog",1]
["Punctelia borreri (Sm.) Krog*",2]
["Punctelia rudecta (Ach.) Krog*",2]
["Punctelia subrudecta (Nyl.) Krog*",2]
["Xanthomendoza fallax (Hepp ex Arnold) Sochting, Karnfelt & S. Kondr.*",2]
["Xanthomendoza weberi (S. Kondr. & Karnefelt) L. Lindblom*",2]

{"sheet":"LAKE","index":43,"n_rows":41,"n_cols":2,"rows_kept":41,"cut":false,"hidden":false,"merged":[]}
["Lichen Taxa --LAKE","Lake"]
["Anaptychia palmulata (Michaux) Vainio*",2]
["Candelaria concolor (Dickson) Stein*",2]
["Candelaria fibrosa (Fr.) Mull. Arg.*",2]
["Canomaculina subtinctoria (Zahlbr.) Elix*",2]
["Cladonia caespiticia (Pers.) Florke*",2]
["Cladonia chlorophaea (Florke ex Sommerf.) Sprengel*",2]
["Cladonia coniocraea (Florke) Sprengel*",2]
["Cladonia cryptochlorophaea Asah.*",2]
["Cladonia fimbriata (L.) Fr.*",2]
["Cladonia furcata (Hudson) Schrader*",2]
["Cladonia humilis (With.) J. R. Laundon*",2]
["Cladonia peziziformis (With.) J. R. Laundon*",2]
["Cladonia pleurota (Florke) Schaerer*",2]
["Cladonia polycarpoides Nyl.*",2]
["Cladonia pyxidata (L.) Hoffm.*",2]
["Cladonia rei Schaerer*",2]
["Cladonia squamosa Hoffm.*",2]
["Cladonia subtenuis (Abbayes) Mattick*",2]
["Hyperphyscia syncolla (Tuck. ex Nyl.) Kalb*",2]
["Imshaugia aleurites (Ach.) S. F. Meyer*",2]
["Lobaria quercizans Michaux*",2]
["Melanelixia subaurifera (Nyl.) O. Blanco et al.*",2]
["Parmelia sulcata Taylor*",2]
["Parmotrema hypotropum (Nyl.) Hale*",2]
["Parmotrema margaritatum (Hue) Hale*",2]
["Parmotrema reticulatum (Taylor) M. Choisy*",2]
["Peltigera aphthosa (L.) Willd.*",2]
["Peltigera horizontalis (Hudson) Baumg.*",2]
["Phaeophyscia ciliata (Hoffm.) Moberg*",2]
["Physcia adscendens (Fr.) H. Oliver*",2]
["Physcia aipolia (Ehrh. ex Humb.) Furnr.*",2]
["Physcia millegrana Degel.*",2]
["Physcia stellaris (L.) Nyl.*",2]
["Stereocaulon saxatile H. Magn.*",2]
["Usnea pensylvanica Motyka*",2]
["Xanthomendoza fallax (Hepp ex Arnold) Sochting, Karnfelt & S. Kondr.*",2]
["Xanthomendoza hasseana (Rasanen) Sochting, Karnefelt & S. Kondr.*",2]
["Xanthomendoza ulophyllodes (Rasanen) Sochting, Karnefelt & S. Kondr.*",2]
["Xanthoparmelia stenophylla (Ach.) Ahti & D. Hawksw.*",2]
["Xanthoria polycarpa (Hoffm.) Rieber*",2]

{"sheet":"LAWRENCE","index":44,"n_rows":73,"n_cols":2,"rows_kept":73,"cut":false,"hidden":false,"merged":[]}
["Lichen Taxa --LAWRENCE","Lawrence"]
["Candelaria concolor (Dickson) Stein",1]
["Canoparmelia crozalsiana (de Lesd. ex Harm.) Elix & Hale",1]
["Cladonia apodocarpa Robb.",1]
["Cladonia caespiticia (Pers.) Florke*",2]
["Cladonia caroliniana Tuck.*",2]
["Cladonia cervicornis (Hoffm.) Ahti",1]
["Cladonia coniocraea (Florke) Sprengel",1]
["Cladonia cristatella Tuck.",1]
["Cladonia cryptochlorophaea Asah.*",2]
["Cladonia furcata (Hudson) Schrader",1]
["Cladonia grayi G. Merr. ex Sandst.",1]
["Cladonia macilenta Hoffm.",1]
["Cladonia peziziformis (With.) J. R. Laundon*",2]
["Cladonia polycarpoides Nyl.",1]
["Cladonia pyxidata (L.) Hoffm.*",2]
["Cladonia ramulosa (With.) J. R. Laundon",1]
["Cladonia sobolescens Nyl. ex Vainio*",2]
["Cladonia squamosa Hoffm.*",2]
["Cladonia subtenuis (Abbayes) Mattick*",2]
["Coccocarpia palmicola (Sprengel) Arv. & D. J. Galloway*",2]
["Collema subflaccidum Degel.*",2]
["Dermatocarpon luridum (With.) J. R. Laundon*",2]
["Dibaeis absoluta (Tuck.) Kalb & Gierl",1]
["Evernia mesomorpha Nyl.",1]
["Flavoparmelia baltimorensis (Gyelnik & Foriss) Hale",1]
["Flavoparmelia caperata (L.) Hale",1]
["Heterodermia obscurata (Nyl.) Trevisan",1]
["Heterodermia speciosa (Wulfen) Trevisan",1]
["Hypogymnia physodes (Nyl.) Nyl.",1]
["Hypotrachyna livida (Taylor) Hale",1]
["Hypotrachyna showmanii Hale",1]
["Lasallia papulosa (Ach.) Llano*",2]
["Leptogium cyanescens (Rabenh.) Korber*",2]
["Leptogium juniperinum Tuck.",1]
["Leptogium milligranum Sierk*",2]
["Melanelixia subaurifera (Nyl.) O. Blanco et al.",1]
["Myelochroa aurulenta (Tuck.) Elix & Hale",1]
["Myelochroa galbina (Ach.) Elix & Hale",1]
["Parmelia squarrosa Hale",1]
["Parmelia sulcata Taylor",1]
["Parmelinopsis minarum (Vainio) Elix & Hale",1]
["Parmotrema cetratum (Ach.) Hale",1]
["Parmotrema chinense (Osbeck) Hale & Ahti*",2]
["Parmotrema hypotropum (Nyl.) Hale",1]
["Parmotrema reticulatum (Taylor) M. Choisy",1]
["Parmotrema stuppeum (Taylor) Hale",1]
["Peltigera canina (L.) Willd.*",2]
["Peltigera polydactylon (Necker) Hoffm.",1]
["Phaeophyscia adiastola (Essl.) Essl.",1]
["Phaeophyscia pusilloides (Zahlbr.) Essl.",1]
["Phaeophyscia rubropulchra (Degel.) Essl.",1]
["Physcia aipolia (Ehrh. ex Humb.) Furnr.",1]
["Physcia americana G. Merr.",1]
["Physcia millegrana Degel.",1]
["Physcia stellaris (L.) Nyl.",1]
["Physconia detersa (Nyl.) Poelt*",2]
["Physconia leucoleiptes (Tuck.) Essl.",1]
["Punctelia missouriensis G. Wilh. & Ladd",1]
["Punctelia rudecta (Ach.) Krog",1]
["Punctelia subrudecta (Nyl.) Krog",1]
["Pyxine sorediata (Ach.) Mont",1]
["Pyxine subcinerea Stirton",1]
["Ramalina americana Hale",1]
["Ramalina complanata (Sw.) Ach.",1]
["Ramalina farinacea (L.) Ach.",1]
["Umbilicaria mammulata (Ach.) Tuck.*",2]
["Usnea mutabilis Stirton",1]
["Usnea pensylvanica Motyka",1]
["Usnea strigosa (Ach.) Eaton",1]
["Usnea substerilis Motyka",1]
["Xanthoparmelia conspersa (Ehrh. ex Ach.) Hale*",2]
["Xanthoparmelia plittii (Gyelnik) Hale*",2]

{"sheet":"LICKING","index":45,"n_rows":67,"n_cols":2,"rows_kept":67,"cut":false,"hidden":false,"merged":[]}
["Lichen Taxa --LICKING","Licking"]
["Anaptychia palmulata (Michaux) Vainio*",2]
["Candelaria concolor (Dickson) Stein*",2]
["Cladonia apodocarpa Robb.*",2]
["Cladonia caespiticia (Pers.) Florke",1]
["Cladonia cervicornis (Hoffm.) Ahti*",2]
["Cladonia coniocraea (Florke) Sprengel*",2]
["Cladonia cristatella Tuck.*",2]
["Cladonia cryptochlorophaea Asah.*",2]
["Cladonia cylindrica (A. Evans) A. Evans",1]
["Cladonia fimbriata (L.) Fr.*",2]
["Cladonia furcata (Hudson) Schrader*",2]
["Cladonia humilis (With.) J. R. Laundon*",2]
["Cladonia macilenta Hoffm.",1]
["Cladonia mateocyatha Robbins",1]
["Cladonia parasitica (Hoffm.) Hoffm.*",2]
["Cladonia peziziformis (With.) J. R. Laundon*",2]
["Cladonia pleurota (Florke) Schaerer",1]
["Cladonia polycarpoides Nyl.*",2]
["Cladonia pyxidata (L.) Hoffm.*",2]
["Cladonia sobolescens Nyl. ex Vainio*",2]
["Cladonia squamosa Hoffm.*",2]
["Cladonia subtenuis (Abbayes) Mattick*",2]
["Collema subflaccidum Degel.*",2]
["Dermatocarpon luridum (With.) J. R. Laundon*",2]
["Dibaeis baeomyces (L. f.) Rambold & Hertel",1]
["Flavoparmelia caperata (L.) Hale*",2]
["Flavopunctelia flaventior (Stirton) Hale",1]
["Heterodermia granulifera (Ach.) Culb.*",2]
["Heterodermia hypoleuca (Ach.) Trevisan",1]
["Heterodermia obscurata (Nyl.) Trevisan",1]
["Heterodermia speciosa (Wulfen) Trevisan*",2]
["Hyperphyscia adglutinata (Florke) H. Mayrh. & Poelt*",2]
["Hyperphyscia syncolla (Tuck. ex Nyl.) Kalb*",2]
["Lasallia papulosa (Ach.) Llano*",2]
["Lobaria quercizans Michaux*",2]
["Melanelixia subaurifera (Nyl.) O. Blanco et al.",1]
["Myelochroa aurulenta (Tuck.) Elix & Hale*",2]
["Myelochroa galbina (Ach.) Elix & Hale*",2]
["Parmelia sulcata Taylor*",2]
["Parmelinopsis minarum (Vainio) Elix & Hale",1]
["Parmotrema hypotropum (Nyl.) Hale",1]
["Parmotrema perforatum (Jacq.) A. Massal.",1]
["Peltigera canina (L.) Willd.*",2]
["Peltigera praetextata (Florke ex Sommerf.) Zopf*",2]
["Phaeophyscia ciliata (Hoffm.) Moberg",1]
["Phaeophyscia hirsuta (Mereschk.) Essl.",1]
["Phaeophyscia hispidula (Ach.) Essl.",1]
["Phaeophyscia pusilloides (Zahlbr.) Essl.",1]
["Phaeophyscia rubropulchra (Degel.) Essl.",1]
["Phaeophyscia squarrosa Kashiwadani*",2]
["Physcia adscendens (Fr.) H. Oliver",1]
["Physcia aipolia (Ehrh. ex Humb.) Furnr.*",2]
["Physcia americana G. Merr.",1]
["Physcia millegrana Degel.*",2]
["Physcia stellaris (L.) Nyl.*",2]
["Physconia detersa (Nyl.) Poelt*",2]
["Punctelia missouriensis G. Wilh. & Ladd*",2]
["Punctelia rudecta (Ach.) Krog*",2]
["Punctelia subrudecta (Nyl.) Krog*",2]
["Pyxine sorediata (Ach.) Mont*",2]
["Ramalina americana Hale*",2]
["Ramalina celastri (Sprengel) Krog & Swinscow*",2]
["Usnea mutabilis Stirton*",2]
["Usnea strigosa (Ach.) Eaton*",2]
["Xanthomendoza fallax (Hepp ex Arnold) Sochting, Karnfelt & S. Kondr.*",2]
["Xanthoparmelia conspersa (Ehrh. ex Ach.) Hale",1]

{"sheet":"LOGAN","index":46,"n_rows":36,"n_cols":2,"rows_kept":36,"cut":false,"hidden":false,"merged":[]}
["Lichen Taxa --LOGAN","Logan"]
["Candelaria concolor (Dickson) Stein*",2]
["Cladonia cervicornis (Hoffm.) Ahti*",2]
["Cladonia cristatella Tuck.*",2]
["Cladonia peziziformis (With.) J. R. Laundon*",2]
["Cladonia polycarpoides Nyl.*",2]
["Cladonia pyxidata (L.) Hoffm.*",2]
["Cladonia rei Schaerer*",2]
["Cladonia subtenuis (Abbayes) Mattick*",2]
["Collema subflaccidum Degel.*",2]
["Dermatocarpon miniatum (L.) W. Mann*",2]
["Flavoparmelia caperata (L.) Hale*",2]
["Flavopunctelia soredica (Nyl.) Hale",1]
["Leptogium aburnetiae C. W. Dodge*",2]
["Leptogium cyanescens (Rabenh.) Korber*",2]
["Leptogium lichenoides (L.) Zahlbr.*",2]
["Myelochroa aurulenta (Tuck.) Elix & Hale",1]
["Parmelia sulcata Taylor*",2]
["Phaeophyscia adiastola (Essl.) Essl.",1]
["Phaeophyscia ciliata (Hoffm.) Moberg*",2]
["Phaeophyscia hirsuta (Mereschk.) Essl.",1]
["Phaeophyscia squarrosa Kashiwadani*",2]
["Physcia adscendens (Fr.) H. Oliver",1]
["Physcia aipolia (Ehrh. ex Humb.) Furnr.*",2]
["Physcia americana G. Merr.*",2]
["Physcia millegrana Degel.*",2]
["Physcia stellaris (L.) Nyl.*",2]
["Physciella chloantha (Ach.) Essl.",1]
["Physconia detersa (Nyl.) Poelt*",2]
["Punctelia bolliana (Mull. Arg.) Krog*",2]
["Punctelia borreri (Sm.) Krog*",2]
["Punctelia missouriensis G. Wilh. & Ladd*",2]
["Punctelia rudecta (Ach.) Krog*",2]
["Punctelia subrudecta (Nyl.) Krog",1]
["Xanthomendoza fallax (Hepp ex Arnold) Sochting, Karnfelt & S. Kondr.*",2]
["Xanthomendoza ulophyllodes (Rasanen) Sochting, Karnefelt & S. Kondr.*",2]

{"sheet":"LORAIN","index":47,"n_rows":29,"n_cols":2,"rows_kept":29,"cut":false,"hidden":false,"merged":[]}
["Lichen Taxa --LORAIN","Lorain"]
["Candelaria concolor (Dickson) Stein",1]
["Canoparmelia crozalsiana (de Lesd. ex Harm.) Elix & Hale*",2]
["Cetraria arenaria Karnefelt*",2]
["Cladonia caespiticia (Pers.) Florke*",2]
["Cladonia cervicornis (Hoffm.) Ahti*",2]
["Cladonia coniocraea (Florke) Sprengel*",2]
["Cladonia cristatella Tuck.*",2]
["Cladonia cryptochlorophaea Asah.*",2]
["Cladonia furcata (Hudson) Schrader*",2]
["Cladonia grayi G. Merr. ex Sandst.*",2]
["Cladonia macilenta Hoffm.*",2]
["Cladonia parasitica (Hoffm.) Hoffm.*",2]
["Cladonia peziziformis (With.) J. R. Laundon*",2]
["Cladonia polycarpoides Nyl.*",2]
["Collema subflaccidum Degel.*",2]
["Flavoparmelia caperata (L.) Hale*",2]
["Flavopunctelia flaventior (Stirton) Hale*",2]
["Lobaria pulmonaria (L.) Hoffm.*",2]
["Lobaria quercizans Michaux",1]
["Myelochroa aurulenta (Tuck.) Elix & Hale*",2]
["Parmelia sulcata Taylor*",2]
["Peltigera canina (L.) Willd.*",2]
["Phaeophyscia adiastola (Essl.) Essl.",1]
["Physcia adscendens (Fr.) H. Oliver*",2]
["Physcia aipolia (Ehrh. ex Humb.) Furnr.*",2]
["Physcia millegrana Degel.*",2]
["Physcia stellaris (L.) Nyl.*",2]
["Punctelia rudecta (Ach.) Krog*",2]

{"sheet":"LUCAS","index":48,"n_rows":39,"n_cols":2,"rows_kept":39,"cut":false,"hidden":false,"merged":[]}
["Lichen Taxa --LUCAS","Lucas"]
["Bryoria furcellata (Fr.) Brodo & Hawksw.",1]
["Candelaria concolor (Dickson) Stein*",2]
["Cladonia cervicornis (Hoffm.) Ahti*",2]
["Cladonia chlorophaea (Florke ex Sommerf.) Sprengel*",2]
["Cladonia coniocraea (Florke) Sprengel*",2]
["Cladonia cristatella Tuck.*",2]
["Cladonia fimbriata (L.) Fr.*",2]
["Cladonia grayi G. Merr. ex Sandst.*",2]
["Cladonia peziziformis (With.) J. R. Laundon*",2]
["Cladonia polycarpoides Nyl.*",2]
["Cladonia pyxidata (L.) Hoffm.*",2]
["Cladonia rei Schaerer*",2]
["Evernia mesomorpha Nyl.",1]
["Flavoparmelia caperata (L.) Hale*",2]
["Flavopunctelia flaventior (Stirton) Hale",1]
["Flavopunctelia soredica (Nyl.) Hale",1]
["Heterodermia echinata (Taylor) Culb.*",2]
["Hyperphyscia adglutinata (Florke) H. Mayrh. & Poelt",1]
["Melanelixia subaurifera (Nyl.) O. Blanco et al.",1]
["Myelochroa aurulenta (Tuck.) Elix & Hale*",2]
["Myelochroa galbina (Ach.) Elix & Hale*",2]
["Parmelia sulcata Taylor*",2]
["Parmotrema reticulatum (Taylor) M. Choisy",1]
["Peltigera didactyla (With.) J. R. Laundon*",2]
["Phaeophyscia adiastola (Essl.) Essl.",1]
["Phaeophyscia hirsuta (Mereschk.) Essl.",1]
["Phaeophyscia pusilloides (Zahlbr.) Essl.",1]
["Phaeophyscia rubropulchra (Degel.) Essl.",1]
["Physcia adscendens (Fr.) H. Oliver",1]
["Physcia aipolia (Ehrh. ex Humb.) Furnr.",1]
["Physcia millegrana Degel.",1]
["Physcia stellaris (L.) Nyl.*",2]
["Physciella chloantha (Ach.) Essl.",1]
["Physconia detersa (Nyl.) Poelt",1]
["Punctelia rudecta (Ach.) Krog*",2]
["Ramalina intermedia (Delise ex Nyl.) Nyl.",1]
["Xanthomendoza fallax (Hepp ex Arnold) Sochting, Karnfelt & S. Kondr.",1]
["Xanthomendoza ulophyllodes (Rasanen) Sochting, Karnefelt & S. Kondr. ",1]

{"sheet":"MADISON","index":49,"n_rows":29,"n_cols":2,"rows_kept":29,"cut":false,"hidden":false,"merged":[]}
["Lichen Taxa --MADISON","Madison"]
["Candelaria concolor (Dickson) Stein*",2]
["Cladonia cristatella Tuck.*",2]
["Cladonia polycarpoides Nyl.*",2]
["Cladonia subtenuis (Abbayes) Mattick*",2]
["Flavoparmelia caperata (L.) Hale*",2]
["Heterodermia granulifera (Ach.) Culb.*",2]
["Heterodermia hypoleuca (Ach.) Trevisan*",2]
["Heterodermia obscurata (Nyl.) Trevisan*",2]
["Heterodermia speciosa (Wulfen) Trevisan*",2]
["Hyperphyscia adglutinata (Florke) H. Mayrh. & Poelt*",2]
["Melanelixia subaurifera (Nyl.) O. Blanco et al.*",2]
["Myelochroa aurulenta (Tuck.) Elix & Hale*",2]
["Myelochroa galbina (Ach.) Elix & Hale*",2]
["Parmotrema hypotropum (Nyl.) Hale*",2]
["Phaeophyscia ciliata (Hoffm.) Moberg*",2]
["Phaeophyscia rubropulchra (Degel.) Essl.",1]
["Physcia millegrana Degel.*",2]
["Physcia stellaris (L.) Nyl.*",2]
["Physconia detersa (Nyl.) Poelt*",2]
["Punctelia bolliana (Mull. Arg.) Krog*",2]
["Punctelia missouriensis G. Wilh. & Ladd*",2]
["Punctelia rudecta (Ach.) Krog*",2]
["Punctelia subrudecta (Nyl.) Krog*",2]
["Ramalina americana Hale*",2]
["Ramalina celastri (Sprengel) Krog & Swinscow*",2]
["Usnea pensylvanica Motyka*",2]
["Xanthomendoza fallax (Hepp ex Arnold) Sochting, Karnfelt & S. Kondr.*",2]
["Xanthomendoza ulophyllodes (Rasanen) Sochting, Karnefelt & S. Kondr.*",2]

{"sheet":"MAHONING","index":50,"n_rows":23,"n_cols":2,"rows_kept":23,"cut":false,"hidden":false,"merged":[]}
["Lichen Taxa --MAHONING","Mahoning"]
["Candelaria concolor (Dickson) Stein",1]
["Cladonia cervicornis (Hoffm.) Ahti*",2]
["Cladonia cristatella Tuck.",1]
["Cladonia grayi G. Merr. ex Sandst.*",2]
["Cladonia macilenta Hoffm.*",2]
["Cladonia pleurota (Florke) Schaerer*",2]
["Cladonia sobolescens Nyl. ex Vainio*",2]
["Cladonia squamosa Hoffm.*",2]
["Cladonia strepsilis (Ach.) Grognot*",2]
["Cladonia subtenuis (Abbayes) Mattick*",2]
["Flavoparmelia caperata (L.) Hale",1]
["Flavopunctelia soredica (Nyl.) Hale",1]
["Myelochroa aurulenta (Tuck.) Elix & Hale",1]
["Parmelia sulcata Taylor",1]
["Phaeophyscia adiastola (Essl.) Essl.",1]
["Phaeophyscia rubropulchra (Degel.) Essl.",1]
["Physcia adscendens (Fr.) H. Oliver",1]
["Physcia aipolia (Ehrh. ex Humb.) Furnr.",1]
["Physcia millegrana Degel.",1]
["Physcia stellaris (L.) Nyl.*",2]
["Physciella chloantha (Ach.) Essl.",1]
["Xanthoparmelia plittii (Gyelnik) Hale*",2]

{"sheet":"MARION","index":51,"n_rows":29,"n_cols":2,"rows_kept":29,"cut":false,"hidden":false,"merged":[]}
["Lichen Taxa --MARION","Marion"]
["Cladonia coniocraea (Florke) Sprengel*",2]
["Cladonia cristatella Tuck.*",2]
["Cladonia cylindrica (A. Evans) A. Evans*",2]
["Flavoparmelia caperata (L.) Hale*",2]
["Flavopunctelia flaventior (Stirton) Hale*",2]
["Hyperphyscia syncolla (Tuck. ex Nyl.) Kalb*",2]
["Leptogium lichenoides (L.) Zahlbr.*",2]
["Lobaria pulmonaria (L.) Hoffm.*",2]
["Myelochroa galbina (Ach.) Elix & Hale*",2]
["Parmelia sulcata Taylor*",2]
["Parmelinopsis minarum (Vainio) Elix & Hale*",2]
["Phaeophyscia ciliata (Hoffm.) Moberg*",2]
["Phaeophyscia decolor (Kashiw.) Essl.",1]
["Phaeophyscia squarrosa Kashiwadani",1]
["Physcia adscendens (Fr.) H. Oliver",1]
["Physcia aipolia (Ehrh. ex Humb.) Furnr.",1]
["Physcia millegrana Degel.*",2]
["Physcia stellaris (L.) Nyl.*",2]
["Physconia detersa (Nyl.) Poelt",1]
["Placidium squamulosum (Ach.) Breuss",1]
["Punctelia bolliana (Mull. Arg.) Krog*",2]
["Punctelia borreri (Sm.) Krog*",2]
["Punctelia rudecta (Ach.) Krog*",2]
["Punctelia subrudecta (Nyl.) Krog*",2]
["Ramalina celastri (Sprengel) Krog & Swinscow*",2]
["Xanthomendoza fallax (Hepp ex Arnold) Sochting, Karnfelt & S. Kondr.*",2]
["Xanthomendoza hasseana (Rasanen) Sochting, Karnefelt & S. Kondr.*",2]
["Xanthomendoza ulophyllodes (Rasanen) Sochting, Karnefelt & S. Kondr.*",2]

{"sheet":"MEDINA","index":52,"n_rows":43,"n_cols":2,"rows_kept":43,"cut":false,"hidden":false,"merged":[]}
["Lichen Taxa --MEDINA","Medina"]
["Cladonia caespiticia (Pers.) Florke*",2]
["Cladonia cervicornis (Hoffm.) Ahti*",2]
["Cladonia chlorophaea (Florke ex Sommerf.) Sprengel*",2]
["Cladonia coniocraea (Florke) Sprengel*",2]
["Cladonia cristatella Tuck.*",2]
["Cladonia cryptochlorophaea Asah.*",2]
["Cladonia cylindrica (A. Evans) A. Evans*",2]
["Cladonia fimbriata (L.) Fr.*",2]
["Cladonia furcata (Hudson) Schrader*",2]
["Cladonia grayi G. Merr. ex Sandst.*",2]
["Cladonia humilis (With.) J. R. Laundon*",2]
["Cladonia macilenta Hoffm.*",2]
["Cladonia parasitica (Hoffm.) Hoffm.*",2]
["Cladonia peziziformis (With.) J. R. Laundon*",2]
["Cladonia pleurota (Florke) Schaerer*",2]
["Cladonia polycarpoides Nyl.*",2]
["Cladonia pyxidata (L.) Hoffm.*",2]
["Cladonia rei Schaerer*",2]
["Cladonia sobolescens Nyl. ex Vainio*",2]
["Flavoparmelia caperata (L.) Hale*",2]
["Flavopunctelia flaventior (Stirton) Hale*",2]
["Hypogymnia physodes (Nyl.) Nyl.*",2]
["Leptogium corticola (Taylor) Tuck.*",2]
["Melanelixia subaurifera (Nyl.) O. Blanco et al.*",2]
["Myelochroa aurulenta (Tuck.) Elix & Hale*",2]
["Myelochroa galbina (Ach.) Elix & Hale*",2]
["Parmelia squarrosa Hale*",2]
["Parmelia sulcata Taylor*",2]
["Parmotrema cetratum (Ach.) Hale*",2]
["Parmotrema reticulatum (Taylor) M. Choisy*",2]
["Parmotrema stuppeum (Taylor) Hale*",2]
["Peltigera canina (L.) Willd.*",2]
["Peltigera evansiana Gyelnik*",2]
["Phaeophyscia adiastola (Essl.) Essl.",1]
["Phaeophyscia ciliata (Hoffm.) Moberg*",2]
["Phaeophyscia pusilloides (Zahlbr.) Essl.",1]
["Physcia aipolia (Ehrh. ex Humb.) Furnr.*",2]
["Physcia millegrana Degel.*",2]
["Physconia leucoleiptes (Tuck.) Essl.*",2]
["Punctelia rudecta (Ach.) Krog*",2]
["Ramalina americana Hale*",2]
["Ramalina complanata (Sw.) Ach.*",2]

{"sheet":"MEIGS","index":53,"n_rows":100,"n_cols":2,"rows_kept":100,"cut":false,"hidden":false,"merged":[]}
["Lichen Taxa --MEIGS","Meigs"]
["Allocetraria oakesiana (Tuck.) Randlane & Thell",1]
["Anaptychia palmulata (Michaux) Vainio",1]
["Bryoria furcellata (Fr.) Brodo & Hawksw.",1]
["Candelaria concolor (Dickson) Stein",1]
["Canoparmelia crozalsiana (de Lesd. ex Harm.) Elix & Hale",1]
["Cladonia apodocarpa Robb.",1]
["Cladonia arbuscula (Wallr.) Flotow",1]
["Cladonia caespiticia (Pers.) Florke",1]
["Cladonia caroliniana Tuck.",1]
["Cladonia cervicornis (Hoffm.) Ahti",1]
["Cladonia coniocraea (Florke) Sprengel",1]
["Cladonia cristatella Tuck.",1]
["Cladonia cylindrica (A. Evans) A. Evans",1]
["Cladonia furcata (Hudson) Schrader",1]
["Cladonia humilis (With.) J. R. Laundon",1]
["Cladonia macilenta Hoffm.",1]
["Cladonia peziziformis (With.) J. R. Laundon",1]
["Cladonia piedmontensis G. Merr.",1]
["Cladonia pleurota (Florke) Schaerer",1]
["Cladonia polycarpoides Nyl.",1]
["Cladonia pyxidata (L.) Hoffm.",1]
["Cladonia rangiferina (L.) F. H. Wigg. ",1]
["Cladonia rei Schaerer",1]
["Cladonia sobolescens Nyl. ex Vainio",1]
["Cladonia squamosa Hoffm.",1]
["Cladonia strepsilis (Ach.) Grognot ",1]
["Cladonia subtenuis (Abbayes) Mattick",1]
["Cladonia uncialis (L.) F. H. Wigg.",1]
["Coccocarpia palmicola (Sprengel) Arv. & D. J. Galloway",1]
["Collema subflaccidum Degel.",1]
["Dermatocarpon luridum (With.) J. R. Laundon",1]
["Dibaeis baeomyces (L. f.) Rambold & Hertel",1]
["Dirinaria frostii (Tuck.) Hale & Culb.",1]
["Flavoparmelia baltimorensis (Gyelnik & Foriss) Hale",1]
["Flavoparmelia caperata (L.) Hale",1]
["Flavopunctelia flaventior (Stirton) Hale",1]
["Flavopunctelia soredica (Nyl.) Hale",1]
["Heterodermia granulifera (Ach.) Culb.",1]
["Heterodermia hypoleuca (Ach.) Trevisan",1]
["Heterodermia obscurata (Nyl.) Trevisan",1]
["Heterodermia speciosa (Wulfen) Trevisan",1]
["Hypogymnia physodes (Nyl.) Nyl.",1]
["Hypotrachyna livida (Taylor) Hale",1]
["Hypotrachyna showmanii Hale",1]
["Imshaugia aleurites (Ach.) S. F. Meyer",1]
["Imshaugia placorodia (Ach.) S. F. Meyer",1]
["Lasallia papulosa (Ach.) Llano",1]
["Leptogium cyanescens (Rabenh.) Korber",1]
["Leptogium juniperinum Tuck.",1]
["Leptogium lichenoides (L.) Zahlbr.",1]
["Melanelixia subaurifera (Nyl.) O. Blanco et al.",1]
["Myelochroa aurulenta (Tuck.) Elix & Hale",1]
["Myelochroa galbina (Ach.) Elix & Hale",1]
["Myelochroa obsessa (Ach.0 Elix & Hale",1]
["Parmelia squarrosa Hale",1]
["Parmelia sulcata Taylor",1]
["Parmelinopsis minarum (Vainio) Elix & Hale",1]
["Parmotrema hypotropum (Nyl.) Hale",1]
["Parmotrema reticulatum (Taylor) M. Choisy",1]
["Parmotrema stuppeum (Taylor) Hale",1]
["Parmotrema xanthinum (Mull. Arg.) Hale",1]
["Peltigera canina (L.) Willd.",1]
["Peltigera evansiana Gyelnik",1]
["Peltigera praetextata (Florke ex Sommerf.) Zopf",1]
["Phaeophyscia ciliata (Hoffm.) Moberg",1]
["Phaeophyscia decolor (Kashiw.) Essl.",1]
["Phaeophyscia hirtella Essl.",1]
["Phaeophyscia rubropulchra (Degel.) Essl.",1]
["Phaeophyscia squarrosa Kashiwadani",1]
["Physcia adscendens (Fr.) H. Oliver",1]
["Physcia aipolia (Ehrh. ex Humb.) Furnr.",1]
["Physcia americana G. Merr.",1]
["Physcia millegrana Degel.",1]
["Physcia stellaris (L.) Nyl.",1]
["Physcia subtilis Degel.",1]
["Physconia detersa (Nyl.) Poelt",1]
["Platismatia tuckermanii (Rav. ex Mont.) Breuss",1]
["Pseudevernia consocians (Vainio) Hale & Culb.",1]
["Punctelia bolliana (Mull. Arg.) Krog",1]
["Punctelia borreri (Sm.) Krog*",2]
["Punctelia missouriensis G. Wilh. & Ladd",1]
["Punctelia rudecta (Ach.) Krog",1]
["Punctelia subrudecta (Nyl.) Krog",1]
["Pycnothelia papillaria Durfour",1]
["Pyxine sorediata (Ach.) Mont",1]
["Pyxine subcinerea Stirton",1]
["Ramalina intermedia (Delise ex Nyl.) Nyl.",1]
["Ramalina petrina Bowler & Rundel",1]
["Ramalina pollinaria (Westr.) Ach.",1]
["Tuckermanella fendleri (Nyl.) Essl.",1]
["Tuckermannopsis americana (Sprengel) Hale",1]
["Tuckermannopsis ciliaris (ach.) Gyelnik",1]
["Umbilicaria mammulata (Ach.) Tuck.",1]
["Usnea amblyoclada (Mull. Arg.) Zahlbr.",1]
["Usnea strigosa (Ach.) Eaton",1]
["Xanthomendoza fallax (Hepp ex Arnold) Sochting, Karnfelt & S. Kondr.",1]
["Xanthoparmelia plittii (Gyelnik) Hale",1]
["Xanthoparmelia stenophylla (Ach.) Ahti & D. Hawksw.",1]
["Xanthoparmelia tasmanica (Hook. F. & Taylor) Hale",1]

{"sheet":"MERCER","index":54,"n_rows":19,"n_cols":2,"rows_kept":19,"cut":false,"hidden":false,"merged":[]}
["Lichen Taxa --MERCER","Mercer"]
["Candelaria concolor (Dickson) Stein*",2]
["Flavoparmelia caperata (L.) Hale*",2]
["Myelochroa aurulenta (Tuck.) Elix & Hale*",2]
["Parmelia sulcata Taylor*",2]
["Phaeophyscia hirsuta (Mereschk.) Essl.",1]
["Physcia adscendens (Fr.) H. Oliver*",2]
["Physcia aipolia (Ehrh. ex Humb.) Furnr.*",2]
["Physcia americana G. Merr.*",2]
["Physcia millegrana Degel.*",2]
["Physcia stellaris (L.) Nyl.*",2]
["Physconia detersa (Nyl.) Poelt*",2]
["Punctelia bolliana (Mull. Arg.) Krog*",2]
["Punctelia borreri (Sm.) Krog*",2]
["Punctelia missouriensis G. Wilh. & Ladd*",2]
["Punctelia rudecta (Ach.) Krog*",2]
["Punctelia subrudecta (Nyl.) Krog*",2]
["Xanthomendoza fallax (Hepp ex Arnold) Sochting, Karnfelt & S. Kondr.*",2]
["Xanthomendoza ulophyllodes (Rasanen) Sochting, Karnefelt & S. Kondr.*",2]

{"sheet":"MIAMI","index":55,"n_rows":36,"n_cols":2,"rows_kept":36,"cut":false,"hidden":false,"merged":[]}
["Lichen Taxa --MIAMI","Miami"]
["Candelaria concolor (Dickson) Stein*",2]
["Cladonia fimbriata (L.) Fr.*",2]
["Cladonia furcata (Hudson) Schrader*",2]
["Cladonia humilis (With.) J. R. Laundon*",2]
["Cladonia macilenta Hoffm.",1]
["Cladonia ochrochlora Florke",1]
["Cladonia peziziformis (With.) J. R. Laundon*",2]
["Cladonia pyxidata (L.) Hoffm.*",2]
["Cladonia squamosa Hoffm.*",2]
["Dermatocarpon miniatum (L.) W. Mann*",2]
["Flavoparmelia caperata (L.) Hale*",2]
["Flavopunctelia flaventior (Stirton) Hale*",2]
["Heterodermia speciosa (Wulfen) Trevisan*",2]
["Leptogium lichenoides (L.) Zahlbr.*",2]
["Parmotrema hypotropum (Nyl.) Hale",1]
["Peltigera canina (L.) Willd.*",2]
["Peltigera polydactylon (Necker) Hoffm.*",2]
["Peltigera praetextata (Florke ex Sommerf.) Zopf*",2]
["Phaeophyscia adiastola (Essl.) Essl.",1]
["Phaeophyscia ciliata (Hoffm.) Moberg*",2]
["Phaeophyscia hirtella Essl.",1]
["Phaeophyscia pusilloides (Zahlbr.) Essl.",1]
["Phaeophyscia rubropulchra (Degel.) Essl.",1]
["Physcia aipolia (Ehrh. ex Humb.) Furnr.*",2]
["Physcia americana G. Merr.*",2]
["Physcia millegrana Degel.*",2]
["Physcia stellaris (L.) Nyl.*",2]
["Physconia detersa (Nyl.) Poelt*",2]
["Physconia subpallida Essl.*",2]
["Punctelia bolliana (Mull. Arg.) Krog*",2]
["Punctelia borreri (Sm.) Krog*",2]
["Punctelia missouriensis G. Wilh. & Ladd*",2]
["Punctelia rudecta (Ach.) Krog*",2]
["Xanthomendoza fallax (Hepp ex Arnold) Sochting, Karnfelt & S. Kondr.*",2]
["Xanthomendoza ulophyllodes (Rasanen) Sochting, Karnefelt & S. Kondr.*",2]

{"sheet":"MONROE","index":56,"n_rows":73,"n_cols":2,"rows_kept":73,"cut":false,"hidden":false,"merged":[]}
["Lichen Taxa --MONROE","Monroe"]
["Anaptychia palmulata (Michaux) Vainio*",2]
["Candelaria concolor (Dickson) Stein",1]
["Canoparmelia crozalsiana (de Lesd. ex Harm.) Elix & Hale",1]
["Cladonia caespiticia (Pers.) Florke*",2]
["Cladonia cervicornis (Hoffm.) Ahti*",2]
["Cladonia chlorophaea (Florke ex Sommerf.) Sprengel*",2]
["Cladonia coniocraea (Florke) Sprengel",1]
["Cladonia cristatella Tuck.*",2]
["Cladonia cryptochlorophaea Asah.*",2]
["Cladonia cylindrica (A. Evans) A. Evans",1]
["Cladonia fimbriata (L.) Fr.*",2]
["Cladonia furcata (Hudson) Schrader",1]
["Cladonia grayi G. Merr. ex Sandst.*",2]
["Cladonia humilis (With.) J. R. Laundon*",2]
["Cladonia macilenta Hoffm.",1]
["Cladonia parasitica (Hoffm.) Hoffm.*",2]
["Cladonia peziziformis (With.) J. R. Laundon",1]
["Cladonia polycarpoides Nyl.*",2]
["Cladonia sobolescens Nyl. ex Vainio*",2]
["Cladonia squamosa Hoffm.*",2]
["Cladonia subtenuis (Abbayes) Mattick",1]
["Dermatocarpon luridum (With.) J. R. Laundon",1]
["Evernia mesomorpha Nyl.",1]
["Flavoparmelia baltimorensis (Gyelnik & Foriss) Hale",1]
["Flavoparmelia caperata (L.) Hale",1]
["Flavopunctelia flaventior (Stirton) Hale",1]
["Heterodermia echinata (Taylor) Culb.*",2]
["Heterodermia hypoleuca (Ach.) Trevisan*",2]
["Heterodermia obscurata (Nyl.) Trevisan*",2]
["Heterodermia speciosa (Wulfen) Trevisan",1]
["Hypotrachyna livida (Taylor) Hale*",2]
["Leptogium juniperinum Tuck.",1]
["Melanelixia subaurifera (Nyl.) O. Blanco et al.",1]
["Myelochroa aurulenta (Tuck.) Elix & Hale",1]
["Myelochroa galbina (Ach.) Elix & Hale*",2]
["Myelochroa metarevoluta (Asah.) Elix & Hale",1]
["Parmelia squarrosa Hale",1]
["Parmelia sulcata Taylor",1]
["Parmelinopsis minarum (Vainio) Elix & Hale",1]
["Parmotrema arnoldii (Du Rietz) Hale",1]
["Parmotrema chinense (Osbeck) Hale & Ahti",1]
["Parmotrema hypotropum (Nyl.) Hale",1]
["Parmotrema reticulatum (Taylor) M. Choisy*",2]
["Peltigera canina (L.) Willd.*",2]
["Peltigera evansiana Gyelnik*",2]
["Phaeophyscia adiastola (Essl.) Essl.",1]
["Phaeophyscia ciliata (Hoffm.) Moberg",1]
["Phaeophyscia decolor (Kashiw.) Essl.*",2]
["Phaeophyscia hirsuta (Mereschk.) Essl.",1]
["Phaeophyscia hirtella Essl.",1]
["Phaeophyscia pusilloides (Zahlbr.) Essl.",1]
["Phaeophyscia rubropulchra (Degel.) Essl.",1]
["Physcia adscendens (Fr.) H. Oliver",1]
["Physcia aipolia (Ehrh. ex Humb.) Furnr.",1]
["Physcia americana G. Merr.*",2]
["Physcia millegrana Degel.",1]
["Physcia stellaris (L.) Nyl.",1]
["Physciella chloantha (Ach.) Essl.",1]
["Physconia detersa (Nyl.) Poelt",1]
["Physconia leucoleiptes (Tuck.) Essl.",1]
["Punctelia bolliana (Mull. Arg.) Krog*",2]
["Punctelia rudecta (Ach.) Krog",1]
["Punctelia subrudecta (Nyl.) Krog",1]
["Pyxine sorediata (Ach.) Mont",1]
["Pyxine subcinerea Stirton",1]
["Usnea mutabilis Stirton",1]
["Usnea strigosa (Ach.) Eaton",1]
["Xanthomendoza fallax (Hepp ex Arnold) Sochting, Karnfelt & S. Kondr.*",2]
["Xanthomendoza ulophyllodes (Rasanen) Sochting, Karnefelt & S. Kondr.*",2]
["Xanthomendoza weberi (S. Kondr. & Karnefelt) L. Lindblom",1]
["Xanthoparmelia cumberlandia (Gyelnik) Hale",1]
["Xanthoparmelia plittii (Gyelnik) Hale",1]

{"sheet":"MONTGOMERY","index":57,"n_rows":51,"n_cols":2,"rows_kept":51,"cut":false,"hidden":false,"merged":[]}
["Lichen Taxa --MONTGOMERY","Montgomery"]
["Candelaria concolor (Dickson) Stein*",2]
["Canoparmelia crozalsiana (de Lesd. ex Harm.) Elix & Hale*",2]
["Cladonia apodocarpa Robb.",1]
["Cladonia cervicornis (Hoffm.) Ahti",1]
["Cladonia cristatella Tuck.",1]
["Cladonia fimbriata (L.) Fr.",1]
["Cladonia furcata (Hudson) Schrader",1]
["Cladonia grayi G. Merr. ex Sandst.",1]
["Cladonia macilenta Hoffm.",1]
["Cladonia ochrochlora Florke",1]
["Cladonia peziziformis (With.) J. R. Laundon*",2]
["Cladonia polycarpoides Nyl.*",2]
["Cladonia pyxidata (L.) Hoffm.",1]
["Cladonia rei Schaerer",1]
["Cladonia squamosa Hoffm.",1]
["Cladonia subtenuis (Abbayes) Mattick",1]
["Cladonia uncialis (L.) F. H. Wigg.",1]
["Dermatocarpon miniatum (L.) W. Mann*",2]
["Evernia mesomorpha Nyl.",1]
["Flavoparmelia caperata (L.) Hale*",2]
["Flavopunctelia flaventior (Stirton) Hale*",2]
["Flavopunctelia soredica (Nyl.) Hale",1]
["Melanelixia subaurifera (Nyl.) O. Blanco et al.",1]
["Myelochroa aurulenta (Tuck.) Elix & Hale*",2]
["Parmelia sulcata Taylor*",2]
["Parmotrema hypotropum (Nyl.) Hale",1]
["Parmotrema reticulatum (Taylor) M. Choisy",1]
["Parmotrema stuppeum (Taylor) Hale",1]
["Peltigera canina (L.) Willd.*",2]
["Phaeophyscia adiastola (Essl.) Essl.",1]
["Phaeophyscia hirsuta (Mereschk.) Essl.",1]
["Phaeophyscia pusilloides (Zahlbr.) Essl.",1]
["Phaeophyscia rubropulchra (Degel.) Essl.",1]
["Physcia adscendens (Fr.) H. Oliver",1]
["Physcia millegrana Degel.*",2]
["Physcia stellaris (L.) Nyl.*",2]
["Physciella chloantha (Ach.) Essl.",1]
["Physconia leucoleiptes (Tuck.) Essl.",1]
["Punctelia bolliana (Mull. Arg.) Krog*",2]
["Punctelia missouriensis G. Wilh. & Ladd*",2]
["Punctelia rudecta (Ach.) Krog*",2]
["Punctelia subrudecta (Nyl.) Krog",1]
["Pyxine sorediata (Ach.) Mont",1]
["Pyxine subcinerea Stirton",1]
["Usnea mutabilis Stirton",1]
["Xanthomendoza fallax (Hepp ex Arnold) Sochting, Karnfelt & S. Kondr.",1]
["Xanthomendoza ulophyllodes (Rasanen) Sochting, Karnefelt & S. Kondr.*",2]
["Xanthomendoza weberi (S. Kondr. & Karnefelt) L. Lindblom",1]
["Xanthoparmelia angustiphylla (Gyelnik) Hale",1]
["Xanthoparmelia cumberlandia (Gyelnik) Hale",1]

{"sheet":"MORGAN","index":58,"n_rows":68,"n_cols":2,"rows_kept":68,"cut":false,"hidden":false,"merged":[]}
["Lichen Taxa --MORGAN","Morgan"]
["Anaptychia palmulata (Michaux) Vainio",1]
["Anzia colpodes (Ach.) Stizenb.*",2]
["Candelaria concolor (Dickson) Stein",1]
["Canoparmelia crozalsiana (de Lesd. ex Harm.) Elix & Hale",1]
["Cladonia apodocarpa Robb.",1]
["Cladonia caroliniana Tuck.",1]
["Cladonia cervicornis (Hoffm.) Ahti",1]
["Cladonia coniocraea (Florke) Sprengel",1]
["Cladonia cristatella Tuck.",1]
["Cladonia cylindrica (A. Evans) A. Evans",1]
["Cladonia furcata (Hudson) Schrader",1]
["Cladonia peziziformis (With.) J. R. Laundon",1]
["Cladonia piedmontensis G. Merr.",1]
["Cladonia polycarpoides Nyl.*",2]
["Cladonia sobolescens Nyl. ex Vainio",1]
["Cladonia squamosa Hoffm.",1]
["Cladonia subtenuis (Abbayes) Mattick",1]
["Collema subflaccidum Degel.",1]
["Collema tenax (Sw.) Ach.",1]
["Dermatocarpon luridum (With.) J. R. Laundon",1]
["Dermatocarpon miniatum (L.) W. Mann",1]
["Dibaeis baeomyces (L. f.) Rambold & Hertel",1]
["Flavoparmelia baltimorensis (Gyelnik & Foriss) Hale",1]
["Flavoparmelia caperata (L.) Hale",1]
["Flavopunctelia soredica (Nyl.) Hale",1]
["Fuscopannaria leucophaea (Vahl) P. M. Jorg.",1]
["Heterodermia granulifera (Ach.) Culb.",1]
["Heterodermia speciosa (Wulfen) Trevisan",1]
["Hypogymnia physodes (Nyl.) Nyl.",1]
["Hypotrachyna livida (Taylor) Hale",1]
["Leptogium cyanescens (Rabenh.) Korber",1]
["Leptogium juniperinum Tuck.*",2]
["Leptogium lichenoides (L.) Zahlbr.",1]
["Lobaria pulmonaria (L.) Hoffm.*",2]
["Lobaria quercizans Michaux*",2]
["Melanelixia subaurifera (Nyl.) O. Blanco et al.",1]
["Myelochroa aurulenta (Tuck.) Elix & Hale",1]
["Myelochroa galbina (Ach.) Elix & Hale",1]
["Parmelia squarrosa Hale",1]
["Parmelia sulcata Taylor",1]
["Parmelinopsis minarum (Vainio) Elix & Hale",1]
["Parmotrema hypotropum (Nyl.) Hale",1]
["Parmotrema reticulatum (Taylor) M. Choisy*",2]
["Peltigera canina (L.) Willd.",1]
["Peltigera evansiana Gyelnik",1]
["Peltigera praetextata (Florke ex Sommerf.) Zopf",1]
["Phaeophyscia adiastola (Essl.) Essl.",1]
["Phaeophyscia ciliata (Hoffm.) Moberg",1]
["Phaeophyscia decolor (Kashiw.) Essl.",1]
["Phaeophyscia pusilloides (Zahlbr.) Essl.",1]
["Phaeophyscia rubropulchra (Degel.) Essl.",1]
["Phaeophyscia squarrosa Kashiwadani",1]
["Physcia adscendens (Fr.) H. Oliver",1]
["Physcia americana G. Merr.",1]
["Physcia millegrana Degel.",1]
["Physcia phaea (Tuck.) J. W. Thomson",1]
["Physcia stellaris (L.) Nyl.",1]
["Physcia subtilis Degel.",1]
["Punctelia bolliana (Mull. Arg.) Krog*",2]
["Punctelia borreri (Sm.) Krog*",2]
["Punctelia missouriensis G. Wilh. & Ladd*",2]
["Punctelia rudecta (Ach.) Krog",1]
["Punctelia subrudecta (Nyl.) Krog",1]
["Pyxine sorediata (Ach.) Mont",1]
["Pyxine subcinerea Stirton",1]
["Usnea strigosa (Ach.) Eaton*",2]
["Xanthoparmelia stenophylla (Ach.) Ahti & D. Hawksw.",1]

{"sheet":"MORROW","index":59,"n_rows":33,"n_cols":2,"rows_kept":33,"cut":false,"hidden":false,"merged":[]}
["Lichen Taxa --MORROW","Morrow"]
["Anaptychia palmulata (Michaux) Vainio",1]
["Candelaria concolor (Dickson) Stein",1]
["Canoparmelia crozalsiana (de Lesd. ex Harm.) Elix & Hale",1]
["Cladonia cylindrica (A. Evans) A. Evans",1]
["Cladonia polycarpoides Nyl.",1]
["Flavoparmelia caperata (L.) Hale",1]
["Flavopunctelia flaventior (Stirton) Hale",1]
["Flavopunctelia soredica (Nyl.) Hale",1]
["Heterodermia speciosa (Wulfen) Trevisan*",2]
["Hyperphyscia adglutinata (Florke) H. Mayrh. & Poelt",1]
["Myelochroa aurulenta (Tuck.) Elix & Hale",1]
["Parmelia sulcata Taylor",1]
["Parmotrema hypotropum (Nyl.) Hale",1]
["Parmotrema stuppeum (Taylor) Hale",1]
["Peltigera canina (L.) Willd.",1]
["Phaeophyscia ciliata (Hoffm.) Moberg",1]
["Phaeophyscia decolor (Kashiw.) Essl.",1]
["Phaeophyscia hirtella Essl.",1]
["Phaeophyscia rubropulchra (Degel.) Essl.",1]
["Physcia adscendens (Fr.) H. Oliver",1]
["Physcia aipolia (Ehrh. ex Humb.) Furnr.",1]
["Physcia millegrana Degel.",1]
["Physcia stellaris (L.) Nyl.",1]
["Physconia detersa (Nyl.) Poelt",1]
["Physconia enteroxantha (Nyl.) Poelt",1]
["Punctelia bolliana (Mull. Arg.) Krog",1]
["Punctelia missouriensis G. Wilh. & Ladd",1]
["Punctelia rudecta (Ach.) Krog",1]
["Punctelia subrudecta (Nyl.) Krog",1]
["Pyxine sorediata (Ach.) Mont",1]
["Xanthomendoza fallax (Hepp ex Arnold) Sochting, Karnfelt & S. Kondr.",1]
["Xanthomendoza weberi (S. Kondr. & Karnefelt) L. Lindblom",1]

{"sheet":"MUSKINGUM","index":60,"n_rows":72,"n_cols":2,"rows_kept":72,"cut":false,"hidden":false,"merged":[]}
["Lichen Taxa --MUSKINGUM","Muskingum"]
["Anaptychia palmulata (Michaux) Vainio*",2]
["Candelaria concolor (Dickson) Stein",1]
["Canoparmelia crozalsiana (de Lesd. ex Harm.) Elix & Hale",1]
["Cladonia apodocarpa Robb.",1]
["Cladonia cervicornis (Hoffm.) Ahti*",2]
["Cladonia chlorophaea (Florke ex Sommerf.) Sprengel*",2]
["Cladonia coniocraea (Florke) Sprengel",1]
["Cladonia cristatella Tuck.",1]
["Cladonia cryptochlorophaea Asah.*",2]
["Cladonia cylindrica (A. Evans) A. Evans*",2]
["Cladonia fimbriata (L.) Fr.*",2]
["Cladonia furcata (Hudson) Schrader",1]
["Cladonia grayi G. Merr. ex Sandst.*",2]
["Cladonia macilenta Hoffm.",1]
["Cladonia ochrochlora Florke",1]
["Cladonia parasitica (Hoffm.) Hoffm.*",2]
["Cladonia peziziformis (With.) J. R. Laundon",1]
["Cladonia piedmontensis G. Merr.*",2]
["Cladonia polycarpoides Nyl.",1]
["Cladonia rangiferina (L.) F. H. Wigg. ",1]
["Cladonia rei Schaerer",1]
["Cladonia sobolescens Nyl. ex Vainio",1]
["Cladonia squamosa Hoffm.",1]
["Cladonia subtenuis (Abbayes) Mattick",1]
["Collema nigrescens (Hudson) DC.*",2]
["Collema tenax (Sw.) Ach.*",2]
["Dermatocarpon luridum (With.) J. R. Laundon",1]
["Evernia mesomorpha Nyl.",1]
["Flavoparmelia baltimorensis (Gyelnik & Foriss) Hale",1]
["Flavoparmelia caperata (L.) Hale",1]
["Heterodermia obscurata (Nyl.) Trevisan",1]
["Heterodermia speciosa (Wulfen) Trevisan*",2]
["Hypogymnia physodes (Nyl.) Nyl.",1]
["Hypotrachyna livida (Taylor) Hale",1]
["Hypotrachyna showmanii Hale",1]
["Leptogium juniperinum Tuck.*",2]
["Leptogium lichenoides (L.) Zahlbr.*",2]
["Melanelixia subaurifera (Nyl.) O. Blanco et al.",1]
["Myelochroa aurulenta (Tuck.) Elix & Hale",1]
["Myelochroa galbina (Ach.) Elix & Hale",1]
["Myelochroa metarevoluta (Asah.) Elix & Hale",1]
["Parmelia sulcata Taylor",1]
["Parmelinopsis minarum (Vainio) Elix & Hale",1]
["Parmotrema chinense (Osbeck) Hale & Ahti",1]
["Parmotrema hypotropum (Nyl.) Hale",1]
["Parmotrema margaritatum (Hue) Hale",1]
["Parmotrema perforatum (Jacq.) A. Massal.*",2]
["Parmotrema stuppeum (Taylor) Hale",1]
["Peltigera canina (L.) Willd.",1]
["Peltigera evansiana Gyelnik",1]
["Peltigera praetextata (Florke ex Sommerf.) Zopf*",2]
["Phaeophyscia adiastola (Essl.) Essl.",1]
["Phaeophyscia ciliata (Hoffm.) Moberg",1]
["Phaeophyscia hirsuta (Mereschk.) Essl.",1]
["Phaeophyscia pusilloides (Zahlbr.) Essl.",1]
["Phaeophyscia rubropulchra (Degel.) Essl.",1]
["Physcia adscendens (Fr.) H. Oliver",1]
["Physcia americana G. Merr.",1]
["Physcia millegrana Degel.",1]
["Physcia pumilior R. C. Harris",1]
["Physcia stellaris (L.) Nyl.",1]
["Physciella chloantha (Ach.) Essl.",1]
["Physconia detersa (Nyl.) Poelt",1]
["Punctelia bolliana (Mull. Arg.) Krog",1]
["Punctelia rudecta (Ach.) Krog",1]
["Punctelia subrudecta (Nyl.) Krog",1]
["Pycnothelia papillaria Durfour",1]
["Pyxine sorediata (Ach.) Mont",1]
["Ramalina americana Hale*",2]
["Usnea strigosa (Ach.) Eaton",1]
["Xanthoparmelia tasmanica (Hook. F. & Taylor) Hale",1]

{"sheet":"NOBLE","index":61,"n_rows":53,"n_cols":2,"rows_kept":53,"cut":false,"hidden":false,"merged":[]}
["Lichen Taxa --NOBLE","Noble"]
["Anaptychia palmulata (Michaux) Vainio*",2]
["Candelaria concolor (Dickson) Stein*",2]
["Cladonia apodocarpa Robb.*",2]
["Cladonia cervicornis (Hoffm.) Ahti",1]
["Cladonia chlorophaea (Florke ex Sommerf.) Sprengel*",2]
["Cladonia coniocraea (Florke) Sprengel",1]
["Cladonia cristatella Tuck.",1]
["Cladonia cryptochlorophaea Asah.*",2]
["Cladonia cylindrica (A. Evans) A. Evans*",2]
["Cladonia furcata (Hudson) Schrader",1]
["Cladonia humilis (With.) J. R. Laundon*",2]
["Cladonia macilenta Hoffm.*",2]
["Cladonia parasitica (Hoffm.) Hoffm.*",2]
["Cladonia peziziformis (With.) J. R. Laundon*",2]
["Cladonia piedmontensis G. Merr.*",2]
["Cladonia polycarpoides Nyl.*",2]
["Cladonia pyxidata (L.) Hoffm.*",2]
["Cladonia rangiferina (L.) F. H. Wigg. ",1]
["Cladonia rei Schaerer*",2]
["Cladonia sobolescens Nyl. ex Vainio",1]
["Cladonia strepsilis (Ach.) Grognot ",1]
["Cladonia subtenuis (Abbayes) Mattick",1]
["Coccocarpia palmicola (Sprengel) Arv. & D. J. Galloway",1]
["Flavoparmelia caperata (L.) Hale",1]
["Flavopunctelia flaventior (Stirton) Hale",1]
["Heterodermia granulifera (Ach.) Culb.*",2]
["Heterodermia obscurata (Nyl.) Trevisan*",2]
["Heterodermia speciosa (Wulfen) Trevisan*",2]
["Hypotrachyna livida (Taylor) Hale",1]
["Imshaugia aleurites (Ach.) S. F. Meyer",1]
["Leptogium corticola (Taylor) Tuck.*",2]
["Melanelixia subaurifera (Nyl.) O. Blanco et al.*",2]
["Myelochroa aurulenta (Tuck.) Elix & Hale",1]
["Myelochroa galbina (Ach.) Elix & Hale",1]
["Myelochroa obsessa (Ach.0 Elix & Hale",1]
["Parmelia squarrosa Hale*",2]
["Parmelia sulcata Taylor",1]
["Parmelinopsis minarum (Vainio) Elix & Hale*",2]
["Parmotrema hypotropum (Nyl.) Hale",1]
["Peltigera canina (L.) Willd.*",2]
["Peltigera didactyla (With.) J. R. Laundon*",2]
["Peltigera evansiana Gyelnik*",2]
["Peltigera polydactylon (Necker) Hoffm.",1]
["Phaeophyscia rubropulchra (Degel.) Essl.",1]
["Physcia americana G. Merr.",1]
["Physcia millegrana Degel.",1]
["Physcia stellaris (L.) Nyl.",1]
["Physcia subtilis Degel.",1]
["Punctelia bolliana (Mull. Arg.) Krog*",2]
["Punctelia rudecta (Ach.) Krog*",2]
["Punctelia subrudecta (Nyl.) Krog*",2]
["Xanthoparmelia plittii (Gyelnik) Hale",1]

{"sheet":"OTTAWA","index":62,"n_rows":28,"n_cols":2,"rows_kept":28,"cut":false,"hidden":false,"merged":[]}
["Lichen Taxa --OTTAWA","Ottawa"]
["Candelaria concolor (Dickson) Stein*",2]
["Candelaria fibrosa (Fr.) Mull. Arg.*",2]
["Canomaculina subtinctoria (Zahlbr.) Elix*",2]
["Dermatocarpon luridum (With.) J. R. Laundon*",2]
["Dermatocarpon miniatum (L.) W. Mann*",2]
["Heterodermia echinata (Taylor) Culb.*",2]
["Hyperphyscia syncolla (Tuck. ex Nyl.) Kalb*",2]
["Leptogium lichenoides (L.) Zahlbr.*",2]
["Parmelia sulcata Taylor*",2]
["Parmotrema margaritatum (Hue) Hale*",2]
["Parmotrema reticulatum (Taylor) M. Choisy*",2]
["Phaeophyscia adiastola (Essl.) Essl.",1]
["Phaeophyscia ciliata (Hoffm.) Moberg*",2]
["Phaeophyscia hirsuta (Mereschk.) Essl.",1]
["Phaeophyscia rubropulchra (Degel.) Essl.",1]
["Physcia adscendens (Fr.) H. Oliver*",2]
["Physcia aipolia (Ehrh. ex Humb.) Furnr.*",2]
["Physcia millegrana Degel.*",2]
["Physcia stellaris (L.) Nyl.*",2]
["Physconia detersa (Nyl.) Poelt*",2]
["Physconia leucoleiptes (Tuck.) Essl.*",2]
["Punctelia bolliana (Mull. Arg.) Krog*",2]
["Punctelia rudecta (Ach.) Krog*",2]
["Usnea amblyoclada (Mull. Arg.) Zahlbr.*",2]
["Xanthomendoza fallax (Hepp ex Arnold) Sochting, Karnfelt & S. Kondr.*",2]
["Xanthomendoza ulophyllodes (Rasanen) Sochting, Karnefelt & S. Kondr.*",2]
["Xanthoria elegans (Link) Th. Fr.*",2]

{"sheet":"PAULDING","index":63,"n_rows":19,"n_cols":2,"rows_kept":19,"cut":false,"hidden":false,"merged":[]}
["Lichen Taxa --PAULDING","Paulding"]
["Candelaria concolor (Dickson) Stein*",2]
["Canoparmelia crozalsiana (de Lesd. ex Harm.) Elix & Hale*",2]
["Cladonia coniocraea (Florke) Sprengel*",2]
["Flavoparmelia caperata (L.) Hale*",2]
["Parmelia sulcata Taylor*",2]
["Phaeophyscia ciliata (Hoffm.) Moberg*",2]
["Phaeophyscia decolor (Kashiw.) Essl.*",2]
["Phaeophyscia rubropulchra (Degel.) Essl.",1]
["Physcia adscendens (Fr.) H. Oliver*",2]
["Physcia aipolia (Ehrh. ex Humb.) Furnr.*",2]
["Physcia americana G. Merr.*",2]
["Physcia millegrana Degel.*",2]
["Physcia stellaris (L.) Nyl.*",2]
["Physconia detersa (Nyl.) Poelt*",2]
["Punctelia bolliana (Mull. Arg.) Krog*",2]
["Punctelia rudecta (Ach.) Krog*",2]
["Punctelia subrudecta (Nyl.) Krog*",2]
["Xanthomendoza fallax (Hepp ex Arnold) Sochting, Karnfelt & S. Kondr.*",2]

{"sheet":"PERRY","index":64,"n_rows":37,"n_cols":2,"rows_kept":37,"cut":false,"hidden":false,"merged":[]}
["Lichen Taxa --PERRY","Perry"]
["Candelaria concolor (Dickson) Stein*",2]
["Canoparmelia crozalsiana (de Lesd. ex Harm.) Elix & Hale",1]
["Cladonia cristatella Tuck.*",2]
["Cladonia cylindrica (A. Evans) A. Evans",1]
["Cladonia grayi G. Merr. ex Sandst.*",2]
["Cladonia piedmontensis G. Merr.*",2]
["Cladonia pleurota (Florke) Schaerer*",2]
["Cladonia polycarpoides Nyl.*",2]
["Cladonia sobolescens Nyl. ex Vainio*",2]
["Cladonia strepsilis (Ach.) Grognot*",2]
["Cladonia subtenuis (Abbayes) Mattick*",2]
["Collema tenax (Sw.) Ach.*",2]
["Flavoparmelia caperata (L.) Hale*",2]
["Flavopunctelia flaventior (Stirton) Hale*",2]
["Flavopunctelia soredica (Nyl.) Hale*",2]
["Heterodermia granulifera (Ach.) Culb.*",2]
["Heterodermia hypoleuca (Ach.) Trevisan*",2]
["Hypotrachyna livida (Taylor) Hale*",2]
["Leptogium juniperinum Tuck.*",2]
["Myelochroa galbina (Ach.) Elix & Hale*",2]
["Parmelia sulcata Taylor*",2]
["Parmotrema hypotropum (Nyl.) Hale*",2]
["Phaeophyscia ciliata (Hoffm.) Moberg",1]
["Phaeophyscia hirsuta (Mereschk.) Essl.",1]
["Phaeophyscia rubropulchra (Degel.) Essl.",1]
["Physcia adscendens (Fr.) H. Oliver",1]
["Physcia aipolia (Ehrh. ex Humb.) Furnr.",1]
["Physcia millegrana Degel.*",2]
["Physcia stellaris (L.) Nyl.*",2]
["Physconia detersa (Nyl.) Poelt*",2]
["Punctelia missouriensis G. Wilh. & Ladd*",2]
["Punctelia rudecta (Ach.) Krog*",2]
["Punctelia subrudecta (Nyl.) Krog*",2]
["Pyxine sorediata (Ach.) Mont*",2]
["Pyxine subcinerea Stirton",1]
["Xanthomendoza fallax (Hepp ex Arnold) Sochting, Karnfelt & S. Kondr.",1]

{"sheet":"PICKAWAY","index":65,"n_rows":20,"n_cols":2,"rows_kept":20,"cut":false,"hidden":false,"merged":[]}
["Lichen Taxa --PICKAWAY","Pickaway"]
["Candelaria concolor (Dickson) Stein*",2]
["Cladonia peziziformis (With.) J. R. Laundon*",2]
["Flavoparmelia caperata (L.) Hale*",2]
["Flavopunctelia flaventior (Stirton) Hale*",2]
["Hypotrachyna livida (Taylor) Hale*",2]
["Myelochroa aurulenta (Tuck.) Elix & Hale*",2]
["Parmelia sulcata Taylor*",2]
["Parmotrema hypotropum (Nyl.) Hale*",2]
["Phaeophyscia rubropulchra (Degel.) Essl.",1]
["Physcia aipolia (Ehrh. ex Humb.) Furnr.*",2]
["Physcia millegrana Degel.*",2]
["Physcia stellaris (L.) Nyl.*",2]
["Physconia detersa (Nyl.) Poelt*",2]
["Physconia leucoleiptes (Tuck.) Essl.*",2]
["Punctelia bolliana (Mull. Arg.) Krog*",2]
["Punctelia borreri (Sm.) Krog*",2]
["Punctelia rudecta (Ach.) Krog*",2]
["Xanthomendoza fallax (Hepp ex Arnold) Sochting, Karnfelt & S. Kondr.*",2]
["Xanthomendoza ulophyllodes (Rasanen) Sochting, Karnefelt & S. Kondr.*",2]

{"sheet":"PIKE","index":66,"n_rows":80,"n_cols":2,"rows_kept":80,"cut":false,"hidden":false,"merged":[]}
["Lichen Taxa --PIKE","Pike"]
["Anaptychia palmulata (Michaux) Vainio*",2]
["Candelaria concolor (Dickson) Stein*",2]
["Canoparmelia crozalsiana (de Lesd. ex Harm.) Elix & Hale",1]
["Canoparmelia texana (Tuck.) Elix & Hale",1]
["Cladonia apodocarpa Robb.*",2]
["Cladonia caespiticia (Pers.) Florke*",2]
["Cladonia cervicornis (Hoffm.) Ahti*",2]
["Cladonia coniocraea (Florke) Sprengel*",2]
["Cladonia cristatella Tuck.*",2]
["Cladonia cryptochlorophaea Asah.*",2]
["Cladonia furcata (Hudson) Schrader*",2]
["Cladonia grayi G. Merr. ex Sandst.*",2]
["Cladonia humilis (With.) J. R. Laundon*",2]
["Cladonia macilenta Hoffm.",1]
["Cladonia parasitica (Hoffm.) Hoffm.*",2]
["Cladonia peziziformis (With.) J. R. Laundon",1]
["Cladonia piedmontensis G. Merr.",1]
["Cladonia pleurota (Florke) Schaerer*",2]
["Cladonia polycarpoides Nyl.*",2]
["Cladonia ramulosa (With.) J. R. Laundon",1]
["Cladonia rangiferina (L.) F. H. Wigg.*",2]
["Cladonia sobolescens Nyl. ex Vainio*",2]
["Cladonia squamosa Hoffm.*",2]
["Cladonia strepsilis (Ach.) Grognot*",2]
["Cladonia subtenuis (Abbayes) Mattick*",2]
["Cladonia uncialis (L.) F. H. Wigg.",1]
["Collema bachmanianum (Fink) Degel.",1]
["Collema coccophorum Tuck.",1]
["Collema fuscovirens (With.) J. R. Laundon",1]
["Collema subflaccidum Degel.",1]
["Dermatocarpon miniatum (L.) W. Mann",1]
["Dibaeis baeomyces (L. f.) Rambold & Hertel*",2]
["Flavoparmelia baltimorensis (Gyelnik & Foriss) Hale",1]
["Flavoparmelia caperata (L.) Hale",1]
["Flavopunctelia soredica (Nyl.) Hale",1]
["Heterodermia leucomela (L.) Poelt",1]
["Heterodermia obscurata (Nyl.) Trevisan*",2]
["Heterodermia speciosa (Wulfen) Trevisan",1]
["Hypotrachyna livida (Taylor) Hale*",2]
["Hypotrachyna showmanii Hale",1]
["Imshaugia aleurites (Ach.) S. F. Meyer",1]
["Lasallia papulosa (Ach.) Llano",1]
["Leptogium cyanescens (Rabenh.) Korber",1]
["Melanelixia subaurifera (Nyl.) O. Blanco et al.*",2]
["Myelochroa aurulenta (Tuck.) Elix & Hale*",2]
["Myelochroa galbina (Ach.) Elix & Hale",1]
["Myelochroa metarevoluta (Asah.) Elix & Hale",1]
["Myelochroa obsessa (Ach.0 Elix & Hale*",2]
["Parmelia squarrosa Hale*",2]
["Parmelia sulcata Taylor",1]
["Parmelinopsis horrescens (Taylor) Elix & Hale*",2]
["Parmelinopsis minarum (Vainio) Elix & Hale",1]
["Parmotrema austrosinense (Zahlbr.) Hale",1]
["Parmotrema hypotropum (Nyl.) Hale",1]
["Parmotrema perforatum (Jacq.) A. Massal.*",2]
["Parmotrema stuppeum (Taylor) Hale*",2]
["Parmotrema submarginale (Michaux.) DePriest & B. Hale*",2]
["Peltigera evansiana Gyelnik*",2]
["Phaeophyscia adiastola (Essl.) Essl.",1]
["Phaeophyscia pusilloides (Zahlbr.) Essl.",1]
["Phaeophyscia rubropulchra (Degel.) Essl.",1]
["Phaeophyscia squarrosa Kashiwadani",1]
["Physcia americana G. Merr.*",2]
["Physcia millegrana Degel.",1]
["Physcia stellaris (L.) Nyl.*",2]
["Physcia subtilis Degel.*",2]
["Physconia detersa (Nyl.) Poelt",1]
["Placidium squamulosum (Ach.) Breuss",1]
["Platismatia tuckermanii (Rav. ex Mont.) Breuss",1]
["Punctelia missouriensis G. Wilh. & Ladd*",2]
["Punctelia rudecta (Ach.) Krog",1]
["Punctelia subrudecta (Nyl.) Krog",1]
["Pyxine sorediata (Ach.) Mont",1]
["Pyxine subcinerea Stirton",1]
["Ramalina americana Hale*",2]
["Ramalina celastri (Sprengel) Krog & Swinscow*",2]
["Usnea strigosa (Ach.) Eaton",1]
["Xanthoparmelia conspersa (Ehrh. ex Ach.) Hale",1]
["Xanthoparmelia plittii (Gyelnik) Hale",1]

{"sheet":"PORTAGE","index":67,"n_rows":22,"n_cols":2,"rows_kept":22,"cut":false,"hidden":false,"merged":[]}
["Lichen Taxa --PORTAGE","Portage"]
["Anaptychia palmulata (Michaux) Vainio*",2]
["Bryoria furcellata (Fr.) Brodo & Hawksw.*",2]
["Cladonia caespiticia (Pers.) Florke*",2]
["Cladonia cervicornis (Hoffm.) Ahti",1]
["Cladonia coniocraea (Florke) Sprengel*",2]
["Cladonia squamosa Hoffm.*",2]
["Flavoparmelia caperata (L.) Hale*",2]
["Melanelixia subaurifera (Nyl.) O. Blanco et al.*",2]
["Myelochroa aurulenta (Tuck.) Elix & Hale*",2]
["Myelochroa galbina (Ach.) Elix & Hale*",2]
["Parmelia sulcata Taylor*",2]
["Phaeophyscia adiastola (Essl.) Essl.",1]
["Phaeophyscia rubropulchra (Degel.) Essl.",1]
["Phaeophyscia squarrosa Kashiwadani*",2]
["Physcia adscendens (Fr.) H. Oliver*",2]
["Physcia aipolia (Ehrh. ex Humb.) Furnr.*",2]
["Physcia millegrana Degel.*",2]
["Punctelia rudecta (Ach.) Krog*",2]
["Ramalina americana Hale*",2]
["Usnea strigosa (Ach.) Eaton*",2]
["Xanthoparmelia conspersa (Ehrh. ex Ach.) Hale*",2]

{"sheet":"PREBLE","index":68,"n_rows":53,"n_cols":2,"rows_kept":53,"cut":false,"hidden":false,"merged":[]}
["Lichen Taxa --PREBLE","Preble"]
["Candelaria concolor (Dickson) Stein*",2]
["Canoparmelia crozalsiana (de Lesd. ex Harm.) Elix & Hale",1]
["Cladonia arbuscula (Wallr.) Flotow",1]
["Cladonia caespiticia (Pers.) Florke*",2]
["Cladonia cervicornis (Hoffm.) Ahti",1]
["Cladonia chlorophaea (Florke ex Sommerf.) Sprengel",1]
["Cladonia cristatella Tuck.",1]
["Cladonia furcata (Hudson) Schrader",1]
["Cladonia grayi G. Merr. ex Sandst.*",2]
["Cladonia humilis (With.) J. R. Laundon*",2]
["Cladonia parasitica (Hoffm.) Hoffm.*",2]
["Cladonia peziziformis (With.) J. R. Laundon*",2]
["Cladonia piedmontensis G. Merr.*",2]
["Cladonia pleurota (Florke) Schaerer*",2]
["Cladonia pyxidata (L.) Hoffm.*",2]
["Collema nigrescens (Hudson) DC.*",2]
["Collema subflaccidum Degel.*",2]
["Collema tenax (Sw.) Ach.*",2]
["Ephebe lanata (L.) Vainio*",2]
["Flavoparmelia caperata (L.) Hale",1]
["Flavopunctelia soredica (Nyl.) Hale",1]
["Heterodermia obscurata (Nyl.) Trevisan",1]
["Heterodermia speciosa (Wulfen) Trevisan*",2]
["Leptogium cyanescens (Rabenh.) Korber*",2]
["Leptogium lichenoides (L.) Zahlbr.*",2]
["Lobaria quercizans Michaux*",2]
["Myelochroa aurulenta (Tuck.) Elix & Hale",1]
["Myelochroa galbina (Ach.) Elix & Hale",1]
["Parmelia sulcata Taylor",1]
["Parmotrema stuppeum (Taylor) Hale",1]
["Peltigera canina (L.) Willd.*",2]
["Phaeophyscia ciliata (Hoffm.) Moberg*",2]
["Phaeophyscia hirtella Essl.",1]
["Phaeophyscia rubropulchra (Degel.) Essl.",1]
["Physcia adscendens (Fr.) H. Oliver*",2]
["Physcia aipolia (Ehrh. ex Humb.) Furnr.*",2]
["Physcia americana G. Merr.",1]
["Physcia halei J. W. Thomson*",2]
["Physcia millegrana Degel.",1]
["Physcia stellaris (L.) Nyl.",1]
["Physcia subtilis Degel.*",2]
["Physconia detersa (Nyl.) Poelt*",2]
["Physconia leucoleiptes (Tuck.) Essl.*",2]
["Physconia subpallida Essl.*",2]
["Punctelia bolliana (Mull. Arg.) Krog",1]
["Punctelia borreri (Sm.) Krog*",2]
["Punctelia missouriensis G. Wilh. & Ladd*",2]
["Punctelia rudecta (Ach.) Krog",1]
["Pyxine sorediata (Ach.) Mont",1]
["Pyxine subcinerea Stirton",1]
["Xanthomendoza fallax (Hepp ex Arnold) Sochting, Karnfelt & S. Kondr.",1]
["Xanthomendoza weberi (S. Kondr. & Karnefelt) L. Lindblom*",2]

{"sheet":"PUTNAM","index":69,"n_rows":16,"n_cols":2,"rows_kept":16,"cut":false,"hidden":false,"merged":[]}
["Lichen Taxa --PUTNAM","Putnam"]
["Flavoparmelia caperata (L.) Hale*",2]
["Myelochroa aurulenta (Tuck.) Elix & Hale*",2]
["Parmelia sulcata Taylor",1]
["Phaeophyscia decolor (Kashiw.) Essl.*",2]
["Physcia adscendens (Fr.) H. Oliver*",2]
["Physcia aipolia (Ehrh. ex Humb.) Furnr.*",2]
["Physcia americana G. Merr.*",2]
["Physcia millegrana Degel.*",2]
["Physciella chloantha (Ach.) Essl.",1]
["Physconia leucoleiptes (Tuck.) Essl.*",2]
["Punctelia bolliana (Mull. Arg.) Krog*",2]
["Punctelia borreri (Sm.) Krog",1]
["Punctelia rudecta (Ach.) Krog*",2]
["Punctelia subrudecta (Nyl.) Krog*",2]
["Xanthomendoza fallax (Hepp ex Arnold) Sochting, Karnfelt & S. Kondr.*",2]

{"sheet":"RICHLAND","index":70,"n_rows":39,"n_cols":2,"rows_kept":39,"cut":false,"hidden":false,"merged":[]}
["Lichen Taxa --RICHLAND","Richland"]
["Anaptychia palmulata (Michaux) Vainio*",2]
["Cladonia caespiticia (Pers.) Florke*",2]
["Cladonia cervicornis (Hoffm.) Ahti*",2]
["Cladonia coniocraea (Florke) Sprengel*",2]
["Cladonia cristatella Tuck.*",2]
["Cladonia cylindrica (A. Evans) A. Evans*",2]
["Cladonia fimbriata (L.) Fr.*",2]
["Cladonia furcata (Hudson) Schrader*",2]
["Cladonia grayi G. Merr. ex Sandst.*",2]
["Cladonia humilis (With.) J. R. Laundon*",2]
["Cladonia macilenta Hoffm.*",2]
["Cladonia parasitica (Hoffm.) Hoffm.*",2]
["Cladonia peziziformis (With.) J. R. Laundon*",2]
["Cladonia polycarpoides Nyl.*",2]
["Cladonia strepsilis (Ach.) Grognot*",2]
["Flavoparmelia caperata (L.) Hale",1]
["Flavopunctelia flaventior (Stirton) Hale",1]
["Flavopunctelia soredica (Nyl.) Hale",1]
["Heterodermia speciosa (Wulfen) Trevisan*",2]
["Hyperphyscia syncolla (Tuck. ex Nyl.) Kalb*",2]
["Hypogymnia physodes (Nyl.) Nyl.",1]
["Melanelixia subaurifera (Nyl.) O. Blanco et al.*",2]
["Myelochroa aurulenta (Tuck.) Elix & Hale",1]
["Myelochroa galbina (Ach.) Elix & Hale",1]
["Parmelia sulcata Taylor",1]
["Peltigera canina (L.) Willd.*",2]
["Peltigera praetextata (Florke ex Sommerf.) Zopf*",2]
["Phaeophyscia adiastola (Essl.) Essl.",1]
["Phaeophyscia ciliata (Hoffm.) Moberg*",2]
["Phaeophyscia pusilloides (Zahlbr.) Essl.",1]
["Phaeophyscia rubropulchra (Degel.) Essl.",1]
["Physcia adscendens (Fr.) H. Oliver*",2]
["Physcia millegrana Degel.",1]
["Physcia stellaris (L.) Nyl.*",2]
["Physconia detersa (Nyl.) Poelt*",2]
["Punctelia bolliana (Mull. Arg.) Krog",1]
["Punctelia rudecta (Ach.) Krog",1]
["Pyxine sorediata (Ach.) Mont*",2]

{"sheet":"ROSS","index":71,"n_rows":62,"n_cols":2,"rows_kept":62,"cut":false,"hidden":false,"merged":[]}
["Lichen Taxa --ROSS","Ross"]
["Candelaria concolor (Dickson) Stein*",2]
["Canoparmelia crozalsiana (de Lesd. ex Harm.) Elix & Hale*",2]
["Cladonia apodocarpa Robb.*",2]
["Cladonia caespiticia (Pers.) Florke*",2]
["Cladonia caroliniana Tuck.*",2]
["Cladonia cervicornis (Hoffm.) Ahti*",2]
["Cladonia coniocraea (Florke) Sprengel*",2]
["Cladonia cristatella Tuck.*",2]
["Cladonia cryptochlorophaea Asah.*",2]
["Cladonia cylindrica (A. Evans) A. Evans*",2]
["Cladonia furcata (Hudson) Schrader*",2]
["Cladonia grayi G. Merr. ex Sandst.*",2]
["Cladonia mateocyatha Robbins*",2]
["Cladonia parasitica (Hoffm.) Hoffm.*",2]
["Cladonia peziziformis (With.) J. R. Laundon*",2]
["Cladonia pleurota (Florke) Schaerer*",2]
["Cladonia polycarpoides Nyl.*",2]
["Cladonia pyxidata (L.) Hoffm.*",2]
["Cladonia rangiferina (L.) F. H. Wigg.*",2]
["Cladonia squamosa Hoffm.*",2]
["Cladonia strepsilis (Ach.) Grognot*",2]
["Cladonia subtenuis (Abbayes) Mattick*",2]
["Cladonia uncialis (L.) F. H. Wigg.*",2]
["Dibaeis baeomyces (L. f.) Rambold & Hertel*",2]
["Flavoparmelia caperata (L.) Hale",1]
["Flavopunctelia soredica (Nyl.) Hale",1]
["Heterodermia granulifera (Ach.) Culb.*",2]
["Heterodermia hypoleuca (Ach.) Trevisan*",2]
["Heterodermia obscurata (Nyl.) Trevisan*",2]
["Heterodermia speciosa (Wulfen) Trevisan*",2]
["Hypotrachyna livida (Taylor) Hale",1]
["Hypotrachyna showmanii Hale",1]
["Lasallia papulosa (Ach.) Llano*",2]
["Melanohalia exasperata (De Not.) O. Blanco et al.*",2]
["Myelochroa aurulenta (Tuck.) Elix & Hale*",2]
["Myelochroa galbina (Ach.) Elix & Hale*",2]
["Parmelia squarrosa Hale*",2]
["Parmelia sulcata Taylor",1]
["Parmelinopsis minarum (Vainio) Elix & Hale*",2]
["Parmotrema hypotropum (Nyl.) Hale",1]
["Parmotrema stuppeum (Taylor) Hale",1]
["Parmotrema submarginale (Michaux.) DePriest & B. Hale*",2]
["Peltigera praetextata (Florke ex Sommerf.) Zopf*",2]
["Phaeophyscia ciliata (Hoffm.) Moberg",1]
["Phaeophyscia hirtella Essl.",1]
["Phaeophyscia pusilloides (Zahlbr.) Essl.",1]
["Phaeophyscia rubropulchra (Degel.) Essl.",1]
["Physcia adscendens (Fr.) H. Oliver",1]
["Physcia aipolia (Ehrh. ex Humb.) Furnr.",1]
["Physcia americana G. Merr.*",2]
["Physcia millegrana Degel.",1]
["Physcia stellaris (L.) Nyl.*",2]
["Punctelia bolliana (Mull. Arg.) Krog",1]
["Punctelia borreri (Sm.) Krog*",2]
["Punctelia rudecta (Ach.) Krog",1]
["Punctelia subrudecta (Nyl.) Krog*",2]
["Pycnothelia papillaria Durfour*",2]
["Pyxine sorediata (Ach.) Mont",1]
["Pyxine subcinerea Stirton",1]
["Sticta beauvoisii Delise*",2]
["Xanthomendoza fallax (Hepp ex Arnold) Sochting, Karnfelt & S. Kondr.*",2]

{"sheet":"SANDUSKY","index":72,"n_rows":19,"n_cols":2,"rows_kept":19,"cut":false,"hidden":false,"merged":[]}
["Lichen Taxa --SANDUSKY","Sandusky"]
["Candelaria concolor (Dickson) Stein*",2]
["Cladonia squamosa Hoffm.*",2]
["Flavoparmelia caperata (L.) Hale*",2]
["Heterodermia speciosa (Wulfen) Trevisan*",2]
["Leptogium lichenoides (L.) Zahlbr.*",2]
["Peltigera canina (L.) Willd.*",2]
["Phaeophyscia adiastola (Essl.) Essl.",1]
["Phaeophyscia ciliata (Hoffm.) Moberg",1]
["Phaeophyscia hirsuta (Mereschk.) Essl.",1]
["Phaeophyscia squarrosa Kashiwadani*",2]
["Physcia adscendens (Fr.) H. Oliver*",2]
["Physcia aipolia (Ehrh. ex Humb.) Furnr.",1]
["Physcia americana G. Merr.*",2]
["Physcia millegrana Degel.*",2]
["Physcia stellaris (L.) Nyl.",1]
["Punctelia rudecta (Ach.) Krog*",2]
["Xanthomendoza fallax (Hepp ex Arnold) Sochting, Karnfelt & S. Kondr.",1]
["Xanthoparmelia stenophylla (Ach.) Ahti & D. Hawksw.*",2]

{"sheet":"SCIOTO","index":73,"n_rows":95,"n_cols":2,"rows_kept":95,"cut":false,"hidden":false,"merged":[]}
["Lichen Taxa --SCIOTO","Scioto"]
["Allocetraria oakesiana (Tuck.) Randlane & Thell",1]
["Anaptychia palmulata (Michaux) Vainio",1]
["Candelaria concolor (Dickson) Stein*",2]
["Canoparmelia crozalsiana (de Lesd. ex Harm.) Elix & Hale",1]
["Canoparmelia texana (Tuck.) Elix & Hale",1]
["Cladonia apodocarpa Robb.*",2]
["Cladonia caespiticia (Pers.) Florke*",2]
["Cladonia cervicornis (Hoffm.) Ahti*",2]
["Cladonia cristatella Tuck.*",2]
["Cladonia cryptochlorophaea Asah.*",2]
["Cladonia cylindrica (A. Evans) A. Evans",1]
["Cladonia furcata (Hudson) Schrader*",2]
["Cladonia grayi G. Merr. ex Sandst.*",2]
["Cladonia humilis (With.) J. R. Laundon*",2]
["Cladonia macilenta Hoffm.*",2]
["Cladonia ochrochlora Florke",1]
["Cladonia petrophila R. C. Harris",1]
["Cladonia peziziformis (With.) J. R. Laundon*",2]
["Cladonia piedmontensis G. Merr.*",2]
["Cladonia polycarpoides Nyl.*",2]
["Cladonia pyxidata (L.) Hoffm.*",2]
["Cladonia ramulosa (With.) J. R. Laundon",1]
["Cladonia rei Schaerer",1]
["Cladonia sobolescens Nyl. ex Vainio*",2]
["Cladonia squamosa Hoffm.*",2]
["Cladonia strepsilis (Ach.) Grognot*",2]
["Cladonia subtenuis (Abbayes) Mattick*",2]
["Coccocarpia palmicola (Sprengel) Arv. & D. J. Galloway*",2]
["Collema subflaccidum Degel.*",2]
["Dermatocarpon luridum (With.) J. R. Laundon*",2]
["Dirinaria frostii (Tuck.) Hale & Culb.",1]
["Flavoparmelia baltimorensis (Gyelnik & Foriss) Hale",1]
["Flavoparmelia caperata (L.) Hale",1]
["Flavopunctelia flaventior (Stirton) Hale",1]
["Flavopunctelia soredica (Nyl.) Hale",1]
["Heterodermia hypoleuca (Ach.) Trevisan",1]
["Heterodermia obscurata (Nyl.) Trevisan",1]
["Heterodermia speciosa (Wulfen) Trevisan",1]
["Hypogymnia physodes (Nyl.) Nyl.",1]
["Hypotrachyna livida (Taylor) Hale",1]
["Hypotrachyna osseoalba (Vainio) Park & Hale",1]
["Hypotrachyna showmanii Hale",1]
["Imshaugia aleurites (Ach.) S. F. Meyer*",2]
["Imshaugia placorodia (Ach.) S. F. Meyer",1]
["Leptogium cyanescens (Rabenh.) Korber*",2]
["Lobaria quercizans Michaux*",2]
["Melanelixia subaurifera (Nyl.) O. Blanco et al.*",2]
["Myelochroa aurulenta (Tuck.) Elix & Hale",1]
["Myelochroa galbina (Ach.) Elix & Hale",1]
["Myelochroa metarevoluta (Asah.) Elix & Hale",1]
["Myelochroa obsessa (Ach.0 Elix & Hale*",2]
["Parmelia squarrosa Hale",1]
["Parmelia sulcata Taylor",1]
["Parmelinopsis minarum (Vainio) Elix & Hale",1]
["Parmotrema cetratum (Ach.) Hale",1]
["Parmotrema chinense (Osbeck) Hale & Ahti*",2]
["Parmotrema despectum Kurok.",1]
["Parmotrema hypotropum (Nyl.) Hale",1]
["Parmotrema stuppeum (Taylor) Hale",1]
["Parmotrema submarginale (Michaux.) DePriest & B. Hale",1]
["Peltigera canina (L.) Willd.*",2]
["Peltigera evansiana Gyelnik*",2]
["Peltigera praetextata (Florke ex Sommerf.) Zopf*",2]
["Phaeophyscia adiastola (Essl.) Essl.",1]
["Phaeophyscia ciliata (Hoffm.) Moberg*",2]
["Phaeophyscia hirsuta (Mereschk.) Essl.",1]
["Phaeophyscia pusilloides (Zahlbr.) Essl.",1]
["Phaeophyscia rubropulchra (Degel.) Essl.",1]
["Physcia aipolia (Ehrh. ex Humb.) Furnr.*",2]
["Physcia americana G. Merr.",1]
["Physcia millegrana Degel.",1]
["Physcia pumilior R. C. Harris",1]
["Physcia stellaris (L.) Nyl.",1]
["Physcia subtilis Degel.",1]
["Physciella chloantha (Ach.) Essl.",1]
["Placidium aboretum (Schwein. ex Michener) Lendemer",1]
["Platismatia tuckermanii (Rav. ex Mont.) Breuss",1]
["Pseudevernia consocians (Vainio) Hale & Culb.",1]
["Punctelia missouriensis G. Wilh. & Ladd",1]
["Punctelia perreticulata (Rasanen) Wilhelm & Ladd",1]
["Punctelia rudecta (Ach.) Krog",1]
["Punctelia subrudecta (Nyl.) Krog*",2]
["Pyxine sorediata (Ach.) Mont",1]
["Pyxine subcinerea Stirton",1]
["Ramalina americana Hale*",2]
["Tuckermanella fendleri (Nyl.) Essl.",1]
["Tuckermannopsis americana (Sprengel) Hale",1]
["Usnea endochrysea Stirton",1]
["Usnea mutabilis Stirton",1]
["Usnea strigosa (Ach.) Eaton",1]
["Vulpicida viridis (Schwein.) J._E. Mattsson & M. J. Lai",1]
["Xanthomendoza weberi (S. Kondr. & Karnefelt) L. Lindblom",1]
["Xanthoparmelia conspersa (Ehrh. ex Ach.) Hale*",2]
["Xanthoparmelia plittii (Gyelnik) Hale",1]

{"sheet":"SENECA","index":74,"n_rows":34,"n_cols":2,"rows_kept":34,"cut":false,"hidden":false,"merged":[]}
["Lichen Taxa --SENECA","Seneca"]
["Candelaria concolor (Dickson) Stein",1]
["Canoparmelia crozalsiana (de Lesd. ex Harm.) Elix & Hale",1]
["Cladonia coniocraea (Florke) Sprengel",1]
["Cladonia cristatella Tuck.",1]
["Cladonia cylindrica (A. Evans) A. Evans",1]
["Collema crispum (Hudson) F. H. Wigg.*",2]
["Dermatocarpon miniatum (L.) W. Mann*",2]
["Flavoparmelia caperata (L.) Hale",1]
["Flavopunctelia flaventior (Stirton) Hale",1]
["Flavopunctelia soredica (Nyl.) Hale",1]
["Melanelixia subaurifera (Nyl.) O. Blanco et al.*",2]
["Myelochroa aurulenta (Tuck.) Elix & Hale*",2]
["Myelochroa galbina (Ach.) Elix & Hale",1]
["Pannaria lurida (Mont.) Nyl.*",2]
["Parmelia sulcata Taylor",1]
["Peltigera canina (L.) Willd.*",2]
["Peltigera polydactylon (Necker) Hoffm.*",2]
["Phaeophyscia adiastola (Essl.) Essl.",1]
["Phaeophyscia ciliata (Hoffm.) Moberg*",2]
["Phaeophyscia decolor (Kashiw.) Essl.*",2]
["Phaeophyscia hirsuta (Mereschk.) Essl.",1]
["Phaeophyscia rubropulchra (Degel.) Essl.",1]
["Physcia adscendens (Fr.) H. Oliver",1]
["Physcia aipolia (Ehrh. ex Humb.) Furnr.*",2]
["Physcia millegrana Degel.",1]
["Physcia stellaris (L.) Nyl.",1]
["Physconia detersa (Nyl.) Poelt*",2]
["Physconia leucoleiptes (Tuck.) Essl.*",2]
["Punctelia bolliana (Mull. Arg.) Krog",1]
["Punctelia rudecta (Ach.) Krog",1]
["Pyxine sorediata (Ach.) Mont",1]
["Xanthomendoza fallax (Hepp ex Arnold) Sochting, Karnfelt & S. Kondr.*",2]
["Xanthomendoza ulophyllodes (Rasanen) Sochting, Karnefelt & S. Kondr.*",2]

{"sheet":"SHELBY","index":75,"n_rows":23,"n_cols":2,"rows_kept":23,"cut":false,"hidden":false,"merged":[]}
["Lichen Taxa --SHELBY","Shelby"]
["Candelaria concolor (Dickson) Stein*",2]
["Canoparmelia crozalsiana (de Lesd. ex Harm.) Elix & Hale*",2]
["Cladonia fimbriata (L.) Fr.*",2]
["Cladonia furcata (Hudson) Schrader*",2]
["Cladonia squamosa Hoffm.*",2]
["Flavoparmelia caperata (L.) Hale*",2]
["Leptogium cyanescens (Rabenh.) Korber*",2]
["Myelochroa aurulenta (Tuck.) Elix & Hale*",2]
["Myelochroa galbina (Ach.) Elix & Hale*",2]
["Parmelia sulcata Taylor*",2]
["Phaeophyscia pusilloides (Zahlbr.) Essl.",1]
["Phaeophyscia rubropulchra (Degel.) Essl.",1]
["Physcia adscendens (Fr.) H. Oliver*",2]
["Physcia americana G. Merr.*",2]
["Physcia millegrana Degel.*",2]
["Physcia stellaris (L.) Nyl.*",2]
["Physconia detersa (Nyl.) Poelt",1]
["Punctelia borreri (Sm.) Krog*",2]
["Punctelia rudecta (Ach.) Krog*",2]
["Punctelia subrudecta (Nyl.) Krog*",2]
["Pyxine sorediata (Ach.) Mont*",2]
["Xanthomendoza fallax (Hepp ex Arnold) Sochting, Karnfelt & S. Kondr.*",2]

{"sheet":"STARK","index":76,"n_rows":26,"n_cols":2,"rows_kept":26,"cut":false,"hidden":false,"merged":[]}
["Lichen Taxa --STARK","Stark"]
["Candelaria concolor (Dickson) Stein",1]
["Cladonia caespiticia (Pers.) Florke*",2]
["Cladonia cervicornis (Hoffm.) Ahti*",2]
["Cladonia chlorophaea (Florke ex Sommerf.) Sprengel",1]
["Cladonia coniocraea (Florke) Sprengel",1]
["Cladonia cristatella Tuck.",1]
["Cladonia cylindrica (A. Evans) A. Evans",1]
["Cladonia furcata (Hudson) Schrader",1]
["Cladonia grayi G. Merr. ex Sandst.",1]
["Cladonia parasitica (Hoffm.) Hoffm.*",2]
["Cladonia peziziformis (With.) J. R. Laundon",1]
["Cladonia polycarpoides Nyl.",1]
["Cladonia rei Schaerer*",2]
["Cladonia robbinsii A. Evans",1]
["Flavoparmelia caperata (L.) Hale",1]
["Hyperphyscia adglutinata (Florke) H. Mayrh. & Poelt*",2]
["Myelochroa aurulenta (Tuck.) Elix & Hale",1]
["Parmelia sulcata Taylor",1]
["Parmotrema hypotropum (Nyl.) Hale",1]
["Phaeophyscia adiastola (Essl.) Essl.",1]
["Phaeophyscia rubropulchra (Degel.) Essl.",1]
["Physcia adscendens (Fr.) H. Oliver",1]
["Physcia millegrana Degel.",1]
["Physcia stellaris (L.) Nyl.",1]
["Punctelia rudecta (Ach.) Krog*",2]

{"sheet":"SUMMIT","index":77,"n_rows":35,"n_cols":2,"rows_kept":35,"cut":false,"hidden":false,"merged":[]}
["Lichen Taxa --SUMMIT","Summit"]
["Ahtiana aurescens (Tuck.) Thell & Randlane*",2]
["Candelaria concolor (Dickson) Stein",1]
["Cladonia apodocarpa Robb.*",2]
["Cladonia caespiticia (Pers.) Florke*",2]
["Cladonia cervicornis (Hoffm.) Ahti*",2]
["Cladonia coniocraea (Florke) Sprengel*",2]
["Cladonia cristatella Tuck.*",2]
["Cladonia cryptochlorophaea Asah.*",2]
["Cladonia cylindrica (A. Evans) A. Evans*",2]
["Cladonia fimbriata (L.) Fr.*",2]
["Cladonia furcata (Hudson) Schrader*",2]
["Cladonia grayi G. Merr. ex Sandst.*",2]
["Cladonia macilenta Hoffm.*",2]
["Cladonia peziziformis (With.) J. R. Laundon*",2]
["Cladonia polycarpoides Nyl.*",2]
["Cladonia pyxidata (L.) Hoffm.*",2]
["Cladonia squamosa Hoffm.*",2]
["Collema tenax (Sw.) Ach.*",2]
["Dermatocarpon luridum (With.) J. R. Laundon*",2]
["Dermatocarpon miniatum (L.) W. Mann*",2]
["Flavoparmelia caperata (L.) Hale*",2]
["Leptogium dactylinum Tuck.*",2]
["Parmelia sulcata Taylor*",2]
["Parmotrema hypotropum (Nyl.) Hale",1]
["Parmotrema stuppeum (Taylor) Hale",1]
["Peltigera canina (L.) Willd.*",2]
["Peltigera polydactylon (Necker) Hoffm.*",2]
["Phaeophyscia adiastola (Essl.) Essl.",1]
["Phaeophyscia pusilloides (Zahlbr.) Essl.",1]
["Phaeophyscia rubropulchra (Degel.) Essl.",1]
["Physcia millegrana Degel.*",2]
["Platismatia tuckermanii (Rav. ex Mont.) Breuss*",2]
["Punctelia rudecta (Ach.) Krog",1]
["Punctelia subrudecta (Nyl.) Krog",1]

{"sheet":"TRUMBULL","index":78,"n_rows":31,"n_cols":2,"rows_kept":31,"cut":false,"hidden":false,"merged":[]}
["Lichen Taxa --TRUMBULL","Trumbull"]
["Candelaria concolor (Dickson) Stein",1]
["Cladonia apodocarpa Robb.",1]
["Cladonia caespiticia (Pers.) Florke",1]
["Cladonia cervicornis (Hoffm.) Ahti*",2]
["Cladonia chlorophaea (Florke ex Sommerf.) Sprengel*",2]
["Cladonia coniocraea (Florke) Sprengel",1]
["Cladonia cristatella Tuck.",1]
["Cladonia cryptochlorophaea Asah.*",2]
["Cladonia furcata (Hudson) Schrader",1]
["Cladonia grayi G. Merr. ex Sandst.*",2]
["Cladonia macilenta Hoffm.",1]
["Cladonia ochrochlora Florke",1]
["Cladonia peziziformis (With.) J. R. Laundon",1]
["Cladonia piedmontensis G. Merr.",1]
["Cladonia pleurota (Florke) Schaerer*",2]
["Cladonia polycarpoides Nyl.",1]
["Cladonia sobolescens Nyl. ex Vainio",1]
["Cladonia squamosa Hoffm.",1]
["Flavoparmelia caperata (L.) Hale",1]
["Hypogymnia physodes (Nyl.) Nyl.",1]
["Leptogium cyanescens (Rabenh.) Korber*",2]
["Lobaria pulmonaria (L.) Hoffm.*",2]
["Parmelia sulcata Taylor",1]
["Parmotrema hypotropum (Nyl.) Hale",1]
["Phaeophyscia adiastola (Essl.) Essl.",1]
["Phaeophyscia ciliata (Hoffm.) Moberg",1]
["Phaeophyscia rubropulchra (Degel.) Essl.",1]
["Physcia adscendens (Fr.) H. Oliver",1]
["Physcia millegrana Degel.",1]
["Punctelia rudecta (Ach.) Krog",1]

{"sheet":"TUSCARAWAS","index":79,"n_rows":35,"n_cols":2,"rows_kept":35,"cut":false,"hidden":false,"merged":[]}
["Lichen Taxa --TUSCARAWAS","Tuscarawas"]
["Cladonia petrophila R. C. Harris",1]
["Heterodermia speciosa (Wulfen) Trevisan",1]
["Parmelia sulcata Taylor",1]
["Physcia adscendens (Fr.) H. Oliver",1]
["Physconia leucoleiptes (Tuck.) Essl.",1]
["Cladonia chlorophaea (Florke ex Sommerf.) Sprengel*",2]
["Cladonia coniocraea (Florke) Sprengel*",2]
["Cladonia cristatella Tuck.*",2]
["Cladonia cryptochlorophaea Asah.&",2]
["Cladonia cylindrica (A. Evans) A. Evans*",2]
["Cladonia fimbriata (L.) Fr.*",2]
["Cladonia floridana Vainio*",2]
["Cladonia furcata (Hudson) Schrader*",2]
["Cladonia humilis (With.) J. R. Laundon*",2]
["Cladonia macilenta Hoffm.*",2]
["Cladonia piedmontensis G. Merr.*",2]
["Cladonia pleurota (Florke) Schaerer*",2]
["Cladonia polycarpoides Nyl.*",2]
["Cladonia pyxidata (L.) Hoffm.*",2]
["Cladonia rei Schaerer*",2]
["Cladonia sobolescens Nyl. ex Vainio*",2]
["Cladonia strepsilis (Ach.) Grognot*",2]
["Flavoparmelia caperata (L.) Hale*",2]
["Heterodermia granulifera (Ach.) Culb.*",2]
["Leptogium cyanescens (Rabenh.) Korber*",2]
["Leptogium juniperinum Tuck.*",2]
["Myelochroa aurulenta (Tuck.) Elix & Hale*",2]
["Parmelia squarrosa Hale*",2]
["Peltigera canina (L.) Willd.*",2]
["Peltigera didactyla (With.) J. R. Laundon*",2]
["Peltigera praetextata (Florke ex Sommerf.) Zopf*",2]
["Physcia millegrana Degel.*",2]
["Punctelia bolliana (Mull. Arg.) Krog*",2]
["Punctelia rudecta (Ach.) Krog*",2]

{"sheet":"UNION","index":80,"n_rows":22,"n_cols":2,"rows_kept":22,"cut":false,"hidden":false,"merged":[]}
["Lichen Taxa --UNION","Union"]
["Flavoparmelia caperata (L.) Hale*",2]
["Heterodermia granulifera (Ach.) Culb.*",2]
["Heterodermia speciosa (Wulfen) Trevisan*",2]
["Hyperphyscia adglutinata (Florke) H. Mayrh. & Poelt*",2]
["Myelochroa aurulenta (Tuck.) Elix & Hale*",2]
["Parmelia sulcata Taylor",1]
["Phaeophyscia ciliata (Hoffm.) Moberg",1]
["Phaeophyscia hirsuta (Mereschk.) Essl.",1]
["Phaeophyscia rubropulchra (Degel.) Essl.",1]
["Physcia adscendens (Fr.) H. Oliver*",2]
["Physcia aipolia (Ehrh. ex Humb.) Furnr.*",2]
["Physcia americana G. Merr.*",2]
["Physcia millegrana Degel.*",2]
["Physcia stellaris (L.) Nyl.*",2]
["Physconia detersa (Nyl.) Poelt*",2]
["Punctelia bolliana (Mull. Arg.) Krog*",2]
["Punctelia rudecta (Ach.) Krog*",2]
["Punctelia subrudecta (Nyl.) Krog*",2]
["Teloschistes chrysophthalmus (L.) Th. Fr.",1]
["Xanthomendoza fallax (Hepp ex Arnold) Sochting, Karnfelt & S. Kondr.*",2]
["Xanthomendoza ulophyllodes (Rasanen) Sochting, Karnefelt & S. Kondr. *",2]

{"sheet":"VAN WERT","index":81,"n_rows":18,"n_cols":2,"rows_kept":18,"cut":false,"hidden":false,"merged":[]}
["Lichen Taxa --VAN WERT","Van Wert"]
["Candelaria concolor (Dickson) Stein",1]
["Canoparmelia crozalsiana (de Lesd. ex Harm.) Elix & Hale",1]
["Flavoparmelia caperata (L.) Hale",1]
["Flavopunctelia flaventior (Stirton) Hale",1]
["Flavopunctelia soredica (Nyl.) Hale",1]
["Hyperphyscia syncolla (Tuck. ex Nyl.) Kalb",1]
["Myelochroa aurulenta (Tuck.) Elix & Hale",1]
["Parmelia sulcata Taylor",1]
["Phaeophyscia hirsuta (Mereschk.) Essl.",1]
["Phaeophyscia rubropulchra (Degel.) Essl.",1]
["Physcia adscendens (Fr.) H. Oliver",1]
["Physcia aipolia (Ehrh. ex Humb.) Furnr.",1]
["Physcia millegrana Degel.",1]
["Physcia stellaris (L.) Nyl.",1]
["Punctelia bolliana (Mull. Arg.) Krog",1]
["Punctelia rudecta (Ach.) Krog",1]
["Xanthomendoza fallax (Hepp ex Arnold) Sochting, Karnfelt & S. Kondr.",1]

{"sheet":"VINTON","index":82,"n_rows":99,"n_cols":2,"rows_kept":99,"cut":false,"hidden":false,"merged":[]}
["Lichen Taxa --VINTON","Vinton"]
["Allocetraria oakesiana (Tuck.) Randlane & Thell",1]
["Anaptychia palmulata (Michaux) Vainio",1]
["Bryoria furcellata (Fr.) Brodo & Hawksw.",1]
["Candelaria concolor (Dickson) Stein",1]
["Canoparmelia crozalsiana (de Lesd. ex Harm.) Elix & Hale",1]
["Cladonia apodocarpa Robb.",1]
["Cladonia caroliniana Tuck.",1]
["Cladonia cervicornis (Hoffm.) Ahti",1]
["Cladonia chlorophaea (Florke ex Sommerf.) Sprengel*",2]
["Cladonia coniocraea (Florke) Sprengel",1]
["Cladonia cristatella Tuck.",1]
["Cladonia cryptochlorophaea Asah.*",2]
["Cladonia cylindrica (A. Evans) A. Evans",1]
["Cladonia furcata (Hudson) Schrader",1]
["Cladonia macilenta Hoffm.",1]
["Cladonia peziziformis (With.) J. R. Laundon",1]
["Cladonia piedmontensis G. Merr.",1]
["Cladonia pleurota (Florke) Schaerer",1]
["Cladonia polycarpoides Nyl.",1]
["Cladonia pyxidata (L.) Hoffm.",1]
["Cladonia rangiferina (L.) F. H. Wigg. ",1]
["Cladonia rei Schaerer",1]
["Cladonia sobolescens Nyl. ex Vainio",1]
["Cladonia squamosa Hoffm.",1]
["Cladonia strepsilis (Ach.) Grognot ",1]
["Cladonia subtenuis (Abbayes) Mattick",1]
["Cladonia uncialis (L.) F. H. Wigg.",1]
["Collema subflaccidum Degel.",1]
["Dermatocarpon luridum (With.) J. R. Laundon",1]
["Dibaeis absoluta (Tuck.) Kalb & Gierl",1]
["Dibaeis baeomyces (L. f.) Rambold & Hertel",1]
["Dirinaria frostii (Tuck.) Hale & Culb.",1]
["Evernia mesomorpha Nyl.",1]
["Flavoparmelia baltimorensis (Gyelnik & Foriss) Hale",1]
["Flavoparmelia caperata (L.) Hale",1]
["Flavopunctelia flaventior (Stirton) Hale",1]
["Flavopunctelia soredica (Nyl.) Hale",1]
["Heterodermia granulifera (Ach.) Culb.",1]
["Heterodermia hypoleuca (Ach.) Trevisan",1]
["Heterodermia obscurata (Nyl.) Trevisan",1]
["Heterodermia speciosa (Wulfen) Trevisan",1]
["Hyperphyscia syncolla (Tuck. ex Nyl.) Kalb",1]
["Hypogymnia physodes (Nyl.) Nyl.",1]
["Hypotrachyna livida (Taylor) Hale",1]
["Hypotrachyna showmanii Hale",1]
["Imshaugia aleurites (Ach.) S. F. Meyer",1]
["Imshaugia placorodia (Ach.) S. F. Meyer",1]
["Lasallia papulosa (Ach.) Llano",1]
["Leptogium cyanescens (Rabenh.) Korber",1]
["Leptogium juniperinum Tuck.",1]
["Leptogium lichenoides (L.) Zahlbr.",1]
["Melanelixia subaurifera (Nyl.) O. Blanco et al.",1]
["Myelochroa aurulenta (Tuck.) Elix & Hale",1]
["Myelochroa galbina (Ach.) Elix & Hale",1]
["Parmelia squarrosa Hale",1]
["Parmelia sulcata Taylor",1]
["Parmelinopsis minarum (Vainio) Elix & Hale",1]
["Parmotrema crinitum (Ach.) Choisy",1]
["Parmotrema gardneri (C. W. Dodge) Serus ",1]
["Parmotrema hypotropum (Nyl.) Hale",1]
["Parmotrema madagascariaceum (Hue) Hale",1]
["Parmotrema perforatum (Jacq.) A. Massal.",1]
["Parmotrema stuppeum (Taylor) Hale",1]
["Parmotrema submarginale (Michaux.) DePriest & B. Hale",1]
["Peltigera canina (L.) Willd.",1]
["Phaeophyscia ciliata (Hoffm.) Moberg",1]
["Phaeophyscia rubropulchra (Degel.) Essl.",1]
["Physcia adscendens (Fr.) H. Oliver",1]
["Physcia aipolia (Ehrh. ex Humb.) Furnr.",1]
["Physcia americana G. Merr.",1]
["Physcia millegrana Degel.",1]
["Physcia pumilior R. C. Harris",1]
["Physcia stellaris (L.) Nyl.",1]
["Physciella chloantha (Ach.) Essl.",1]
["Placidium aboretum (Schwein. ex Michener) Lendemer",1]
["Platismatia tuckermanii (Rav. ex Mont.) Breuss",1]
["Punctelia missouriensis G. Wilh. & Ladd",1]
["Punctelia rudecta (Ach.) Krog",1]
["Punctelia subrudecta (Nyl.) Krog",1]
["Pycnothelia papillaria Durfour",1]
["Pyxine sorediata (Ach.) Mont",1]
["Pyxine subcinerea Stirton",1]
["Ramalina americana Hale",1]
["Ramalina complanata (Sw.) Ach.",1]
["Ramalina intermedia (Delise ex Nyl.) Nyl.",1]
["Ramalina pollinaria (Westr.) Ach.",1]
["Tuckermanella fendleri (Nyl.) Essl.",1]
["Tuckermannopsis ciliaris (ach.) Gyelnik",1]
["Umbilicaria mammulata (Ach.) Tuck.",1]
["Usnea amblyoclada (Mull. Arg.) Zahlbr.",1]
["Usnea cornuta Korber",1]
["Usnea mutabilis Stirton",1]
["Usnea strigosa (Ach.) Eaton",1]
["Usnea subscabrosa Mott.",1]
["Xanthomendoza fallax (Hepp ex Arnold) Sochting, Karnfelt & S. Kondr.",1]
["Xanthoparmelia conspersa (Ehrh. ex Ach.) Hale",1]
["Xanthoparmelia plittii (Gyelnik) Hale",1]
["Xanthoparmelia stenophylla (Ach.) Ahti & D. Hawksw.",1]

{"sheet":"WARREN","index":83,"n_rows":51,"n_cols":2,"rows_kept":51,"cut":false,"hidden":false,"merged":[]}
["Lichen Taxa --WARREN","Warren"]
["Anzia colpodes (Ach.) Stizenb.*",2]
["Candelaria concolor (Dickson) Stein*",2]
["Canoparmelia crozalsiana (de Lesd. ex Harm.) Elix & Hale",1]
["Cladonia caespiticia (Pers.) Florke*",2]
["Cladonia cervicornis (Hoffm.) Ahti*",2]
["Cladonia chlorophaea (Florke ex Sommerf.) Sprengel*",2]
["Cladonia coniocraea (Florke) Sprengel*",2]
["Cladonia cristatella Tuck.*",2]
["Cladonia cylindrica (A. Evans) A. Evans*",2]
["Cladonia furcata (Hudson) Schrader*",2]
["Cladonia grayi G. Merr. ex Sandst.*",2]
["Cladonia ochrochlora Florke",1]
["Cladonia parasitica (Hoffm.) Hoffm.*",2]
["Cladonia piedmontensis G. Merr.*",2]
["Cladonia polycarpoides Nyl.*",2]
["Cladonia rangiferina (L.) F. H. Wigg.*",2]
["Cladonia subtenuis (Abbayes) Mattick*",2]
["Collema nigrescens (Hudson) DC.*",2]
["Flavoparmelia caperata (L.) Hale*",2]
["Heterodermia echinata (Taylor) Culb.*",2]
["Heterodermia leucomela (L.) Poelt*",2]
["Hyperphyscia adglutinata (Florke) H. Mayrh. & Poelt*",2]
["Leptogium aburnetiae C. W. Dodge*",2]
["Leptogium corticola (Taylor) Tuck.*",2]
["Leptogium lichenoides (L.) Zahlbr.*",2]
["Myelochroa aurulenta (Tuck.) Elix & Hale*",2]
["Parmotrema hypotropum (Nyl.) Hale",1]
["Peltigera canina (L.) Willd.*",2]
["Peltigera didactyla (With.) J. R. Laundon*",2]
["Peltigera polydactylon (Necker) Hoffm.*",2]
["Phaeophyscia ciliata (Hoffm.) Moberg*",2]
["Phaeophyscia hirsuta (Mereschk.) Essl.",1]
["Phaeophyscia rubropulchra (Degel.) Essl.",1]
["Phaeophyscia squarrosa Kashiwadani*",2]
["Physcia adscendens (Fr.) H. Oliver*",2]
["Physcia aipolia (Ehrh. ex Humb.) Furnr.*",2]
["Physcia americana G. Merr.*",2]
["Physcia millegrana Degel.*",2]
["Physcia stellaris (L.) Nyl.",1]
["Physconia detersa (Nyl.) Poelt*",2]
["Physconia leucoleiptes (Tuck.) Essl.(",2]
["Placidium aboretum (Schwein. ex Michener) Lendemer*",2]
["Punctelia bolliana (Mull. Arg.) Krog",1]
["Punctelia missouriensis G. Wilh. & Ladd*",2]
["Punctelia rudecta (Ach.) Krog*",2]
["Pyxine sorediata (Ach.) Mont*",2]
["Pyxine subcinerea Stirton*",2]
["Xanthomendoza fallax (Hepp ex Arnold) Sochting, Karnfelt & S. Kondr.*",2]
["Xanthomendoza ulophyllodes (Rasanen) Sochting, Karnefelt & S. Kondr.*",2]
["Xanthomendoza weberi (S. Kondr. & Karnefelt) L. Lindblom",1]

{"sheet":"WASHINGTON","index":84,"n_rows":90,"n_cols":2,"rows_kept":90,"cut":false,"hidden":false,"merged":[]}
["Lichen Taxa --WASHINGTON","Washington"]
["Candelaria concolor (Dickson) Stein",1]
["Canoparmelia amabilis Heiman & Elix",1]
["Canoparmelia crozalsiana (de Lesd. ex Harm.) Elix & Hale",1]
["Cladonia apodocarpa Robb.",1]
["Cladonia arbuscula (Wallr.) Flotow*",2]
["Cladonia caroliniana Tuck.",1]
["Cladonia cervicornis (Hoffm.) Ahti",1]
["Cladonia coniocraea (Florke) Sprengel",1]
["Cladonia cristatella Tuck.",1]
["Cladonia cryptochlorophaea Asah.*",2]
["Cladonia furcata (Hudson) Schrader",1]
["Cladonia grayi G. Merr. ex Sandst.*",2]
["Cladonia humilis (With.) J. R. Laundon*",2]
["Cladonia macilenta Hoffm.",1]
["Cladonia peziziformis (With.) J. R. Laundon",1]
["Cladonia piedmontensis G. Merr.",1]
["Cladonia pleurota (Florke) Schaerer*",2]
["Cladonia polycarpoides Nyl.",1]
["Cladonia pyxidata (L.) Hoffm.*",2]
["Cladonia rangiferina (L.) F. H. Wigg. ",1]
["Cladonia sobolescens Nyl. ex Vainio",1]
["Cladonia squamosa Hoffm.",1]
["Cladonia strepsilis (Ach.) Grognot *",2]
["Cladonia subtenuis (Abbayes) Mattick",1]
["Cladonia uncialis (L.) F. H. Wigg.",1]
["Collema nigrescens (Hudson) DC.*",2]
["Collema subflaccidum Degel.",1]
["Dermatocarpon luridum (With.) J. R. Laundon",1]
["Dermatocarpon miniatum (L.) W. Mann",1]
["Dibaeis baeomyces (L. f.) Rambold & Hertel*",2]
["Dirinaria frostii (Tuck.) Hale & Culb.",1]
["Flavoparmelia baltimorensis (Gyelnik & Foriss) Hale",1]
["Flavoparmelia caperata (L.) Hale",1]
["Flavopunctelia soredica (Nyl.) Hale",1]
["Fuscopannaria leucophaea (Vahl) P. M. Jorg.",1]
["Heterodermia granulifera (Ach.) Culb.",1]
["Heterodermia obscurata (Nyl.) Trevisan",1]
["Heterodermia speciosa (Wulfen) Trevisan",1]
["Hypotrachyna livida (Taylor) Hale",1]
["Imshaugia aleurites (Ach.) S. F. Meyer",1]
["Imshaugia placorodia (Ach.) S. F. Meyer",1]
["Lasallia papulosa (Ach.) Llano",1]
["Leptogium aburnetiae C. W. Dodge*",2]
["Leptogium corticola (Taylor) Tuck.*",2]
["Leptogium cyanescens (Rabenh.) Korber",1]
["Leptogium juniperinum Tuck.",1]
["Leptogium lichenoides (L.) Zahlbr.",1]
["Lobaria quercizans Michaux*",2]
["Melanelixia subaurifera (Nyl.) O. Blanco et al.*",2]
["Myelochroa aurulenta (Tuck.) Elix & Hale",1]
["Myelochroa galbina (Ach.) Elix & Hale",1]
["Parmelia squarrosa Hale",1]
["Parmelia sulcata Taylor",1]
["Parmelinopsis minarum (Vainio) Elix & Hale*",2]
["Parmotrema hypotropum (Nyl.) Hale*",2]
["Parmotrema stuppeum (Taylor) Hale",1]
["Parmotrema xanthinum (Mull. Arg.) Hale",1]
["Peltigera canina (L.) Willd.*",2]
["Peltigera evansiana Gyelnik",1]
["Peltigera praetextata (Florke ex Sommerf.) Zopf*",2]
["Phaeophyscia adiastola (Essl.) Essl.",1]
["Phaeophyscia ciliata (Hoffm.) Moberg",1]
["Phaeophyscia decolor (Kashiw.) Essl.",1]
["Phaeophyscia rubropulchra (Degel.) Essl.",1]
["Phaeophyscia squarrosa Kashiwadani",1]
["Physcia adscendens (Fr.) H. Oliver",1]
["Physcia aipolia (Ehrh. ex Humb.) Furnr.",1]
["Physcia americana G. Merr.",1]
["Physcia millegrana Degel.",1]
["Physcia stellaris (L.) Nyl.",1]
["Physcia subtilis Degel.",1]
["Platismatia tuckermanii (Rav. ex Mont.) Breuss",1]
["Punctelia bolliana (Mull. Arg.) Krog*",2]
["Punctelia missouriensis G. Wilh. & Ladd",1]
["Punctelia rudecta (Ach.) Krog",1]
["Pyxine sorediata (Ach.) Mont",1]
["Pyxine subcinerea Stirton*",2]
["Ramalina petrina Bowler & Rundel",1]
["Ramalina pollinaria (Westr.) Ach.",1]
["Tuckermanella fendleri (Nyl.) Essl.",1]
["Tuckermannopsis ciliaris (ach.) Gyelnik",1]
["Umbilicaria mammulata (Ach.) Tuck.*",2]
["Usnea amblyoclada (Mull. Arg.) Zahlbr.",1]
["Usnea strigosa (Ach.) Eaton",1]
["Usnea subscabrosa Mott.",1]
["Xanthomendoza fallax (Hepp ex Arnold) Sochting, Karnfelt & S. Kondr.",1]
["Xanthoparmelia conspersa (Ehrh. ex Ach.) Hale",1]
["Xanthoparmelia plittii (Gyelnik) Hale",1]
["Xanthoparmelia subramigera (Gyelnik) Hale",1]

{"sheet":"WAYNE","index":85,"n_rows":66,"n_cols":2,"rows_kept":66,"cut":false,"hidden":false,"merged":[]}
["Lichen Taxa --WAYNE","Wayne"]
["Candelaria concolor (Dickson) Stein",1]
["Canoparmelia crozalsiana (de Lesd. ex Harm.) Elix & Hale",1]
["Cladonia apodocarpa Robb.",1]
["Cladonia caespiticia (Pers.) Florke",1]
["Cladonia cervicornis (Hoffm.) Ahti",1]
["Cladonia chlorophaea (Florke ex Sommerf.) Sprengel",1]
["Cladonia coniocraea (Florke) Sprengel",1]
["Cladonia cristatella Tuck.",1]
["Cladonia cryptochlorophaea Asah.",1]
["Cladonia cylindrica (A. Evans) A. Evans",1]
["Cladonia furcata (Hudson) Schrader",1]
["Cladonia grayi G. Merr. ex Sandst.",1]
["Cladonia humilis (With.) J. R. Laundon",1]
["Cladonia incrassata Florke",1]
["Cladonia macilenta Hoffm.",1]
["Cladonia mateocyatha Robbins",1]
["Cladonia parasitica (Hoffm.) Hoffm.",1]
["Cladonia peziziformis (With.) J. R. Laundon",1]
["Cladonia piedmontensis G. Merr.",1]
["Cladonia pleurota (Florke) Schaerer",1]
["Cladonia polycarpoides Nyl.",1]
["Cladonia pyxidata (L.) Hoffm.",1]
["Cladonia ramulosa (With.) J. R. Laundon",1]
["Cladonia rangiferina (L.) F. H. Wigg. ",1]
["Cladonia rei Schaerer",1]
["Cladonia sobolescens Nyl. ex Vainio",1]
["Cladonia squamosa Hoffm.",1]
["Cladonia strepsilis (Ach.) Grognot*",2]
["Cladonia subtenuis (Abbayes) Mattick",1]
["Flavoparmelia caperata (L.) Hale",1]
["Flavopunctelia flaventior (Stirton) Hale",1]
["Flavopunctelia soredica (Nyl.) Hale",1]
["Heterodermia leucomela (L.) Poelt*",2]
["Heterodermia obscurata (Nyl.) Trevisan*",2]
["Hyperphyscia adglutinata (Florke) H. Mayrh. & Poelt",1]
["Hypogymnia physodes (Nyl.) Nyl.",1]
["Hypotrachyna livida (Taylor) Hale",1]
["Leptogium cyanescens (Rabenh.) Korber",1]
["Leptogium dactylinum Tuck.*",2]
["Melanelixia subaurifera (Nyl.) O. Blanco et al.",1]
["Myelochroa aurulenta (Tuck.) Elix & Hale",1]
["Myelochroa galbina (Ach.) Elix & Hale",1]
["Parmelia squarrosa Hale",1]
["Parmelia sulcata Taylor",1]
["Parmotrema hypotropum (Nyl.) Hale",1]
["Parmotrema reticulatum (Taylor) M. Choisy",1]
["Parmotrema stuppeum (Taylor) Hale",1]
["Phaeophyscia adiastola (Essl.) Essl.",1]
["Phaeophyscia hirsuta (Mereschk.) Essl.",1]
["Phaeophyscia rubropulchra (Degel.) Essl.",1]
["Physcia adscendens (Fr.) H. Oliver",1]
["Physcia aipolia (Ehrh. ex Humb.) Furnr.",1]
["Physcia americana G. Merr.",1]
["Physcia millegrana Degel.",1]
["Physcia stellaris (L.) Nyl.*",2]
["Physconia leucoleiptes (Tuck.) Essl.",1]
["Punctelia bolliana (Mull. Arg.) Krog",1]
["Punctelia borreri (Sm.) Krog",1]
["Punctelia rudecta (Ach.) Krog",1]
["Pyxine sorediata (Ach.) Mont",1]
["Pyxine subcinerea Stirton",1]
["Ramalina complanata (Sw.) Ach.",1]
["Xanthomendoza fallax (Hepp ex Arnold) Sochting, Karnfelt & S. Kondr.",1]
["Xanthomendoza hasseana (Rasanen) Sochting, Karnefelt & S. Kondr.",1]
["Xanthoparmelia conspersa (Ehrh. ex Ach.) Hale",1]

{"sheet":"WILLIAMS","index":86,"n_rows":22,"n_cols":2,"rows_kept":22,"cut":false,"hidden":false,"merged":[]}
["Lichen Taxa --WILLIAMS","Williams"]
["Candelaria concolor (Dickson) Stein*",2]
["Cladonia coniocraea (Florke) Sprengel*",2]
["Cladonia cryptochlorophaea Asah.*",2]
["Cladonia polycarpoides Nyl.*",2]
["Flavoparmelia caperata (L.) Hale*",2]
["Flavopunctelia flaventior (Stirton) Hale*",2]
["Flavopunctelia soredica (Nyl.) Hale*",2]
["Heterodermia speciosa (Wulfen) Trevisan*",2]
["Lobaria quercizans Michaux*",2]
["Myelochroa aurulenta (Tuck.) Elix & Hale*",2]
["Parmelia sulcata Taylor*",2]
["Peltigera canina (L.) Willd.*",2]
["Peltigera didactyla (With.) J. R. Laundon*",2]
["Phaeophyscia adiastola (Essl.) Essl.",1]
["Phaeophyscia squarrosa Kashiwadani*",2]
["Physcia millegrana Degel.*",2]
["Physcia stellaris (L.) Nyl.*",2]
["Physconia detersa (Nyl.) Poelt*",2]
["Punctelia bolliana (Mull. Arg.) Krog*",2]
["Punctelia rudecta (Ach.) Krog*",2]
["Punctelia subrudecta (Nyl.) Krog*",2]

{"sheet":"WOOD","index":87,"n_rows":23,"n_cols":2,"rows_kept":23,"cut":false,"hidden":false,"merged":[]}
["Lichen Taxa --WOOD","Wood"]
["Candelaria concolor (Dickson) Stein*",2]
["Cladonia apodocarpa Robb.*",2]
["Flavoparmelia caperata (L.) Hale*",2]
["Flavopunctelia soredica (Nyl.) Hale*",2]
["Hyperphyscia syncolla (Tuck. ex Nyl.) Kalb*",2]
["Lobaria pulmonaria (L.) Hoffm.*",2]
["Myelochroa aurulenta (Tuck.) Elix & Hale*",2]
["Parmelia sulcata Taylor*",2]
["Peltigera canina (L.) Willd.*",2]
["Phaeophyscia rubropulchra (Degel.) Essl.",1]
["Physcia adscendens (Fr.) H. Oliver*",2]
["Physcia aipolia (Ehrh. ex Humb.) Furnr.*",2]
["Physcia americana G. Merr.*",2]
["Physcia millegrana Degel.*",2]
["Physcia stellaris (L.) Nyl.*",2]
["Physconia detersa (Nyl.) Poelt*",2]
["Punctelia bolliana (Mull. Arg.) Krog*",2]
["Punctelia borreri (Sm.) Krog*",2]
["Punctelia rudecta (Ach.) Krog*",2]
["Xanthomendoza fallax (Hepp ex Arnold) Sochting, Karnfelt & S. Kondr.*",2]
["Xanthomendoza ulophyllodes (Rasanen) Sochting, Karnefelt & S. Kondr.*",2]
["Xanthoria elegans (Link) Th. Fr.*",2]

{"sheet":"WYANDOT","index":88,"n_rows":29,"n_cols":2,"rows_kept":29,"cut":false,"hidden":false,"merged":[]}
["Lichen Taxa --WYANDOT","Wyandot"]
["Anaptychia palmulata (Michaux) Vainio",1]
["Candelaria concolor (Dickson) Stein*",2]
["Cladonia caespiticia (Pers.) Florke",1]
["Cladonia coniocraea (Florke) Sprengel*",2]
["Cladonia cristatella Tuck.*",2]
["Cladonia fimbriata (L.) Fr.",1]
["Flavoparmelia caperata (L.) Hale*",2]
["Flavopunctelia flaventior (Stirton) Hale*",2]
["Flavopunctelia soredica (Nyl.) Hale*",2]
["Heterodermia albicans (Pers.) Swinscow & Krog",1]
["Heterodermia hypoleuca (Ach.) Trevisan",1]
["Heterodermia obscurata (Nyl.) Trevisan",1]
["Hyperphyscia adglutinata (Florke) H. Mayrh. & Poelt*",2]
["Hyperphyscia syncolla (Tuck. ex Nyl.) Kalb*",2]
["Myelochroa aurulenta (Tuck.) Elix & Hale*",2]
["Myelochroa galbina (Ach.) Elix & Hale*",2]
["Parmelia sulcata Taylor*",2]
["Phaeophyscia ciliata (Hoffm.) Moberg*",2]
["Phaeophyscia rubropulchra (Degel.) Essl.",1]
["Physcia adscendens (Fr.) H. Oliver*",2]
["Physcia aipolia (Ehrh. ex Humb.) Furnr.*",2]
["Physcia americana G. Merr.*",2]
["Physcia millegrana Degel.*",2]
["Physconia detersa (Nyl.) Poelt*",2]
["Punctelia bolliana (Mull. Arg.) Krog*",2]
["Punctelia borreri (Sm.) Krog*",2]
["Punctelia rudecta (Ach.) Krog*",2]
["Pyxine sorediata (Ach.) Mont",1]